Workbook

Sheet ACCUEIL
H7: 2019-05-31
A22: Lexique

Sheet Accueilagence
A1: Accueil
E7: =ACCUEIL!H7 -> 2019-05-31

Sheet Accueilsecteur
A1: Accueil
E7: =ACCUEIL!H7 -> 2019-05-31

Sheet AccueilDircom
A1: Accueil
E7: =ACCUEIL!H7 -> 2019-05-31

Sheet DC_FICHE
A1: Accueil
A2: BAROMETRE BDD
A4: UNITE: | B4: DIRECTION COMMERCIALE | K4: ETP perf : | L4: =VLOOKUP(A5,'RECAP DIRCOM'!$G$6:$I$12,3,FALSE) -> 298.92
A5: =VLOOKUP(B5,LISTES!$M$6:$N$12,2,FALSE) -> 262 | B5: BAS-RHIN
C6: Coefficient du critére | E6: Résultats | I6: Ecart au 1ier | M6: Evolution
E7: du 1ier | G7: DIRECTION | I7: Du mois | K7: Au 31/12/2018
A9: RANG au CLASSEMENT GENERAL | I9: =VLOOKUP($A$5,'RECAP DIRCOM'!$G$6:$FE$312,154,FALSE) -> 7 | K9: =VLOOKUP($A$5,'RECAP DIRCOM AN'!$G$6:$FE$312,154,FALSE) -> 5 | M9: =+K9-I9 -> -2
A11: CRITERE CONQUETE | C11: 15%
B12: Evolution nette Clients Bancarisés Principaux (BP +JBP) par ETP | C12: 4% | E12: ='RECAP DIRCOM'!K4 -> -0.5 | G12: =VLOOKUP($A$5,'RECAP DIRCOM'!$G$6:$FE$312,5,FALSE) -> -3.4 | I12: =VLOOKUP($A$5,'RECAP DIRCOM'!$G$6:$FE$312,6,FALSE) -> 111% | K12: =VLOOKUP($A$5,'RECAP DIRCOM AN'!$G$6:$FE$312,6,FALSE) -> 126% | M12: =+K12-I12 -> 15%
B13: Evolution nette relations Premium par ETP | C13: 4% | E13: ='RECAP DIRCOM'!N4 -> 1.5 | G13: =VLOOKUP($A$5,'RECAP DIRCOM'!$G$6:$FE$312,8,FALSE) -> 1.3 | I13: =VLOOKUP($A$5,'RECAP DIRCOM'!$G$6:$FE$312,9,FALSE) -> 14% | K13: =VLOOKUP($A$5,'RECAP DIRCOM AN'!$G$6:$FE$312,9,FALSE) -> 0% | M13: =+K13-I13 -> -14%
B14: Evolution nette Clients Bancarisés Principaux équipés par ETP | C14: 3% | E14: ='RECAP DIRCOM'!Q4 -> 1.5 | G14: =VLOOKUP($A$5,'RECAP DIRCOM'!$G$6:$FE$312,11,FALSE) -> -2.9 | I14: =VLOOKUP($A$5,'RECAP DIRCOM'!$G$6:$FE$312,12,FALSE) -> 150% | K14: =VLOOKUP($A$5,'RECAP DIRCOM AN'!$G$6:$FE$312,12,FALSE) -> 115% | M14: -35%
B15: Evolution nette Clients Pro actif équipés par rapport à l’objectif fixé | C15: 4% | E15: ='RECAP DIRCOM'!T4 -> 84% | G15: =VLOOKUP($A$5,'RECAP DIRCOM'!$G$6:$FE$312,14,FALSE) -> 5% | I15: =VLOOKUP($A$5,'RECAP DIRCOM'!$G$6:$FE$312,15,FALSE) -> 93% | K15: =VLOOKUP($A$5,'RECAP DIRCOM AN'!$G$6:$FE$312,15,FALSE) -> 134% | M15: 41%
A17: CRITERE EQUIPEMENT BANCARISATION | C17: 15%
B18: Ventes nettes forfaits (+ 2 options) par ETP | C18: 3% | E18: ='RECAP DIRCOM'!AF4 -> -7.0 | G18: =VLOOKUP($A$5,'RECAP DIRCOM'!$G$6:$FE$312,26,FALSE) -> -7.0 | I18: =VLOOKUP($A$5,'RECAP DIRCOM'!$G$6:$FE$312,27,FALSE) -> 0% | K18: =VLOOKUP($A$5,'RECAP DIRCOM AN'!$G$6:$FE$312,27,FALSE) -> 0% | M18: =+K18-I18 -> 0%
B19: Ventes nettes IZICARTES par ETP | C19: 3% | E19: ='RECAP DIRCOM'!AI4 -> 6.8 | G19: =VLOOKUP($A$5,'RECAP DIRCOM'!$G$6:$FE$312,29,FALSE) -> 1.7 | I19: =VLOOKUP($A$5,'RECAP DIRCOM'!$G$6:$FE$312,30,FALSE) -> 74% | K19: =VLOOKUP($A$5,'RECAP DIRCOM AN'!$G$6:$FE$312,30,FALSE) -> 18% | M19: -56%
B20: Ventes nettes cartes HDG par ETP | C20: 3% | E20: ='RECAP DIRCOM'!AL4 -> 9.7 | G20: =VLOOKUP($A$5,'RECAP DIRCOM'!$G$6:$FE$312,32,FALSE) -> 4.2 | I20: =VLOOKUP($A$5,'RECAP DIRCOM'!$G$6:$FE$312,33,FALSE) -> 56% | K20: =VLOOKUP($A$5,'RECAP DIRCOM AN'!$G$6:$FE$312,33,FALSE) -> 33% | M20: -24%
B21: Vente nette CB débit différé par ETP | C21: 3% | E21: ='RECAP DIRCOM'!AO4 -> 3.7 | G21: =VLOOKUP($A$5,'RECAP DIRCOM'!$G$6:$FE$312,35,FALSE) -> 2.0 | I21: =VLOOKUP($A$5,'RECAP DIRCOM'!$G$6:$FE$312,36,FALSE) -> 46% | K21: =VLOOKUP($A$5,'RECAP DIRCOM AN'!$G$6:$FE$312,36,FALSE) -> 80% | M21: 33%
B22: Ventes nettes banca Pro Forfaits Pro, Carte pro par rapport à l’objectif | C22: 3% | E22: ='RECAP DIRCOM'!AR4 -> 66% | G22: =VLOOKUP($A$5,'RECAP DIRCOM'!$G$6:$FE$312,38,FALSE) -> 23% | I22: =VLOOKUP($A$5,'RECAP DIRCOM'!$G$6:$FE$312,39,FALSE) -> 65% | K22: =VLOOKUP($A$5,'RECAP DIRCOM AN'!$G$6:$FE$312,39,FALSE) -> 98% | M22: 33%
A24: CRITERE EPARGNE | C24: 15%
B25: Excédents de collecte (y.c DAV) par ETP | C25: 2% | E25: ='RECAP DIRCOM'!BD4 -> 51.2 | G25: =VLOOKUP($A$5,'RECAP DIRCOM'!$G$6:$FE$312,50,FALSE) -> 2.0 | I25: =VLOOKUP($A$5,'RECAP DIRCOM'!$G$6:$FE$312,51,FALSE) -> 96% | K25: =VLOOKUP($A$5,'RECAP DIRCOM AN'!$G$6:$FE$312,51,FALSE) -> 21% | M25: =+K25-I25 -> -75%
B26: CA assurance vie par ETP | C26: 2% | E26: ='RECAP DIRCOM'!BG4 -> 334.3 | G26: =VLOOKUP($A$5,'RECAP DIRCOM'!$G$6:$FE$312,53,FALSE) -> 233.5 | I26: =VLOOKUP($A$5,'RECAP DIRCOM'!$G$6:$FE$312,54,FALSE) -> 30% | K26: =VLOOKUP($A$5,'RECAP DIRCOM AN'!$G$6:$FE$312,54,FALSE) -> 24% | M26: -6%
B27: Activité UC (CA+arbitrage) par ETP | C27: 2% | E27: ='RECAP DIRCOM'!BJ4 -> 100.1 | G27: =VLOOKUP($A$5,'RECAP DIRCOM'!$G$6:$FE$312,56,FALSE) -> 83.3 | I27: =VLOOKUP($A$5,'RECAP DIRCOM'!$G$6:$FE$312,57,FALSE) -> 17% | K27: =VLOOKUP($A$5,'RECAP DIRCOM AN'!$G$6:$FE$312,57,FALSE) -> 20% | M27: 3%
B28: Excédents Assurance-vie par ETP | C28: 2% | E28: ='RECAP DIRCOM'!BM4 -> 120.7 | G28: =VLOOKUP($A$5,'RECAP DIRCOM'!$G$6:$FE$312,59,FALSE) -> 35.3 | I28: =VLOOKUP($A$5,'RECAP DIRCOM'!$G$6:$FE$312,60,FALSE) -> 71% | K28: =VLOOKUP($A$5,'RECAP DIRCOM AN'!$G$6:$FE$312,60,FALSE) -> 94% | M28: 23%
B29: Excédents Epargne Bilan (Hors Emprunts CTO) par ETP | C29: 7% | E29: ='RECAP DIRCOM'!BP4 -> 78.1 | G29: =VLOOKUP($A$5,'RECAP DIRCOM'!$G$6:$FE$312,62,FALSE) -> 41.2 | I29: =VLOOKUP($A$5,'RECAP DIRCOM'!$G$6:$FE$312,63,FALSE) -> 47% | K29: =VLOOKUP($A$5,'RECAP DIRCOM AN'!$G$6:$FE$312,63,FALSE) -> 0% | M29: -47%
A31: CRITERE CREDITS | C31: 15%
B32: Engagement Conso par ETP (hors clients 9) | C32: 3% | E32: ='RECAP DIRCOM'!CB4 -> 193.2 | G32: =VLOOKUP($A$5,'RECAP DIRCOM'!$G$6:$FE$312,74,FALSE) -> 145.7 | I32: =VLOOKUP($A$5,'RECAP DIRCOM'!$G$6:$FE$312,75,FALSE) -> 25% | K32: =VLOOKUP($A$5,'RECAP DIRCOM AN'!$G$6:$FE$312,75,FALSE) -> 21% | M32: =+K32-I32 -> -4%
B33: % CNP sur Conso en valeur absolue | C33: 2% | E33: ='RECAP DIRCOM'!CE4 -> 96% | G33: =VLOOKUP($A$5,'RECAP DIRCOM'!$G$6:$FE$312,77,FALSE) -> 93% | I33: =VLOOKUP($A$5,'RECAP DIRCOM'!$G$6:$FE$312,78,FALSE) -> 3% | K33: =VLOOKUP($A$5,'RECAP DIRCOM AN'!$G$6:$FE$312,78,FALSE) -> 0% | M33: -3%
B34: Engagements Immo par rapport à l’objectif | C34: 3% | E34: ='RECAP DIRCOM'!CH4 -> 41% | G34: =VLOOKUP($A$5,'RECAP DIRCOM'!$G$6:$FE$312,80,FALSE) -> 33% | I34: =VLOOKUP($A$5,'RECAP DIRCOM'!$G$6:$FE$312,81,FALSE) -> 20% | K34: =VLOOKUP($A$5,'RECAP DIRCOM AN'!$G$6:$FE$312,81,FALSE) -> 29% | M34: 9%
B35: % CNP sur crédits immo en valeur absolue | C35: 2% | E35: ='RECAP DIRCOM'!CK4 -> 77% | G35: =VLOOKUP($A$5,'RECAP DIRCOM'!$G$6:$FE$312,83,FALSE) -> 61% | I35: =VLOOKUP($A$5,'RECAP DIRCOM'!$G$6:$FE$312,84,FALSE) -> 21% | K35: =VLOOKUP($A$5,'RECAP DIRCOM AN'!$G$6:$FE$312,84,FALSE) -> 8% | M35: -13%
B36: Taux de couverture SACCEF | C36: 2% | E36: ='RECAP DIRCOM'!CN4 -> 90% | G36: =VLOOKUP($A$5,'RECAP DIRCOM'!$G$6:$FE$312,86,FALSE) -> 82% | I36: =VLOOKUP($A$5,'RECAP DIRCOM'!$G$6:$FE$312,87,FALSE) -> 9% | K36: =VLOOKUP($A$5,'RECAP DIRCOM AN'!$G$6:$FE$312,87,FALSE) -> 0% | M36: -9%
B37: Engagements CMLT + CB par rapport à l’objectif | C37: 3% | E37: ='RECAP DIRCOM'!CQ4 -> 65% | G37: =VLOOKUP($A$5,'RECAP DIRCOM'!$G$6:$FE$312,89,FALSE) -> 40% | I37: =VLOOKUP($A$5,'RECAP DIRCOM'!$G$6:$FE$312,90,FALSE) -> 38% | K37: =VLOOKUP($A$5,'RECAP DIRCOM AN'!$G$6:$FE$312,90,FALSE) -> 13% | M37: -25%
A39: CRITERE IARD PREVOYANCE | C39: 20%
B40: Ventes nettes IARD (Auto+MRH+ Pro) par ETP | C40: 7% | E40: ='RECAP DIRCOM'!DC4 -> 4.1 | G40: =VLOOKUP($A$5,'RECAP DIRCOM'!$G$6:$FE$312,101,FALSE) -> 2.7 | I40: =VLOOKUP($A$5,'RECAP DIRCOM'!$G$6:$FE$312,102,FALSE) -> 33% | K40: =VLOOKUP($A$5,'RECAP DIRCOM AN'!$G$6:$FE$312,102,FALSE) -> 23% | M40: =+K40-I40 -> -10%
B41: Ventes nettes Prévoyance (GAV, secur.f,prevoy loc,santé,assist.vie, obséques, Pro) par ETP | C41: 7% | E41: ='RECAP DIRCOM'!DF4 -> 7.4 | G41: =VLOOKUP($A$5,'RECAP DIRCOM'!$G$6:$FE$312,104,FALSE) -> 4.0 | I41: =VLOOKUP($A$5,'RECAP DIRCOM'!$G$6:$FE$312,105,FALSE) -> 46% | K41: =VLOOKUP($A$5,'RECAP DIRCOM AN'!$G$6:$FE$312,105,FALSE) -> 7% | M41: -39%
B42: Chiffre d’affaires IARD (Yc Pro) par ETP | C42: 6% | E42: ='RECAP DIRCOM'!DI4 -> 5.5 | G42: =VLOOKUP($A$5,'RECAP DIRCOM'!$G$6:$FE$312,107,FALSE) -> 4.9 | I42: =VLOOKUP($A$5,'RECAP DIRCOM'!$G$6:$FE$312,108,FALSE) -> 12% | K42: =VLOOKUP($A$5,'RECAP DIRCOM AN'!$G$6:$FE$312,108,FALSE) -> 11% | M42: -1%
A44: CRITERE RISQUES | C44: 10%
B45: Complétude, conformité et fiabilisation des nouvelles EER sur flux BDD | C45: 3% | E45: ='RECAP DIRCOM'!DU4 -> 98% | G45: =VLOOKUP($A$5,'RECAP DIRCOM'!$G$6:$FE$312,119,FALSE) -> 95% | I45: =VLOOKUP($A$5,'RECAP DIRCOM'!$G$6:$FE$312,120,FALSE) -> 2% | K45: =VLOOKUP($A$5,'RECAP DIRCOM AN'!$G$6:$FE$312,120,FALSE) -> 3% | M45: =+K45-I45 -> 0%
B46: Complétude, conformité et fiabilisation des EER sur flux cumulé et stock | C46: 3% | E46: ='RECAP DIRCOM'!DX4 -> 77% | G46: =VLOOKUP($A$5,'RECAP DIRCOM'!$G$6:$FE$312,122,FALSE) -> 71% | I46: =VLOOKUP($A$5,'RECAP DIRCOM'!$G$6:$FE$312,123,FALSE) -> 8% | K46: =VLOOKUP($A$5,'RECAP DIRCOM AN'!$G$6:$FE$312,123,FALSE) -> 8% | M46: -0%
B47: Traitement et qualité du traitement des alertes Vigiclient | C47: 4% | E47: ='RECAP DIRCOM'!EA4 -> 100% | G47: =VLOOKUP($A$5,'RECAP DIRCOM'!$G$6:$FE$312,125,FALSE) -> 85% | I47: =VLOOKUP($A$5,'RECAP DIRCOM'!$G$6:$FE$312,126,FALSE) -> 15% | K47: =VLOOKUP($A$5,'RECAP DIRCOM AN'!$G$6:$FE$312,126,FALSE) -> 25% | M47: 10%
A49: CRITERE Satisfaction Clients | C49: 10%
B50: Objectifs NPS* | C50: 5% | E50: ='RECAP DIRCOM'!EM4 -> -5 | G50: =VLOOKUP($A$5,'RECAP DIRCOM'!$G$6:$FE$312,137,FALSE) -> -23 | I50: =VLOOKUP($A$5,'RECAP DIRCOM'!$G$6:$FE$312,138,FALSE) -> 150% | K50: =VLOOKUP($A$5,'RECAP DIRCOM AN'!$G$6:$FE$312,138,FALSE) -> 144% | M50: =+K50-I50 -> -6%
B51: Enquête Qualité Haute Définition | C51: 5% | E51: ='RECAP DIRCOM'!EP4 -> 78% | G51: =VLOOKUP($A$5,'RECAP DIRCOM'!$G$6:$FE$312,140,FALSE) -> 71% | I51: =VLOOKUP($A$5,'RECAP DIRCOM'!$G$6:$FE$312,141,FALSE) -> 8% | K51: =VLOOKUP($A$5,'RECAP DIRCOM AN'!$G$6:$FE$312,141,FALSE) -> 2% | M51: -6%

Sheet DC_OBJECTIF
A1: Accueil | D1: BAROMETRE BDD - DIRECTIONS COMMERCIALES
D2: PV PART SUR OBJECTIFS
D3: =ACCUEIL!H7 -> 2019-05-31
D7: Excédent de collecte par ETP yc DAV | G7: Engagements crédit conso par ETP (hors clients note octroi à 9 et DRC complet) | J7: Ventes brutes IARD prevoyance Part et Pro (si DRC complet) par ETP | M7: Evolution des Bpe+JBPe par ETP | P7: PNB sur activité nouvelle (yc bonus digital) par ETP
E8: Taux d'atteinte saisonalisé | F8: =VLOOKUP(ACCUEIL!$H$7,Tableau1[],2,FALSE) -> 42% | H8: Taux d'atteinte saisonalisé | I8: =VLOOKUP(ACCUEIL!$H$7,Tableau1[],3,FALSE) -> 42% | K8: Taux d'atteinte saisonalisé | L8: =VLOOKUP(ACCUEIL!$H$7,Tableau1[],4,FALSE) -> 42% | N8: Taux d'atteinte saisonalisé | O8: =VLOOKUP(ACCUEIL!$H$7,Tableau1[],5,FALSE) -> 42% | Q8: Taux d'atteinte saisonalisé | R8: =VLOOKUP(ACCUEIL!$H$7,Tableau1[],6,FALSE) -> 42%
A9: eds | B9: Direction | C9: ETP perf | D9: Réal | E9: Obj | F9: % | G9: Réal | H9: Obj | I9: % | J9: Réal | K9: Obj | L9: % | M9: Réal | N9: Obj | O9: % | P9: Réal | Q9: Obj | R9: % | T9: <80% | U9: 100% | V9: 110% | W9: 120%
A10: 50 | B10: Aube Haute Marne | C10: =VLOOKUP($A10,'RECAP DIRCOM'!$G$6:$EV$12,3,FALSE) -> 148 | D10: =VLOOKUP($A10,'RECAP DIRCOM'!$G$6:$FZ$12,158,FALSE) -> 5 | E10: =VLOOKUP($A10,'RECAP DIRCOM'!$G$6:$FZ$12,159,FALSE) -> 116 | F10: =VLOOKUP($A10,'RECAP DIRCOM'!$G$6:$FZ$12,160,FALSE) -> 4% | G10: =VLOOKUP($A10,'RECAP DIRCOM'!$G$6:$FZ$12,161,FALSE) -> 193 | H10: =VLOOKUP($A10,'RECAP DIRCOM'!$G$6:$FZ$12,162,FALSE) -> 467 | I10: =VLOOKUP($A10,'RECAP DIRCOM'!$G$6:$FZ$12,163,FALSE) -> 41% | J10: =VLOOKUP($A10,'RECAP DIRCOM'!$G$6:$FZ$12,164,FALSE) -> 18 | K10: =VLOOKUP($A10,'RECAP DIRCOM'!$G$6:$FZ$12,165,FALSE) -> 59 | L10: =VLOOKUP($A10,'RECAP DIRCOM'!$G$6:$FZ$12,166,FALSE) -> 31% | M10: =VLOOKUP($A10,'RECAP DIRCOM'!$G$6:$FZ$12,167,FALSE) -> 2 | N10: =VLOOKUP($A10,'RECAP DIRCOM'!$G$6:$FZ$12,168,FALSE) -> 4 | O10: =VLOOKUP($A10,'RECAP DIRCOM'!$G$6:$FZ$12,169,FALSE) -> 38% | P10: =VLOOKUP($A10,'RECAP DIRCOM'!$G$6:$FZ$12,170,FALSE) -> 48 | Q10: =VLOOKUP($A10,'RECAP DIRCOM'!$G$6:$FZ$12,171,FALSE) -> 132 | R10: =VLOOKUP($A10,'RECAP DIRCOM'!$G$6:$FZ$12,172,FALSE) -> 37% | T10: =$F$8*0.8 -> 33% | U10: =$F$8 -> 42% | V10: =$F$8*1.1 -> 46% | W10: =$F$8*1.2 -> 50%
A11: 262 | B11: Bas-Rhin | C11: =VLOOKUP($A11,'RECAP DIRCOM'!$G$6:$EV$12,3,FALSE) -> 299 | D11: =VLOOKUP($A11,'RECAP DIRCOM'!$G$6:$FZ$12,158,FALSE) -> 2 | E11: =VLOOKUP($A11,'RECAP DIRCOM'!$G$6:$FZ$12,159,FALSE) -> 128 | F11: =VLOOKUP($A11,'RECAP DIRCOM'!$G$6:$FZ$12,160,FALSE) -> 2% | G11: =VLOOKUP($A11,'RECAP DIRCOM'!$G$6:$FZ$12,161,FALSE) -> 146 | H11: =VLOOKUP($A11,'RECAP DIRCOM'!$G$6:$FZ$12,162,FALSE) -> 467 | I11: =VLOOKUP($A11,'RECAP DIRCOM'!$G$6:$FZ$12,163,FALSE) -> 31% | J11: =VLOOKUP($A11,'RECAP DIRCOM'!$G$6:$FZ$12,164,FALSE) -> 19 | K11: =VLOOKUP($A11,'RECAP DIRCOM'!$G$6:$FZ$12,165,FALSE) -> 59 | L11: =VLOOKUP($A11,'RECAP DIRCOM'!$G$6:$FZ$12,166,FALSE) -> 32% | M11: =VLOOKUP($A11,'RECAP DIRCOM'!$G$6:$FZ$12,167,FALSE) -> -3 | N11: =VLOOKUP($A11,'RECAP DIRCOM'!$G$6:$FZ$12,168,FALSE) -> 4 | O11: =VLOOKUP($A11,'RECAP DIRCOM'!$G$6:$FZ$12,169,FALSE) -> -74% | P11: =VLOOKUP($A11,'RECAP DIRCOM'!$G$6:$FZ$12,170,FALSE) -> 40 | Q11: =VLOOKUP($A11,'RECAP DIRCOM'!$G$6:$FZ$12,171,FALSE) -> 136 | R11: =VLOOKUP($A11,'RECAP DIRCOM'!$G$6:$FZ$12,172,FALSE) -> 29% | T11: =$F$8*0.8 -> 33% | U11: =$F$8 -> 42% | V11: =$F$8*1.1 -> 46% | W11: =$F$8*1.2 -> 50%
A12: 264 | B12: Haut-Rhin | C12: =VLOOKUP($A12,'RECAP DIRCOM'!$G$6:$EV$12,3,FALSE) -> 181 | D12: =VLOOKUP($A12,'RECAP DIRCOM'!$G$6:$FZ$12,158,FALSE) -> 44 | E12: =VLOOKUP($A12,'RECAP DIRCOM'!$G$6:$FZ$12,159,FALSE) -> 132 | F12: =VLOOKUP($A12,'RECAP DIRCOM'!$G$6:$FZ$12,160,FALSE) -> 34% | G12: =VLOOKUP($A12,'RECAP DIRCOM'!$G$6:$FZ$12,161,FALSE) -> 136 | H12: =VLOOKUP($A12,'RECAP DIRCOM'!$G$6:$FZ$12,162,FALSE) -> 467 | I12: =VLOOKUP($A12,'RECAP DIRCOM'!$G$6:$FZ$12,163,FALSE) -> 29% | J12: =VLOOKUP($A12,'RECAP DIRCOM'!$G$6:$FZ$12,164,FALSE) -> 17 | K12: =VLOOKUP($A12,'RECAP DIRCOM'!$G$6:$FZ$12,165,FALSE) -> 59 | L12: =VLOOKUP($A12,'RECAP DIRCOM'!$G$6:$FZ$12,166,FALSE) -> 29% | M12: =VLOOKUP($A12,'RECAP DIRCOM'!$G$6:$FZ$12,167,FALSE) -> -3 | N12: =VLOOKUP($A12,'RECAP DIRCOM'!$G$6:$FZ$12,168,FALSE) -> 4 | O12: =VLOOKUP($A12,'RECAP DIRCOM'!$G$6:$FZ$12,169,FALSE) -> -68% | P12: =VLOOKUP($A12,'RECAP DIRCOM'!$G$6:$FZ$12,170,FALSE) -> 42 | Q12: =VLOOKUP($A12,'RECAP DIRCOM'!$G$6:$FZ$12,171,FALSE) -> 140 | R12: =VLOOKUP($A12,'RECAP DIRCOM'!$G$6:$FZ$12,172,FALSE) -> 30% | T12: 33% | U12: 42% | V12: 46% | W12: 50%
A13: 30 | B13: Marne-Ardennes | C13: =VLOOKUP($A13,'RECAP DIRCOM'!$G$6:$EV$12,3,FALSE) -> 239 | D13: =VLOOKUP($A13,'RECAP DIRCOM'!$G$6:$FZ$12,158,FALSE) -> -4 | E13: =VLOOKUP($A13,'RECAP DIRCOM'!$G$6:$FZ$12,159,FALSE) -> 133 | F13: =VLOOKUP($A13,'RECAP DIRCOM'!$G$6:$FZ$12,160,FALSE) -> -3% | G13: =VLOOKUP($A13,'RECAP DIRCOM'!$G$6:$FZ$12,161,FALSE) -> 175 | H13: =VLOOKUP($A13,'RECAP DIRCOM'!$G$6:$FZ$12,162,FALSE) -> 467 | I13: =VLOOKUP($A13,'RECAP DIRCOM'!$G$6:$FZ$12,163,FALSE) -> 37% | J13: =VLOOKUP($A13,'RECAP DIRCOM'!$G$6:$FZ$12,164,FALSE) -> 21 | K13: =VLOOKUP($A13,'RECAP DIRCOM'!$G$6:$FZ$12,165,FALSE) -> 59 | L13: =VLOOKUP($A13,'RECAP DIRCOM'!$G$6:$FZ$12,166,FALSE) -> 36% | M13: =VLOOKUP($A13,'RECAP DIRCOM'!$G$6:$FZ$12,167,FALSE) -> 1 | N13: =VLOOKUP($A13,'RECAP DIRCOM'!$G$6:$FZ$12,168,FALSE) -> 4 | O13: =VLOOKUP($A13,'RECAP DIRCOM'!$G$6:$FZ$12,169,FALSE) -> 26% | P13: =VLOOKUP($A13,'RECAP DIRCOM'!$G$6:$FZ$12,170,FALSE) -> 48 | Q13: =VLOOKUP($A13,'RECAP DIRCOM'!$G$6:$FZ$12,171,FALSE) -> 140 | R13: =VLOOKUP($A13,'RECAP DIRCOM'!$G$6:$FZ$12,172,FALSE) -> 34% | T13: 33% | U13: 42% | V13: 46% | W13: 50%
A14: 110 | B14: Meurthe et Moselle Meuse | C14: =VLOOKUP($A14,'RECAP DIRCOM'!$G$6:$EV$12,3,FALSE) -> 267 | D14: =VLOOKUP($A14,'RECAP DIRCOM'!$G$6:$FZ$12,158,FALSE) -> 13 | E14: =VLOOKUP($A14,'RECAP DIRCOM'!$G$6:$FZ$12,159,FALSE) -> 118 | F14: =VLOOKUP($A14,'RECAP DIRCOM'!$G$6:$FZ$12,160,FALSE) -> 11% | G14: =VLOOKUP($A14,'RECAP DIRCOM'!$G$6:$FZ$12,161,FALSE) -> 176 | H14: =VLOOKUP($A14,'RECAP DIRCOM'!$G$6:$FZ$12,162,FALSE) -> 467 | I14: =VLOOKUP($A14,'RECAP DIRCOM'!$G$6:$FZ$12,163,FALSE) -> 38% | J14: =VLOOKUP($A14,'RECAP DIRCOM'!$G$6:$FZ$12,164,FALSE) -> 18 | K14: =VLOOKUP($A14,'RECAP DIRCOM'!$G$6:$FZ$12,165,FALSE) -> 59 | L14: =VLOOKUP($A14,'RECAP DIRCOM'!$G$6:$FZ$12,166,FALSE) -> 31% | M14: =VLOOKUP($A14,'RECAP DIRCOM'!$G$6:$FZ$12,167,FALSE) -> -1 | N14: =VLOOKUP($A14,'RECAP DIRCOM'!$G$6:$FZ$12,168,FALSE) -> 4 | O14: =VLOOKUP($A14,'RECAP DIRCOM'!$G$6:$FZ$12,169,FALSE) -> -15% | P14: =VLOOKUP($A14,'RECAP DIRCOM'!$G$6:$FZ$12,170,FALSE) -> 45 | Q14: =VLOOKUP($A14,'RECAP DIRCOM'!$G$6:$FZ$12,171,FALSE) -> 131 | R14: =VLOOKUP($A14,'RECAP DIRCOM'!$G$6:$FZ$12,172,FALSE) -> 34% | T14: 33% | U14: 42% | V14: 46% | W14: 50%
A15: 160 | B15: Moselle | C15: =VLOOKUP($A15,'RECAP DIRCOM'!$G$6:$EV$12,3,FALSE) -> 310 | D15: =VLOOKUP($A15,'RECAP DIRCOM'!$G$6:$FZ$12,158,FALSE) -> 51 | E15: =VLOOKUP($A15,'RECAP DIRCOM'!$G$6:$FZ$12,159,FALSE) -> 117 | F15: =VLOOKUP($A15,'RECAP DIRCOM'!$G$6:$FZ$12,160,FALSE) -> 44% | G15: =VLOOKUP($A15,'RECAP DIRCOM'!$G$6:$FZ$12,161,FALSE) -> 173 | H15: =VLOOKUP($A15,'RECAP DIRCOM'!$G$6:$FZ$12,162,FALSE) -> 467 | I15: =VLOOKUP($A15,'RECAP DIRCOM'!$G$6:$FZ$12,163,FALSE) -> 37% | J15: =VLOOKUP($A15,'RECAP DIRCOM'!$G$6:$FZ$12,164,FALSE) -> 20 | K15: =VLOOKUP($A15,'RECAP DIRCOM'!$G$6:$FZ$12,165,FALSE) -> 59 | L15: =VLOOKUP($A15,'RECAP DIRCOM'!$G$6:$FZ$12,166,FALSE) -> 35% | M15: =VLOOKUP($A15,'RECAP DIRCOM'!$G$6:$FZ$12,167,FALSE) -> 0 | N15: =VLOOKUP($A15,'RECAP DIRCOM'!$G$6:$FZ$12,168,FALSE) -> 4 | O15: =VLOOKUP($A15,'RECAP DIRCOM'!$G$6:$FZ$12,169,FALSE) -> 6% | P15: =VLOOKUP($A15,'RECAP DIRCOM'!$G$6:$FZ$12,170,FALSE) -> 47 | Q15: =VLOOKUP($A15,'RECAP DIRCOM'!$G$6:$FZ$12,171,FALSE) -> 134 | R15: =VLOOKUP($A15,'RECAP DIRCOM'!$G$6:$FZ$12,172,FALSE) -> 35% | T15: 33% | U15: 42% | V15: 46% | W15: 50%
A16: 80 | B16: Vosges | C16: =VLOOKUP($A16,'RECAP DIRCOM'!$G$6:$EV$12,3,FALSE) -> 149 | D16: =VLOOKUP($A16,'RECAP DIRCOM'!$G$6:$FZ$12,158,FALSE) -> 31 | E16: =VLOOKUP($A16,'RECAP DIRCOM'!$G$6:$FZ$12,159,FALSE) -> 110 | F16: =VLOOKUP($A16,'RECAP DIRCOM'!$G$6:$FZ$12,160,FALSE) -> 28% | G16: =VLOOKUP($A16,'RECAP DIRCOM'!$G$6:$FZ$12,161,FALSE) -> 160 | H16: =VLOOKUP($A16,'RECAP DIRCOM'!$G$6:$FZ$12,162,FALSE) -> 467 | I16: =VLOOKUP($A16,'RECAP DIRCOM'!$G$6:$FZ$12,163,FALSE) -> 34% | J16: =VLOOKUP($A16,'RECAP DIRCOM'!$G$6:$FZ$12,164,FALSE) -> 19 | K16: =VLOOKUP($A16,'RECAP DIRCOM'!$G$6:$FZ$12,165,FALSE) -> 59 | L16: =VLOOKUP($A16,'RECAP DIRCOM'!$G$6:$FZ$12,166,FALSE) -> 32% | M16: =VLOOKUP($A16,'RECAP DIRCOM'!$G$6:$FZ$12,167,FALSE) -> -2 | N16: =VLOOKUP($A16,'RECAP DIRCOM'!$G$6:$FZ$12,168,FALSE) -> 4 | O16: =VLOOKUP($A16,'RECAP DIRCOM'!$G$6:$FZ$12,169,FALSE) -> -39% | P16: =VLOOKUP($A16,'RECAP DIRCOM'!$G$6:$FZ$12,170,FALSE) -> 47 | Q16: =VLOOKUP($A16,'RECAP DIRCOM'!$G$6:$FZ$12,171,FALSE) -> 127 | R16: =VLOOKUP($A16,'RECAP DIRCOM'!$G$6:$FZ$12,172,FALSE) -> 37% | T16: 33% | U16: 42% | V16: 46% | W16: 50%
E17: ='RECAP DIRCOM'!GG13 -> 5 | F17: ='RECAP DIRCOM'!GH13 -> 1 | H17: ='RECAP DIRCOM'!GL13 -> 2 | I17: ='RECAP DIRCOM'!GM13 -> 5 | K17: ='RECAP DIRCOM'!GQ13 -> 5 | L17: ='RECAP DIRCOM'!GR13 -> 2 | N17: ='RECAP DIRCOM'!GV13 -> 6 | O17: ='RECAP DIRCOM'!GW13 -> 1 | Q17: ='RECAP DIRCOM'!HA13 -> 2 | R17: ='RECAP DIRCOM'!HB13 -> 5
A18: Total CEGEE Directions Commerciales | C18: =SUM(C10:C16) -> 1592 | E18: ='RECAP DIRCOM'!GI13 -> 1 | F18: ='RECAP DIRCOM'!GJ13 -> 0 | H18: ='RECAP DIRCOM'!GN13 -> 0 | I18: ='RECAP DIRCOM'!GO13 -> 0 | K18: ='RECAP DIRCOM'!GS13 -> 0 | L18: ='RECAP DIRCOM'!GT13 -> 0 | N18: ='RECAP DIRCOM'!GX13 -> 0 | O18: ='RECAP DIRCOM'!GY13 -> 0 | Q18: ='RECAP DIRCOM'!HC13 -> 0 | R18: ='RECAP DIRCOM'!HD13 -> 0
B21: Taux d'atteinte objectif annuel > 110 % ou 120 % en saisonnalisé en fonction des critères (collecte 110 %, autres 120 %)
B23: Taux d'atteinte objectif annuel entre 100 % et 110 % ou 120 % en saisonnalisé en fonction des critères (collecte 110 %, autres 120 %)
B25: Taux d'atteinte objectif annuel entre 80 % et 100 % en saisonnalisé
B27: Taux d'atteinte objectif annuel < 80 % en saisonnalisé

Sheet DC_TOTAL
A1: Accueil | D1: BAROMETRE BDD - DIRECTIONS COMMERCIALES
D2: TOTAL GENERAL
D3: =ACCUEIL!H7 -> 2019-05-31
D7: TOTAL GENERAL | G7: Total Conquête | J7: Total Equipement Bancarisation | M7: Total Epargne | P7: Total Crédits | S7: Total IARD Prévoyance | V7: Total Risques | Y7: Total Satisfaction Clients
E8: coef | F8: 100% | H8: coef | I8: ='RECAP DIRCOM'!$Y$4 -> 15% | K8: coef | L8: ='RECAP DIRCOM'!$AW$4 -> 15% | N8: coef | O8: ='RECAP DIRCOM'!$BU$4 -> 15% | Q8: coef | R8: ='RECAP DIRCOM'!$CV$4 -> 15% | T8: coef | U8: ='RECAP DIRCOM'!$DN$4 -> 20% | W8: coef | X8: ='RECAP DIRCOM'!$EF$4 -> 10% | Z8: coef | AA8: ='RECAP DIRCOM'!$EU$4 -> 10%
A9: eds | B9: Direction | C9: ETP perf | D9: Moyenne ecart au 1er | E9: % Ecart au 1er | F9: Rang CEGEE | G9: Moyenne ecart au 1er | H9: % Ecart au 1er | I9: Rang CEGEE | J9: Moyenne ecart au 1er | K9: % Ecart au 1er | L9: Rang CEGEE | M9: Moyenne ecart au 1er | N9: % Ecart au 1er | O9: Rang CEGEE | P9: Moyenne ecart au 1er | Q9: % Ecart au 1er | R9: Rang CEGEE | S9: Moyenne ecart au 1er | T9: % Ecart au 1er | U9: Rang CEGEE | V9: Moyenne ecart au 1er | W9: % Ecart au 1er | X9: Rang CEGEE | Y9: Moyenne ecart au 1er | Z9: % Ecart au 1er | AA9: Rang CEGEE
A10: 30 | B10: Marne-Ardennes | C10: 239 | D10: 5% | E10: 0% | F10: 1 | G10: 40% | H10: 6% | I10: 2 | J10: 22% | K10: 0% | L10: 1 | M10: 45% | N10: 26% | O10: 3 | P10: 6% | Q10: 0% | R10: 1 | S10: 4% | T10: 0% | U10: 1 | V10: 3% | W10: 2% | X10: 4 | Y10: 0% | Z10: 0% | AA10: 1
A11: 160 | B11: Moselle | C11: 310 | D11: 12% | E11: 7% | F11: 2 | G11: 50% | H11: 15% | I11: 3 | J11: 25% | K11: 3% | L11: 3 | M11: 31% | N11: 12% | O11: 2 | P11: 19% | Q11: 14% | R11: 6 | S11: 12% | T11: 8% | U11: 2 | V11: 1% | W11: 0% | X11: 2 | Y11: 34% | Z11: 34% | AA11: 4
A12: 50 | B12: Aube Haute Marne | C12: 148 | D12: 17% | E12: 12% | F12: 3 | G12: 34% | H12: 0% | I12: 1 | J12: 28% | K12: 6% | L12: 4 | M12: 79% | N12: 60% | O12: 7 | P12: 11% | Q12: 5% | R12: 3 | S12: 25% | T12: 20% | U12: 5 | V12: 1% | W12: 0% | X12: 1 | Y12: 18% | Z12: 18% | AA12: 2
A13: 80 | B13: Vosges | C13: 149 | D13: 17% | E13: 12% | F13: 4 | G13: 76% | H13: 42% | I13: 5 | J13: 24% | K13: 2% | L13: 2 | M13: 45% | N13: 26% | O13: 4 | P13: 6% | Q13: 1% | R13: 2 | S13: 17% | T13: 13% | U13: 3 | V13: 3% | W13: 2% | X13: 5 | Y13: 34% | Z13: 34% | AA13: 3
A14: 110 | B14: Meurthe et Moselle Meuse | C14: 267 | D14: 21% | E14: 16% | F14: 5 | G14: 57% | H14: 23% | I14: 4 | J14: 50% | K14: 28% | L14: 7 | M14: 47% | N14: 27% | O14: 5 | P14: 14% | Q14: 9% | R14: 4 | S14: 20% | T14: 16% | U14: 4 | V14: 9% | W14: 8% | X14: 7 | Y14: 39% | Z14: 39% | AA14: 5
A15: 264 | B15: Haut-Rhin | C15: 181 | D15: 28% | E15: 23% | F15: 6 | G15: 99% | H15: 65% | I15: 7 | J15: 46% | K15: 24% | L15: 5 | M15: 19% | N15: 0% | O15: 1 | P15: 17% | Q15: 12% | R15: 5 | S15: 33% | T15: 29% | U15: 7 | V15: 3% | W15: 2% | X15: 3 | Y15: 73% | Z15: 73% | AA15: 6
A16: 262 | B16: Bas-Rhin | C16: 299 | D16: 33% | E16: 28% | F16: 7 | G16: 88% | H16: 54% | I16: 6 | J16: 48% | K16: 26% | L16: 6 | M16: 51% | N16: 31% | O16: 6 | P16: 21% | Q16: 16% | R16: 7 | S16: 31% | T16: 27% | U16: 6 | V16: 9% | W16: 8% | X16: 6 | Y16: 79% | Z16: 79% | AA16: 7
A17: Total CEGEE Directions Commerciales | C17: =SUM(C10:C16) -> 1592

Sheet DC_BANCA
A1: Accueil | D1: BAROMETRE BDD - DIRECTIONS COMMERCIALES
D2: EQUIPEMENT BANCARISATION
D3: =ACCUEIL!H7 -> 2019-05-31
D7: Ventes nettes FORFAITS avec 2 options | G7: Ventes nettes IZICARTES | J7: Ventes nettes Cartes HDG | M7: Ventes nettes CB débit différé | P7: Ventes nettes banca Pro | S7: Total Equipement Bancarisation
E8: coef | F8: ='RECAP DIRCOM'!AH4 -> 3% | H8: coef | I8: ='RECAP DIRCOM'!AK4 -> 3% | K8: coef | L8: ='RECAP DIRCOM'!AN4 -> 3% | N8: coef | O8: ='RECAP DIRCOM'!AQ4 -> 3% | Q8: coef | R8: ='RECAP DIRCOM'!AT4 -> 3% | T8: coef | U8: ='RECAP DIRCOM'!AW4 -> 15%
A9: eds | B9: Direction | C9: ETP perf | D9: Nb / ETP | E9: % Ecart au 1er | F9: Rang | G9: Nb / ETP | H9: % Ecart au 1er | I9: Rang | J9: Nb / ETP | K9: % Ecart au 1er | L9: Rang | M9: Nb / ETP | N9: % Ecart au 1er | O9: Rang | P9: Taux réal objectif | Q9: % Ecart au 1er | R9: Rang | S9: Moyenne ecart au 1er | T9: % Ecart au 1er | U9: Rang CEGEE
A10: 50 | B10: Aube Haute Marne | C10: =VLOOKUP($A10,'RECAP DIRCOM'!$G$6:$EV$12,3,FALSE) -> 148 | D10: =VLOOKUP($A10,'RECAP DIRCOM'!$G$6:$EV$12,26,FALSE) -> -10.25 | E10: =VLOOKUP($A10,'RECAP DIRCOM'!$G$6:$EV$12,27,FALSE) -> 47% | F10: =VLOOKUP($A10,'RECAP DIRCOM'!$G$6:$EV$12,28,FALSE) -> 4 | G10: =VLOOKUP($A10,'RECAP DIRCOM'!$G$6:$EV$12,29,FALSE) -> 4.34 | H10: =VLOOKUP($A10,'RECAP DIRCOM'!$G$6:$EV$12,30,FALSE) -> 36% | I10: =VLOOKUP($A10,'RECAP DIRCOM'!$G$6:$EV$12,31,FALSE) -> 3 | J10: =VLOOKUP($A10,'RECAP DIRCOM'!$G$6:$EV$12,32,FALSE) -> 6.60 | K10: =VLOOKUP($A10,'RECAP DIRCOM'!$G$6:$EV$12,33,FALSE) -> 32% | L10: =VLOOKUP($A10,'RECAP DIRCOM'!$G$6:$EV$12,34,FALSE) -> 2 | M10: =VLOOKUP($A10,'RECAP DIRCOM'!$G$6:$EV$12,35,FALSE) -> 3.67 | N10: =VLOOKUP($A10,'RECAP DIRCOM'!$G$6:$EV$12,36,FALSE) -> 0% | O10: =VLOOKUP($A10,'RECAP DIRCOM'!$G$6:$EV$12,37,FALSE) -> 1 | P10: =VLOOKUP($A10,'RECAP DIRCOM'!$G$6:$EV$12,38,FALSE) -> 48% | Q10: =VLOOKUP($A10,'RECAP DIRCOM'!$G$6:$EV$12,39,FALSE) -> 26% | R10: =VLOOKUP($A10,'RECAP DIRCOM'!$G$6:$EV$12,40,FALSE) -> 4 | S10: =VLOOKUP($A10,'RECAP DIRCOM'!$G$6:$EV$12,41,FALSE) -> 28% | T10: =VLOOKUP($A10,'RECAP DIRCOM'!$G$6:$EV$12,42,FALSE) -> 6% | U10: =VLOOKUP($A10,'RECAP DIRCOM'!$G$6:$EV$12,43,FALSE) -> 4
A11: 262 | B11: Bas-Rhin | C11: =VLOOKUP($A11,'RECAP DIRCOM'!$G$6:$EV$12,3,FALSE) -> 299 | D11: =VLOOKUP($A11,'RECAP DIRCOM'!$G$6:$EV$12,26,FALSE) -> -6.99 | E11: =VLOOKUP($A11,'RECAP DIRCOM'!$G$6:$EV$12,27,FALSE) -> 0% | F11: =VLOOKUP($A11,'RECAP DIRCOM'!$G$6:$EV$12,28,FALSE) -> 1 | G11: =VLOOKUP($A11,'RECAP DIRCOM'!$G$6:$EV$12,29,FALSE) -> 1.75 | H11: =VLOOKUP($A11,'RECAP DIRCOM'!$G$6:$EV$12,30,FALSE) -> 74% | I11: =VLOOKUP($A11,'RECAP DIRCOM'!$G$6:$EV$12,31,FALSE) -> 7 | J11: =VLOOKUP($A11,'RECAP DIRCOM'!$G$6:$EV$12,32,FALSE) -> 4.23 | K11: =VLOOKUP($A11,'RECAP DIRCOM'!$G$6:$EV$12,33,FALSE) -> 56% | L11: =VLOOKUP($A11,'RECAP DIRCOM'!$G$6:$EV$12,34,FALSE) -> 7 | M11: =VLOOKUP($A11,'RECAP DIRCOM'!$G$6:$EV$12,35,FALSE) -> 1.97 | N11: =VLOOKUP($A11,'RECAP DIRCOM'!$G$6:$EV$12,36,FALSE) -> 46% | O11: =VLOOKUP($A11,'RECAP DIRCOM'!$G$6:$EV$12,37,FALSE) -> 5 | P11: =VLOOKUP($A11,'RECAP DIRCOM'!$G$6:$EV$12,38,FALSE) -> 23% | Q11: =VLOOKUP($A11,'RECAP DIRCOM'!$G$6:$EV$12,39,FALSE) -> 65% | R11: =VLOOKUP($A11,'RECAP DIRCOM'!$G$6:$EV$12,40,FALSE) -> 7 | S11: =VLOOKUP($A11,'RECAP DIRCOM'!$G$6:$EV$12,41,FALSE) -> 48% | T11: =VLOOKUP($A11,'RECAP DIRCOM'!$G$6:$EV$12,42,FALSE) -> 26% | U11: =VLOOKUP($A11,'RECAP DIRCOM'!$G$6:$EV$12,43,FALSE) -> 6
A12: 264 | B12: Haut-Rhin | C12: =VLOOKUP($A12,'RECAP DIRCOM'!$G$6:$EV$12,3,FALSE) -> 181 | D12: =VLOOKUP($A12,'RECAP DIRCOM'!$G$6:$EV$12,26,FALSE) -> -7.36 | E12: =VLOOKUP($A12,'RECAP DIRCOM'!$G$6:$EV$12,27,FALSE) -> 5% | F12: =VLOOKUP($A12,'RECAP DIRCOM'!$G$6:$EV$12,28,FALSE) -> 2 | G12: =VLOOKUP($A12,'RECAP DIRCOM'!$G$6:$EV$12,29,FALSE) -> 2.65 | H12: =VLOOKUP($A12,'RECAP DIRCOM'!$G$6:$EV$12,30,FALSE) -> 61% | I12: =VLOOKUP($A12,'RECAP DIRCOM'!$G$6:$EV$12,31,FALSE) -> 6 | J12: =VLOOKUP($A12,'RECAP DIRCOM'!$G$6:$EV$12,32,FALSE) -> 4.63 | K12: =VLOOKUP($A12,'RECAP DIRCOM'!$G$6:$EV$12,33,FALSE) -> 52% | L12: =VLOOKUP($A12,'RECAP DIRCOM'!$G$6:$EV$12,34,FALSE) -> 6 | M12: =VLOOKUP($A12,'RECAP DIRCOM'!$G$6:$EV$12,35,FALSE) -> 1.92 | N12: =VLOOKUP($A12,'RECAP DIRCOM'!$G$6:$EV$12,36,FALSE) -> 48% | O12: =VLOOKUP($A12,'RECAP DIRCOM'!$G$6:$EV$12,37,FALSE) -> 6 | P12: =VLOOKUP($A12,'RECAP DIRCOM'!$G$6:$EV$12,38,FALSE) -> 25% | Q12: =VLOOKUP($A12,'RECAP DIRCOM'!$G$6:$EV$12,39,FALSE) -> 62% | R12: =VLOOKUP($A12,'RECAP DIRCOM'!$G$6:$EV$12,40,FALSE) -> 6 | S12: =VLOOKUP($A12,'RECAP DIRCOM'!$G$6:$EV$12,41,FALSE) -> 46% | T12: =VLOOKUP($A12,'RECAP DIRCOM'!$G$6:$EV$12,42,FALSE) -> 24% | U12: =VLOOKUP($A12,'RECAP DIRCOM'!$G$6:$EV$12,43,FALSE) -> 5
A13: 30 | B13: Marne-Ardennes | C13: =VLOOKUP($A13,'RECAP DIRCOM'!$G$6:$EV$12,3,FALSE) -> 239 | D13: =VLOOKUP($A13,'RECAP DIRCOM'!$G$6:$EV$12,26,FALSE) -> -10.77 | E13: =VLOOKUP($A13,'RECAP DIRCOM'!$G$6:$EV$12,27,FALSE) -> 54% | F13: =VLOOKUP($A13,'RECAP DIRCOM'!$G$6:$EV$12,28,FALSE) -> 5 | G13: =VLOOKUP($A13,'RECAP DIRCOM'!$G$6:$EV$12,29,FALSE) -> 6.77 | H13: =VLOOKUP($A13,'RECAP DIRCOM'!$G$6:$EV$12,30,FALSE) -> 0% | I13: =VLOOKUP($A13,'RECAP DIRCOM'!$G$6:$EV$12,31,FALSE) -> 1 | J13: =VLOOKUP($A13,'RECAP DIRCOM'!$G$6:$EV$12,32,FALSE) -> 5.08 | K13: =VLOOKUP($A13,'RECAP DIRCOM'!$G$6:$EV$12,33,FALSE) -> 47% | L13: =VLOOKUP($A13,'RECAP DIRCOM'!$G$6:$EV$12,34,FALSE) -> 5 | M13: =VLOOKUP($A13,'RECAP DIRCOM'!$G$6:$EV$12,35,FALSE) -> 3.37 | N13: =VLOOKUP($A13,'RECAP DIRCOM'!$G$6:$EV$12,36,FALSE) -> 8% | O13: =VLOOKUP($A13,'RECAP DIRCOM'!$G$6:$EV$12,37,FALSE) -> 2 | P13: =VLOOKUP($A13,'RECAP DIRCOM'!$G$6:$EV$12,38,FALSE) -> 66% | Q13: =VLOOKUP($A13,'RECAP DIRCOM'!$G$6:$EV$12,39,FALSE) -> 0% | R13: =VLOOKUP($A13,'RECAP DIRCOM'!$G$6:$EV$12,40,FALSE) -> 1 | S13: =VLOOKUP($A13,'RECAP DIRCOM'!$G$6:$EV$12,41,FALSE) -> 22% | T13: =VLOOKUP($A13,'RECAP DIRCOM'!$G$6:$EV$12,42,FALSE) -> 0% | U13: =VLOOKUP($A13,'RECAP DIRCOM'!$G$6:$EV$12,43,FALSE) -> 1
A14: 110 | B14: Meurthe et Moselle Meuse | C14: =VLOOKUP($A14,'RECAP DIRCOM'!$G$6:$EV$12,3,FALSE) -> 267 | D14: =VLOOKUP($A14,'RECAP DIRCOM'!$G$6:$EV$12,26,FALSE) -> -11.39 | E14: =VLOOKUP($A14,'RECAP DIRCOM'!$G$6:$EV$12,27,FALSE) -> 63% | F14: =VLOOKUP($A14,'RECAP DIRCOM'!$G$6:$EV$12,28,FALSE) -> 7 | G14: =VLOOKUP($A14,'RECAP DIRCOM'!$G$6:$EV$12,29,FALSE) -> 4.31 | H14: =VLOOKUP($A14,'RECAP DIRCOM'!$G$6:$EV$12,30,FALSE) -> 36% | I14: =VLOOKUP($A14,'RECAP DIRCOM'!$G$6:$EV$12,31,FALSE) -> 4 | J14: =VLOOKUP($A14,'RECAP DIRCOM'!$G$6:$EV$12,32,FALSE) -> 5.67 | K14: =VLOOKUP($A14,'RECAP DIRCOM'!$G$6:$EV$12,33,FALSE) -> 41% | L14: =VLOOKUP($A14,'RECAP DIRCOM'!$G$6:$EV$12,34,FALSE) -> 3 | M14: =VLOOKUP($A14,'RECAP DIRCOM'!$G$6:$EV$12,35,FALSE) -> 1.51 | N14: =VLOOKUP($A14,'RECAP DIRCOM'!$G$6:$EV$12,36,FALSE) -> 59% | O14: =VLOOKUP($A14,'RECAP DIRCOM'!$G$6:$EV$12,37,FALSE) -> 7 | P14: =VLOOKUP($A14,'RECAP DIRCOM'!$G$6:$EV$12,38,FALSE) -> 31% | Q14: =VLOOKUP($A14,'RECAP DIRCOM'!$G$6:$EV$12,39,FALSE) -> 52% | R14: =VLOOKUP($A14,'RECAP DIRCOM'!$G$6:$EV$12,40,FALSE) -> 5 | S14: =VLOOKUP($A14,'RECAP DIRCOM'!$G$6:$EV$12,41,FALSE) -> 50% | T14: =VLOOKUP($A14,'RECAP DIRCOM'!$G$6:$EV$12,42,FALSE) -> 28% | U14: =VLOOKUP($A14,'RECAP DIRCOM'!$G$6:$EV$12,43,FALSE) -> 7
A15: 160 | B15: Moselle | C15: =VLOOKUP($A15,'RECAP DIRCOM'!$G$6:$EV$12,3,FALSE) -> 310 | D15: =VLOOKUP($A15,'RECAP DIRCOM'!$G$6:$EV$12,26,FALSE) -> -10.86 | E15: =VLOOKUP($A15,'RECAP DIRCOM'!$G$6:$EV$12,27,FALSE) -> 55% | F15: =VLOOKUP($A15,'RECAP DIRCOM'!$G$6:$EV$12,28,FALSE) -> 6 | G15: =VLOOKUP($A15,'RECAP DIRCOM'!$G$6:$EV$12,29,FALSE) -> 3.91 | H15: =VLOOKUP($A15,'RECAP DIRCOM'!$G$6:$EV$12,30,FALSE) -> 42% | I15: =VLOOKUP($A15,'RECAP DIRCOM'!$G$6:$EV$12,31,FALSE) -> 5 | J15: =VLOOKUP($A15,'RECAP DIRCOM'!$G$6:$EV$12,32,FALSE) -> 9.67 | K15: =VLOOKUP($A15,'RECAP DIRCOM'!$G$6:$EV$12,33,FALSE) -> 0% | L15: =VLOOKUP($A15,'RECAP DIRCOM'!$G$6:$EV$12,34,FALSE) -> 1 | M15: =VLOOKUP($A15,'RECAP DIRCOM'!$G$6:$EV$12,35,FALSE) -> 3.29 | N15: =VLOOKUP($A15,'RECAP DIRCOM'!$G$6:$EV$12,36,FALSE) -> 10% | O15: =VLOOKUP($A15,'RECAP DIRCOM'!$G$6:$EV$12,37,FALSE) -> 3 | P15: =VLOOKUP($A15,'RECAP DIRCOM'!$G$6:$EV$12,38,FALSE) -> 56% | Q15: =VLOOKUP($A15,'RECAP DIRCOM'!$G$6:$EV$12,39,FALSE) -> 15% | R15: =VLOOKUP($A15,'RECAP DIRCOM'!$G$6:$EV$12,40,FALSE) -> 3 | S15: =VLOOKUP($A15,'RECAP DIRCOM'!$G$6:$EV$12,41,FALSE) -> 25% | T15: =VLOOKUP($A15,'RECAP DIRCOM'!$G$6:$EV$12,42,FALSE) -> 3% | U15: =VLOOKUP($A15,'RECAP DIRCOM'!$G$6:$EV$12,43,FALSE) -> 3
A16: 80 | B16: Vosges | C16: =VLOOKUP($A16,'RECAP DIRCOM'!$G$6:$EV$12,3,FALSE) -> 149 | D16: =VLOOKUP($A16,'RECAP DIRCOM'!$G$6:$EV$12,26,FALSE) -> -8.36 | E16: =VLOOKUP($A16,'RECAP DIRCOM'!$G$6:$EV$12,27,FALSE) -> 20% | F16: =VLOOKUP($A16,'RECAP DIRCOM'!$G$6:$EV$12,28,FALSE) -> 3 | G16: =VLOOKUP($A16,'RECAP DIRCOM'!$G$6:$EV$12,29,FALSE) -> 4.80 | H16: =VLOOKUP($A16,'RECAP DIRCOM'!$G$6:$EV$12,30,FALSE) -> 29% | I16: =VLOOKUP($A16,'RECAP DIRCOM'!$G$6:$EV$12,31,FALSE) -> 2 | J16: =VLOOKUP($A16,'RECAP DIRCOM'!$G$6:$EV$12,32,FALSE) -> 5.28 | K16: =VLOOKUP($A16,'RECAP DIRCOM'!$G$6:$EV$12,33,FALSE) -> 45% | L16: =VLOOKUP($A16,'RECAP DIRCOM'!$G$6:$EV$12,34,FALSE) -> 4 | M16: =VLOOKUP($A16,'RECAP DIRCOM'!$G$6:$EV$12,35,FALSE) -> 2.88 | N16: =VLOOKUP($A16,'RECAP DIRCOM'!$G$6:$EV$12,36,FALSE) -> 21% | O16: =VLOOKUP($A16,'RECAP DIRCOM'!$G$6:$EV$12,37,FALSE) -> 4 | P16: =VLOOKUP($A16,'RECAP DIRCOM'!$G$6:$EV$12,38,FALSE) -> 64% | Q16: =VLOOKUP($A16,'RECAP DIRCOM'!$G$6:$EV$12,39,FALSE) -> 3% | R16: =VLOOKUP($A16,'RECAP DIRCOM'!$G$6:$EV$12,40,FALSE) -> 2 | S16: =VLOOKUP($A16,'RECAP DIRCOM'!$G$6:$EV$12,41,FALSE) -> 24% | T16: =VLOOKUP($A16,'RECAP DIRCOM'!$G$6:$EV$12,42,FALSE) -> 2% | U16: =VLOOKUP($A16,'RECAP DIRCOM'!$G$6:$EV$12,43,FALSE) -> 2
A17: Total CEGEE Directions Commerciales | C17: =SUM(C10:C16) -> 1592

Sheet DC_EPARGNE
A1: Accueil | D1: BAROMETRE BDD - DIRECTIONS COMMERCIALES
D2: EPARGNE
D3: =ACCUEIL!H7 -> 2019-05-31
D7: Excédent de collecte yc DAV | G7: CA assurance vie | J7: Activité UC (CA+Arbitrage) | M7: Excédent assurance vie | P7: Excédent Epargne Bilan (hors emprunt CTO) | S7: Total Epargne
E8: coef | F8: ='RECAP DIRCOM'!BF4 -> 2% | H8: coef | I8: ='RECAP DIRCOM'!BI4 -> 2% | K8: coef | L8: ='RECAP DIRCOM'!BL4 -> 2% | N8: coef | O8: ='RECAP DIRCOM'!BO4 -> 2% | Q8: coef | R8: ='RECAP DIRCOM'!BR4 -> 7% | T8: coef | U8: ='RECAP DIRCOM'!BU4 -> 15%
A9: eds | B9: Direction | C9: ETP perf | D9: Réal / ETP | E9: % Ecart au 1er | F9: Rang | G9: Réal / ETP | H9: % Ecart au 1er | I9: Rang | J9: Réal / ETP | K9: % Ecart au 1er | L9: Rang | M9: Réal / ETP | N9: % Ecart au 1er | O9: Rang | P9: Réal / ETP | Q9: % Ecart au 1er | R9: Rang | S9: Moyenne ecart au 1er | T9: % Ecart au 1er | U9: Rang CEGEE
A10: 50 | B10: Aube Haute Marne | C10: =VLOOKUP($A10,'RECAP DIRCOM'!$G$6:$EV$12,3,FALSE) -> 148 | D10: =VLOOKUP($A10,'RECAP DIRCOM'!$G$6:$EV$12,50,FALSE) -> 4.64 | E10: =VLOOKUP($A10,'RECAP DIRCOM'!$G$6:$EV$12,51,FALSE) -> 91% | F10: =VLOOKUP($A10,'RECAP DIRCOM'!$G$6:$EV$12,52,FALSE) -> 5 | G10: =VLOOKUP($A10,'RECAP DIRCOM'!$G$6:$EV$12,53,FALSE) -> 314.31 | H10: =VLOOKUP($A10,'RECAP DIRCOM'!$G$6:$EV$12,54,FALSE) -> 6% | I10: =VLOOKUP($A10,'RECAP DIRCOM'!$G$6:$EV$12,55,FALSE) -> 3 | J10: =VLOOKUP($A10,'RECAP DIRCOM'!$G$6:$EV$12,56,FALSE) -> 100 | K10: =VLOOKUP($A10,'RECAP DIRCOM'!$G$6:$EV$12,57,FALSE) -> 0% | L10: =VLOOKUP($A10,'RECAP DIRCOM'!$G$6:$EV$12,58,FALSE) -> 1 | M10: =VLOOKUP($A10,'RECAP DIRCOM'!$G$6:$EV$12,59,FALSE) -> 66.51 | N10: =VLOOKUP($A10,'RECAP DIRCOM'!$G$6:$EV$12,60,FALSE) -> 45% | O10: =VLOOKUP($A10,'RECAP DIRCOM'!$G$6:$EV$12,61,FALSE) -> 5 | P10: =VLOOKUP($A10,'RECAP DIRCOM'!$G$6:$EV$12,62,FALSE) -> -22.66 | Q10: =VLOOKUP($A10,'RECAP DIRCOM'!$G$6:$EV$12,63,FALSE) -> 129% | R10: =VLOOKUP($A10,'RECAP DIRCOM'!$G$6:$EV$12,64,FALSE) -> 7 | S10: =VLOOKUP($A10,'RECAP DIRCOM'!$G$6:$EV$12,65,FALSE) -> 79% | T10: =VLOOKUP($A10,'RECAP DIRCOM'!$G$6:$EV$12,66,FALSE) -> 60% | U10: =VLOOKUP($A10,'RECAP DIRCOM'!$G$6:$EV$12,67,FALSE) -> 7
A11: 262 | B11: Bas-Rhin | C11: =VLOOKUP($A11,'RECAP DIRCOM'!$G$6:$EV$12,3,FALSE) -> 299 | D11: =VLOOKUP($A11,'RECAP DIRCOM'!$G$6:$EV$12,50,FALSE) -> 2.04 | E11: =VLOOKUP($A11,'RECAP DIRCOM'!$G$6:$EV$12,51,FALSE) -> 96% | F11: =VLOOKUP($A11,'RECAP DIRCOM'!$G$6:$EV$12,52,FALSE) -> 6 | G11: =VLOOKUP($A11,'RECAP DIRCOM'!$G$6:$EV$12,53,FALSE) -> 233.52 | H11: =VLOOKUP($A11,'RECAP DIRCOM'!$G$6:$EV$12,54,FALSE) -> 30% | I11: =VLOOKUP($A11,'RECAP DIRCOM'!$G$6:$EV$12,55,FALSE) -> 6 | J11: =VLOOKUP($A11,'RECAP DIRCOM'!$G$6:$EV$12,56,FALSE) -> 83 | K11: =VLOOKUP($A11,'RECAP DIRCOM'!$G$6:$EV$12,57,FALSE) -> 17% | L11: =VLOOKUP($A11,'RECAP DIRCOM'!$G$6:$EV$12,58,FALSE) -> 3 | M11: =VLOOKUP($A11,'RECAP DIRCOM'!$G$6:$EV$12,59,FALSE) -> 35.27 | N11: =VLOOKUP($A11,'RECAP DIRCOM'!$G$6:$EV$12,60,FALSE) -> 71% | O11: =VLOOKUP($A11,'RECAP DIRCOM'!$G$6:$EV$12,61,FALSE) -> 7 | P11: =VLOOKUP($A11,'RECAP DIRCOM'!$G$6:$EV$12,62,FALSE) -> 41.24 | Q11: =VLOOKUP($A11,'RECAP DIRCOM'!$G$6:$EV$12,63,FALSE) -> 47% | R11: =VLOOKUP($A11,'RECAP DIRCOM'!$G$6:$EV$12,64,FALSE) -> 3 | S11: =VLOOKUP($A11,'RECAP DIRCOM'!$G$6:$EV$12,65,FALSE) -> 51% | T11: =VLOOKUP($A11,'RECAP DIRCOM'!$G$6:$EV$12,66,FALSE) -> 31% | U11: =VLOOKUP($A11,'RECAP DIRCOM'!$G$6:$EV$12,67,FALSE) -> 6
A12: 264 | B12: Haut-Rhin | C12: =VLOOKUP($A12,'RECAP DIRCOM'!$G$6:$EV$12,3,FALSE) -> 181 | D12: =VLOOKUP($A12,'RECAP DIRCOM'!$G$6:$EV$12,50,FALSE) -> 44.21 | E12: =VLOOKUP($A12,'RECAP DIRCOM'!$G$6:$EV$12,51,FALSE) -> 14% | F12: =VLOOKUP($A12,'RECAP DIRCOM'!$G$6:$EV$12,52,FALSE) -> 2 | G12: =VLOOKUP($A12,'RECAP DIRCOM'!$G$6:$EV$12,53,FALSE) -> 219.15 | H12: =VLOOKUP($A12,'RECAP DIRCOM'!$G$6:$EV$12,54,FALSE) -> 34% | I12: =VLOOKUP($A12,'RECAP DIRCOM'!$G$6:$EV$12,55,FALSE) -> 7 | J12: =VLOOKUP($A12,'RECAP DIRCOM'!$G$6:$EV$12,56,FALSE) -> 70 | K12: =VLOOKUP($A12,'RECAP DIRCOM'!$G$6:$EV$12,57,FALSE) -> 30% | L12: =VLOOKUP($A12,'RECAP DIRCOM'!$G$6:$EV$12,58,FALSE) -> 7 | M12: =VLOOKUP($A12,'RECAP DIRCOM'!$G$6:$EV$12,59,FALSE) -> 39.87 | N12: =VLOOKUP($A12,'RECAP DIRCOM'!$G$6:$EV$12,60,FALSE) -> 67% | O12: =VLOOKUP($A12,'RECAP DIRCOM'!$G$6:$EV$12,61,FALSE) -> 6 | P12: =VLOOKUP($A12,'RECAP DIRCOM'!$G$6:$EV$12,62,FALSE) -> 78.06 | Q12: =VLOOKUP($A12,'RECAP DIRCOM'!$G$6:$EV$12,63,FALSE) -> 0% | R12: =VLOOKUP($A12,'RECAP DIRCOM'!$G$6:$EV$12,64,FALSE) -> 1 | S12: =VLOOKUP($A12,'RECAP DIRCOM'!$G$6:$EV$12,65,FALSE) -> 19% | T12: =VLOOKUP($A12,'RECAP DIRCOM'!$G$6:$EV$12,66,FALSE) -> 0% | U12: =VLOOKUP($A12,'RECAP DIRCOM'!$G$6:$EV$12,67,FALSE) -> 1
A13: 30 | B13: Marne-Ardennes | C13: =VLOOKUP($A13,'RECAP DIRCOM'!$G$6:$EV$12,3,FALSE) -> 239 | D13: =VLOOKUP($A13,'RECAP DIRCOM'!$G$6:$EV$12,50,FALSE) -> -3.79 | E13: =VLOOKUP($A13,'RECAP DIRCOM'!$G$6:$EV$12,51,FALSE) -> 107% | F13: =VLOOKUP($A13,'RECAP DIRCOM'!$G$6:$EV$12,52,FALSE) -> 7 | G13: =VLOOKUP($A13,'RECAP DIRCOM'!$G$6:$EV$12,53,FALSE) -> 308.68 | H13: =VLOOKUP($A13,'RECAP DIRCOM'!$G$6:$EV$12,54,FALSE) -> 8% | I13: =VLOOKUP($A13,'RECAP DIRCOM'!$G$6:$EV$12,55,FALSE) -> 5 | J13: =VLOOKUP($A13,'RECAP DIRCOM'!$G$6:$EV$12,56,FALSE) -> 74 | K13: =VLOOKUP($A13,'RECAP DIRCOM'!$G$6:$EV$12,57,FALSE) -> 26% | L13: =VLOOKUP($A13,'RECAP DIRCOM'!$G$6:$EV$12,58,FALSE) -> 6 | M13: =VLOOKUP($A13,'RECAP DIRCOM'!$G$6:$EV$12,59,FALSE) -> 80.59 | N13: =VLOOKUP($A13,'RECAP DIRCOM'!$G$6:$EV$12,60,FALSE) -> 33% | O13: =VLOOKUP($A13,'RECAP DIRCOM'!$G$6:$EV$12,61,FALSE) -> 4 | P13: =VLOOKUP($A13,'RECAP DIRCOM'!$G$6:$EV$12,62,FALSE) -> 41.77 | Q13: =VLOOKUP($A13,'RECAP DIRCOM'!$G$6:$EV$12,63,FALSE) -> 46% | R13: =VLOOKUP($A13,'RECAP DIRCOM'!$G$6:$EV$12,64,FALSE) -> 2 | S13: =VLOOKUP($A13,'RECAP DIRCOM'!$G$6:$EV$12,65,FALSE) -> 45% | T13: =VLOOKUP($A13,'RECAP DIRCOM'!$G$6:$EV$12,66,FALSE) -> 26% | U13: =VLOOKUP($A13,'RECAP DIRCOM'!$G$6:$EV$12,67,FALSE) -> 3
A14: 110 | B14: Meurthe et Moselle Meuse | C14: =VLOOKUP($A14,'RECAP DIRCOM'!$G$6:$EV$12,3,FALSE) -> 267 | D14: =VLOOKUP($A14,'RECAP DIRCOM'!$G$6:$EV$12,50,FALSE) -> 13.20 | E14: =VLOOKUP($A14,'RECAP DIRCOM'!$G$6:$EV$12,51,FALSE) -> 74% | F14: =VLOOKUP($A14,'RECAP DIRCOM'!$G$6:$EV$12,52,FALSE) -> 4 | G14: =VLOOKUP($A14,'RECAP DIRCOM'!$G$6:$EV$12,53,FALSE) -> 322.73 | H14: =VLOOKUP($A14,'RECAP DIRCOM'!$G$6:$EV$12,54,FALSE) -> 3% | I14: =VLOOKUP($A14,'RECAP DIRCOM'!$G$6:$EV$12,55,FALSE) -> 2 | J14: =VLOOKUP($A14,'RECAP DIRCOM'!$G$6:$EV$12,56,FALSE) -> 76 | K14: =VLOOKUP($A14,'RECAP DIRCOM'!$G$6:$EV$12,57,FALSE) -> 24% | L14: =VLOOKUP($A14,'RECAP DIRCOM'!$G$6:$EV$12,58,FALSE) -> 5 | M14: =VLOOKUP($A14,'RECAP DIRCOM'!$G$6:$EV$12,59,FALSE) -> 105.31 | N14: =VLOOKUP($A14,'RECAP DIRCOM'!$G$6:$EV$12,60,FALSE) -> 13% | O14: =VLOOKUP($A14,'RECAP DIRCOM'!$G$6:$EV$12,61,FALSE) -> 2 | P14: =VLOOKUP($A14,'RECAP DIRCOM'!$G$6:$EV$12,62,FALSE) -> 25.54 | Q14: =VLOOKUP($A14,'RECAP DIRCOM'!$G$6:$EV$12,63,FALSE) -> 67% | R14: =VLOOKUP($A14,'RECAP DIRCOM'!$G$6:$EV$12,64,FALSE) -> 5 | S14: =VLOOKUP($A14,'RECAP DIRCOM'!$G$6:$EV$12,65,FALSE) -> 47% | T14: =VLOOKUP($A14,'RECAP DIRCOM'!$G$6:$EV$12,66,FALSE) -> 27% | U14: =VLOOKUP($A14,'RECAP DIRCOM'!$G$6:$EV$12,67,FALSE) -> 5
A15: 160 | B15: Moselle | C15: =VLOOKUP($A15,'RECAP DIRCOM'!$G$6:$EV$12,3,FALSE) -> 310 | D15: =VLOOKUP($A15,'RECAP DIRCOM'!$G$6:$EV$12,50,FALSE) -> 51.19 | E15: =VLOOKUP($A15,'RECAP DIRCOM'!$G$6:$EV$12,51,FALSE) -> 0% | F15: =VLOOKUP($A15,'RECAP DIRCOM'!$G$6:$EV$12,52,FALSE) -> 1 | G15: =VLOOKUP($A15,'RECAP DIRCOM'!$G$6:$EV$12,53,FALSE) -> 334.33 | H15: =VLOOKUP($A15,'RECAP DIRCOM'!$G$6:$EV$12,54,FALSE) -> 0% | I15: =VLOOKUP($A15,'RECAP DIRCOM'!$G$6:$EV$12,55,FALSE) -> 1 | J15: =VLOOKUP($A15,'RECAP DIRCOM'!$G$6:$EV$12,56,FALSE) -> 92 | K15: =VLOOKUP($A15,'RECAP DIRCOM'!$G$6:$EV$12,57,FALSE) -> 8% | L15: =VLOOKUP($A15,'RECAP DIRCOM'!$G$6:$EV$12,58,FALSE) -> 2 | M15: =VLOOKUP($A15,'RECAP DIRCOM'!$G$6:$EV$12,59,FALSE) -> 120.66 | N15: =VLOOKUP($A15,'RECAP DIRCOM'!$G$6:$EV$12,60,FALSE) -> 0% | O15: =VLOOKUP($A15,'RECAP DIRCOM'!$G$6:$EV$12,61,FALSE) -> 1 | P15: =VLOOKUP($A15,'RECAP DIRCOM'!$G$6:$EV$12,62,FALSE) -> 27.43 | Q15: =VLOOKUP($A15,'RECAP DIRCOM'!$G$6:$EV$12,63,FALSE) -> 65% | R15: =VLOOKUP($A15,'RECAP DIRCOM'!$G$6:$EV$12,64,FALSE) -> 4 | S15: =VLOOKUP($A15,'RECAP DIRCOM'!$G$6:$EV$12,65,FALSE) -> 31% | T15: =VLOOKUP($A15,'RECAP DIRCOM'!$G$6:$EV$12,66,FALSE) -> 12% | U15: =VLOOKUP($A15,'RECAP DIRCOM'!$G$6:$EV$12,67,FALSE) -> 2
A16: 80 | B16: Vosges | C16: =VLOOKUP($A16,'RECAP DIRCOM'!$G$6:$EV$12,3,FALSE) -> 149 | D16: =VLOOKUP($A16,'RECAP DIRCOM'!$G$6:$EV$12,50,FALSE) -> 30.58 | E16: =VLOOKUP($A16,'RECAP DIRCOM'!$G$6:$EV$12,51,FALSE) -> 40% | F16: =VLOOKUP($A16,'RECAP DIRCOM'!$G$6:$EV$12,52,FALSE) -> 3 | G16: =VLOOKUP($A16,'RECAP DIRCOM'!$G$6:$EV$12,53,FALSE) -> 310.49 | H16: =VLOOKUP($A16,'RECAP DIRCOM'!$G$6:$EV$12,54,FALSE) -> 7% | I16: =VLOOKUP($A16,'RECAP DIRCOM'!$G$6:$EV$12,55,FALSE) -> 4 | J16: =VLOOKUP($A16,'RECAP DIRCOM'!$G$6:$EV$12,56,FALSE) -> 81 | K16: =VLOOKUP($A16,'RECAP DIRCOM'!$G$6:$EV$12,57,FALSE) -> 19% | L16: =VLOOKUP($A16,'RECAP DIRCOM'!$G$6:$EV$12,58,FALSE) -> 4 | M16: =VLOOKUP($A16,'RECAP DIRCOM'!$G$6:$EV$12,59,FALSE) -> 90.06 | N16: =VLOOKUP($A16,'RECAP DIRCOM'!$G$6:$EV$12,60,FALSE) -> 25% | O16: =VLOOKUP($A16,'RECAP DIRCOM'!$G$6:$EV$12,61,FALSE) -> 3 | P16: =VLOOKUP($A16,'RECAP DIRCOM'!$G$6:$EV$12,62,FALSE) -> 23.31 | Q16: =VLOOKUP($A16,'RECAP DIRCOM'!$G$6:$EV$12,63,FALSE) -> 70% | R16: =VLOOKUP($A16,'RECAP DIRCOM'!$G$6:$EV$12,64,FALSE) -> 6 | S16: =VLOOKUP($A16,'RECAP DIRCOM'!$G$6:$EV$12,65,FALSE) -> 45% | T16: =VLOOKUP($A16,'RECAP DIRCOM'!$G$6:$EV$12,66,FALSE) -> 26% | U16: =VLOOKUP($A16,'RECAP DIRCOM'!$G$6:$EV$12,67,FALSE) -> 4
A17: Total CEGEE Directions Commerciales | C17: =SUM(C10:C16) -> 1592

Sheet DC_CREDIT
A1: Accueil | D1: BAROMETRE BDD - DIRECTIONS COMMERCIALES
D2: CREDITS
D3: =ACCUEIL!H7 -> 2019-05-31
D7: Engagements crédit conso (hors clients note octroi à 9) | G7: % CNP crédit conso | J7: Engagements crédi immo | M7: % CNP crédit immo | P7: Taux couverture SACCEF | S7: Engagement Crédit MLT + Crédit Bail | V7: Total Crédits
E8: coef | F8: ='RECAP DIRCOM'!CD4 -> 3% | H8: coef | I8: ='RECAP DIRCOM'!CG4 -> 2% | K8: coef | L8: ='RECAP DIRCOM'!CJ4 -> 3% | N8: coef | O8: ='RECAP DIRCOM'!CM4 -> 2% | Q8: coef | R8: ='RECAP DIRCOM'!CP4 -> 2% | T8: coef | U8: ='RECAP DIRCOM'!CS4 -> 3% | W8: coef | X8: ='RECAP DIRCOM'!CV4 -> 15%
A9: eds | B9: Direction | C9: ETP perf | D9: Réal / ETP | E9: % Ecart au 1er | F9: Rang | H9: % Ecart au 1er | I9: Rang | J9: Taux réal objectif | K9: % Ecart au 1er | L9: Rang | N9: % Ecart au 1er | O9: Rang | Q9: % Ecart au 1er | R9: Rang | S9: Taux réal objectif | T9: % Ecart au 1er | U9: Rang | V9: Moyenne ecart au 1er | W9: % Ecart au 1er | X9: Rang CEGEE
A10: 50 | B10: Aube Haute Marne | C10: =VLOOKUP($A10,'RECAP DIRCOM'!$G$6:$EV$12,3,FALSE) -> 148 | D10: =VLOOKUP($A10,'RECAP DIRCOM'!$G$6:$EV$12,74,FALSE) -> 193.19 | E10: =VLOOKUP($A10,'RECAP DIRCOM'!$G$6:$EV$12,75,FALSE) -> 0% | F10: =VLOOKUP($A10,'RECAP DIRCOM'!$G$6:$EV$12,76,FALSE) -> 1 | G10: =VLOOKUP($A10,'RECAP DIRCOM'!$G$6:$EV$12,77,FALSE) -> 93% | H10: =VLOOKUP($A10,'RECAP DIRCOM'!$G$6:$EV$12,78,FALSE) -> 3% | I10: =VLOOKUP($A10,'RECAP DIRCOM'!$G$6:$EV$12,79,FALSE) -> 4 | J10: =VLOOKUP($A10,'RECAP DIRCOM'!$G$6:$EV$12,80,FALSE) -> 34% | K10: =VLOOKUP($A10,'RECAP DIRCOM'!$G$6:$EV$12,81,FALSE) -> 18% | L10: =VLOOKUP($A10,'RECAP DIRCOM'!$G$6:$EV$12,82,FALSE) -> 6 | M10: =VLOOKUP($A10,'RECAP DIRCOM'!$G$6:$EV$12,83,FALSE) -> 71% | N10: =VLOOKUP($A10,'RECAP DIRCOM'!$G$6:$EV$12,84,FALSE) -> 8% | O10: =VLOOKUP($A10,'RECAP DIRCOM'!$G$6:$EV$12,85,FALSE) -> 5 | P10: =VLOOKUP($A10,'RECAP DIRCOM'!$G$6:$EV$12,86,FALSE) -> 81% | Q10: =VLOOKUP($A10,'RECAP DIRCOM'!$G$6:$EV$12,87,FALSE) -> 10% | R10: =VLOOKUP($A10,'RECAP DIRCOM'!$G$6:$EV$12,88,FALSE) -> 6 | S10: =VLOOKUP($A10,'RECAP DIRCOM'!$G$6:$EV$12,89,FALSE) -> 50% | T10: =VLOOKUP($A10,'RECAP DIRCOM'!$G$6:$EV$12,90,FALSE) -> 22% | U10: =VLOOKUP($A10,'RECAP DIRCOM'!$G$6:$EV$12,91,FALSE) -> 3 | V10: =VLOOKUP($A10,'RECAP DIRCOM'!$G$6:$EV$12,92,FALSE) -> 11% | W10: =VLOOKUP($A10,'RECAP DIRCOM'!$G$6:$EV$12,93,FALSE) -> 5% | X10: =VLOOKUP($A10,'RECAP DIRCOM'!$G$6:$EV$12,94,FALSE) -> 3
A11: 262 | B11: Bas-Rhin | C11: =VLOOKUP($A11,'RECAP DIRCOM'!$G$6:$EV$12,3,FALSE) -> 299 | D11: =VLOOKUP($A11,'RECAP DIRCOM'!$G$6:$EV$12,74,FALSE) -> 145.66 | E11: =VLOOKUP($A11,'RECAP DIRCOM'!$G$6:$EV$12,75,FALSE) -> 25% | F11: =VLOOKUP($A11,'RECAP DIRCOM'!$G$6:$EV$12,76,FALSE) -> 6 | G11: =VLOOKUP($A11,'RECAP DIRCOM'!$G$6:$EV$12,77,FALSE) -> 93% | H11: =VLOOKUP($A11,'RECAP DIRCOM'!$G$6:$EV$12,78,FALSE) -> 3% | I11: =VLOOKUP($A11,'RECAP DIRCOM'!$G$6:$EV$12,79,FALSE) -> 5 | J11: =VLOOKUP($A11,'RECAP DIRCOM'!$G$6:$EV$12,80,FALSE) -> 33% | K11: =VLOOKUP($A11,'RECAP DIRCOM'!$G$6:$EV$12,81,FALSE) -> 20% | L11: =VLOOKUP($A11,'RECAP DIRCOM'!$G$6:$EV$12,82,FALSE) -> 7 | M11: =VLOOKUP($A11,'RECAP DIRCOM'!$G$6:$EV$12,83,FALSE) -> 61% | N11: =VLOOKUP($A11,'RECAP DIRCOM'!$G$6:$EV$12,84,FALSE) -> 21% | O11: =VLOOKUP($A11,'RECAP DIRCOM'!$G$6:$EV$12,85,FALSE) -> 7 | P11: =VLOOKUP($A11,'RECAP DIRCOM'!$G$6:$EV$12,86,FALSE) -> 82% | Q11: =VLOOKUP($A11,'RECAP DIRCOM'!$G$6:$EV$12,87,FALSE) -> 9% | R11: =VLOOKUP($A11,'RECAP DIRCOM'!$G$6:$EV$12,88,FALSE) -> 5 | S11: =VLOOKUP($A11,'RECAP DIRCOM'!$G$6:$EV$12,89,FALSE) -> 40% | T11: =VLOOKUP($A11,'RECAP DIRCOM'!$G$6:$EV$12,90,FALSE) -> 38% | U11: =VLOOKUP($A11,'RECAP DIRCOM'!$G$6:$EV$12,91,FALSE) -> 5 | V11: =VLOOKUP($A11,'RECAP DIRCOM'!$G$6:$EV$12,92,FALSE) -> 21% | W11: =VLOOKUP($A11,'RECAP DIRCOM'!$G$6:$EV$12,93,FALSE) -> 16% | X11: =VLOOKUP($A11,'RECAP DIRCOM'!$G$6:$EV$12,94,FALSE) -> 7
A12: 264 | B12: Haut-Rhin | C12: =VLOOKUP($A12,'RECAP DIRCOM'!$G$6:$EV$12,3,FALSE) -> 181 | D12: =VLOOKUP($A12,'RECAP DIRCOM'!$G$6:$EV$12,74,FALSE) -> 136.45 | E12: =VLOOKUP($A12,'RECAP DIRCOM'!$G$6:$EV$12,75,FALSE) -> 29% | F12: =VLOOKUP($A12,'RECAP DIRCOM'!$G$6:$EV$12,76,FALSE) -> 7 | G12: =VLOOKUP($A12,'RECAP DIRCOM'!$G$6:$EV$12,77,FALSE) -> 91% | H12: =VLOOKUP($A12,'RECAP DIRCOM'!$G$6:$EV$12,78,FALSE) -> 5% | I12: =VLOOKUP($A12,'RECAP DIRCOM'!$G$6:$EV$12,79,FALSE) -> 6 | J12: =VLOOKUP($A12,'RECAP DIRCOM'!$G$6:$EV$12,80,FALSE) -> 37% | K12: =VLOOKUP($A12,'RECAP DIRCOM'!$G$6:$EV$12,81,FALSE) -> 11% | L12: =VLOOKUP($A12,'RECAP DIRCOM'!$G$6:$EV$12,82,FALSE) -> 4 | M12: =VLOOKUP($A12,'RECAP DIRCOM'!$G$6:$EV$12,83,FALSE) -> 77% | N12: =VLOOKUP($A12,'RECAP DIRCOM'!$G$6:$EV$12,84,FALSE) -> 0% | O12: =VLOOKUP($A12,'RECAP DIRCOM'!$G$6:$EV$12,85,FALSE) -> 1 | P12: =VLOOKUP($A12,'RECAP DIRCOM'!$G$6:$EV$12,86,FALSE) -> 73% | Q12: =VLOOKUP($A12,'RECAP DIRCOM'!$G$6:$EV$12,87,FALSE) -> 20% | R12: =VLOOKUP($A12,'RECAP DIRCOM'!$G$6:$EV$12,88,FALSE) -> 7 | S12: =VLOOKUP($A12,'RECAP DIRCOM'!$G$6:$EV$12,89,FALSE) -> 45% | T12: =VLOOKUP($A12,'RECAP DIRCOM'!$G$6:$EV$12,90,FALSE) -> 30% | U12: =VLOOKUP($A12,'RECAP DIRCOM'!$G$6:$EV$12,91,FALSE) -> 4 | V12: =VLOOKUP($A12,'RECAP DIRCOM'!$G$6:$EV$12,92,FALSE) -> 17% | W12: =VLOOKUP($A12,'RECAP DIRCOM'!$G$6:$EV$12,93,FALSE) -> 12% | X12: =VLOOKUP($A12,'RECAP DIRCOM'!$G$6:$EV$12,94,FALSE) -> 5
A13: 30 | B13: Marne-Ardennes | C13: =VLOOKUP($A13,'RECAP DIRCOM'!$G$6:$EV$12,3,FALSE) -> 239 | D13: =VLOOKUP($A13,'RECAP DIRCOM'!$G$6:$EV$12,74,FALSE) -> 174.94 | E13: =VLOOKUP($A13,'RECAP DIRCOM'!$G$6:$EV$12,75,FALSE) -> 9% | F13: =VLOOKUP($A13,'RECAP DIRCOM'!$G$6:$EV$12,76,FALSE) -> 3 | G13: =VLOOKUP($A13,'RECAP DIRCOM'!$G$6:$EV$12,77,FALSE) -> 95% | H13: =VLOOKUP($A13,'RECAP DIRCOM'!$G$6:$EV$12,78,FALSE) -> 2% | I13: =VLOOKUP($A13,'RECAP DIRCOM'!$G$6:$EV$12,79,FALSE) -> 3 | J13: =VLOOKUP($A13,'RECAP DIRCOM'!$G$6:$EV$12,80,FALSE) -> 41% | K13: =VLOOKUP($A13,'RECAP DIRCOM'!$G$6:$EV$12,81,FALSE) -> 0% | L13: =VLOOKUP($A13,'RECAP DIRCOM'!$G$6:$EV$12,82,FALSE) -> 1 | M13: =VLOOKUP($A13,'RECAP DIRCOM'!$G$6:$EV$12,83,FALSE) -> 76% | N13: =VLOOKUP($A13,'RECAP DIRCOM'!$G$6:$EV$12,84,FALSE) -> 1% | O13: =VLOOKUP($A13,'RECAP DIRCOM'!$G$6:$EV$12,85,FALSE) -> 2 | P13: =VLOOKUP($A13,'RECAP DIRCOM'!$G$6:$EV$12,86,FALSE) -> 83% | Q13: =VLOOKUP($A13,'RECAP DIRCOM'!$G$6:$EV$12,87,FALSE) -> 9% | R13: =VLOOKUP($A13,'RECAP DIRCOM'!$G$6:$EV$12,88,FALSE) -> 4 | S13: =VLOOKUP($A13,'RECAP DIRCOM'!$G$6:$EV$12,89,FALSE) -> 58% | T13: =VLOOKUP($A13,'RECAP DIRCOM'!$G$6:$EV$12,90,FALSE) -> 11% | U13: =VLOOKUP($A13,'RECAP DIRCOM'!$G$6:$EV$12,91,FALSE) -> 2 | V13: =VLOOKUP($A13,'RECAP DIRCOM'!$G$6:$EV$12,92,FALSE) -> 6% | W13: =VLOOKUP($A13,'RECAP DIRCOM'!$G$6:$EV$12,93,FALSE) -> 0% | X13: =VLOOKUP($A13,'RECAP DIRCOM'!$G$6:$EV$12,94,FALSE) -> 1
A14: 110 | B14: Meurthe et Moselle Meuse | C14: =VLOOKUP($A14,'RECAP DIRCOM'!$G$6:$EV$12,3,FALSE) -> 267 | D14: =VLOOKUP($A14,'RECAP DIRCOM'!$G$6:$EV$12,74,FALSE) -> 175.89 | E14: =VLOOKUP($A14,'RECAP DIRCOM'!$G$6:$EV$12,75,FALSE) -> 9% | F14: =VLOOKUP($A14,'RECAP DIRCOM'!$G$6:$EV$12,76,FALSE) -> 2 | G14: =VLOOKUP($A14,'RECAP DIRCOM'!$G$6:$EV$12,77,FALSE) -> 89% | H14: =VLOOKUP($A14,'RECAP DIRCOM'!$G$6:$EV$12,78,FALSE) -> 8% | I14: =VLOOKUP($A14,'RECAP DIRCOM'!$G$6:$EV$12,79,FALSE) -> 7 | J14: =VLOOKUP($A14,'RECAP DIRCOM'!$G$6:$EV$12,80,FALSE) -> 38% | K14: =VLOOKUP($A14,'RECAP DIRCOM'!$G$6:$EV$12,81,FALSE) -> 9% | L14: =VLOOKUP($A14,'RECAP DIRCOM'!$G$6:$EV$12,82,FALSE) -> 3 | M14: =VLOOKUP($A14,'RECAP DIRCOM'!$G$6:$EV$12,83,FALSE) -> 74% | N14: =VLOOKUP($A14,'RECAP DIRCOM'!$G$6:$EV$12,84,FALSE) -> 4% | O14: =VLOOKUP($A14,'RECAP DIRCOM'!$G$6:$EV$12,85,FALSE) -> 3 | P14: =VLOOKUP($A14,'RECAP DIRCOM'!$G$6:$EV$12,86,FALSE) -> 90% | Q14: =VLOOKUP($A14,'RECAP DIRCOM'!$G$6:$EV$12,87,FALSE) -> 0% | R14: =VLOOKUP($A14,'RECAP DIRCOM'!$G$6:$EV$12,88,FALSE) -> 1 | S14: =VLOOKUP($A14,'RECAP DIRCOM'!$G$6:$EV$12,89,FALSE) -> 35% | T14: =VLOOKUP($A14,'RECAP DIRCOM'!$G$6:$EV$12,90,FALSE) -> 46% | U14: =VLOOKUP($A14,'RECAP DIRCOM'!$G$6:$EV$12,91,FALSE) -> 6 | V14: =VLOOKUP($A14,'RECAP DIRCOM'!$G$6:$EV$12,92,FALSE) -> 14% | W14: =VLOOKUP($A14,'RECAP DIRCOM'!$G$6:$EV$12,93,FALSE) -> 9% | X14: =VLOOKUP($A14,'RECAP DIRCOM'!$G$6:$EV$12,94,FALSE) -> 4
A15: 160 | B15: Moselle | C15: =VLOOKUP($A15,'RECAP DIRCOM'!$G$6:$EV$12,3,FALSE) -> 310 | D15: =VLOOKUP($A15,'RECAP DIRCOM'!$G$6:$EV$12,74,FALSE) -> 172.79 | E15: =VLOOKUP($A15,'RECAP DIRCOM'!$G$6:$EV$12,75,FALSE) -> 11% | F15: =VLOOKUP($A15,'RECAP DIRCOM'!$G$6:$EV$12,76,FALSE) -> 4 | G15: =VLOOKUP($A15,'RECAP DIRCOM'!$G$6:$EV$12,77,FALSE) -> 96% | H15: =VLOOKUP($A15,'RECAP DIRCOM'!$G$6:$EV$12,78,FALSE) -> 0% | I15: =VLOOKUP($A15,'RECAP DIRCOM'!$G$6:$EV$12,79,FALSE) -> 2 | J15: =VLOOKUP($A15,'RECAP DIRCOM'!$G$6:$EV$12,80,FALSE) -> 35% | K15: =VLOOKUP($A15,'RECAP DIRCOM'!$G$6:$EV$12,81,FALSE) -> 15% | L15: =VLOOKUP($A15,'RECAP DIRCOM'!$G$6:$EV$12,82,FALSE) -> 5 | M15: =VLOOKUP($A15,'RECAP DIRCOM'!$G$6:$EV$12,83,FALSE) -> 69% | N15: =VLOOKUP($A15,'RECAP DIRCOM'!$G$6:$EV$12,84,FALSE) -> 11% | O15: =VLOOKUP($A15,'RECAP DIRCOM'!$G$6:$EV$12,85,FALSE) -> 6 | P15: =VLOOKUP($A15,'RECAP DIRCOM'!$G$6:$EV$12,86,FALSE) -> 83% | Q15: =VLOOKUP($A15,'RECAP DIRCOM'!$G$6:$EV$12,87,FALSE) -> 9% | R15: =VLOOKUP($A15,'RECAP DIRCOM'!$G$6:$EV$12,88,FALSE) -> 3 | S15: =VLOOKUP($A15,'RECAP DIRCOM'!$G$6:$EV$12,89,FALSE) -> 27% | T15: =VLOOKUP($A15,'RECAP DIRCOM'!$G$6:$EV$12,90,FALSE) -> 58% | U15: =VLOOKUP($A15,'RECAP DIRCOM'!$G$6:$EV$12,91,FALSE) -> 7 | V15: =VLOOKUP($A15,'RECAP DIRCOM'!$G$6:$EV$12,92,FALSE) -> 19% | W15: =VLOOKUP($A15,'RECAP DIRCOM'!$G$6:$EV$12,93,FALSE) -> 14% | X15: =VLOOKUP($A15,'RECAP DIRCOM'!$G$6:$EV$12,94,FALSE) -> 6
A16: 80 | B16: Vosges | C16: =VLOOKUP($A16,'RECAP DIRCOM'!$G$6:$EV$12,3,FALSE) -> 149 | D16: =VLOOKUP($A16,'RECAP DIRCOM'!$G$6:$EV$12,74,FALSE) -> 160.27 | E16: =VLOOKUP($A16,'RECAP DIRCOM'!$G$6:$EV$12,75,FALSE) -> 17% | F16: =VLOOKUP($A16,'RECAP DIRCOM'!$G$6:$EV$12,76,FALSE) -> 5 | G16: =VLOOKUP($A16,'RECAP DIRCOM'!$G$6:$EV$12,77,FALSE) -> 96% | H16: =VLOOKUP($A16,'RECAP DIRCOM'!$G$6:$EV$12,78,FALSE) -> 0% | I16: =VLOOKUP($A16,'RECAP DIRCOM'!$G$6:$EV$12,79,FALSE) -> 1 | J16: =VLOOKUP($A16,'RECAP DIRCOM'!$G$6:$EV$12,80,FALSE) -> 38% | K16: =VLOOKUP($A16,'RECAP DIRCOM'!$G$6:$EV$12,81,FALSE) -> 9% | L16: =VLOOKUP($A16,'RECAP DIRCOM'!$G$6:$EV$12,82,FALSE) -> 2 | M16: =VLOOKUP($A16,'RECAP DIRCOM'!$G$6:$EV$12,83,FALSE) -> 74% | N16: =VLOOKUP($A16,'RECAP DIRCOM'!$G$6:$EV$12,84,FALSE) -> 5% | O16: =VLOOKUP($A16,'RECAP DIRCOM'!$G$6:$EV$12,85,FALSE) -> 4 | P16: =VLOOKUP($A16,'RECAP DIRCOM'!$G$6:$EV$12,86,FALSE) -> 86% | Q16: =VLOOKUP($A16,'RECAP DIRCOM'!$G$6:$EV$12,87,FALSE) -> 5% | R16: =VLOOKUP($A16,'RECAP DIRCOM'!$G$6:$EV$12,88,FALSE) -> 2 | S16: =VLOOKUP($A16,'RECAP DIRCOM'!$G$6:$EV$12,89,FALSE) -> 65% | T16: =VLOOKUP($A16,'RECAP DIRCOM'!$G$6:$EV$12,90,FALSE) -> 0% | U16: =VLOOKUP($A16,'RECAP DIRCOM'!$G$6:$EV$12,91,FALSE) -> 1 | V16: =VLOOKUP($A16,'RECAP DIRCOM'!$G$6:$EV$12,92,FALSE) -> 6% | W16: =VLOOKUP($A16,'RECAP DIRCOM'!$G$6:$EV$12,93,FALSE) -> 1% | X16: =VLOOKUP($A16,'RECAP DIRCOM'!$G$6:$EV$12,94,FALSE) -> 2
A17: Total CEGEE Directions Commerciales | C17: =SUM(C10:C16) -> 1592

Sheet DC_IARD
A1: Accueil | D1: BAROMETRE BDD - DIRECTIONS COMMERCIALES
D2: IARD PREVOYANCE
D3: =ACCUEIL!H7 -> 2019-05-31
D7: Ventes nettes IARD (AUTO+MRH+Pro) | G7: Ventes nettes Prévoyance | J7: Chiffre d'affaires IARD | M7: Total IARD Prévoyance
E8: coef | F8: ='RECAP DIRCOM'!DE4 -> 7% | H8: coef | I8: ='RECAP DIRCOM'!DH4 -> 7% | K8: coef | L8: ='RECAP DIRCOM'!DK4 -> 6% | N8: coef | O8: ='RECAP DIRCOM'!DN4 -> 20%
A9: eds | B9: Direction | C9: ETP perf | D9: Nb / ETP | E9: % Ecart au 1er | F9: Rang | G9: Nb / ETP | H9: % Ecart au 1er | I9: Rang | J9: Nb / ETP | K9: % Ecart au 1er | L9: Rang | M9: Moyenne ecart au 1er | N9: % Ecart au 1er | O9: Rang CEGEE
A10: 50 | B10: Aube Haute Marne | C10: =VLOOKUP($A10,'RECAP DIRCOM'!$G$6:$EV$12,3,FALSE) -> 148 | D10: =VLOOKUP($A10,'RECAP DIRCOM'!$G$6:$EV$12,101,FALSE) -> 3.26 | E10: =VLOOKUP($A10,'RECAP DIRCOM'!$G$6:$EV$12,102,FALSE) -> 20% | F10: =VLOOKUP($A10,'RECAP DIRCOM'!$G$6:$EV$12,103,FALSE) -> 5 | G10: =VLOOKUP($A10,'RECAP DIRCOM'!$G$6:$EV$12,104,FALSE) -> 5.15 | H10: =VLOOKUP($A10,'RECAP DIRCOM'!$G$6:$EV$12,105,FALSE) -> 30% | I10: =VLOOKUP($A10,'RECAP DIRCOM'!$G$6:$EV$12,106,FALSE) -> 3 | J10: =VLOOKUP($A10,'RECAP DIRCOM'!$G$6:$EV$12,107,FALSE) -> 4.28 | K10: =VLOOKUP($A10,'RECAP DIRCOM'!$G$6:$EV$12,108,FALSE) -> 23% | L10: =VLOOKUP($A10,'RECAP DIRCOM'!$G$6:$EV$12,109,FALSE) -> 7 | M10: =VLOOKUP($A10,'RECAP DIRCOM'!$G$6:$EV$12,110,FALSE) -> 25% | N10: =VLOOKUP($A10,'RECAP DIRCOM'!$G$6:$EV$12,111,FALSE) -> 20% | O10: =VLOOKUP($A10,'RECAP DIRCOM'!$G$6:$EV$12,112,FALSE) -> 5
A11: 262 | B11: Bas-Rhin | C11: =VLOOKUP($A11,'RECAP DIRCOM'!$G$6:$EV$12,3,FALSE) -> 299 | D11: =VLOOKUP($A11,'RECAP DIRCOM'!$G$6:$EV$12,101,FALSE) -> 2.74 | E11: =VLOOKUP($A11,'RECAP DIRCOM'!$G$6:$EV$12,102,FALSE) -> 33% | F11: =VLOOKUP($A11,'RECAP DIRCOM'!$G$6:$EV$12,103,FALSE) -> 6 | G11: =VLOOKUP($A11,'RECAP DIRCOM'!$G$6:$EV$12,104,FALSE) -> 4.00 | H11: =VLOOKUP($A11,'RECAP DIRCOM'!$G$6:$EV$12,105,FALSE) -> 46% | I11: =VLOOKUP($A11,'RECAP DIRCOM'!$G$6:$EV$12,106,FALSE) -> 4 | J11: =VLOOKUP($A11,'RECAP DIRCOM'!$G$6:$EV$12,107,FALSE) -> 4.86 | K11: =VLOOKUP($A11,'RECAP DIRCOM'!$G$6:$EV$12,108,FALSE) -> 12% | L11: =VLOOKUP($A11,'RECAP DIRCOM'!$G$6:$EV$12,109,FALSE) -> 6 | M11: =VLOOKUP($A11,'RECAP DIRCOM'!$G$6:$EV$12,110,FALSE) -> 31% | N11: =VLOOKUP($A11,'RECAP DIRCOM'!$G$6:$EV$12,111,FALSE) -> 27% | O11: =VLOOKUP($A11,'RECAP DIRCOM'!$G$6:$EV$12,112,FALSE) -> 6
A12: 264 | B12: Haut-Rhin | C12: =VLOOKUP($A12,'RECAP DIRCOM'!$G$6:$EV$12,3,FALSE) -> 181 | D12: =VLOOKUP($A12,'RECAP DIRCOM'!$G$6:$EV$12,101,FALSE) -> 2.65 | E12: =VLOOKUP($A12,'RECAP DIRCOM'!$G$6:$EV$12,102,FALSE) -> 35% | F12: =VLOOKUP($A12,'RECAP DIRCOM'!$G$6:$EV$12,103,FALSE) -> 7 | G12: =VLOOKUP($A12,'RECAP DIRCOM'!$G$6:$EV$12,104,FALSE) -> 3.55 | H12: =VLOOKUP($A12,'RECAP DIRCOM'!$G$6:$EV$12,105,FALSE) -> 52% | I12: =VLOOKUP($A12,'RECAP DIRCOM'!$G$6:$EV$12,106,FALSE) -> 7 | J12: =VLOOKUP($A12,'RECAP DIRCOM'!$G$6:$EV$12,107,FALSE) -> 5.08 | K12: =VLOOKUP($A12,'RECAP DIRCOM'!$G$6:$EV$12,108,FALSE) -> 8% | L12: =VLOOKUP($A12,'RECAP DIRCOM'!$G$6:$EV$12,109,FALSE) -> 3 | M12: =VLOOKUP($A12,'RECAP DIRCOM'!$G$6:$EV$12,110,FALSE) -> 33% | N12: =VLOOKUP($A12,'RECAP DIRCOM'!$G$6:$EV$12,111,FALSE) -> 29% | O12: =VLOOKUP($A12,'RECAP DIRCOM'!$G$6:$EV$12,112,FALSE) -> 7
A13: 30 | B13: Marne-Ardennes | C13: =VLOOKUP($A13,'RECAP DIRCOM'!$G$6:$EV$12,3,FALSE) -> 239 | D13: =VLOOKUP($A13,'RECAP DIRCOM'!$G$6:$EV$12,101,FALSE) -> 3.93 | E13: =VLOOKUP($A13,'RECAP DIRCOM'!$G$6:$EV$12,102,FALSE) -> 4% | F13: =VLOOKUP($A13,'RECAP DIRCOM'!$G$6:$EV$12,103,FALSE) -> 2 | G13: =VLOOKUP($A13,'RECAP DIRCOM'!$G$6:$EV$12,104,FALSE) -> 7.39 | H13: =VLOOKUP($A13,'RECAP DIRCOM'!$G$6:$EV$12,105,FALSE) -> 0% | I13: =VLOOKUP($A13,'RECAP DIRCOM'!$G$6:$EV$12,106,FALSE) -> 1 | J13: =VLOOKUP($A13,'RECAP DIRCOM'!$G$6:$EV$12,107,FALSE) -> 5.04 | K13: =VLOOKUP($A13,'RECAP DIRCOM'!$G$6:$EV$12,108,FALSE) -> 9% | L13: =VLOOKUP($A13,'RECAP DIRCOM'!$G$6:$EV$12,109,FALSE) -> 5 | M13: =VLOOKUP($A13,'RECAP DIRCOM'!$G$6:$EV$12,110,FALSE) -> 4% | N13: =VLOOKUP($A13,'RECAP DIRCOM'!$G$6:$EV$12,111,FALSE) -> 0% | O13: =VLOOKUP($A13,'RECAP DIRCOM'!$G$6:$EV$12,112,FALSE) -> 1
A14: 110 | B14: Meurthe et Moselle Meuse | C14: =VLOOKUP($A14,'RECAP DIRCOM'!$G$6:$EV$12,3,FALSE) -> 267 | D14: =VLOOKUP($A14,'RECAP DIRCOM'!$G$6:$EV$12,101,FALSE) -> 3.89 | E14: =VLOOKUP($A14,'RECAP DIRCOM'!$G$6:$EV$12,102,FALSE) -> 5% | F14: =VLOOKUP($A14,'RECAP DIRCOM'!$G$6:$EV$12,103,FALSE) -> 3 | G14: =VLOOKUP($A14,'RECAP DIRCOM'!$G$6:$EV$12,104,FALSE) -> 3.77 | H14: =VLOOKUP($A14,'RECAP DIRCOM'!$G$6:$EV$12,105,FALSE) -> 49% | I14: =VLOOKUP($A14,'RECAP DIRCOM'!$G$6:$EV$12,106,FALSE) -> 6 | J14: =VLOOKUP($A14,'RECAP DIRCOM'!$G$6:$EV$12,107,FALSE) -> 5.39 | K14: =VLOOKUP($A14,'RECAP DIRCOM'!$G$6:$EV$12,108,FALSE) -> 3% | L14: =VLOOKUP($A14,'RECAP DIRCOM'!$G$6:$EV$12,109,FALSE) -> 2 | M14: =VLOOKUP($A14,'RECAP DIRCOM'!$G$6:$EV$12,110,FALSE) -> 20% | N14: =VLOOKUP($A14,'RECAP DIRCOM'!$G$6:$EV$12,111,FALSE) -> 16% | O14: =VLOOKUP($A14,'RECAP DIRCOM'!$G$6:$EV$12,112,FALSE) -> 4
A15: 160 | B15: Moselle | C15: =VLOOKUP($A15,'RECAP DIRCOM'!$G$6:$EV$12,3,FALSE) -> 310 | D15: =VLOOKUP($A15,'RECAP DIRCOM'!$G$6:$EV$12,101,FALSE) -> 3.45 | E15: =VLOOKUP($A15,'RECAP DIRCOM'!$G$6:$EV$12,102,FALSE) -> 16% | F15: =VLOOKUP($A15,'RECAP DIRCOM'!$G$6:$EV$12,103,FALSE) -> 4 | G15: =VLOOKUP($A15,'RECAP DIRCOM'!$G$6:$EV$12,104,FALSE) -> 6.52 | H15: =VLOOKUP($A15,'RECAP DIRCOM'!$G$6:$EV$12,105,FALSE) -> 12% | I15: =VLOOKUP($A15,'RECAP DIRCOM'!$G$6:$EV$12,106,FALSE) -> 2 | J15: =VLOOKUP($A15,'RECAP DIRCOM'!$G$6:$EV$12,107,FALSE) -> 5.04 | K15: =VLOOKUP($A15,'RECAP DIRCOM'!$G$6:$EV$12,108,FALSE) -> 9% | L15: =VLOOKUP($A15,'RECAP DIRCOM'!$G$6:$EV$12,109,FALSE) -> 4 | M15: =VLOOKUP($A15,'RECAP DIRCOM'!$G$6:$EV$12,110,FALSE) -> 12% | N15: =VLOOKUP($A15,'RECAP DIRCOM'!$G$6:$EV$12,111,FALSE) -> 8% | O15: =VLOOKUP($A15,'RECAP DIRCOM'!$G$6:$EV$12,112,FALSE) -> 2
A16: 80 | B16: Vosges | C16: =VLOOKUP($A16,'RECAP DIRCOM'!$G$6:$EV$12,3,FALSE) -> 149 | D16: =VLOOKUP($A16,'RECAP DIRCOM'!$G$6:$EV$12,101,FALSE) -> 4.11 | E16: =VLOOKUP($A16,'RECAP DIRCOM'!$G$6:$EV$12,102,FALSE) -> 0% | F16: =VLOOKUP($A16,'RECAP DIRCOM'!$G$6:$EV$12,103,FALSE) -> 1 | G16: =VLOOKUP($A16,'RECAP DIRCOM'!$G$6:$EV$12,104,FALSE) -> 3.82 | H16: =VLOOKUP($A16,'RECAP DIRCOM'!$G$6:$EV$12,105,FALSE) -> 48% | I16: =VLOOKUP($A16,'RECAP DIRCOM'!$G$6:$EV$12,106,FALSE) -> 5 | J16: =VLOOKUP($A16,'RECAP DIRCOM'!$G$6:$EV$12,107,FALSE) -> 5.53 | K16: =VLOOKUP($A16,'RECAP DIRCOM'!$G$6:$EV$12,108,FALSE) -> 0% | L16: =VLOOKUP($A16,'RECAP DIRCOM'!$G$6:$EV$12,109,FALSE) -> 1 | M16: =VLOOKUP($A16,'RECAP DIRCOM'!$G$6:$EV$12,110,FALSE) -> 17% | N16: =VLOOKUP($A16,'RECAP DIRCOM'!$G$6:$EV$12,111,FALSE) -> 13% | O16: =VLOOKUP($A16,'RECAP DIRCOM'!$G$6:$EV$12,112,FALSE) -> 3
A17: Total CEGEE Directions Commerciales | C17: =SUM(C10:C16) -> 1592

Sheet DC_CONQUETE
A1: Accueil | D1: BAROMETRE BDD - DIRECTIONS COMMERCIALES
D2: CONQUETE
D3: =ACCUEIL!H7 -> 2019-05-31
D7: Evolution nette clients Bancarisés Principaux | G7: Evolution nette relations PREMIUM | J7: Evolution nette clients Bancarisés Principaux équipés | M7: Evolution nette clients Pro actif équipés | P7: Total Conquête
E8: coef | F8: ='RECAP DIRCOM'!M4 -> 4% | H8: coef | I8: ='RECAP DIRCOM'!P4 -> 4% | K8: coef | L8: ='RECAP DIRCOM'!S4 -> 3% | N8: coef | O8: ='RECAP DIRCOM'!V4 -> 4% | Q8: coef | R8: ='RECAP DIRCOM'!Y4 -> 15%
A9: eds | B9: Direction | C9: ETP perf | D9: Nb / ETP | E9: % Ecart au 1er | F9: Rang | G9: Nb / ETP | H9: % Ecart au 1er | I9: Rang | J9: Nb / ETP | K9: % Ecart au 1er | L9: Rang | M9: Taux réal objectif | N9: % Ecart au 1er | O9: Rang | P9: Moyenne ecart au 1er | Q9: % Ecart au 1er | R9: Rang CEGEE
A10: 50 | B10: Aube Haute Marne | C10: =VLOOKUP($A10,'RECAP DIRCOM'!$G$6:$EV$12,3,FALSE) -> 148 | D10: =VLOOKUP($A10,'RECAP DIRCOM'!$G$6:$EV$12,5,FALSE) -> -1.24 | E10: =VLOOKUP($A10,'RECAP DIRCOM'!$G$6:$EV$12,6,FALSE) -> 29% | F10: =VLOOKUP($A10,'RECAP DIRCOM'!$G$6:$EV$12,7,FALSE) -> 2 | G10: =VLOOKUP($A10,'RECAP DIRCOM'!$G$6:$EV$12,8,FALSE) -> 1.02 | H10: =VLOOKUP($A10,'RECAP DIRCOM'!$G$6:$EV$12,9,FALSE) -> 33% | I10: =VLOOKUP($A10,'RECAP DIRCOM'!$G$6:$EV$12,10,FALSE) -> 5 | J10: =VLOOKUP($A10,'RECAP DIRCOM'!$G$6:$EV$12,11,FALSE) -> 1.50 | K10: =VLOOKUP($A10,'RECAP DIRCOM'!$G$6:$EV$12,12,FALSE) -> 0% | L10: =VLOOKUP($A10,'RECAP DIRCOM'!$G$6:$EV$12,13,FALSE) -> 1 | M10: =VLOOKUP($A10,'RECAP DIRCOM'!$G$6:$EV$12,14,FALSE) -> 28% | N10: =VLOOKUP($A10,'RECAP DIRCOM'!$G$6:$EV$12,15,FALSE) -> 67% | O10: =VLOOKUP($A10,'RECAP DIRCOM'!$G$6:$EV$12,16,FALSE) -> 3 | P10: =VLOOKUP($A10,'RECAP DIRCOM'!$G$6:$EV$12,17,FALSE) -> 34% | Q10: =VLOOKUP($A10,'RECAP DIRCOM'!$G$6:$EV$12,18,FALSE) -> 0% | R10: =VLOOKUP($A10,'RECAP DIRCOM'!$G$6:$EV$12,19,FALSE) -> 1
A11: 262 | B11: Bas-Rhin | C11: =VLOOKUP($A11,'RECAP DIRCOM'!$G$6:$EV$12,3,FALSE) -> 299 | D11: =VLOOKUP($A11,'RECAP DIRCOM'!$G$6:$EV$12,5,FALSE) -> -3.38 | E11: =VLOOKUP($A11,'RECAP DIRCOM'!$G$6:$EV$12,6,FALSE) -> 111% | F11: =VLOOKUP($A11,'RECAP DIRCOM'!$G$6:$EV$12,7,FALSE) -> 4 | G11: =VLOOKUP($A11,'RECAP DIRCOM'!$G$6:$EV$12,8,FALSE) -> 1.30 | H11: =VLOOKUP($A11,'RECAP DIRCOM'!$G$6:$EV$12,9,FALSE) -> 14% | I11: =VLOOKUP($A11,'RECAP DIRCOM'!$G$6:$EV$12,10,FALSE) -> 4 | J11: =VLOOKUP($A11,'RECAP DIRCOM'!$G$6:$EV$12,11,FALSE) -> -2.94 | K11: =VLOOKUP($A11,'RECAP DIRCOM'!$G$6:$EV$12,12,FALSE) -> 150% | L11: =VLOOKUP($A11,'RECAP DIRCOM'!$G$6:$EV$12,13,FALSE) -> 7 | M11: =VLOOKUP($A11,'RECAP DIRCOM'!$G$6:$EV$12,14,FALSE) -> 5% | N11: =VLOOKUP($A11,'RECAP DIRCOM'!$G$6:$EV$12,15,FALSE) -> 93% | O11: =VLOOKUP($A11,'RECAP DIRCOM'!$G$6:$EV$12,16,FALSE) -> 5 | P11: =VLOOKUP($A11,'RECAP DIRCOM'!$G$6:$EV$12,17,FALSE) -> 88% | Q11: =VLOOKUP($A11,'RECAP DIRCOM'!$G$6:$EV$12,18,FALSE) -> 54% | R11: =VLOOKUP($A11,'RECAP DIRCOM'!$G$6:$EV$12,19,FALSE) -> 6
A12: 264 | B12: Haut-Rhin | C12: =VLOOKUP($A12,'RECAP DIRCOM'!$G$6:$EV$12,3,FALSE) -> 181 | D12: =VLOOKUP($A12,'RECAP DIRCOM'!$G$6:$EV$12,5,FALSE) -> -4.38 | E12: =VLOOKUP($A12,'RECAP DIRCOM'!$G$6:$EV$12,6,FALSE) -> 150% | F12: =VLOOKUP($A12,'RECAP DIRCOM'!$G$6:$EV$12,7,FALSE) -> 7 | G12: =VLOOKUP($A12,'RECAP DIRCOM'!$G$6:$EV$12,8,FALSE) -> 1.52 | H12: =VLOOKUP($A12,'RECAP DIRCOM'!$G$6:$EV$12,9,FALSE) -> 0% | I12: =VLOOKUP($A12,'RECAP DIRCOM'!$G$6:$EV$12,10,FALSE) -> 1 | J12: =VLOOKUP($A12,'RECAP DIRCOM'!$G$6:$EV$12,11,FALSE) -> -2.70 | K12: =VLOOKUP($A12,'RECAP DIRCOM'!$G$6:$EV$12,12,FALSE) -> 142% | L12: =VLOOKUP($A12,'RECAP DIRCOM'!$G$6:$EV$12,13,FALSE) -> 6 | M12: =VLOOKUP($A12,'RECAP DIRCOM'!$G$6:$EV$12,14,FALSE) -> -12% | N12: =VLOOKUP($A12,'RECAP DIRCOM'!$G$6:$EV$12,15,FALSE) -> 114% | O12: =VLOOKUP($A12,'RECAP DIRCOM'!$G$6:$EV$12,16,FALSE) -> 6 | P12: =VLOOKUP($A12,'RECAP DIRCOM'!$G$6:$EV$12,17,FALSE) -> 99% | Q12: =VLOOKUP($A12,'RECAP DIRCOM'!$G$6:$EV$12,18,FALSE) -> 65% | R12: =VLOOKUP($A12,'RECAP DIRCOM'!$G$6:$EV$12,19,FALSE) -> 7
A13: 30 | B13: Marne-Ardennes | C13: =VLOOKUP($A13,'RECAP DIRCOM'!$G$6:$EV$12,3,FALSE) -> 239 | D13: =VLOOKUP($A13,'RECAP DIRCOM'!$G$6:$EV$12,5,FALSE) -> -0.49 | E13: =VLOOKUP($A13,'RECAP DIRCOM'!$G$6:$EV$12,6,FALSE) -> 0% | F13: =VLOOKUP($A13,'RECAP DIRCOM'!$G$6:$EV$12,7,FALSE) -> 1 | G13: =VLOOKUP($A13,'RECAP DIRCOM'!$G$6:$EV$12,8,FALSE) -> 1.37 | H13: =VLOOKUP($A13,'RECAP DIRCOM'!$G$6:$EV$12,9,FALSE) -> 10% | I13: =VLOOKUP($A13,'RECAP DIRCOM'!$G$6:$EV$12,10,FALSE) -> 2 | J13: =VLOOKUP($A13,'RECAP DIRCOM'!$G$6:$EV$12,11,FALSE) -> 1.04 | K13: =VLOOKUP($A13,'RECAP DIRCOM'!$G$6:$EV$12,12,FALSE) -> 16% | L13: =VLOOKUP($A13,'RECAP DIRCOM'!$G$6:$EV$12,13,FALSE) -> 2 | M13: =VLOOKUP($A13,'RECAP DIRCOM'!$G$6:$EV$12,14,FALSE) -> -24% | N13: =VLOOKUP($A13,'RECAP DIRCOM'!$G$6:$EV$12,15,FALSE) -> 129% | O13: =VLOOKUP($A13,'RECAP DIRCOM'!$G$6:$EV$12,16,FALSE) -> 7 | P13: =VLOOKUP($A13,'RECAP DIRCOM'!$G$6:$EV$12,17,FALSE) -> 40% | Q13: =VLOOKUP($A13,'RECAP DIRCOM'!$G$6:$EV$12,18,FALSE) -> 6% | R13: =VLOOKUP($A13,'RECAP DIRCOM'!$G$6:$EV$12,19,FALSE) -> 2
A14: 110 | B14: Meurthe et Moselle Meuse | C14: =VLOOKUP($A14,'RECAP DIRCOM'!$G$6:$EV$12,3,FALSE) -> 267 | D14: =VLOOKUP($A14,'RECAP DIRCOM'!$G$6:$EV$12,5,FALSE) -> -2.06 | E14: =VLOOKUP($A14,'RECAP DIRCOM'!$G$6:$EV$12,6,FALSE) -> 61% | F14: =VLOOKUP($A14,'RECAP DIRCOM'!$G$6:$EV$12,7,FALSE) -> 3 | G14: =VLOOKUP($A14,'RECAP DIRCOM'!$G$6:$EV$12,8,FALSE) -> 0.98 | H14: =VLOOKUP($A14,'RECAP DIRCOM'!$G$6:$EV$12,9,FALSE) -> 36% | I14: =VLOOKUP($A14,'RECAP DIRCOM'!$G$6:$EV$12,10,FALSE) -> 7 | J14: =VLOOKUP($A14,'RECAP DIRCOM'!$G$6:$EV$12,11,FALSE) -> -0.59 | K14: =VLOOKUP($A14,'RECAP DIRCOM'!$G$6:$EV$12,12,FALSE) -> 71% | L14: =VLOOKUP($A14,'RECAP DIRCOM'!$G$6:$EV$12,13,FALSE) -> 4 | M14: =VLOOKUP($A14,'RECAP DIRCOM'!$G$6:$EV$12,14,FALSE) -> 30% | N14: =VLOOKUP($A14,'RECAP DIRCOM'!$G$6:$EV$12,15,FALSE) -> 64% | O14: =VLOOKUP($A14,'RECAP DIRCOM'!$G$6:$EV$12,16,FALSE) -> 2 | P14: =VLOOKUP($A14,'RECAP DIRCOM'!$G$6:$EV$12,17,FALSE) -> 57% | Q14: =VLOOKUP($A14,'RECAP DIRCOM'!$G$6:$EV$12,18,FALSE) -> 23% | R14: =VLOOKUP($A14,'RECAP DIRCOM'!$G$6:$EV$12,19,FALSE) -> 4
A15: 160 | B15: Moselle | C15: =VLOOKUP($A15,'RECAP DIRCOM'!$G$6:$EV$12,3,FALSE) -> 310 | D15: =VLOOKUP($A15,'RECAP DIRCOM'!$G$6:$EV$12,5,FALSE) -> -3.58 | E15: =VLOOKUP($A15,'RECAP DIRCOM'!$G$6:$EV$12,6,FALSE) -> 119% | F15: =VLOOKUP($A15,'RECAP DIRCOM'!$G$6:$EV$12,7,FALSE) -> 5 | G15: =VLOOKUP($A15,'RECAP DIRCOM'!$G$6:$EV$12,8,FALSE) -> 0.99 | H15: =VLOOKUP($A15,'RECAP DIRCOM'!$G$6:$EV$12,9,FALSE) -> 35% | I15: =VLOOKUP($A15,'RECAP DIRCOM'!$G$6:$EV$12,10,FALSE) -> 6 | J15: =VLOOKUP($A15,'RECAP DIRCOM'!$G$6:$EV$12,11,FALSE) -> 0.23 | K15: =VLOOKUP($A15,'RECAP DIRCOM'!$G$6:$EV$12,12,FALSE) -> 43% | L15: =VLOOKUP($A15,'RECAP DIRCOM'!$G$6:$EV$12,13,FALSE) -> 3 | M15: =VLOOKUP($A15,'RECAP DIRCOM'!$G$6:$EV$12,14,FALSE) -> 84% | N15: =VLOOKUP($A15,'RECAP DIRCOM'!$G$6:$EV$12,15,FALSE) -> 0% | O15: =VLOOKUP($A15,'RECAP DIRCOM'!$G$6:$EV$12,16,FALSE) -> 1 | P15: =VLOOKUP($A15,'RECAP DIRCOM'!$G$6:$EV$12,17,FALSE) -> 50% | Q15: =VLOOKUP($A15,'RECAP DIRCOM'!$G$6:$EV$12,18,FALSE) -> 15% | R15: =VLOOKUP($A15,'RECAP DIRCOM'!$G$6:$EV$12,19,FALSE) -> 3
A16: 80 | B16: Vosges | C16: =VLOOKUP($A16,'RECAP DIRCOM'!$G$6:$EV$12,3,FALSE) -> 149 | D16: =VLOOKUP($A16,'RECAP DIRCOM'!$G$6:$EV$12,5,FALSE) -> -3.75 | E16: =VLOOKUP($A16,'RECAP DIRCOM'!$G$6:$EV$12,6,FALSE) -> 126% | F16: =VLOOKUP($A16,'RECAP DIRCOM'!$G$6:$EV$12,7,FALSE) -> 6 | G16: =VLOOKUP($A16,'RECAP DIRCOM'!$G$6:$EV$12,8,FALSE) -> 1.34 | H16: =VLOOKUP($A16,'RECAP DIRCOM'!$G$6:$EV$12,9,FALSE) -> 12% | I16: =VLOOKUP($A16,'RECAP DIRCOM'!$G$6:$EV$12,10,FALSE) -> 3 | J16: =VLOOKUP($A16,'RECAP DIRCOM'!$G$6:$EV$12,11,FALSE) -> -1.52 | K16: =VLOOKUP($A16,'RECAP DIRCOM'!$G$6:$EV$12,12,FALSE) -> 102% | L16: =VLOOKUP($A16,'RECAP DIRCOM'!$G$6:$EV$12,13,FALSE) -> 5 | M16: =VLOOKUP($A16,'RECAP DIRCOM'!$G$6:$EV$12,14,FALSE) -> 25% | N16: =VLOOKUP($A16,'RECAP DIRCOM'!$G$6:$EV$12,15,FALSE) -> 70% | O16: =VLOOKUP($A16,'RECAP DIRCOM'!$G$6:$EV$12,16,FALSE) -> 4 | P16: =VLOOKUP($A16,'RECAP DIRCOM'!$G$6:$EV$12,17,FALSE) -> 76% | Q16: =VLOOKUP($A16,'RECAP DIRCOM'!$G$6:$EV$12,18,FALSE) -> 42% | R16: =VLOOKUP($A16,'RECAP DIRCOM'!$G$6:$EV$12,19,FALSE) -> 5
A17: Total CEGEE Directions Commerciales | C17: =SUM(C10:C16) -> 1592

Sheet DC_RISQUES
A1: Accueil | D1: BAROMETRE BDD - DIRECTIONS COMMERCIALES
D2: RISQUES
D3: =ACCUEIL!H7 -> 2019-05-31
D6: Complétude conformité et fiabilisation | J6: Traitement et qualité du traitement des alertes Vigiclient | M6: Total Risques
D7: Nouvelles EER sur flux BDD | G7: EER sur flux cumulés et stock
E8: coef | F8: ='RECAP DIRCOM'!DW4 -> 3% | H8: coef | I8: ='RECAP DIRCOM'!DZ4 -> 3% | K8: coef | L8: ='RECAP DIRCOM'!EC4 -> 4% | N8: coef | O8: ='RECAP DIRCOM'!EF4 -> 10%
A9: eds | B9: Direction | C9: ETP perf | E9: % Ecart au 1er | F9: Rang | H9: % Ecart au 1er | I9: Rang | K9: % Ecart au 1er | L9: Rang | M9: Moyenne ecart au 1er | N9: % Ecart au 1er | O9: Rang CEGEE
A10: 50 | B10: Aube Haute Marne | C10: =VLOOKUP($A10,'RECAP DIRCOM'!$G$6:$EV$12,3,FALSE) -> 148 | D10: =VLOOKUP($A10,'RECAP DIRCOM'!$G$6:$EV$12,119,FALSE) -> 97% | E10: =VLOOKUP($A10,'RECAP DIRCOM'!$G$6:$EV$12,120,FALSE) -> 1% | F10: =VLOOKUP($A10,'RECAP DIRCOM'!$G$6:$EV$12,121,FALSE) -> 4 | G10: =VLOOKUP($A10,'RECAP DIRCOM'!$G$6:$EV$12,122,FALSE) -> 75% | H10: =VLOOKUP($A10,'RECAP DIRCOM'!$G$6:$EV$12,123,FALSE) -> 3% | I10: =VLOOKUP($A10,'RECAP DIRCOM'!$G$6:$EV$12,124,FALSE) -> 3 | J10: =VLOOKUP($A10,'RECAP DIRCOM'!$G$6:$EV$12,125,FALSE) -> 100% | K10: =VLOOKUP($A10,'RECAP DIRCOM'!$G$6:$EV$12,126,FALSE) -> 0% | L10: =VLOOKUP($A10,'RECAP DIRCOM'!$G$6:$EV$12,127,FALSE) -> 1 | M10: =VLOOKUP($A10,'RECAP DIRCOM'!$G$6:$EV$12,128,FALSE) -> 1% | N10: =VLOOKUP($A10,'RECAP DIRCOM'!$G$6:$EV$12,129,FALSE) -> 0% | O10: =VLOOKUP($A10,'RECAP DIRCOM'!$G$6:$EV$12,130,FALSE) -> 1
A11: 262 | B11: Bas-Rhin | C11: =VLOOKUP($A11,'RECAP DIRCOM'!$G$6:$EV$12,3,FALSE) -> 299 | D11: =VLOOKUP($A11,'RECAP DIRCOM'!$G$6:$EV$12,119,FALSE) -> 95% | E11: =VLOOKUP($A11,'RECAP DIRCOM'!$G$6:$EV$12,120,FALSE) -> 2% | F11: =VLOOKUP($A11,'RECAP DIRCOM'!$G$6:$EV$12,121,FALSE) -> 6 | G11: =VLOOKUP($A11,'RECAP DIRCOM'!$G$6:$EV$12,122,FALSE) -> 71% | H11: =VLOOKUP($A11,'RECAP DIRCOM'!$G$6:$EV$12,123,FALSE) -> 8% | I11: =VLOOKUP($A11,'RECAP DIRCOM'!$G$6:$EV$12,124,FALSE) -> 7 | J11: =VLOOKUP($A11,'RECAP DIRCOM'!$G$6:$EV$12,125,FALSE) -> 85% | K11: =VLOOKUP($A11,'RECAP DIRCOM'!$G$6:$EV$12,126,FALSE) -> 15% | L11: =VLOOKUP($A11,'RECAP DIRCOM'!$G$6:$EV$12,127,FALSE) -> 6 | M11: =VLOOKUP($A11,'RECAP DIRCOM'!$G$6:$EV$12,128,FALSE) -> 9% | N11: =VLOOKUP($A11,'RECAP DIRCOM'!$G$6:$EV$12,129,FALSE) -> 8% | O11: =VLOOKUP($A11,'RECAP DIRCOM'!$G$6:$EV$12,130,FALSE) -> 6
A12: 264 | B12: Haut-Rhin | C12: =VLOOKUP($A12,'RECAP DIRCOM'!$G$6:$EV$12,3,FALSE) -> 181 | D12: =VLOOKUP($A12,'RECAP DIRCOM'!$G$6:$EV$12,119,FALSE) -> 97% | E12: =VLOOKUP($A12,'RECAP DIRCOM'!$G$6:$EV$12,120,FALSE) -> 1% | F12: =VLOOKUP($A12,'RECAP DIRCOM'!$G$6:$EV$12,121,FALSE) -> 2 | G12: =VLOOKUP($A12,'RECAP DIRCOM'!$G$6:$EV$12,122,FALSE) -> 72% | H12: =VLOOKUP($A12,'RECAP DIRCOM'!$G$6:$EV$12,123,FALSE) -> 6% | I12: =VLOOKUP($A12,'RECAP DIRCOM'!$G$6:$EV$12,124,FALSE) -> 5 | J12: =VLOOKUP($A12,'RECAP DIRCOM'!$G$6:$EV$12,125,FALSE) -> 98% | K12: =VLOOKUP($A12,'RECAP DIRCOM'!$G$6:$EV$12,126,FALSE) -> 2% | L12: =VLOOKUP($A12,'RECAP DIRCOM'!$G$6:$EV$12,127,FALSE) -> 3 | M12: =VLOOKUP($A12,'RECAP DIRCOM'!$G$6:$EV$12,128,FALSE) -> 3% | N12: =VLOOKUP($A12,'RECAP DIRCOM'!$G$6:$EV$12,129,FALSE) -> 2% | O12: =VLOOKUP($A12,'RECAP DIRCOM'!$G$6:$EV$12,130,FALSE) -> 3
A13: 30 | B13: Marne-Ardennes | C13: =VLOOKUP($A13,'RECAP DIRCOM'!$G$6:$EV$12,3,FALSE) -> 239 | D13: =VLOOKUP($A13,'RECAP DIRCOM'!$G$6:$EV$12,119,FALSE) -> 97% | E13: =VLOOKUP($A13,'RECAP DIRCOM'!$G$6:$EV$12,120,FALSE) -> 1% | F13: =VLOOKUP($A13,'RECAP DIRCOM'!$G$6:$EV$12,121,FALSE) -> 3 | G13: =VLOOKUP($A13,'RECAP DIRCOM'!$G$6:$EV$12,122,FALSE) -> 72% | H13: =VLOOKUP($A13,'RECAP DIRCOM'!$G$6:$EV$12,123,FALSE) -> 7% | I13: =VLOOKUP($A13,'RECAP DIRCOM'!$G$6:$EV$12,124,FALSE) -> 6 | J13: =VLOOKUP($A13,'RECAP DIRCOM'!$G$6:$EV$12,125,FALSE) -> 98% | K13: =VLOOKUP($A13,'RECAP DIRCOM'!$G$6:$EV$12,126,FALSE) -> 2% | L13: =VLOOKUP($A13,'RECAP DIRCOM'!$G$6:$EV$12,127,FALSE) -> 2 | M13: =VLOOKUP($A13,'RECAP DIRCOM'!$G$6:$EV$12,128,FALSE) -> 3% | N13: =VLOOKUP($A13,'RECAP DIRCOM'!$G$6:$EV$12,129,FALSE) -> 2% | O13: =VLOOKUP($A13,'RECAP DIRCOM'!$G$6:$EV$12,130,FALSE) -> 4
A14: 110 | B14: Meurthe et Moselle Meuse | C14: =VLOOKUP($A14,'RECAP DIRCOM'!$G$6:$EV$12,3,FALSE) -> 267 | D14: =VLOOKUP($A14,'RECAP DIRCOM'!$G$6:$EV$12,119,FALSE) -> 95% | E14: =VLOOKUP($A14,'RECAP DIRCOM'!$G$6:$EV$12,120,FALSE) -> 3% | F14: =VLOOKUP($A14,'RECAP DIRCOM'!$G$6:$EV$12,121,FALSE) -> 7 | G14: =VLOOKUP($A14,'RECAP DIRCOM'!$G$6:$EV$12,122,FALSE) -> 74% | H14: =VLOOKUP($A14,'RECAP DIRCOM'!$G$6:$EV$12,123,FALSE) -> 3% | I14: =VLOOKUP($A14,'RECAP DIRCOM'!$G$6:$EV$12,124,FALSE) -> 4 | J14: =VLOOKUP($A14,'RECAP DIRCOM'!$G$6:$EV$12,125,FALSE) -> 82% | K14: =VLOOKUP($A14,'RECAP DIRCOM'!$G$6:$EV$12,126,FALSE) -> 18% | L14: =VLOOKUP($A14,'RECAP DIRCOM'!$G$6:$EV$12,127,FALSE) -> 7 | M14: =VLOOKUP($A14,'RECAP DIRCOM'!$G$6:$EV$12,128,FALSE) -> 9% | N14: =VLOOKUP($A14,'RECAP DIRCOM'!$G$6:$EV$12,129,FALSE) -> 8% | O14: =VLOOKUP($A14,'RECAP DIRCOM'!$G$6:$EV$12,130,FALSE) -> 7
A15: 160 | B15: Moselle | C15: =VLOOKUP($A15,'RECAP DIRCOM'!$G$6:$EV$12,3,FALSE) -> 310 | D15: =VLOOKUP($A15,'RECAP DIRCOM'!$G$6:$EV$12,119,FALSE) -> 96% | E15: =VLOOKUP($A15,'RECAP DIRCOM'!$G$6:$EV$12,120,FALSE) -> 1% | F15: =VLOOKUP($A15,'RECAP DIRCOM'!$G$6:$EV$12,121,FALSE) -> 5 | G15: =VLOOKUP($A15,'RECAP DIRCOM'!$G$6:$EV$12,122,FALSE) -> 77% | H15: =VLOOKUP($A15,'RECAP DIRCOM'!$G$6:$EV$12,123,FALSE) -> 0% | I15: =VLOOKUP($A15,'RECAP DIRCOM'!$G$6:$EV$12,124,FALSE) -> 2 | J15: =VLOOKUP($A15,'RECAP DIRCOM'!$G$6:$EV$12,125,FALSE) -> 98% | K15: =VLOOKUP($A15,'RECAP DIRCOM'!$G$6:$EV$12,126,FALSE) -> 2% | L15: =VLOOKUP($A15,'RECAP DIRCOM'!$G$6:$EV$12,127,FALSE) -> 4 | M15: =VLOOKUP($A15,'RECAP DIRCOM'!$G$6:$EV$12,128,FALSE) -> 1% | N15: =VLOOKUP($A15,'RECAP DIRCOM'!$G$6:$EV$12,129,FALSE) -> 0% | O15: =VLOOKUP($A15,'RECAP DIRCOM'!$G$6:$EV$12,130,FALSE) -> 2
A16: 80 | B16: Vosges | C16: =VLOOKUP($A16,'RECAP DIRCOM'!$G$6:$EV$12,3,FALSE) -> 149 | D16: =VLOOKUP($A16,'RECAP DIRCOM'!$G$6:$EV$12,119,FALSE) -> 98% | E16: =VLOOKUP($A16,'RECAP DIRCOM'!$G$6:$EV$12,120,FALSE) -> 0% | F16: =VLOOKUP($A16,'RECAP DIRCOM'!$G$6:$EV$12,121,FALSE) -> 1 | G16: =VLOOKUP($A16,'RECAP DIRCOM'!$G$6:$EV$12,122,FALSE) -> 77% | H16: =VLOOKUP($A16,'RECAP DIRCOM'!$G$6:$EV$12,123,FALSE) -> 0% | I16: =VLOOKUP($A16,'RECAP DIRCOM'!$G$6:$EV$12,124,FALSE) -> 1 | J16: =VLOOKUP($A16,'RECAP DIRCOM'!$G$6:$EV$12,125,FALSE) -> 92% | K16: =VLOOKUP($A16,'RECAP DIRCOM'!$G$6:$EV$12,126,FALSE) -> 8% | L16: =VLOOKUP($A16,'RECAP DIRCOM'!$G$6:$EV$12,127,FALSE) -> 5 | M16: =VLOOKUP($A16,'RECAP DIRCOM'!$G$6:$EV$12,128,FALSE) -> 3% | N16: =VLOOKUP($A16,'RECAP DIRCOM'!$G$6:$EV$12,129,FALSE) -> 2% | O16: =VLOOKUP($A16,'RECAP DIRCOM'!$G$6:$EV$12,130,FALSE) -> 5
A17: Total CEGEE Directions Commerciales | C17: =SUM(C10:C16) -> 1592

Sheet DC_SATISFACTION
A1: Accueil | D1: BAROMETRE BDD - DIRECTIONS COMMERCIALES
D2: SATISFACTION CLIENTS
D3: =ACCUEIL!H7 -> 2019-05-31
D7: N P S | G7: Enquête Qualité Haute Définition | J7: Total Satisfaction Clients
E8: coef | F8: ='RECAP DIRCOM'!EO4 -> 5% | H8: coef | I8: ='RECAP DIRCOM'!ER4 -> 5% | K8: coef | L8: ='RECAP DIRCOM'!EU4 -> 10%
A9: eds | B9: Direction | C9: ETP perf | E9: % Ecart au 1er | F9: Rang | H9: % Ecart au 1er | I9: Rang | J9: Moyenne ecart au 1er | K9: % Ecart au 1er | L9: Rang CEGEE
A10: 50 | B10: Aube Haute Marne | C10: =VLOOKUP($A10,'RECAP DIRCOM'!$G$6:$EV$12,3,FALSE) -> 148 | D10: =VLOOKUP($A10,'RECAP DIRCOM'!$G$6:$EV$12,137,FALSE) -> -9 | E10: =VLOOKUP($A10,'RECAP DIRCOM'!$G$6:$EV$12,138,FALSE) -> 33% | F10: =VLOOKUP($A10,'RECAP DIRCOM'!$G$6:$EV$12,139,FALSE) -> 2 | G10: =VLOOKUP($A10,'RECAP DIRCOM'!$G$6:$EV$12,140,FALSE) -> 75% | H10: =VLOOKUP($A10,'RECAP DIRCOM'!$G$6:$EV$12,141,FALSE) -> 3% | I10: =VLOOKUP($A10,'RECAP DIRCOM'!$G$6:$EV$12,142,FALSE) -> 4 | J10: =VLOOKUP($A10,'RECAP DIRCOM'!$G$6:$EV$12,143,FALSE) -> 18% | K10: =VLOOKUP($A10,'RECAP DIRCOM'!$G$6:$EV$12,144,FALSE) -> 18% | L10: =VLOOKUP($A10,'RECAP DIRCOM'!$G$6:$EV$12,145,FALSE) -> 2
A11: 262 | B11: Bas-Rhin | C11: =VLOOKUP($A11,'RECAP DIRCOM'!$G$6:$EV$12,3,FALSE) -> 299 | D11: =VLOOKUP($A11,'RECAP DIRCOM'!$G$6:$EV$12,137,FALSE) -> -23 | E11: =VLOOKUP($A11,'RECAP DIRCOM'!$G$6:$EV$12,138,FALSE) -> 150% | F11: =VLOOKUP($A11,'RECAP DIRCOM'!$G$6:$EV$12,139,FALSE) -> 7 | G11: =VLOOKUP($A11,'RECAP DIRCOM'!$G$6:$EV$12,140,FALSE) -> 71% | H11: =VLOOKUP($A11,'RECAP DIRCOM'!$G$6:$EV$12,141,FALSE) -> 8% | I11: =VLOOKUP($A11,'RECAP DIRCOM'!$G$6:$EV$12,142,FALSE) -> 7 | J11: =VLOOKUP($A11,'RECAP DIRCOM'!$G$6:$EV$12,143,FALSE) -> 79% | K11: =VLOOKUP($A11,'RECAP DIRCOM'!$G$6:$EV$12,144,FALSE) -> 79% | L11: =VLOOKUP($A11,'RECAP DIRCOM'!$G$6:$EV$12,145,FALSE) -> 7
A12: 264 | B12: Haut-Rhin | C12: =VLOOKUP($A12,'RECAP DIRCOM'!$G$6:$EV$12,3,FALSE) -> 181 | D12: =VLOOKUP($A12,'RECAP DIRCOM'!$G$6:$EV$12,137,FALSE) -> -22 | E12: =VLOOKUP($A12,'RECAP DIRCOM'!$G$6:$EV$12,138,FALSE) -> 142% | F12: =VLOOKUP($A12,'RECAP DIRCOM'!$G$6:$EV$12,139,FALSE) -> 6 | G12: =VLOOKUP($A12,'RECAP DIRCOM'!$G$6:$EV$12,140,FALSE) -> 74% | H12: =VLOOKUP($A12,'RECAP DIRCOM'!$G$6:$EV$12,141,FALSE) -> 5% | I12: =VLOOKUP($A12,'RECAP DIRCOM'!$G$6:$EV$12,142,FALSE) -> 6 | J12: =VLOOKUP($A12,'RECAP DIRCOM'!$G$6:$EV$12,143,FALSE) -> 73% | K12: =VLOOKUP($A12,'RECAP DIRCOM'!$G$6:$EV$12,144,FALSE) -> 73% | L12: =VLOOKUP($A12,'RECAP DIRCOM'!$G$6:$EV$12,145,FALSE) -> 6
A13: 30 | B13: Marne-Ardennes | C13: =VLOOKUP($A13,'RECAP DIRCOM'!$G$6:$EV$12,3,FALSE) -> 239 | D13: =VLOOKUP($A13,'RECAP DIRCOM'!$G$6:$EV$12,137,FALSE) -> -5 | E13: =VLOOKUP($A13,'RECAP DIRCOM'!$G$6:$EV$12,138,FALSE) -> 0% | F13: =VLOOKUP($A13,'RECAP DIRCOM'!$G$6:$EV$12,139,FALSE) -> 1 | G13: =VLOOKUP($A13,'RECAP DIRCOM'!$G$6:$EV$12,140,FALSE) -> 78% | H13: =VLOOKUP($A13,'RECAP DIRCOM'!$G$6:$EV$12,141,FALSE) -> 0% | I13: =VLOOKUP($A13,'RECAP DIRCOM'!$G$6:$EV$12,142,FALSE) -> 1 | J13: =VLOOKUP($A13,'RECAP DIRCOM'!$G$6:$EV$12,143,FALSE) -> 0% | K13: =VLOOKUP($A13,'RECAP DIRCOM'!$G$6:$EV$12,144,FALSE) -> 0% | L13: =VLOOKUP($A13,'RECAP DIRCOM'!$G$6:$EV$12,145,FALSE) -> 1
A14: 110 | B14: Meurthe et Moselle Meuse | C14: =VLOOKUP($A14,'RECAP DIRCOM'!$G$6:$EV$12,3,FALSE) -> 267 | D14: =VLOOKUP($A14,'RECAP DIRCOM'!$G$6:$EV$12,137,FALSE) -> -14 | E14: =VLOOKUP($A14,'RECAP DIRCOM'!$G$6:$EV$12,138,FALSE) -> 75% | F14: =VLOOKUP($A14,'RECAP DIRCOM'!$G$6:$EV$12,139,FALSE) -> 5 | G14: =VLOOKUP($A14,'RECAP DIRCOM'!$G$6:$EV$12,140,FALSE) -> 75% | H14: =VLOOKUP($A14,'RECAP DIRCOM'!$G$6:$EV$12,141,FALSE) -> 4% | I14: =VLOOKUP($A14,'RECAP DIRCOM'!$G$6:$EV$12,142,FALSE) -> 5 | J14: =VLOOKUP($A14,'RECAP DIRCOM'!$G$6:$EV$12,143,FALSE) -> 39% | K14: =VLOOKUP($A14,'RECAP DIRCOM'!$G$6:$EV$12,144,FALSE) -> 39% | L14: =VLOOKUP($A14,'RECAP DIRCOM'!$G$6:$EV$12,145,FALSE) -> 5
A15: 160 | B15: Moselle | C15: =VLOOKUP($A15,'RECAP DIRCOM'!$G$6:$EV$12,3,FALSE) -> 310 | D15: =VLOOKUP($A15,'RECAP DIRCOM'!$G$6:$EV$12,137,FALSE) -> -13 | E15: =VLOOKUP($A15,'RECAP DIRCOM'!$G$6:$EV$12,138,FALSE) -> 67% | F15: =VLOOKUP($A15,'RECAP DIRCOM'!$G$6:$EV$12,139,FALSE) -> 3 | G15: =VLOOKUP($A15,'RECAP DIRCOM'!$G$6:$EV$12,140,FALSE) -> 76% | H15: =VLOOKUP($A15,'RECAP DIRCOM'!$G$6:$EV$12,141,FALSE) -> 2% | I15: =VLOOKUP($A15,'RECAP DIRCOM'!$G$6:$EV$12,142,FALSE) -> 3 | J15: =VLOOKUP($A15,'RECAP DIRCOM'!$G$6:$EV$12,143,FALSE) -> 34% | K15: =VLOOKUP($A15,'RECAP DIRCOM'!$G$6:$EV$12,144,FALSE) -> 34% | L15: =VLOOKUP($A15,'RECAP DIRCOM'!$G$6:$EV$12,145,FALSE) -> 4
A16: 80 | B16: Vosges | C16: =VLOOKUP($A16,'RECAP DIRCOM'!$G$6:$EV$12,3,FALSE) -> 149 | D16: =VLOOKUP($A16,'RECAP DIRCOM'!$G$6:$EV$12,137,FALSE) -> -13 | E16: =VLOOKUP($A16,'RECAP DIRCOM'!$G$6:$EV$12,138,FALSE) -> 67% | F16: =VLOOKUP($A16,'RECAP DIRCOM'!$G$6:$EV$12,139,FALSE) -> 3 | G16: =VLOOKUP($A16,'RECAP DIRCOM'!$G$6:$EV$12,140,FALSE) -> 77% | H16: =VLOOKUP($A16,'RECAP DIRCOM'!$G$6:$EV$12,141,FALSE) -> 1% | I16: =VLOOKUP($A16,'RECAP DIRCOM'!$G$6:$EV$12,142,FALSE) -> 2 | J16: =VLOOKUP($A16,'RECAP DIRCOM'!$G$6:$EV$12,143,FALSE) -> 34% | K16: =VLOOKUP($A16,'RECAP DIRCOM'!$G$6:$EV$12,144,FALSE) -> 34% | L16: =VLOOKUP($A16,'RECAP DIRCOM'!$G$6:$EV$12,145,FALSE) -> 3
A17: Total CEGEE Directions Commerciales | C17: =SUM(C10:C16) -> 1592

Sheet SE_FICHE
A1: Accueil
A2: BAROMETRE BDD
A4: UNITE: | B4: TERRITOIRE | K4: ETP perf : | L4: =VLOOKUP(A5,'RECAP SECT'!$G$6:$I$23,3,FALSE) -> 78.77
A5: =VLOOKUP(B5,LISTES!$H$6:$I$23,2,FALSE) -> 5130 | B5: COLMAR
C6: Coefficient du critére | E6: Résultats | I6: Ecart au 1ier | M6: Evolution
E7: du 1ier | G7: du secteur | I7: Du mois | K7: Au 31/12/2018
A9: RANG au CLASSEMENT GENERAL | I9: =VLOOKUP($A$5,'RECAP SECT'!$G$6:$FE$253,154,FALSE) -> 16 | Q9: =VLOOKUP($A$5,'RECAP SECT AN'!$G$6:$FE$312,154,FALSE) -> 33 | S9: =+Q9-I9 -> 17
A11: CRITERE CONQUETE | C11: 15%
B12: Evolution nette Clients Bancarisés Principaux (BP +JBP) par ETP | C12: 4% | E12: ='RECAP SECT'!K4 -> 0.5 | G12: =VLOOKUP($A$5,'RECAP SECT'!$G$6:$FE$253,5,FALSE) -> -4.7 | I12: =VLOOKUP($A$5,'RECAP SECT'!$G$6:$FE$253,6,FALSE) -> 131% | Q12: =VLOOKUP($A$5,'RECAP SECT AN'!$G$6:$FE$312,6,FALSE) -> 105% | S12: =+Q12-I12 -> -26%
B13: Evolution nette relations Premium par ETP | C13: 4% | E13: ='RECAP SECT'!N4 -> 2.1 | G13: =VLOOKUP($A$5,'RECAP SECT'!$G$6:$FE$253,8,FALSE) -> 1.5 | I13: =VLOOKUP($A$5,'RECAP SECT'!$G$6:$FE$253,9,FALSE) -> 29% | Q13: =VLOOKUP($A$5,'RECAP SECT AN'!$G$6:$FE$312,9,FALSE) -> 73% | S13: =+Q13-I13 -> 44%
B14: Evolution nette Clients Bancarisés Principaux équipés par ETP | C14: 3% | E14: ='RECAP SECT'!Q4 -> 3.4 | G14: =VLOOKUP($A$5,'RECAP SECT'!$G$6:$FE$253,11,FALSE) -> -2.4 | I14: =VLOOKUP($A$5,'RECAP SECT'!$G$6:$FE$253,12,FALSE) -> 114% | Q14: =VLOOKUP($A$5,'RECAP SECT AN'!$G$6:$FE$312,12,FALSE) -> 46% | S14: =+Q14-I14 -> -69%
B15: Evolution nette Clients Pro actif équipés par rapport à l’objectif fixé | C15: 4% | E15: ='RECAP SECT'!T4 -> 100% | G15: =VLOOKUP($A$5,'RECAP SECT'!$G$6:$FE$253,14,FALSE) -> -9% | I15: =VLOOKUP($A$5,'RECAP SECT'!$G$6:$FE$253,15,FALSE) -> 86% | Q15: =VLOOKUP($A$5,'RECAP SECT AN'!$G$6:$FE$312,15,FALSE) -> 120% | S15: =+Q15-I15 -> 34%
A17: CRITERE EQUIPEMENT BANCARISATION | C17: 15%
B18: Ventes nettes forfaits (+ 2 options) par ETP | C18: 3% | E18: ='RECAP SECT'!AF4 -> -6.3 | G18: =VLOOKUP($A$5,'RECAP SECT'!$G$6:$FE$253,26,FALSE) -> -6.3 | I18: =VLOOKUP($A$5,'RECAP SECT'!$G$6:$FE$253,27,FALSE) -> 0% | Q18: =VLOOKUP($A$5,'RECAP SECT AN'!$G$6:$FE$312,27,FALSE) -> 26% | S18: =+Q18-I18 -> 26%
B19: Ventes nettes IZICARTES par ETP | C19: 3% | E19: ='RECAP SECT'!AI4 -> 9.3 | G19: =VLOOKUP($A$5,'RECAP SECT'!$G$6:$FE$253,29,FALSE) -> 3.3 | I19: =VLOOKUP($A$5,'RECAP SECT'!$G$6:$FE$253,30,FALSE) -> 64% | Q19: =VLOOKUP($A$5,'RECAP SECT AN'!$G$6:$FE$312,30,FALSE) -> 63% | S19: =+Q19-I19 -> -1%
B20: Ventes nettes cartes HDG par ETP | C20: 3% | E20: ='RECAP SECT'!AL4 -> 11.8 | G20: =VLOOKUP($A$5,'RECAP SECT'!$G$6:$FE$253,32,FALSE) -> 5.5 | I20: =VLOOKUP($A$5,'RECAP SECT'!$G$6:$FE$253,33,FALSE) -> 53% | Q20: =VLOOKUP($A$5,'RECAP SECT AN'!$G$6:$FE$312,33,FALSE) -> 67% | S20: =+Q20-I20 -> 14%
B21: Vente nette CB débit différé par ETP | C21: 3% | E21: ='RECAP SECT'!AO4 -> 5.0 | G21: =VLOOKUP($A$5,'RECAP SECT'!$G$6:$FE$253,35,FALSE) -> 2.8 | I21: =VLOOKUP($A$5,'RECAP SECT'!$G$6:$FE$253,36,FALSE) -> 44% | Q21: =VLOOKUP($A$5,'RECAP SECT AN'!$G$6:$FE$312,36,FALSE) -> 78% | S21: =+Q21-I21 -> 34%
B22: Ventes nettes banca Pro Forfaits Pro, Carte pro par rapport à l’objectif | C22: 3% | E22: ='RECAP SECT'!AR4 -> 83% | G22: =VLOOKUP($A$5,'RECAP SECT'!$G$6:$FE$253,38,FALSE) -> 21% | I22: =VLOOKUP($A$5,'RECAP SECT'!$G$6:$FE$253,39,FALSE) -> 75% | Q22: =VLOOKUP($A$5,'RECAP SECT AN'!$G$6:$FE$312,39,FALSE) -> 75% | S22: =+Q22-I22 -> -0%
A24: CRITERE EPARGNE | C24: 15%
B25: Excédents de collecte (y.c DAV) par ETP | C25: 2% | E25: ='RECAP SECT'!BD4 -> 100.2 | G25: =VLOOKUP($A$5,'RECAP SECT'!$G$6:$FE$253,50,FALSE) -> 54.8 | I25: =VLOOKUP($A$5,'RECAP SECT'!$G$6:$FE$253,51,FALSE) -> 33% | Q25: =VLOOKUP($A$5,'RECAP SECT AN'!$G$6:$FE$312,51,FALSE) -> 70% | S25: =+Q25-I25 -> 36%
B26: CA assurance vie par ETP | C26: 2% | E26: ='RECAP SECT'!BG4 -> 425.3 | G26: =VLOOKUP($A$5,'RECAP SECT'!$G$6:$FE$253,53,FALSE) -> 261.9 | I26: =VLOOKUP($A$5,'RECAP SECT'!$G$6:$FE$253,54,FALSE) -> 38% | Q26: =VLOOKUP($A$5,'RECAP SECT AN'!$G$6:$FE$312,54,FALSE) -> 45% | S26: =+Q26-I26 -> 6%
B27: Activité UC (CA+arbitrage) par ETP | C27: 2% | E27: ='RECAP SECT'!BJ4 -> 132.7 | G27: =VLOOKUP($A$5,'RECAP SECT'!$G$6:$FE$253,56,FALSE) -> 88.1 | I27: =VLOOKUP($A$5,'RECAP SECT'!$G$6:$FE$253,57,FALSE) -> 34% | Q27: =VLOOKUP($A$5,'RECAP SECT AN'!$G$6:$FE$312,57,FALSE) -> 57% | S27: =+Q27-I27 -> 23%
B28: Excédents Assurance-vie par ETP | C28: 2% | E28: ='RECAP SECT'!BM4 -> 167.9 | G28: =VLOOKUP($A$5,'RECAP SECT'!$G$6:$FE$253,59,FALSE) -> 17.9 | I28: =VLOOKUP($A$5,'RECAP SECT'!$G$6:$FE$253,60,FALSE) -> 89% | Q28: =VLOOKUP($A$5,'RECAP SECT AN'!$G$6:$FE$312,60,FALSE) -> 78% | S28: =+Q28-I28 -> -12%
B29: Excédents Epargne Bilan (Hors Emprunts CTO) par ETP | C29: 7% | E29: ='RECAP SECT'!BP4 -> 115.5 | G29: =VLOOKUP($A$5,'RECAP SECT'!$G$6:$FE$253,62,FALSE) -> 94.0 | I29: =VLOOKUP($A$5,'RECAP SECT'!$G$6:$FE$253,63,FALSE) -> 19% | Q29: =VLOOKUP($A$5,'RECAP SECT AN'!$G$6:$FE$312,63,FALSE) -> 62% | S29: =+Q29-I29 -> 43%
A31: CRITERE CREDITS | C31: 15%
B32: Engagement Conso par ETP (hors clients 9) | C32: 3% | E32: ='RECAP SECT'!CB4 -> 253.2 | G32: =VLOOKUP($A$5,'RECAP SECT'!$G$6:$FE$253,74,FALSE) -> 151.1 | I32: =VLOOKUP($A$5,'RECAP SECT'!$G$6:$FE$253,75,FALSE) -> 40% | Q32: =VLOOKUP($A$5,'RECAP SECT AN'!$G$6:$FE$312,75,FALSE) -> 42% | S32: =+Q32-I32 -> 2%
B33: % CNP sur Conso en valeur absolue | C33: 2% | E33: ='RECAP SECT'!CE4 -> 98% | G33: =VLOOKUP($A$5,'RECAP SECT'!$G$6:$FE$253,77,FALSE) -> 87% | I33: =VLOOKUP($A$5,'RECAP SECT'!$G$6:$FE$253,78,FALSE) -> 12% | Q33: =VLOOKUP($A$5,'RECAP SECT AN'!$G$6:$FE$312,78,FALSE) -> 14% | S33: 3%
B34: Engagements Immo par rapport à l’objectif | C34: 3% | E34: ='RECAP SECT'!CH4 -> 44% | G34: =VLOOKUP($A$5,'RECAP SECT'!$G$6:$FE$253,80,FALSE) -> 35% | I34: =VLOOKUP($A$5,'RECAP SECT'!$G$6:$FE$253,81,FALSE) -> 20% | Q34: =VLOOKUP($A$5,'RECAP SECT AN'!$G$6:$FE$312,81,FALSE) -> 48% | S34: 28%
B35: % CNP sur crédits immo en valeur absolue | C35: 2% | E35: ='RECAP SECT'!CK4 -> 86% | G35: =VLOOKUP($A$5,'RECAP SECT'!$G$6:$FE$253,83,FALSE) -> 69% | I35: =VLOOKUP($A$5,'RECAP SECT'!$G$6:$FE$253,84,FALSE) -> 19% | Q35: =VLOOKUP($A$5,'RECAP SECT AN'!$G$6:$FE$312,84,FALSE) -> 28% | S35: 9%
B36: Taux de couverture SACCEF | C36: 2% | E36: ='RECAP SECT'!CN4 -> 92% | G36: =VLOOKUP($A$5,'RECAP SECT'!$G$6:$FE$253,86,FALSE) -> 79% | I36: =VLOOKUP($A$5,'RECAP SECT'!$G$6:$FE$253,87,FALSE) -> 13% | Q36: =VLOOKUP($A$5,'RECAP SECT AN'!$G$6:$FE$312,87,FALSE) -> 34% | S36: 21%
B37: Engagements CMLT + CB par rapport à l’objectif | C37: 3% | E37: ='RECAP SECT'!CQ4 -> 81% | G37: =VLOOKUP($A$5,'RECAP SECT'!$G$6:$FE$253,89,FALSE) -> 29% | I37: =VLOOKUP($A$5,'RECAP SECT'!$G$6:$FE$253,90,FALSE) -> 64% | Q37: =VLOOKUP($A$5,'RECAP SECT AN'!$G$6:$FE$312,90,FALSE) -> 61% | S37: -3%
A39: CRITERE IARD PREVOYANCE | C39: 20%
B40: Ventes nettes IARD (Auto+MRH+ Pro) par ETP | C40: 7% | E40: ='RECAP SECT'!DC4 -> 5.6 | G40: =VLOOKUP($A$5,'RECAP SECT'!$G$6:$FE$253,101,FALSE) -> 2.8 | I40: =VLOOKUP($A$5,'RECAP SECT'!$G$6:$FE$253,102,FALSE) -> 50% | Q40: =VLOOKUP($A$5,'RECAP SECT AN'!$G$6:$FE$312,102,FALSE) -> 54% | S40: =+Q40-I40 -> 4%
B41: Ventes nettes Prévoyance (GAV, secur.f,prevoy loc,santé,assist.vie, obséques, Pro) par ETP | C41: 7% | E41: ='RECAP SECT'!DF4 -> 8.9 | G41: =VLOOKUP($A$5,'RECAP SECT'!$G$6:$FE$253,104,FALSE) -> 5.4 | I41: =VLOOKUP($A$5,'RECAP SECT'!$G$6:$FE$253,105,FALSE) -> 40% | Q41: =VLOOKUP($A$5,'RECAP SECT AN'!$G$6:$FE$312,105,FALSE) -> 56% | S41: =+Q41-I41 -> 16%
B42: Chiffre d’affaires IARD (Yc Pro) par ETP | C42: 6% | E42: ='RECAP SECT'!DI4 -> 6.8 | G42: =VLOOKUP($A$5,'RECAP SECT'!$G$6:$FE$253,107,FALSE) -> 5.5 | I42: =VLOOKUP($A$5,'RECAP SECT'!$G$6:$FE$253,108,FALSE) -> 19% | Q42: =VLOOKUP($A$5,'RECAP SECT AN'!$G$6:$FE$312,108,FALSE) -> 43% | S42: =+Q42-I42 -> 24%
A44: CRITERE RISQUES | C44: 10%
B45: Complétude, conformité et fiabilisation des nouvelles EER sur flux BDD | C45: 3% | E45: ='RECAP SECT'!DU4 -> 98% | G45: =VLOOKUP($A$5,'RECAP SECT'!$G$6:$FE$253,119,FALSE) -> 97% | I45: =VLOOKUP($A$5,'RECAP SECT'!$G$6:$FE$253,120,FALSE) -> 1% | Q45: =VLOOKUP($A$5,'RECAP SECT AN'!$G$6:$FE$312,120,FALSE) -> 4% | S45: =+Q45-I45 -> 2%
B46: Complétude, conformité et fiabilisation des EER sur flux cumulé et stock | C46: 3% | E46: ='RECAP SECT'!DX4 -> 78% | G46: =VLOOKUP($A$5,'RECAP SECT'!$G$6:$FE$253,122,FALSE) -> 72% | I46: =VLOOKUP($A$5,'RECAP SECT'!$G$6:$FE$253,123,FALSE) -> 8% | Q46: =VLOOKUP($A$5,'RECAP SECT AN'!$G$6:$FE$312,123,FALSE) -> 16% | S46: =+Q46-I46 -> 9%
B47: Traitement et qualité du traitement des alertes Vigiclient | C47: 4% | E47: ='RECAP SECT'!EA4 -> 100% | G47: =VLOOKUP($A$5,'RECAP SECT'!$G$6:$FE$253,125,FALSE) -> 99% | I47: =VLOOKUP($A$5,'RECAP SECT'!$G$6:$FE$253,126,FALSE) -> 1% | Q47: =VLOOKUP($A$5,'RECAP SECT AN'!$G$6:$FE$312,126,FALSE) -> 0% | S47: =+Q47-I47 -> -1%
A49: CRITERE Satisfaction Clients | C49: 10%
B50: Objectifs NPS* | C50: 5% | E50: ='RECAP SECT'!EM4 -> -1 | G50: =VLOOKUP($A$5,'RECAP SECT'!$G$6:$FE$253,137,FALSE) -> -21 | I50: =VLOOKUP($A$5,'RECAP SECT'!$G$6:$FE$253,138,FALSE) -> 111% | Q50: =VLOOKUP($A$5,'RECAP SECT AN'!$G$6:$FE$312,138,FALSE) -> 117% | S50: =+Q50-I50 -> 5%
B51: Enquête Qualité Haute Définition | C51: 5% | E51: ='RECAP SECT'!EP4 -> 79% | G51: =VLOOKUP($A$5,'RECAP SECT'!$G$6:$FE$253,140,FALSE) -> 74% | I51: =VLOOKUP($A$5,'RECAP SECT'!$G$6:$FE$253,141,FALSE) -> 7% | Q51: =VLOOKUP($A$5,'RECAP SECT AN'!$G$6:$FE$312,141,FALSE) -> 12% | S51: =+Q51-I51 -> 5%

Sheet SE_OBJECTIF
A1: Accueil | F1: BAROMETRE BDD - DIRECTIONS COMMERCIALES
F2: PV PART SUR OBJECTIFS
F3: =ACCUEIL!H7 -> 2019-05-31
F7: Excédent de collecte par ETP yc DAV | I7: Engagements crédit conso par ETP (hors clients note octroi à 9 et DRC complet) | L7: Ventes brutes IARD prevoyance Part et Pro (si DRC complet) par ETP | O7: Evolution des Bpe+JBPe par ETP | R7: PNB sur activité nouvelle (yc bonus digital) par ETP
G8: Taux d'atteinte saisonalisé | H8: =VLOOKUP(ACCUEIL!$H$7,Tableau1[],2,FALSE) -> 42% | J8: Taux d'atteinte saisonalisé | K8: =VLOOKUP(ACCUEIL!$H$7,Tableau1[],3,FALSE) -> 42% | M8: Taux d'atteinte saisonalisé | N8: =VLOOKUP(ACCUEIL!$H$7,Tableau1[],4,FALSE) -> 42% | P8: Taux d'atteinte saisonalisé | Q8: =VLOOKUP(ACCUEIL!$H$7,Tableau1[],5,FALSE) -> 42% | S8: Taux d'atteinte saisonalisé | T8: =VLOOKUP(ACCUEIL!$H$7,Tableau1[],6,FALSE) -> 42%
A9: eds | B9: Direction | C9: eds | D9: Territoire | E9: ETP perf | F9: Réal | G9: Obj | H9: % | I9: Réal | J9: Obj | K9: % | L9: Réal | M9: Obj | N9: % | O9: Réal | P9: Obj | Q9: % | R9: Réal | S9: Obj | T9: % | V9: <80% | W9: 100% | X9: 110% | Y9: 120%
A10: 50 | B10: AUBE HAUTE MARNE | C10: 21 | D10: CHAUMONT | E10: =VLOOKUP($C10,'RECAP SECT'!$G$6:$EV$253,3,FALSE) -> 47.4 | F10: =VLOOKUP($C10,'RECAP SECT'!$G$6:$FZ$26,158,FALSE) -> 1 | G10: =VLOOKUP($C10,'RECAP SECT'!$G$6:$FZ$26,159,FALSE) -> 107 | H10: =VLOOKUP($C10,'RECAP SECT'!$G$6:$FZ$26,160,FALSE) -> 1% | I10: =VLOOKUP($C10,'RECAP SECT'!$G$6:$FZ$26,161,FALSE) -> 253 | J10: =VLOOKUP($C10,'RECAP SECT'!$G$6:$FZ$26,162,FALSE) -> 467 | K10: =VLOOKUP($C10,'RECAP SECT'!$G$6:$FZ$26,163,FALSE) -> 54% | L10: =VLOOKUP($C10,'RECAP SECT'!$G$6:$FZ$26,164,FALSE) -> 24 | M10: =VLOOKUP($C10,'RECAP SECT'!$G$6:$FZ$26,165,FALSE) -> 59 | N10: =VLOOKUP($C10,'RECAP SECT'!$G$6:$FZ$26,166,FALSE) -> 42% | O10: =VLOOKUP($C10,'RECAP SECT'!$G$6:$FZ$26,167,FALSE) -> 2 | P10: =VLOOKUP($C10,'RECAP SECT'!$G$6:$FZ$26,168,FALSE) -> 4 | Q10: =VLOOKUP($C10,'RECAP SECT'!$G$6:$FZ$26,169,FALSE) -> 62% | R10: =VLOOKUP($C10,'RECAP SECT'!$G$6:$FZ$26,170,FALSE) -> 55 | S10: =VLOOKUP($C10,'RECAP SECT'!$G$6:$FZ$26,171,FALSE) -> 126 | T10: =VLOOKUP($C10,'RECAP SECT'!$G$6:$FZ$26,172,FALSE) -> 44% | V10: =$H$8*0.8 -> 33% | W10: =$H$8 -> 42% | X10: =$H$8*1.1 -> 46% | Y10: =$H$8*1.2 -> 50%
A11: 50 | B11: AUBE HAUTE MARNE | C11: 14 | D11: TROYES | E11: =VLOOKUP($C11,'RECAP SECT'!$G$6:$EV$253,3,FALSE) -> 80.5 | F11: =VLOOKUP($C11,'RECAP SECT'!$G$6:$FZ$26,158,FALSE) -> 8 | G11: =VLOOKUP($C11,'RECAP SECT'!$G$6:$FZ$26,159,FALSE) -> 122 | H11: =VLOOKUP($C11,'RECAP SECT'!$G$6:$FZ$26,160,FALSE) -> 6% | I11: =VLOOKUP($C11,'RECAP SECT'!$G$6:$FZ$26,161,FALSE) -> 205 | J11: =VLOOKUP($C11,'RECAP SECT'!$G$6:$FZ$26,162,FALSE) -> 467 | K11: =VLOOKUP($C11,'RECAP SECT'!$G$6:$FZ$26,163,FALSE) -> 44% | L11: =VLOOKUP($C11,'RECAP SECT'!$G$6:$FZ$26,164,FALSE) -> 19 | M11: =VLOOKUP($C11,'RECAP SECT'!$G$6:$FZ$26,165,FALSE) -> 59 | N11: =VLOOKUP($C11,'RECAP SECT'!$G$6:$FZ$26,166,FALSE) -> 32% | O11: =VLOOKUP($C11,'RECAP SECT'!$G$6:$FZ$26,167,FALSE) -> 1 | P11: =VLOOKUP($C11,'RECAP SECT'!$G$6:$FZ$26,168,FALSE) -> 4 | Q11: =VLOOKUP($C11,'RECAP SECT'!$G$6:$FZ$26,169,FALSE) -> 33% | R11: =VLOOKUP($C11,'RECAP SECT'!$G$6:$FZ$26,170,FALSE) -> 56 | S11: =VLOOKUP($C11,'RECAP SECT'!$G$6:$FZ$26,171,FALSE) -> 136 | T11: =VLOOKUP($C11,'RECAP SECT'!$G$6:$FZ$26,172,FALSE) -> 41% | V11: =$H$8*0.8 -> 33% | W11: =$H$8 -> 42% | X11: =$H$8*1.1 -> 46% | Y11: =$H$8*1.2 -> 50%
A12: 262 | B12: BAS-RHIN | C12: 5060 | D12: HAGUENAU | E12: =VLOOKUP($C12,'RECAP SECT'!$G$6:$EV$253,3,FALSE) -> 89.8 | F12: =VLOOKUP($C12,'RECAP SECT'!$G$6:$FZ$26,158,FALSE) -> 17 | G12: =VLOOKUP($C12,'RECAP SECT'!$G$6:$FZ$26,159,FALSE) -> 122 | H12: =VLOOKUP($C12,'RECAP SECT'!$G$6:$FZ$26,160,FALSE) -> 14% | I12: =VLOOKUP($C12,'RECAP SECT'!$G$6:$FZ$26,161,FALSE) -> 168 | J12: =VLOOKUP($C12,'RECAP SECT'!$G$6:$FZ$26,162,FALSE) -> 467 | K12: =VLOOKUP($C12,'RECAP SECT'!$G$6:$FZ$26,163,FALSE) -> 36% | L12: =VLOOKUP($C12,'RECAP SECT'!$G$6:$FZ$26,164,FALSE) -> 22 | M12: =VLOOKUP($C12,'RECAP SECT'!$G$6:$FZ$26,165,FALSE) -> 59 | N12: =VLOOKUP($C12,'RECAP SECT'!$G$6:$FZ$26,166,FALSE) -> 38% | O12: =VLOOKUP($C12,'RECAP SECT'!$G$6:$FZ$26,167,FALSE) -> -3 | P12: =VLOOKUP($C12,'RECAP SECT'!$G$6:$FZ$26,168,FALSE) -> 4 | Q12: =VLOOKUP($C12,'RECAP SECT'!$G$6:$FZ$26,169,FALSE) -> -79% | R12: =VLOOKUP($C12,'RECAP SECT'!$G$6:$FZ$26,170,FALSE) -> 47 | S12: =VLOOKUP($C12,'RECAP SECT'!$G$6:$FZ$26,171,FALSE) -> 133 | T12: =VLOOKUP($C12,'RECAP SECT'!$G$6:$FZ$26,172,FALSE) -> 35% | V12: 33% | W12: 42% | X12: 46% | Y12: 50%
A13: 262 | B13: BAS-RHIN | C13: 5101 | D13: SELESTAT | E13: =VLOOKUP($C13,'RECAP SECT'!$G$6:$EV$253,3,FALSE) -> 76.3 | F13: =VLOOKUP($C13,'RECAP SECT'!$G$6:$FZ$26,158,FALSE) -> 30 | G13: =VLOOKUP($C13,'RECAP SECT'!$G$6:$FZ$26,159,FALSE) -> 136 | H13: =VLOOKUP($C13,'RECAP SECT'!$G$6:$FZ$26,160,FALSE) -> 22% | I13: =VLOOKUP($C13,'RECAP SECT'!$G$6:$FZ$26,161,FALSE) -> 182 | J13: =VLOOKUP($C13,'RECAP SECT'!$G$6:$FZ$26,162,FALSE) -> 467 | K13: =VLOOKUP($C13,'RECAP SECT'!$G$6:$FZ$26,163,FALSE) -> 39% | L13: =VLOOKUP($C13,'RECAP SECT'!$G$6:$FZ$26,164,FALSE) -> 23 | M13: =VLOOKUP($C13,'RECAP SECT'!$G$6:$FZ$26,165,FALSE) -> 59 | N13: =VLOOKUP($C13,'RECAP SECT'!$G$6:$FZ$26,166,FALSE) -> 40% | O13: =VLOOKUP($C13,'RECAP SECT'!$G$6:$FZ$26,167,FALSE) -> -3 | P13: =VLOOKUP($C13,'RECAP SECT'!$G$6:$FZ$26,168,FALSE) -> 4 | Q13: =VLOOKUP($C13,'RECAP SECT'!$G$6:$FZ$26,169,FALSE) -> -84% | R13: =VLOOKUP($C13,'RECAP SECT'!$G$6:$FZ$26,170,FALSE) -> 47 | S13: =VLOOKUP($C13,'RECAP SECT'!$G$6:$FZ$26,171,FALSE) -> 139 | T13: =VLOOKUP($C13,'RECAP SECT'!$G$6:$FZ$26,172,FALSE) -> 34% | V13: 33% | W13: 42% | X13: 46% | Y13: 50%
A14: 262 | B14: BAS-RHIN | C14: 5006 | D14: STRASBOURG | E14: =VLOOKUP($C14,'RECAP SECT'!$G$6:$EV$253,3,FALSE) -> 92.7 | F14: =VLOOKUP($C14,'RECAP SECT'!$G$6:$FZ$26,158,FALSE) -> -34 | G14: =VLOOKUP($C14,'RECAP SECT'!$G$6:$FZ$26,159,FALSE) -> 127 | H14: =VLOOKUP($C14,'RECAP SECT'!$G$6:$FZ$26,160,FALSE) -> -27% | I14: =VLOOKUP($C14,'RECAP SECT'!$G$6:$FZ$26,161,FALSE) -> 157 | J14: =VLOOKUP($C14,'RECAP SECT'!$G$6:$FZ$26,162,FALSE) -> 467 | K14: =VLOOKUP($C14,'RECAP SECT'!$G$6:$FZ$26,163,FALSE) -> 34% | L14: =VLOOKUP($C14,'RECAP SECT'!$G$6:$FZ$26,164,FALSE) -> 20 | M14: =VLOOKUP($C14,'RECAP SECT'!$G$6:$FZ$26,165,FALSE) -> 59 | N14: =VLOOKUP($C14,'RECAP SECT'!$G$6:$FZ$26,166,FALSE) -> 33% | O14: =VLOOKUP($C14,'RECAP SECT'!$G$6:$FZ$26,167,FALSE) -> -4 | P14: =VLOOKUP($C14,'RECAP SECT'!$G$6:$FZ$26,168,FALSE) -> 4 | Q14: =VLOOKUP($C14,'RECAP SECT'!$G$6:$FZ$26,169,FALSE) -> -94% | R14: =VLOOKUP($C14,'RECAP SECT'!$G$6:$FZ$26,170,FALSE) -> 44 | S14: =VLOOKUP($C14,'RECAP SECT'!$G$6:$FZ$26,171,FALSE) -> 136 | T14: =VLOOKUP($C14,'RECAP SECT'!$G$6:$FZ$26,172,FALSE) -> 32% | V14: 33% | W14: 42% | X14: 46% | Y14: 50%
A15: 264 | B15: HAUT-RHIN | C15: 5130 | D15: COLMAR | E15: =VLOOKUP($C15,'RECAP SECT'!$G$6:$EV$253,3,FALSE) -> 78.8 | F15: =VLOOKUP($C15,'RECAP SECT'!$G$6:$FZ$26,158,FALSE) -> 55 | G15: =VLOOKUP($C15,'RECAP SECT'!$G$6:$FZ$26,159,FALSE) -> 135 | H15: =VLOOKUP($C15,'RECAP SECT'!$G$6:$FZ$26,160,FALSE) -> 41% | I15: =VLOOKUP($C15,'RECAP SECT'!$G$6:$FZ$26,161,FALSE) -> 151 | J15: =VLOOKUP($C15,'RECAP SECT'!$G$6:$FZ$26,162,FALSE) -> 467 | K15: =VLOOKUP($C15,'RECAP SECT'!$G$6:$FZ$26,163,FALSE) -> 32% | L15: =VLOOKUP($C15,'RECAP SECT'!$G$6:$FZ$26,164,FALSE) -> 20 | M15: =VLOOKUP($C15,'RECAP SECT'!$G$6:$FZ$26,165,FALSE) -> 59 | N15: =VLOOKUP($C15,'RECAP SECT'!$G$6:$FZ$26,166,FALSE) -> 34% | O15: =VLOOKUP($C15,'RECAP SECT'!$G$6:$FZ$26,167,FALSE) -> -2 | P15: =VLOOKUP($C15,'RECAP SECT'!$G$6:$FZ$26,168,FALSE) -> 4 | Q15: =VLOOKUP($C15,'RECAP SECT'!$G$6:$FZ$26,169,FALSE) -> -59% | R15: =VLOOKUP($C15,'RECAP SECT'!$G$6:$FZ$26,170,FALSE) -> 46 | S15: =VLOOKUP($C15,'RECAP SECT'!$G$6:$FZ$26,171,FALSE) -> 140 | T15: =VLOOKUP($C15,'RECAP SECT'!$G$6:$FZ$26,172,FALSE) -> 33% | V15: 33% | W15: 42% | X15: 46% | Y15: 50%
A16: 264 | B16: HAUT-RHIN | C16: 5169 | D16: MULHOUSE | E16: =VLOOKUP($C16,'RECAP SECT'!$G$6:$EV$253,3,FALSE) -> 78.2 | F16: =VLOOKUP($C16,'RECAP SECT'!$G$6:$FZ$26,158,FALSE) -> 47 | G16: =VLOOKUP($C16,'RECAP SECT'!$G$6:$FZ$26,159,FALSE) -> 129 | H16: =VLOOKUP($C16,'RECAP SECT'!$G$6:$FZ$26,160,FALSE) -> 37% | I16: =VLOOKUP($C16,'RECAP SECT'!$G$6:$FZ$26,161,FALSE) -> 164 | J16: =VLOOKUP($C16,'RECAP SECT'!$G$6:$FZ$26,162,FALSE) -> 467 | K16: =VLOOKUP($C16,'RECAP SECT'!$G$6:$FZ$26,163,FALSE) -> 35% | L16: =VLOOKUP($C16,'RECAP SECT'!$G$6:$FZ$26,164,FALSE) -> 20 | M16: =VLOOKUP($C16,'RECAP SECT'!$G$6:$FZ$26,165,FALSE) -> 59 | N16: =VLOOKUP($C16,'RECAP SECT'!$G$6:$FZ$26,166,FALSE) -> 33% | O16: =VLOOKUP($C16,'RECAP SECT'!$G$6:$FZ$26,167,FALSE) -> -4 | P16: =VLOOKUP($C16,'RECAP SECT'!$G$6:$FZ$26,168,FALSE) -> 4 | Q16: =VLOOKUP($C16,'RECAP SECT'!$G$6:$FZ$26,169,FALSE) -> -98% | R16: =VLOOKUP($C16,'RECAP SECT'!$G$6:$FZ$26,170,FALSE) -> 52 | S16: =VLOOKUP($C16,'RECAP SECT'!$G$6:$FZ$26,171,FALSE) -> 140 | T16: =VLOOKUP($C16,'RECAP SECT'!$G$6:$FZ$26,172,FALSE) -> 37% | V16: 33% | W16: 42% | X16: 46% | Y16: 50%
A17: 30 | B17: MARNE-ARDENNES | C17: 6 | D17: CHALONS EN CHAMPAGNE | E17: =VLOOKUP($C17,'RECAP SECT'!$G$6:$EV$253,3,FALSE) -> 49.1 | F17: =VLOOKUP($C17,'RECAP SECT'!$G$6:$FZ$26,158,FALSE) -> -104 | G17: =VLOOKUP($C17,'RECAP SECT'!$G$6:$FZ$26,159,FALSE) -> 130 | H17: =VLOOKUP($C17,'RECAP SECT'!$G$6:$FZ$26,160,FALSE) -> -80% | I17: =VLOOKUP($C17,'RECAP SECT'!$G$6:$FZ$26,161,FALSE) -> 187 | J17: =VLOOKUP($C17,'RECAP SECT'!$G$6:$FZ$26,162,FALSE) -> 467 | K17: =VLOOKUP($C17,'RECAP SECT'!$G$6:$FZ$26,163,FALSE) -> 40% | L17: =VLOOKUP($C17,'RECAP SECT'!$G$6:$FZ$26,164,FALSE) -> 23 | M17: =VLOOKUP($C17,'RECAP SECT'!$G$6:$FZ$26,165,FALSE) -> 59 | N17: =VLOOKUP($C17,'RECAP SECT'!$G$6:$FZ$26,166,FALSE) -> 40% | O17: =VLOOKUP($C17,'RECAP SECT'!$G$6:$FZ$26,167,FALSE) -> -1 | P17: =VLOOKUP($C17,'RECAP SECT'!$G$6:$FZ$26,168,FALSE) -> 4 | Q17: =VLOOKUP($C17,'RECAP SECT'!$G$6:$FZ$26,169,FALSE) -> -26% | R17: =VLOOKUP($C17,'RECAP SECT'!$G$6:$FZ$26,170,FALSE) -> 50 | S17: =VLOOKUP($C17,'RECAP SECT'!$G$6:$FZ$26,171,FALSE) -> 137 | T17: =VLOOKUP($C17,'RECAP SECT'!$G$6:$FZ$26,172,FALSE) -> 36% | V17: 33% | W17: 42% | X17: 46% | Y17: 50%
A18: 30 | B18: MARNE-ARDENNES | C18: 2 | D18: CHARLEVILLE MEZIERES | E18: =VLOOKUP($C18,'RECAP SECT'!$G$6:$EV$253,3,FALSE) -> 64.0 | F18: =VLOOKUP($C18,'RECAP SECT'!$G$6:$FZ$26,158,FALSE) -> -77 | G18: =VLOOKUP($C18,'RECAP SECT'!$G$6:$FZ$26,159,FALSE) -> 122 | H18: =VLOOKUP($C18,'RECAP SECT'!$G$6:$FZ$26,160,FALSE) -> -63% | I18: =VLOOKUP($C18,'RECAP SECT'!$G$6:$FZ$26,161,FALSE) -> 195 | J18: =VLOOKUP($C18,'RECAP SECT'!$G$6:$FZ$26,162,FALSE) -> 467 | K18: =VLOOKUP($C18,'RECAP SECT'!$G$6:$FZ$26,163,FALSE) -> 42% | L18: =VLOOKUP($C18,'RECAP SECT'!$G$6:$FZ$26,164,FALSE) -> 27 | M18: =VLOOKUP($C18,'RECAP SECT'!$G$6:$FZ$26,165,FALSE) -> 59 | N18: =VLOOKUP($C18,'RECAP SECT'!$G$6:$FZ$26,166,FALSE) -> 46% | O18: =VLOOKUP($C18,'RECAP SECT'!$G$6:$FZ$26,167,FALSE) -> 3 | P18: =VLOOKUP($C18,'RECAP SECT'!$G$6:$FZ$26,168,FALSE) -> 4 | Q18: =VLOOKUP($C18,'RECAP SECT'!$G$6:$FZ$26,169,FALSE) -> 85% | R18: =VLOOKUP($C18,'RECAP SECT'!$G$6:$FZ$26,170,FALSE) -> 57 | S18: =VLOOKUP($C18,'RECAP SECT'!$G$6:$FZ$26,171,FALSE) -> 132 | T18: =VLOOKUP($C18,'RECAP SECT'!$G$6:$FZ$26,172,FALSE) -> 44% | V18: 33% | W18: 42% | X18: 46% | Y18: 50%
A19: 30 | B19: MARNE-ARDENNES | C19: 11 | D19: REIMS | E19: =VLOOKUP($C19,'RECAP SECT'!$G$6:$EV$253,3,FALSE) -> 91.1 | F19: =VLOOKUP($C19,'RECAP SECT'!$G$6:$FZ$26,158,FALSE) -> 100 | G19: =VLOOKUP($C19,'RECAP SECT'!$G$6:$FZ$26,159,FALSE) -> 143 | H19: =VLOOKUP($C19,'RECAP SECT'!$G$6:$FZ$26,160,FALSE) -> 70% | I19: =VLOOKUP($C19,'RECAP SECT'!$G$6:$FZ$26,161,FALSE) -> 221 | J19: =VLOOKUP($C19,'RECAP SECT'!$G$6:$FZ$26,162,FALSE) -> 467 | K19: =VLOOKUP($C19,'RECAP SECT'!$G$6:$FZ$26,163,FALSE) -> 47% | L19: =VLOOKUP($C19,'RECAP SECT'!$G$6:$FZ$26,164,FALSE) -> 24 | M19: =VLOOKUP($C19,'RECAP SECT'!$G$6:$FZ$26,165,FALSE) -> 59 | N19: =VLOOKUP($C19,'RECAP SECT'!$G$6:$FZ$26,166,FALSE) -> 42% | O19: =VLOOKUP($C19,'RECAP SECT'!$G$6:$FZ$26,167,FALSE) -> 1 | P19: =VLOOKUP($C19,'RECAP SECT'!$G$6:$FZ$26,168,FALSE) -> 4 | Q19: =VLOOKUP($C19,'RECAP SECT'!$G$6:$FZ$26,169,FALSE) -> 23% | R19: =VLOOKUP($C19,'RECAP SECT'!$G$6:$FZ$26,170,FALSE) -> 60 | S19: =VLOOKUP($C19,'RECAP SECT'!$G$6:$FZ$26,171,FALSE) -> 148 | T19: =VLOOKUP($C19,'RECAP SECT'!$G$6:$FZ$26,172,FALSE) -> 40% | V19: 33% | W19: 42% | X19: 46% | Y19: 50%
A20: 110 | B20: MEURTHE ET MOSELLE MEUSE | C20: 26 | D20: NANCY | E20: =VLOOKUP($C20,'RECAP SECT'!$G$6:$EV$253,3,FALSE) -> 80.2 | F20: =VLOOKUP($C20,'RECAP SECT'!$G$6:$FZ$26,158,FALSE) -> 21 | G20: =VLOOKUP($C20,'RECAP SECT'!$G$6:$FZ$26,159,FALSE) -> 118 | H20: =VLOOKUP($C20,'RECAP SECT'!$G$6:$FZ$26,160,FALSE) -> 18% | I20: =VLOOKUP($C20,'RECAP SECT'!$G$6:$FZ$26,161,FALSE) -> 195 | J20: =VLOOKUP($C20,'RECAP SECT'!$G$6:$FZ$26,162,FALSE) -> 467 | K20: =VLOOKUP($C20,'RECAP SECT'!$G$6:$FZ$26,163,FALSE) -> 42% | L20: =VLOOKUP($C20,'RECAP SECT'!$G$6:$FZ$26,164,FALSE) -> 22 | M20: =VLOOKUP($C20,'RECAP SECT'!$G$6:$FZ$26,165,FALSE) -> 59 | N20: =VLOOKUP($C20,'RECAP SECT'!$G$6:$FZ$26,166,FALSE) -> 37% | O20: =VLOOKUP($C20,'RECAP SECT'!$G$6:$FZ$26,167,FALSE) -> -1 | P20: =VLOOKUP($C20,'RECAP SECT'!$G$6:$FZ$26,168,FALSE) -> 4 | Q20: =VLOOKUP($C20,'RECAP SECT'!$G$6:$FZ$26,169,FALSE) -> -22% | R20: =VLOOKUP($C20,'RECAP SECT'!$G$6:$FZ$26,170,FALSE) -> 47 | S20: =VLOOKUP($C20,'RECAP SECT'!$G$6:$FZ$26,171,FALSE) -> 131 | T20: =VLOOKUP($C20,'RECAP SECT'!$G$6:$FZ$26,172,FALSE) -> 36% | V20: 33% | W20: 42% | X20: 46% | Y20: 50%
A21: 110 | B21: MEURTHE ET MOSELLE MEUSE | C21: 27 | D21: PONT A MOUSSON | E21: =VLOOKUP($C21,'RECAP SECT'!$G$6:$EV$253,3,FALSE) -> 89.4 | F21: =VLOOKUP($C21,'RECAP SECT'!$G$6:$FZ$26,158,FALSE) -> 27 | G21: =VLOOKUP($C21,'RECAP SECT'!$G$6:$FZ$26,159,FALSE) -> 118 | H21: =VLOOKUP($C21,'RECAP SECT'!$G$6:$FZ$26,160,FALSE) -> 23% | I21: =VLOOKUP($C21,'RECAP SECT'!$G$6:$FZ$26,161,FALSE) -> 193 | J21: =VLOOKUP($C21,'RECAP SECT'!$G$6:$FZ$26,162,FALSE) -> 467 | K21: =VLOOKUP($C21,'RECAP SECT'!$G$6:$FZ$26,163,FALSE) -> 41% | L21: =VLOOKUP($C21,'RECAP SECT'!$G$6:$FZ$26,164,FALSE) -> 21 | M21: =VLOOKUP($C21,'RECAP SECT'!$G$6:$FZ$26,165,FALSE) -> 59 | N21: =VLOOKUP($C21,'RECAP SECT'!$G$6:$FZ$26,166,FALSE) -> 36% | O21: =VLOOKUP($C21,'RECAP SECT'!$G$6:$FZ$26,167,FALSE) -> 1 | P21: =VLOOKUP($C21,'RECAP SECT'!$G$6:$FZ$26,168,FALSE) -> 4 | Q21: =VLOOKUP($C21,'RECAP SECT'!$G$6:$FZ$26,169,FALSE) -> 16% | R21: =VLOOKUP($C21,'RECAP SECT'!$G$6:$FZ$26,170,FALSE) -> 53 | S21: =VLOOKUP($C21,'RECAP SECT'!$G$6:$FZ$26,171,FALSE) -> 132 | T21: =VLOOKUP($C21,'RECAP SECT'!$G$6:$FZ$26,172,FALSE) -> 40% | V21: 33% | W21: 42% | X21: 46% | Y21: 50%
A22: 110 | B22: MEURTHE ET MOSELLE MEUSE | C22: 31 | D22: VERDUN | E22: =VLOOKUP($C22,'RECAP SECT'!$G$6:$EV$253,3,FALSE) -> 66.1 | F22: =VLOOKUP($C22,'RECAP SECT'!$G$6:$FZ$26,158,FALSE) -> -9 | G22: =VLOOKUP($C22,'RECAP SECT'!$G$6:$FZ$26,159,FALSE) -> 116 | H22: =VLOOKUP($C22,'RECAP SECT'!$G$6:$FZ$26,160,FALSE) -> -8% | I22: =VLOOKUP($C22,'RECAP SECT'!$G$6:$FZ$26,161,FALSE) -> 211 | J22: =VLOOKUP($C22,'RECAP SECT'!$G$6:$FZ$26,162,FALSE) -> 467 | K22: =VLOOKUP($C22,'RECAP SECT'!$G$6:$FZ$26,163,FALSE) -> 45% | L22: =VLOOKUP($C22,'RECAP SECT'!$G$6:$FZ$26,164,FALSE) -> 19 | M22: =VLOOKUP($C22,'RECAP SECT'!$G$6:$FZ$26,165,FALSE) -> 59 | N22: =VLOOKUP($C22,'RECAP SECT'!$G$6:$FZ$26,166,FALSE) -> 32% | O22: =VLOOKUP($C22,'RECAP SECT'!$G$6:$FZ$26,167,FALSE) -> -2 | P22: =VLOOKUP($C22,'RECAP SECT'!$G$6:$FZ$26,168,FALSE) -> 4 | Q22: =VLOOKUP($C22,'RECAP SECT'!$G$6:$FZ$26,169,FALSE) -> -55% | R22: =VLOOKUP($C22,'RECAP SECT'!$G$6:$FZ$26,170,FALSE) -> 52 | S22: =VLOOKUP($C22,'RECAP SECT'!$G$6:$FZ$26,171,FALSE) -> 130 | T22: =VLOOKUP($C22,'RECAP SECT'!$G$6:$FZ$26,172,FALSE) -> 40% | V22: 33% | W22: 42% | X22: 46% | Y22: 50%
A23: 160 | B23: MOSELLE | C23: 45 | D23: METZ | E23: =VLOOKUP($C23,'RECAP SECT'!$G$6:$EV$253,3,FALSE) -> 105.9 | F23: =VLOOKUP($C23,'RECAP SECT'!$G$6:$FZ$26,158,FALSE) -> 97 | G23: =VLOOKUP($C23,'RECAP SECT'!$G$6:$FZ$26,159,FALSE) -> 125 | H23: =VLOOKUP($C23,'RECAP SECT'!$G$6:$FZ$26,160,FALSE) -> 78% | I23: =VLOOKUP($C23,'RECAP SECT'!$G$6:$FZ$26,161,FALSE) -> 195 | J23: =VLOOKUP($C23,'RECAP SECT'!$G$6:$FZ$26,162,FALSE) -> 467 | K23: =VLOOKUP($C23,'RECAP SECT'!$G$6:$FZ$26,163,FALSE) -> 42% | L23: =VLOOKUP($C23,'RECAP SECT'!$G$6:$FZ$26,164,FALSE) -> 22 | M23: =VLOOKUP($C23,'RECAP SECT'!$G$6:$FZ$26,165,FALSE) -> 59 | N23: =VLOOKUP($C23,'RECAP SECT'!$G$6:$FZ$26,166,FALSE) -> 38% | O23: =VLOOKUP($C23,'RECAP SECT'!$G$6:$FZ$26,167,FALSE) -> 1 | P23: =VLOOKUP($C23,'RECAP SECT'!$G$6:$FZ$26,168,FALSE) -> 4 | Q23: =VLOOKUP($C23,'RECAP SECT'!$G$6:$FZ$26,169,FALSE) -> 34% | R23: =VLOOKUP($C23,'RECAP SECT'!$G$6:$FZ$26,170,FALSE) -> 51 | S23: =VLOOKUP($C23,'RECAP SECT'!$G$6:$FZ$26,171,FALSE) -> 136 | T23: =VLOOKUP($C23,'RECAP SECT'!$G$6:$FZ$26,172,FALSE) -> 38% | V23: 33% | W23: 42% | X23: 46% | Y23: 50%
A24: 160 | B24: MOSELLE | C24: 42 | D24: MOSELLE EST | E24: =VLOOKUP($C24,'RECAP SECT'!$G$6:$EV$253,3,FALSE) -> 87.4 | F24: =VLOOKUP($C24,'RECAP SECT'!$G$6:$FZ$26,158,FALSE) -> 37 | G24: =VLOOKUP($C24,'RECAP SECT'!$G$6:$FZ$26,159,FALSE) -> 106 | H24: =VLOOKUP($C24,'RECAP SECT'!$G$6:$FZ$26,160,FALSE) -> 35% | I24: =VLOOKUP($C24,'RECAP SECT'!$G$6:$FZ$26,161,FALSE) -> 182 | J24: =VLOOKUP($C24,'RECAP SECT'!$G$6:$FZ$26,162,FALSE) -> 467 | K24: =VLOOKUP($C24,'RECAP SECT'!$G$6:$FZ$26,163,FALSE) -> 39% | L24: =VLOOKUP($C24,'RECAP SECT'!$G$6:$FZ$26,164,FALSE) -> 23 | M24: =VLOOKUP($C24,'RECAP SECT'!$G$6:$FZ$26,165,FALSE) -> 58 | N24: =VLOOKUP($C24,'RECAP SECT'!$G$6:$FZ$26,166,FALSE) -> 39% | O24: =VLOOKUP($C24,'RECAP SECT'!$G$6:$FZ$26,167,FALSE) -> -0 | P24: =VLOOKUP($C24,'RECAP SECT'!$G$6:$FZ$26,168,FALSE) -> 4 | Q24: =VLOOKUP($C24,'RECAP SECT'!$G$6:$FZ$26,169,FALSE) -> -2% | R24: =VLOOKUP($C24,'RECAP SECT'!$G$6:$FZ$26,170,FALSE) -> 55 | S24: =VLOOKUP($C24,'RECAP SECT'!$G$6:$FZ$26,171,FALSE) -> 131 | T24: =VLOOKUP($C24,'RECAP SECT'!$G$6:$FZ$26,172,FALSE) -> 42% | V24: 33% | W24: 42% | X24: 46% | Y24: 50%
A25: 160 | B25: MOSELLE | C25: 44 | D25: MOSELLE NORD | E25: =VLOOKUP($C25,'RECAP SECT'!$G$6:$EV$253,3,FALSE) -> 81.6 | F25: =VLOOKUP($C25,'RECAP SECT'!$G$6:$FZ$26,158,FALSE) -> 28 | G25: =VLOOKUP($C25,'RECAP SECT'!$G$6:$FZ$26,159,FALSE) -> 119 | H25: =VLOOKUP($C25,'RECAP SECT'!$G$6:$FZ$26,160,FALSE) -> 24% | I25: =VLOOKUP($C25,'RECAP SECT'!$G$6:$FZ$26,161,FALSE) -> 208 | J25: =VLOOKUP($C25,'RECAP SECT'!$G$6:$FZ$26,162,FALSE) -> 467 | K25: =VLOOKUP($C25,'RECAP SECT'!$G$6:$FZ$26,163,FALSE) -> 45% | L25: =VLOOKUP($C25,'RECAP SECT'!$G$6:$FZ$26,164,FALSE) -> 23 | M25: =VLOOKUP($C25,'RECAP SECT'!$G$6:$FZ$26,165,FALSE) -> 59 | N25: =VLOOKUP($C25,'RECAP SECT'!$G$6:$FZ$26,166,FALSE) -> 40% | O25: =VLOOKUP($C25,'RECAP SECT'!$G$6:$FZ$26,167,FALSE) -> -1 | P25: =VLOOKUP($C25,'RECAP SECT'!$G$6:$FZ$26,168,FALSE) -> 4 | Q25: =VLOOKUP($C25,'RECAP SECT'!$G$6:$FZ$26,169,FALSE) -> -19% | R25: =VLOOKUP($C25,'RECAP SECT'!$G$6:$FZ$26,170,FALSE) -> 54 | S25: =VLOOKUP($C25,'RECAP SECT'!$G$6:$FZ$26,171,FALSE) -> 134 | T25: =VLOOKUP($C25,'RECAP SECT'!$G$6:$FZ$26,172,FALSE) -> 40% | V25: 33% | W25: 42% | X25: 46% | Y25: 50%
A26: 80 | B26: VOSGES | C26: 57 | D26: EPINAL | E26: =VLOOKUP($C26,'RECAP SECT'!$G$6:$EV$253,3,FALSE) -> 69.3 | F26: =VLOOKUP($C26,'RECAP SECT'!$G$6:$FZ$26,158,FALSE) -> 7 | G26: =VLOOKUP($C26,'RECAP SECT'!$G$6:$FZ$26,159,FALSE) -> 108 | H26: =VLOOKUP($C26,'RECAP SECT'!$G$6:$FZ$26,160,FALSE) -> 7% | I26: =VLOOKUP($C26,'RECAP SECT'!$G$6:$FZ$26,161,FALSE) -> 173 | J26: =VLOOKUP($C26,'RECAP SECT'!$G$6:$FZ$26,162,FALSE) -> 467 | K26: =VLOOKUP($C26,'RECAP SECT'!$G$6:$FZ$26,163,FALSE) -> 37% | L26: =VLOOKUP($C26,'RECAP SECT'!$G$6:$FZ$26,164,FALSE) -> 22 | M26: =VLOOKUP($C26,'RECAP SECT'!$G$6:$FZ$26,165,FALSE) -> 59 | N26: =VLOOKUP($C26,'RECAP SECT'!$G$6:$FZ$26,166,FALSE) -> 37% | O26: =VLOOKUP($C26,'RECAP SECT'!$G$6:$FZ$26,167,FALSE) -> 0 | P26: =VLOOKUP($C26,'RECAP SECT'!$G$6:$FZ$26,168,FALSE) -> 4 | Q26: =VLOOKUP($C26,'RECAP SECT'!$G$6:$FZ$26,169,FALSE) -> 6% | R26: =VLOOKUP($C26,'RECAP SECT'!$G$6:$FZ$26,170,FALSE) -> 50 | S26: =VLOOKUP($C26,'RECAP SECT'!$G$6:$FZ$26,171,FALSE) -> 126 | T26: =VLOOKUP($C26,'RECAP SECT'!$G$6:$FZ$26,172,FALSE) -> 40% | V26: 33% | W26: 42% | X26: 46% | Y26: 50%
A27: 80 | B27: VOSGES | C27: 55 | D27: SAINT DIE | E27: =VLOOKUP($C27,'RECAP SECT'!$G$6:$EV$253,3,FALSE) -> 59.0 | F27: =VLOOKUP($C27,'RECAP SECT'!$G$6:$FZ$26,158,FALSE) -> 69 | G27: =VLOOKUP($C27,'RECAP SECT'!$G$6:$FZ$26,159,FALSE) -> 113 | H27: =VLOOKUP($C27,'RECAP SECT'!$G$6:$FZ$26,160,FALSE) -> 61% | I27: =VLOOKUP($C27,'RECAP SECT'!$G$6:$FZ$26,161,FALSE) -> 201 | J27: =VLOOKUP($C27,'RECAP SECT'!$G$6:$FZ$26,162,FALSE) -> 467 | K27: =VLOOKUP($C27,'RECAP SECT'!$G$6:$FZ$26,163,FALSE) -> 43% | L27: =VLOOKUP($C27,'RECAP SECT'!$G$6:$FZ$26,164,FALSE) -> 22 | M27: =VLOOKUP($C27,'RECAP SECT'!$G$6:$FZ$26,165,FALSE) -> 59 | N27: =VLOOKUP($C27,'RECAP SECT'!$G$6:$FZ$26,166,FALSE) -> 38% | O27: =VLOOKUP($C27,'RECAP SECT'!$G$6:$FZ$26,167,FALSE) -> -4 | P27: =VLOOKUP($C27,'RECAP SECT'!$G$6:$FZ$26,168,FALSE) -> 4 | Q27: =VLOOKUP($C27,'RECAP SECT'!$G$6:$FZ$26,169,FALSE) -> -105% | R27: =VLOOKUP($C27,'RECAP SECT'!$G$6:$FZ$26,170,FALSE) -> 59 | S27: =VLOOKUP($C27,'RECAP SECT'!$G$6:$FZ$26,171,FALSE) -> 127 | T27: =VLOOKUP($C27,'RECAP SECT'!$G$6:$FZ$26,172,FALSE) -> 46% | V27: 33% | W27: 42% | X27: 46% | Y27: 50%
A28: Total CEGEE | C28: Directions Commerciales | E28: =SUM(E10:E27) -> 1387 | G28: ='RECAP SECT'!GG24 -> 12 | H28: ='RECAP SECT'!GH24 -> 3 | J28: ='RECAP SECT'!GL24 -> 1 | K28: ='RECAP SECT'!GM24 -> 9 | M28: ='RECAP SECT'!GQ24 -> 3 | N28: ='RECAP SECT'!GR24 -> 14 | P28: ='RECAP SECT'!GV24 -> 14 | Q28: ='RECAP SECT'!GW24 -> 2 | S28: ='RECAP SECT'!HA24 -> 2 | T28: ='RECAP SECT'!HB24 -> 12
G29: ='RECAP SECT'!GI24 -> 0 | H29: ='RECAP SECT'!GJ24 -> 3 | J29: ='RECAP SECT'!GN24 -> 7 | K29: ='RECAP SECT'!GO24 -> 1 | M29: ='RECAP SECT'!GS24 -> 1 | N29: ='RECAP SECT'!GT24 -> 0 | P29: ='RECAP SECT'!GX24 -> 0 | Q29: ='RECAP SECT'!GY24 -> 2 | S29: ='RECAP SECT'!HC24 -> 4 | T29: ='RECAP SECT'!HD24 -> 0
D32: Taux d'atteinte objectif annuel > 110 % ou 120 % en saisonnalisé en fonction des critères (collecte 110 %, autres 120 %)
D34: Taux d'atteinte objectif annuel entre 100 % et 110 % ou 120 % en saisonnalisé en fonction des critères (collecte 110 %, autres 120 %)
D36: Taux d'atteinte objectif annuel entre 80 % et 100 % en saisonnalisé
D38: Taux d'atteinte objectif annuel < 80 % en saisonnalisé

Sheet SE_TOTAL
A1: Accueil | F1: BAROMETRE BDD - DIRECTIONS COMMERCIALES
F2: TOTAL GENERAL
F3: =ACCUEIL!H7 -> 2019-05-31
F7: TOTAL GENERAL | I7: Total Conquête | L7: Total Equipement Bancarisation | O7: Total Epargne | R7: Total Crédits | U7: Total IARD Prévoyance | X7: Total Risques | AA7: Total Satisfaction Clients
G8: coef | H8: 100% | J8: coef | K8: ='RECAP DIRCOM'!$Y$4 -> 15% | M8: coef | N8: ='RECAP DIRCOM'!$AW$4 -> 15% | P8: coef | Q8: ='RECAP DIRCOM'!$BU$4 -> 15% | S8: coef | T8: ='RECAP DIRCOM'!$CV$4 -> 15% | V8: coef | W8: ='RECAP DIRCOM'!$DN$4 -> 20% | Y8: coef | Z8: ='RECAP DIRCOM'!$EF$4 -> 10% | AB8: coef | AC8: ='RECAP DIRCOM'!$EU$4 -> 10%
A9: eds | B9: Direction | C9: eds | D9: Territoire | E9: ETP perf | F9: Moyenne ecart au 1er | G9: % Ecart au 1er | H9: Rang CEGEE | I9: Moyenne ecart au 1er | J9: % Ecart au 1er | K9: Rang CEGEE | L9: Moyenne ecart au 1er | M9: % Ecart au 1er | N9: Rang CEGEE | O9: Moyenne ecart au 1er | P9: % Ecart au 1er | Q9: Rang CEGEE | R9: Moyenne ecart au 1er | S9: % Ecart au 1er | T9: Rang CEGEE | U9: Moyenne ecart au 1er | V9: % Ecart au 1er | W9: Rang CEGEE | X9: Moyenne ecart au 1er | Y9: % Ecart au 1er | Z9: Rang CEGEE | AA9: Moyenne ecart au 1er | AB9: % Ecart au 1er | AC9: Rang CEGEE
A10: 30 | B10: MARNE-ARDENNES | C10: 11 | D10: REIMS | E10: 91.1 | F10: 13% | G10: 0% | H10: 1 | I10: 52% | J10: 33% | K10: 5 | L10: 2% | M10: 15% | N10: 2 | O10: 26% | P10: 8% | Q10: 2 | R10: 15% | S10: 8% | T10: 3 | U10: 13% | V10: 13% | W10: 2 | X10: 5% | Y10: 4% | Z10: 11 | AA10: 0% | AB10: 0% | AC10: 1
A11: 30 | B11: MARNE-ARDENNES | C11: 2 | D11: CHARLEVILLE MEZIERES | E11: 64.0 | F11: 14% | G11: 2% | H11: 2 | I11: 18% | J11: 0% | K11: 1 | L11: -13% | M11: 0% | N11: 1 | O11: 95% | P11: 78% | Q11: 18 | R11: 7% | S11: 0% | T11: 1 | U11: 0% | V11: 0% | W11: 1 | X11: 2% | Y11: 1% | Z11: 5 | AA11: 24% | AB11: 24% | AC11: 5
A12: 160 | B12: MOSELLE | C12: 45 | D12: METZ | E12: 105.9 | F12: 19% | G12: 6% | H12: 3 | I12: 56% | J12: 38% | K12: 7 | L12: 3% | M12: 15% | N12: 3 | O12: 17% | P12: 0% | Q12: 1 | R12: 26% | S12: 19% | T12: 14 | U12: 23% | V12: 23% | W12: 9 | X12: 3% | Y12: 2% | Z12: 8 | AA12: 32% | AB12: 32% | AC12: 8
A13: 50 | B13: AUBE HAUTE MARNE | C13: 21 | D13: CHAUMONT | E13: 47.4 | F13: 21% | G13: 8% | H13: 4 | I13: 31% | J13: 13% | K13: 2 | L13: 19% | M13: 32% | N13: 9 | O13: 76% | P13: 59% | Q13: 16 | R13: 23% | S13: 16% | T13: 10 | U13: 14% | V13: 14% | W13: 3 | X13: 1% | Y13: 0% | Z13: 1 | AA13: 4% | AB13: 4% | AC13: 2
A14: 160 | B14: MOSELLE | C14: 42 | D14: MOSELLE EST | E14: 87.4 | F14: 23% | G14: 10% | H14: 5 | I14: 51% | J14: 33% | K14: 4 | L14: 7% | M14: 20% | N14: 6 | O14: 54% | P14: 37% | Q14: 11 | R14: 23% | S14: 16% | T14: 11 | U14: 26% | V14: 26% | W14: 11 | X14: 1% | Y14: 0% | Z14: 2 | AA14: 17% | AB14: 17% | AC14: 3
A15: 80 | B15: VOSGES | C15: 55 | D15: SAINT DIE | E15: 59.0 | F15: 24% | G15: 11% | H15: 6 | I15: 78% | J15: 59% | K15: 13 | L15: 9% | M15: 21% | N15: 7 | O15: 51% | P15: 33% | Q15: 8 | R15: 10% | S15: 3% | T15: 2 | U15: 20% | V15: 20% | W15: 5 | X15: 1% | Y15: 0% | Z15: 4 | AA15: 20% | AB15: 20% | AC15: 4
A16: 30 | B16: MARNE-ARDENNES | C16: 6 | D16: CHALONS EN CHAMPAGNE | E16: 49.1 | F16: 25% | G16: 12% | H16: 7 | I16: 76% | J16: 57% | K16: 12 | L16: 18% | M16: 30% | N16: 8 | O16: 35% | P16: 17% | Q16: 4 | R16: 18% | S16: 11% | T16: 4 | U16: 22% | V16: 22% | W16: 8 | X16: 3% | Y16: 2% | Z16: 9 | AA16: 25% | AB16: 25% | AC16: 6
A17: 110 | B17: MEURTHE ET MOSELLE MEUSE | C17: 27 | D17: PONT A MOUSSON | E17: 89.4 | F17: 27% | G17: 14% | H17: 8 | I17: 50% | J17: 31% | K17: 3 | L17: 24% | M17: 36% | N17: 11 | O17: 54% | P17: 37% | Q17: 10 | R17: 19% | S17: 13% | T17: 7 | U17: 26% | V17: 26% | W17: 10 | X17: 10% | Y17: 9% | Z17: 16 | AA17: 35% | AB17: 35% | AC17: 10
A18: 160 | B18: MOSELLE | C18: 44 | D18: MOSELLE NORD | E18: 81.6 | F18: 31% | G18: 18% | H18: 9 | I18: 70% | J18: 52% | K18: 9 | L18: 6% | M18: 18% | N18: 5 | O18: 72% | P18: 55% | Q18: 15 | R18: 28% | S18: 22% | T18: 15 | U18: 14% | V18: 14% | W18: 4 | X18: 1% | Y18: 0% | Z18: 3 | AA18: 57% | AB18: 57% | AC18: 14
A19: 50 | B19: AUBE HAUTE MARNE | C19: 14 | D19: TROYES | E19: 80.5 | F19: 31% | G19: 19% | H19: 10 | I19: 55% | J19: 37% | K19: 6 | L19: 5% | M19: 18% | N19: 4 | O19: 78% | P19: 61% | Q19: 17 | R19: 18% | S19: 11% | T19: 5 | U19: 41% | V19: 41% | W19: 17 | X19: 2% | Y19: 1% | Z19: 6 | AA19: 37% | AB19: 37% | AC19: 11
A20: 110 | B20: MEURTHE ET MOSELLE MEUSE | C20: 31 | D20: VERDUN | E20: 66.1 | F20: 31% | G20: 19% | H20: 11 | I20: 70% | J20: 52% | K20: 10 | L20: 26% | M20: 39% | N20: 12 | O20: 46% | P20: 29% | Q20: 6 | R20: 22% | S20: 15% | T20: 9 | U20: 40% | V20: 40% | W20: 15 | X20: 6% | Y20: 6% | Z20: 13 | AA20: 26% | AB20: 26% | AC20: 7
A21: 110 | B21: MEURTHE ET MOSELLE MEUSE | C21: 26 | D21: NANCY | E21: 80.2 | F21: 32% | G21: 19% | H21: 12 | I21: 69% | J21: 51% | K21: 8 | L21: 20% | M21: 32% | N21: 10 | O21: 60% | P21: 43% | Q21: 13 | R21: 25% | S21: 18% | T21: 13 | U21: 22% | V21: 22% | W21: 7 | X21: 13% | Y21: 12% | Z21: 18 | AA21: 49% | AB21: 49% | AC21: 13
A22: 80 | B22: VOSGES | C22: 57 | D22: EPINAL | E22: 69.3 | F22: 32% | G22: 20% | H22: 13 | I22: 74% | J22: 55% | K22: 11 | L22: 26% | M22: 39% | N22: 13 | O22: 55% | P22: 38% | Q22: 12 | R22: 20% | S22: 13% | T22: 8 | U22: 28% | V22: 28% | W22: 12 | X22: 6% | Y22: 5% | Z22: 12 | AA22: 46% | AB22: 46% | AC22: 12
A23: 262 | B23: BAS-RHIN | C23: 5060 | D23: HAGUENAU | E23: 89.8 | F23: 35% | G23: 22% | H23: 14 | I23: 78% | J23: 60% | K23: 15 | L23: 45% | M23: 58% | N23: 16 | O23: 51% | P23: 33% | Q23: 7 | R23: 32% | S23: 25% | T23: 18 | U23: 22% | V23: 22% | W23: 6 | X23: 9% | Y23: 8% | Z23: 15 | AA23: 33% | AB23: 33% | AC23: 9
A24: 264 | B24: HAUT-RHIN | C24: 5169 | D24: MULHOUSE | E24: 78.2 | F24: 38% | G24: 25% | H24: 15 | I24: 93% | J24: 75% | K24: 17 | L24: 38% | M24: 50% | N24: 14 | O24: 36% | P24: 19% | Q24: 5 | R24: 19% | S24: 12% | T24: 6 | U24: 40% | V24: 40% | W24: 16 | X24: 3% | Y24: 3% | Z24: 10 | AA24: 62% | AB24: 62% | AC24: 16
A25: 264 | B25: HAUT-RHIN | C25: 5130 | D25: COLMAR | E25: 78.8 | F25: 39% | G25: 27% | H25: 16 | I25: 88% | J25: 70% | K25: 16 | L25: 47% | M25: 60% | N25: 17 | O25: 35% | P25: 17% | Q25: 3 | R25: 31% | S25: 24% | T25: 17 | U25: 37% | V25: 37% | W25: 14 | X25: 3% | Y25: 2% | Z25: 7 | AA25: 59% | AB25: 59% | AC25: 15
A26: 262 | B26: BAS-RHIN | C26: 5101 | D26: SELESTAT | E26: 76.3 | F26: 44% | G26: 31% | H26: 17 | I26: 97% | J26: 79% | K26: 18 | L26: 43% | M26: 56% | N26: 15 | O26: 52% | P26: 35% | Q26: 9 | R26: 24% | S26: 17% | T26: 12 | U26: 34% | V26: 34% | W26: 13 | X26: 8% | Y26: 8% | Z26: 14 | AA26: 79% | AB26: 79% | AC26: 17
A27: 262 | B27: BAS-RHIN | C27: 5006 | D27: STRASBOURG | E27: 92.7 | F27: 49% | G27: 36% | H27: 18 | I27: 78% | J27: 60% | K27: 14 | L27: 52% | M27: 64% | N27: 18 | O27: 64% | P27: 47% | Q27: 14 | R27: 29% | S27: 22% | T27: 16 | U27: 54% | V27: 54% | W27: 18 | X27: 11% | Y27: 11% | Z27: 17 | AA27: 83% | AB27: 83% | AC27: 18
A28: Total CEGEE Directions Commerciales | E28: =SUM(E10:E27) -> 1387

Sheet SE_BANCA
A1: Accueil | F1: BAROMETRE BDD - DIRECTIONS COMMERCIALES
F2: EQUIPEMENT BANCARISATION
F3: =ACCUEIL!H7 -> 2019-05-31
F7: Ventes nettes FORFAITS avec 2 options | I7: Ventes nettes IZICARTES | L7: Ventes nettes Cartes HDG | O7: Ventes nettes CB débit différé | R7: Ventes nettes banca Pro | U7: Total Equipement Bancarisation
G8: coef | H8: ='RECAP DIRCOM'!AH4 -> 3% | J8: coef | K8: ='RECAP DIRCOM'!AK4 -> 3% | M8: coef | N8: ='RECAP DIRCOM'!AN4 -> 3% | P8: coef | Q8: ='RECAP DIRCOM'!AQ4 -> 3% | S8: coef | T8: ='RECAP DIRCOM'!AT4 -> 3% | V8: coef | W8: ='RECAP DIRCOM'!AW4 -> 15%
A9: eds | B9: Direction | C9: eds | D9: Territoire | E9: ETP perf | F9: Nb / ETP | G9: % Ecart au 1er | H9: Rang | I9: Nb / ETP | J9: % Ecart au 1er | K9: Rang | L9: Nb / ETP | M9: % Ecart au 1er | N9: Rang | O9: Nb / ETP | P9: % Ecart au 1er | Q9: Rang | R9: Taux réal objectif | S9: % Ecart au 1er | T9: Rang | U9: Moyenne ecart au 1er | V9: % Ecart au 1er | W9: Rang CEGEE
A10: 50 | B10: AUBE HAUTE MARNE | C10: 21 | D10: CHAUMONT | E10: =VLOOKUP($C10,'RECAP SECT'!$G$6:$EV$253,3,FALSE) -> 47.4 | F10: =VLOOKUP($C10,'RECAP SECT'!$G$6:$EV$253,26,FALSE) -> -10.30 | G10: =VLOOKUP($C10,'RECAP SECT'!$G$6:$EV$253,27,FALSE) -> -63% | H10: =VLOOKUP($C10,'RECAP SECT'!$G$6:$EV$253,28,FALSE) -> 11 | I10: =VLOOKUP($C10,'RECAP SECT'!$G$6:$EV$253,29,FALSE) -> 3.80 | J10: =VLOOKUP($C10,'RECAP SECT'!$G$6:$EV$253,30,FALSE) -> 59% | K10: =VLOOKUP($C10,'RECAP SECT'!$G$6:$EV$253,31,FALSE) -> 11 | L10: =VLOOKUP($C10,'RECAP SECT'!$G$6:$EV$253,32,FALSE) -> 6.82 | M10: =VLOOKUP($C10,'RECAP SECT'!$G$6:$EV$253,33,FALSE) -> 42% | N10: =VLOOKUP($C10,'RECAP SECT'!$G$6:$EV$253,34,FALSE) -> 8 | O10: =VLOOKUP($C10,'RECAP SECT'!$G$6:$EV$253,35,FALSE) -> 4.96 | P10: =VLOOKUP($C10,'RECAP SECT'!$G$6:$EV$253,36,FALSE) -> 0% | Q10: =VLOOKUP($C10,'RECAP SECT'!$G$6:$EV$253,37,FALSE) -> 1 | R10: =VLOOKUP($C10,'RECAP SECT'!$G$6:$EV$253,38,FALSE) -> 36% | S10: =VLOOKUP($C10,'RECAP SECT'!$G$6:$EV$253,39,FALSE) -> 57% | T10: =VLOOKUP($C10,'RECAP SECT'!$G$6:$EV$253,40,FALSE) -> 10 | U10: =VLOOKUP($C10,'RECAP SECT'!$G$6:$EV$253,41,FALSE) -> 19% | V10: =VLOOKUP($C10,'RECAP SECT'!$G$6:$EV$253,42,FALSE) -> 32% | W10: =VLOOKUP($C10,'RECAP SECT'!$G$6:$EV$253,43,FALSE) -> 9
A11: 50 | B11: AUBE HAUTE MARNE | C11: 14 | D11: TROYES | E11: =VLOOKUP($C11,'RECAP SECT'!$G$6:$EV$253,3,FALSE) -> 80.5 | F11: =VLOOKUP($C11,'RECAP SECT'!$G$6:$EV$253,26,FALSE) -> -12.75 | G11: =VLOOKUP($C11,'RECAP SECT'!$G$6:$EV$253,27,FALSE) -> -102% | H11: =VLOOKUP($C11,'RECAP SECT'!$G$6:$EV$253,28,FALSE) -> 5 | I11: =VLOOKUP($C11,'RECAP SECT'!$G$6:$EV$253,29,FALSE) -> 5.73 | J11: =VLOOKUP($C11,'RECAP SECT'!$G$6:$EV$253,30,FALSE) -> 38% | K11: =VLOOKUP($C11,'RECAP SECT'!$G$6:$EV$253,31,FALSE) -> 5 | L11: =VLOOKUP($C11,'RECAP SECT'!$G$6:$EV$253,32,FALSE) -> 8.09 | M11: =VLOOKUP($C11,'RECAP SECT'!$G$6:$EV$253,33,FALSE) -> 31% | N11: =VLOOKUP($C11,'RECAP SECT'!$G$6:$EV$253,34,FALSE) -> 4 | O11: =VLOOKUP($C11,'RECAP SECT'!$G$6:$EV$253,35,FALSE) -> 3.81 | P11: =VLOOKUP($C11,'RECAP SECT'!$G$6:$EV$253,36,FALSE) -> 23% | Q11: =VLOOKUP($C11,'RECAP SECT'!$G$6:$EV$253,37,FALSE) -> 4 | R11: =VLOOKUP($C11,'RECAP SECT'!$G$6:$EV$253,38,FALSE) -> 53% | S11: =VLOOKUP($C11,'RECAP SECT'!$G$6:$EV$253,39,FALSE) -> 37% | T11: =VLOOKUP($C11,'RECAP SECT'!$G$6:$EV$253,40,FALSE) -> 7 | U11: =VLOOKUP($C11,'RECAP SECT'!$G$6:$EV$253,41,FALSE) -> 5% | V11: =VLOOKUP($C11,'RECAP SECT'!$G$6:$EV$253,42,FALSE) -> 18% | W11: =VLOOKUP($C11,'RECAP SECT'!$G$6:$EV$253,43,FALSE) -> 4
A12: 262 | B12: BAS-RHIN | C12: 5060 | D12: HAGUENAU | E12: =VLOOKUP($C12,'RECAP SECT'!$G$6:$EV$253,3,FALSE) -> 89.8 | F12: =VLOOKUP($C12,'RECAP SECT'!$G$6:$EV$253,26,FALSE) -> -7.57 | G12: =VLOOKUP($C12,'RECAP SECT'!$G$6:$EV$253,27,FALSE) -> -20% | H12: =VLOOKUP($C12,'RECAP SECT'!$G$6:$EV$253,28,FALSE) -> 17 | I12: =VLOOKUP($C12,'RECAP SECT'!$G$6:$EV$253,29,FALSE) -> 3.12 | J12: =VLOOKUP($C12,'RECAP SECT'!$G$6:$EV$253,30,FALSE) -> 66% | K12: =VLOOKUP($C12,'RECAP SECT'!$G$6:$EV$253,31,FALSE) -> 15 | L12: =VLOOKUP($C12,'RECAP SECT'!$G$6:$EV$253,32,FALSE) -> 5.74 | M12: =VLOOKUP($C12,'RECAP SECT'!$G$6:$EV$253,33,FALSE) -> 51% | N12: =VLOOKUP($C12,'RECAP SECT'!$G$6:$EV$253,34,FALSE) -> 12 | O12: =VLOOKUP($C12,'RECAP SECT'!$G$6:$EV$253,35,FALSE) -> 1.99 | P12: =VLOOKUP($C12,'RECAP SECT'!$G$6:$EV$253,36,FALSE) -> 60% | Q12: =VLOOKUP($C12,'RECAP SECT'!$G$6:$EV$253,37,FALSE) -> 14 | R12: =VLOOKUP($C12,'RECAP SECT'!$G$6:$EV$253,38,FALSE) -> 26% | S12: =VLOOKUP($C12,'RECAP SECT'!$G$6:$EV$253,39,FALSE) -> 69% | T12: =VLOOKUP($C12,'RECAP SECT'!$G$6:$EV$253,40,FALSE) -> 13 | U12: =VLOOKUP($C12,'RECAP SECT'!$G$6:$EV$253,41,FALSE) -> 45% | V12: =VLOOKUP($C12,'RECAP SECT'!$G$6:$EV$253,42,FALSE) -> 58% | W12: =VLOOKUP($C12,'RECAP SECT'!$G$6:$EV$253,43,FALSE) -> 16
A13: 262 | B13: BAS-RHIN | C13: 5101 | D13: SELESTAT | E13: =VLOOKUP($C13,'RECAP SECT'!$G$6:$EV$253,3,FALSE) -> 76.3 | F13: =VLOOKUP($C13,'RECAP SECT'!$G$6:$EV$253,26,FALSE) -> -8.44 | G13: =VLOOKUP($C13,'RECAP SECT'!$G$6:$EV$253,27,FALSE) -> -34% | H13: =VLOOKUP($C13,'RECAP SECT'!$G$6:$EV$253,28,FALSE) -> 15 | I13: =VLOOKUP($C13,'RECAP SECT'!$G$6:$EV$253,29,FALSE) -> 1.19 | J13: =VLOOKUP($C13,'RECAP SECT'!$G$6:$EV$253,30,FALSE) -> 87% | K13: =VLOOKUP($C13,'RECAP SECT'!$G$6:$EV$253,31,FALSE) -> 18 | L13: =VLOOKUP($C13,'RECAP SECT'!$G$6:$EV$253,32,FALSE) -> 5.32 | M13: =VLOOKUP($C13,'RECAP SECT'!$G$6:$EV$253,33,FALSE) -> 55% | N13: =VLOOKUP($C13,'RECAP SECT'!$G$6:$EV$253,34,FALSE) -> 15 | O13: =VLOOKUP($C13,'RECAP SECT'!$G$6:$EV$253,35,FALSE) -> 3.14 | P13: =VLOOKUP($C13,'RECAP SECT'!$G$6:$EV$253,36,FALSE) -> 37% | Q13: =VLOOKUP($C13,'RECAP SECT'!$G$6:$EV$253,37,FALSE) -> 10 | R13: =VLOOKUP($C13,'RECAP SECT'!$G$6:$EV$253,38,FALSE) -> 24% | S13: =VLOOKUP($C13,'RECAP SECT'!$G$6:$EV$253,39,FALSE) -> 71% | T13: =VLOOKUP($C13,'RECAP SECT'!$G$6:$EV$253,40,FALSE) -> 14 | U13: =VLOOKUP($C13,'RECAP SECT'!$G$6:$EV$253,41,FALSE) -> 43% | V13: =VLOOKUP($C13,'RECAP SECT'!$G$6:$EV$253,42,FALSE) -> 56% | W13: =VLOOKUP($C13,'RECAP SECT'!$G$6:$EV$253,43,FALSE) -> 15
A14: 262 | B14: BAS-RHIN | C14: 5006 | D14: STRASBOURG | E14: =VLOOKUP($C14,'RECAP SECT'!$G$6:$EV$253,3,FALSE) -> 92.7 | F14: =VLOOKUP($C14,'RECAP SECT'!$G$6:$EV$253,26,FALSE) -> -8.24 | G14: =VLOOKUP($C14,'RECAP SECT'!$G$6:$EV$253,27,FALSE) -> -31% | H14: =VLOOKUP($C14,'RECAP SECT'!$G$6:$EV$253,28,FALSE) -> 16 | I14: =VLOOKUP($C14,'RECAP SECT'!$G$6:$EV$253,29,FALSE) -> 1.63 | J14: =VLOOKUP($C14,'RECAP SECT'!$G$6:$EV$253,30,FALSE) -> 82% | K14: =VLOOKUP($C14,'RECAP SECT'!$G$6:$EV$253,31,FALSE) -> 17 | L14: =VLOOKUP($C14,'RECAP SECT'!$G$6:$EV$253,32,FALSE) -> 3.69 | M14: =VLOOKUP($C14,'RECAP SECT'!$G$6:$EV$253,33,FALSE) -> 69% | N14: =VLOOKUP($C14,'RECAP SECT'!$G$6:$EV$253,34,FALSE) -> 18 | O14: =VLOOKUP($C14,'RECAP SECT'!$G$6:$EV$253,35,FALSE) -> 1.84 | P14: =VLOOKUP($C14,'RECAP SECT'!$G$6:$EV$253,36,FALSE) -> 63% | Q14: =VLOOKUP($C14,'RECAP SECT'!$G$6:$EV$253,37,FALSE) -> 15 | R14: =VLOOKUP($C14,'RECAP SECT'!$G$6:$EV$253,38,FALSE) -> 20% | S14: =VLOOKUP($C14,'RECAP SECT'!$G$6:$EV$253,39,FALSE) -> 76% | T14: =VLOOKUP($C14,'RECAP SECT'!$G$6:$EV$253,40,FALSE) -> 17 | U14: =VLOOKUP($C14,'RECAP SECT'!$G$6:$EV$253,41,FALSE) -> 52% | V14: =VLOOKUP($C14,'RECAP SECT'!$G$6:$EV$253,42,FALSE) -> 64% | W14: =VLOOKUP($C14,'RECAP SECT'!$G$6:$EV$253,43,FALSE) -> 18
A15: 264 | B15: HAUT-RHIN | C15: 5130 | D15: COLMAR | E15: =VLOOKUP($C15,'RECAP SECT'!$G$6:$EV$253,3,FALSE) -> 78.8 | F15: =VLOOKUP($C15,'RECAP SECT'!$G$6:$EV$253,26,FALSE) -> -6.31 | G15: =VLOOKUP($C15,'RECAP SECT'!$G$6:$EV$253,27,FALSE) -> 0% | H15: =VLOOKUP($C15,'RECAP SECT'!$G$6:$EV$253,28,FALSE) -> 18 | I15: =VLOOKUP($C15,'RECAP SECT'!$G$6:$EV$253,29,FALSE) -> 3.31 | J15: =VLOOKUP($C15,'RECAP SECT'!$G$6:$EV$253,30,FALSE) -> 64% | K15: =VLOOKUP($C15,'RECAP SECT'!$G$6:$EV$253,31,FALSE) -> 14 | L15: =VLOOKUP($C15,'RECAP SECT'!$G$6:$EV$253,32,FALSE) -> 5.52 | M15: =VLOOKUP($C15,'RECAP SECT'!$G$6:$EV$253,33,FALSE) -> 53% | N15: =VLOOKUP($C15,'RECAP SECT'!$G$6:$EV$253,34,FALSE) -> 14 | O15: =VLOOKUP($C15,'RECAP SECT'!$G$6:$EV$253,35,FALSE) -> 2.75 | P15: =VLOOKUP($C15,'RECAP SECT'!$G$6:$EV$253,36,FALSE) -> 44% | Q15: =VLOOKUP($C15,'RECAP SECT'!$G$6:$EV$253,37,FALSE) -> 11 | R15: =VLOOKUP($C15,'RECAP SECT'!$G$6:$EV$253,38,FALSE) -> 21% | S15: =VLOOKUP($C15,'RECAP SECT'!$G$6:$EV$253,39,FALSE) -> 75% | T15: =VLOOKUP($C15,'RECAP SECT'!$G$6:$EV$253,40,FALSE) -> 16 | U15: =VLOOKUP($C15,'RECAP SECT'!$G$6:$EV$253,41,FALSE) -> 47% | V15: =VLOOKUP($C15,'RECAP SECT'!$G$6:$EV$253,42,FALSE) -> 60% | W15: =VLOOKUP($C15,'RECAP SECT'!$G$6:$EV$253,43,FALSE) -> 17
A16: 264 | B16: HAUT-RHIN | C16: 5169 | D16: MULHOUSE | E16: =VLOOKUP($C16,'RECAP SECT'!$G$6:$EV$253,3,FALSE) -> 78.2 | F16: =VLOOKUP($C16,'RECAP SECT'!$G$6:$EV$253,26,FALSE) -> -10.69 | G16: =VLOOKUP($C16,'RECAP SECT'!$G$6:$EV$253,27,FALSE) -> -69% | H16: =VLOOKUP($C16,'RECAP SECT'!$G$6:$EV$253,28,FALSE) -> 10 | I16: =VLOOKUP($C16,'RECAP SECT'!$G$6:$EV$253,29,FALSE) -> 2.80 | J16: =VLOOKUP($C16,'RECAP SECT'!$G$6:$EV$253,30,FALSE) -> 70% | K16: =VLOOKUP($C16,'RECAP SECT'!$G$6:$EV$253,31,FALSE) -> 16 | L16: =VLOOKUP($C16,'RECAP SECT'!$G$6:$EV$253,32,FALSE) -> 5.17 | M16: =VLOOKUP($C16,'RECAP SECT'!$G$6:$EV$253,33,FALSE) -> 56% | N16: =VLOOKUP($C16,'RECAP SECT'!$G$6:$EV$253,34,FALSE) -> 16 | O16: =VLOOKUP($C16,'RECAP SECT'!$G$6:$EV$253,35,FALSE) -> 1.67 | P16: =VLOOKUP($C16,'RECAP SECT'!$G$6:$EV$253,36,FALSE) -> 66% | Q16: =VLOOKUP($C16,'RECAP SECT'!$G$6:$EV$253,37,FALSE) -> 16 | R16: =VLOOKUP($C16,'RECAP SECT'!$G$6:$EV$253,38,FALSE) -> 28% | S16: =VLOOKUP($C16,'RECAP SECT'!$G$6:$EV$253,39,FALSE) -> 66% | T16: =VLOOKUP($C16,'RECAP SECT'!$G$6:$EV$253,40,FALSE) -> 12 | U16: =VLOOKUP($C16,'RECAP SECT'!$G$6:$EV$253,41,FALSE) -> 38% | V16: =VLOOKUP($C16,'RECAP SECT'!$G$6:$EV$253,42,FALSE) -> 50% | W16: =VLOOKUP($C16,'RECAP SECT'!$G$6:$EV$253,43,FALSE) -> 14
A17: 30 | B17: MARNE-ARDENNES | C17: 6 | D17: CHALONS EN CHAMPAGNE | E17: =VLOOKUP($C17,'RECAP SECT'!$G$6:$EV$253,3,FALSE) -> 49.1 | F17: =VLOOKUP($C17,'RECAP SECT'!$G$6:$EV$253,26,FALSE) -> -10.17 | G17: =VLOOKUP($C17,'RECAP SECT'!$G$6:$EV$253,27,FALSE) -> -61% | H17: =VLOOKUP($C17,'RECAP SECT'!$G$6:$EV$253,28,FALSE) -> 12 | I17: =VLOOKUP($C17,'RECAP SECT'!$G$6:$EV$253,29,FALSE) -> 7.60 | J17: =VLOOKUP($C17,'RECAP SECT'!$G$6:$EV$253,30,FALSE) -> 18% | K17: =VLOOKUP($C17,'RECAP SECT'!$G$6:$EV$253,31,FALSE) -> 2 | L17: =VLOOKUP($C17,'RECAP SECT'!$G$6:$EV$253,32,FALSE) -> 5.85 | M17: =VLOOKUP($C17,'RECAP SECT'!$G$6:$EV$253,33,FALSE) -> 50% | N17: =VLOOKUP($C17,'RECAP SECT'!$G$6:$EV$253,34,FALSE) -> 10 | O17: =VLOOKUP($C17,'RECAP SECT'!$G$6:$EV$253,35,FALSE) -> 3.69 | P17: =VLOOKUP($C17,'RECAP SECT'!$G$6:$EV$253,36,FALSE) -> 26% | Q17: =VLOOKUP($C17,'RECAP SECT'!$G$6:$EV$253,37,FALSE) -> 6 | R17: =VLOOKUP($C17,'RECAP SECT'!$G$6:$EV$253,38,FALSE) -> 37% | S17: =VLOOKUP($C17,'RECAP SECT'!$G$6:$EV$253,39,FALSE) -> 56% | T17: =VLOOKUP($C17,'RECAP SECT'!$G$6:$EV$253,40,FALSE) -> 9 | U17: =VLOOKUP($C17,'RECAP SECT'!$G$6:$EV$253,41,FALSE) -> 18% | V17: =VLOOKUP($C17,'RECAP SECT'!$G$6:$EV$253,42,FALSE) -> 30% | W17: =VLOOKUP($C17,'RECAP SECT'!$G$6:$EV$253,43,FALSE) -> 8
A18: 30 | B18: MARNE-ARDENNES | C18: 2 | D18: CHARLEVILLE MEZIERES | E18: =VLOOKUP($C18,'RECAP SECT'!$G$6:$EV$253,3,FALSE) -> 64.0 | F18: =VLOOKUP($C18,'RECAP SECT'!$G$6:$EV$253,26,FALSE) -> -14.75 | G18: =VLOOKUP($C18,'RECAP SECT'!$G$6:$EV$253,27,FALSE) -> -134% | H18: =VLOOKUP($C18,'RECAP SECT'!$G$6:$EV$253,28,FALSE) -> 1 | I18: =VLOOKUP($C18,'RECAP SECT'!$G$6:$EV$253,29,FALSE) -> 6.27 | J18: =VLOOKUP($C18,'RECAP SECT'!$G$6:$EV$253,30,FALSE) -> 32% | K18: =VLOOKUP($C18,'RECAP SECT'!$G$6:$EV$253,31,FALSE) -> 3 | L18: =VLOOKUP($C18,'RECAP SECT'!$G$6:$EV$253,32,FALSE) -> 7.39 | M18: =VLOOKUP($C18,'RECAP SECT'!$G$6:$EV$253,33,FALSE) -> 37% | N18: =VLOOKUP($C18,'RECAP SECT'!$G$6:$EV$253,34,FALSE) -> 5 | O18: =VLOOKUP($C18,'RECAP SECT'!$G$6:$EV$253,35,FALSE) -> 4.89 | P18: =VLOOKUP($C18,'RECAP SECT'!$G$6:$EV$253,36,FALSE) -> 1% | Q18: =VLOOKUP($C18,'RECAP SECT'!$G$6:$EV$253,37,FALSE) -> 2 | R18: =VLOOKUP($C18,'RECAP SECT'!$G$6:$EV$253,38,FALSE) -> 83% | S18: =VLOOKUP($C18,'RECAP SECT'!$G$6:$EV$253,39,FALSE) -> 0% | T18: =VLOOKUP($C18,'RECAP SECT'!$G$6:$EV$253,40,FALSE) -> 1 | U18: =VLOOKUP($C18,'RECAP SECT'!$G$6:$EV$253,41,FALSE) -> -13% | V18: =VLOOKUP($C18,'RECAP SECT'!$G$6:$EV$253,42,FALSE) -> 0% | W18: =VLOOKUP($C18,'RECAP SECT'!$G$6:$EV$253,43,FALSE) -> 1
A19: 30 | B19: MARNE-ARDENNES | C19: 11 | D19: REIMS | E19: =VLOOKUP($C19,'RECAP SECT'!$G$6:$EV$253,3,FALSE) -> 91.1 | F19: =VLOOKUP($C19,'RECAP SECT'!$G$6:$EV$253,26,FALSE) -> -12.40 | G19: =VLOOKUP($C19,'RECAP SECT'!$G$6:$EV$253,27,FALSE) -> -97% | H19: =VLOOKUP($C19,'RECAP SECT'!$G$6:$EV$253,28,FALSE) -> 7 | I19: =VLOOKUP($C19,'RECAP SECT'!$G$6:$EV$253,29,FALSE) -> 9.25 | J19: =VLOOKUP($C19,'RECAP SECT'!$G$6:$EV$253,30,FALSE) -> 0% | K19: =VLOOKUP($C19,'RECAP SECT'!$G$6:$EV$253,31,FALSE) -> 1 | L19: =VLOOKUP($C19,'RECAP SECT'!$G$6:$EV$253,32,FALSE) -> 4.97 | M19: =VLOOKUP($C19,'RECAP SECT'!$G$6:$EV$253,33,FALSE) -> 58% | N19: =VLOOKUP($C19,'RECAP SECT'!$G$6:$EV$253,34,FALSE) -> 17 | O19: =VLOOKUP($C19,'RECAP SECT'!$G$6:$EV$253,35,FALSE) -> 3.41 | P19: =VLOOKUP($C19,'RECAP SECT'!$G$6:$EV$253,36,FALSE) -> 31% | Q19: =VLOOKUP($C19,'RECAP SECT'!$G$6:$EV$253,37,FALSE) -> 9 | R19: =VLOOKUP($C19,'RECAP SECT'!$G$6:$EV$253,38,FALSE) -> 68% | S19: =VLOOKUP($C19,'RECAP SECT'!$G$6:$EV$253,39,FALSE) -> 18% | T19: =VLOOKUP($C19,'RECAP SECT'!$G$6:$EV$253,40,FALSE) -> 3 | U19: =VLOOKUP($C19,'RECAP SECT'!$G$6:$EV$253,41,FALSE) -> 2% | V19: =VLOOKUP($C19,'RECAP SECT'!$G$6:$EV$253,42,FALSE) -> 15% | W19: =VLOOKUP($C19,'RECAP SECT'!$G$6:$EV$253,43,FALSE) -> 2
A20: 110 | B20: MEURTHE ET MOSELLE MEUSE | C20: 26 | D20: NANCY | E20: =VLOOKUP($C20,'RECAP SECT'!$G$6:$EV$253,3,FALSE) -> 80.2 | F20: =VLOOKUP($C20,'RECAP SECT'!$G$6:$EV$253,26,FALSE) -> -12.02 | G20: =VLOOKUP($C20,'RECAP SECT'!$G$6:$EV$253,27,FALSE) -> -90% | H20: =VLOOKUP($C20,'RECAP SECT'!$G$6:$EV$253,28,FALSE) -> 8 | I20: =VLOOKUP($C20,'RECAP SECT'!$G$6:$EV$253,29,FALSE) -> 3.54 | J20: =VLOOKUP($C20,'RECAP SECT'!$G$6:$EV$253,30,FALSE) -> 62% | K20: =VLOOKUP($C20,'RECAP SECT'!$G$6:$EV$253,31,FALSE) -> 13 | L20: =VLOOKUP($C20,'RECAP SECT'!$G$6:$EV$253,32,FALSE) -> 5.80 | M20: =VLOOKUP($C20,'RECAP SECT'!$G$6:$EV$253,33,FALSE) -> 51% | N20: =VLOOKUP($C20,'RECAP SECT'!$G$6:$EV$253,34,FALSE) -> 11 | O20: =VLOOKUP($C20,'RECAP SECT'!$G$6:$EV$253,35,FALSE) -> 2.46 | P20: =VLOOKUP($C20,'RECAP SECT'!$G$6:$EV$253,36,FALSE) -> 50% | Q20: =VLOOKUP($C20,'RECAP SECT'!$G$6:$EV$253,37,FALSE) -> 13 | R20: =VLOOKUP($C20,'RECAP SECT'!$G$6:$EV$253,38,FALSE) -> 62% | S20: =VLOOKUP($C20,'RECAP SECT'!$G$6:$EV$253,39,FALSE) -> 26% | T20: =VLOOKUP($C20,'RECAP SECT'!$G$6:$EV$253,40,FALSE) -> 6 | U20: =VLOOKUP($C20,'RECAP SECT'!$G$6:$EV$253,41,FALSE) -> 20% | V20: =VLOOKUP($C20,'RECAP SECT'!$G$6:$EV$253,42,FALSE) -> 32% | W20: =VLOOKUP($C20,'RECAP SECT'!$G$6:$EV$253,43,FALSE) -> 10
A21: 110 | B21: MEURTHE ET MOSELLE MEUSE | C21: 27 | D21: PONT A MOUSSON | E21: =VLOOKUP($C21,'RECAP SECT'!$G$6:$EV$253,3,FALSE) -> 89.4 | F21: =VLOOKUP($C21,'RECAP SECT'!$G$6:$EV$253,26,FALSE) -> -13.24 | G21: =VLOOKUP($C21,'RECAP SECT'!$G$6:$EV$253,27,FALSE) -> -110% | H21: =VLOOKUP($C21,'RECAP SECT'!$G$6:$EV$253,28,FALSE) -> 3 | I21: =VLOOKUP($C21,'RECAP SECT'!$G$6:$EV$253,29,FALSE) -> 5.68 | J21: =VLOOKUP($C21,'RECAP SECT'!$G$6:$EV$253,30,FALSE) -> 39% | K21: =VLOOKUP($C21,'RECAP SECT'!$G$6:$EV$253,31,FALSE) -> 6 | L21: =VLOOKUP($C21,'RECAP SECT'!$G$6:$EV$253,32,FALSE) -> 7.23 | M21: =VLOOKUP($C21,'RECAP SECT'!$G$6:$EV$253,33,FALSE) -> 39% | N21: =VLOOKUP($C21,'RECAP SECT'!$G$6:$EV$253,34,FALSE) -> 6 | O21: =VLOOKUP($C21,'RECAP SECT'!$G$6:$EV$253,35,FALSE) -> 1.57 | P21: =VLOOKUP($C21,'RECAP SECT'!$G$6:$EV$253,36,FALSE) -> 68% | Q21: =VLOOKUP($C21,'RECAP SECT'!$G$6:$EV$253,37,FALSE) -> 17 | R21: =VLOOKUP($C21,'RECAP SECT'!$G$6:$EV$253,38,FALSE) -> 14% | S21: =VLOOKUP($C21,'RECAP SECT'!$G$6:$EV$253,39,FALSE) -> 83% | T21: =VLOOKUP($C21,'RECAP SECT'!$G$6:$EV$253,40,FALSE) -> 18 | U21: =VLOOKUP($C21,'RECAP SECT'!$G$6:$EV$253,41,FALSE) -> 24% | V21: =VLOOKUP($C21,'RECAP SECT'!$G$6:$EV$253,42,FALSE) -> 36% | W21: =VLOOKUP($C21,'RECAP SECT'!$G$6:$EV$253,43,FALSE) -> 11
A22: 110 | B22: MEURTHE ET MOSELLE MEUSE | C22: 31 | D22: VERDUN | E22: =VLOOKUP($C22,'RECAP SECT'!$G$6:$EV$253,3,FALSE) -> 66.1 | F22: =VLOOKUP($C22,'RECAP SECT'!$G$6:$EV$253,26,FALSE) -> -13.46 | G22: =VLOOKUP($C22,'RECAP SECT'!$G$6:$EV$253,27,FALSE) -> -113% | H22: =VLOOKUP($C22,'RECAP SECT'!$G$6:$EV$253,28,FALSE) -> 2 | I22: =VLOOKUP($C22,'RECAP SECT'!$G$6:$EV$253,29,FALSE) -> 5.39 | J22: =VLOOKUP($C22,'RECAP SECT'!$G$6:$EV$253,30,FALSE) -> 42% | K22: =VLOOKUP($C22,'RECAP SECT'!$G$6:$EV$253,31,FALSE) -> 7 | L22: =VLOOKUP($C22,'RECAP SECT'!$G$6:$EV$253,32,FALSE) -> 6.05 | M22: =VLOOKUP($C22,'RECAP SECT'!$G$6:$EV$253,33,FALSE) -> 49% | N22: =VLOOKUP($C22,'RECAP SECT'!$G$6:$EV$253,34,FALSE) -> 9 | O22: =VLOOKUP($C22,'RECAP SECT'!$G$6:$EV$253,35,FALSE) -> 0.98 | P22: =VLOOKUP($C22,'RECAP SECT'!$G$6:$EV$253,36,FALSE) -> 80% | Q22: =VLOOKUP($C22,'RECAP SECT'!$G$6:$EV$253,37,FALSE) -> 18 | R22: =VLOOKUP($C22,'RECAP SECT'!$G$6:$EV$253,38,FALSE) -> 22% | S22: =VLOOKUP($C22,'RECAP SECT'!$G$6:$EV$253,39,FALSE) -> 74% | T22: =VLOOKUP($C22,'RECAP SECT'!$G$6:$EV$253,40,FALSE) -> 15 | U22: =VLOOKUP($C22,'RECAP SECT'!$G$6:$EV$253,41,FALSE) -> 26% | V22: =VLOOKUP($C22,'RECAP SECT'!$G$6:$EV$253,42,FALSE) -> 39% | W22: =VLOOKUP($C22,'RECAP SECT'!$G$6:$EV$253,43,FALSE) -> 12
A23: 160 | B23: MOSELLE | C23: 45 | D23: METZ | E23: =VLOOKUP($C23,'RECAP SECT'!$G$6:$EV$253,3,FALSE) -> 105.9 | F23: =VLOOKUP($C23,'RECAP SECT'!$G$6:$EV$253,26,FALSE) -> -12.83 | G23: =VLOOKUP($C23,'RECAP SECT'!$G$6:$EV$253,27,FALSE) -> -103% | H23: =VLOOKUP($C23,'RECAP SECT'!$G$6:$EV$253,28,FALSE) -> 4 | I23: =VLOOKUP($C23,'RECAP SECT'!$G$6:$EV$253,29,FALSE) -> 4.45 | J23: =VLOOKUP($C23,'RECAP SECT'!$G$6:$EV$253,30,FALSE) -> 52% | K23: =VLOOKUP($C23,'RECAP SECT'!$G$6:$EV$253,31,FALSE) -> 10 | L23: =VLOOKUP($C23,'RECAP SECT'!$G$6:$EV$253,32,FALSE) -> 9.91 | M23: =VLOOKUP($C23,'RECAP SECT'!$G$6:$EV$253,33,FALSE) -> 16% | N23: =VLOOKUP($C23,'RECAP SECT'!$G$6:$EV$253,34,FALSE) -> 3 | O23: =VLOOKUP($C23,'RECAP SECT'!$G$6:$EV$253,35,FALSE) -> 3.67 | P23: =VLOOKUP($C23,'RECAP SECT'!$G$6:$EV$253,36,FALSE) -> 26% | Q23: =VLOOKUP($C23,'RECAP SECT'!$G$6:$EV$253,37,FALSE) -> 7 | R23: =VLOOKUP($C23,'RECAP SECT'!$G$6:$EV$253,38,FALSE) -> 64% | S23: =VLOOKUP($C23,'RECAP SECT'!$G$6:$EV$253,39,FALSE) -> 24% | T23: =VLOOKUP($C23,'RECAP SECT'!$G$6:$EV$253,40,FALSE) -> 5 | U23: =VLOOKUP($C23,'RECAP SECT'!$G$6:$EV$253,41,FALSE) -> 3% | V23: =VLOOKUP($C23,'RECAP SECT'!$G$6:$EV$253,42,FALSE) -> 15% | W23: =VLOOKUP($C23,'RECAP SECT'!$G$6:$EV$253,43,FALSE) -> 3
A24: 160 | B24: MOSELLE | C24: 42 | D24: MOSELLE EST | E24: =VLOOKUP($C24,'RECAP SECT'!$G$6:$EV$253,3,FALSE) -> 87.4 | F24: =VLOOKUP($C24,'RECAP SECT'!$G$6:$EV$253,26,FALSE) -> -11.10 | G24: =VLOOKUP($C24,'RECAP SECT'!$G$6:$EV$253,27,FALSE) -> -76% | H24: =VLOOKUP($C24,'RECAP SECT'!$G$6:$EV$253,28,FALSE) -> 9 | I24: =VLOOKUP($C24,'RECAP SECT'!$G$6:$EV$253,29,FALSE) -> 3.59 | J24: =VLOOKUP($C24,'RECAP SECT'!$G$6:$EV$253,30,FALSE) -> 61% | K24: =VLOOKUP($C24,'RECAP SECT'!$G$6:$EV$253,31,FALSE) -> 12 | L24: =VLOOKUP($C24,'RECAP SECT'!$G$6:$EV$253,32,FALSE) -> 11.28 | M24: =VLOOKUP($C24,'RECAP SECT'!$G$6:$EV$253,33,FALSE) -> 4% | N24: =VLOOKUP($C24,'RECAP SECT'!$G$6:$EV$253,34,FALSE) -> 2 | O24: =VLOOKUP($C24,'RECAP SECT'!$G$6:$EV$253,35,FALSE) -> 3.65 | P24: =VLOOKUP($C24,'RECAP SECT'!$G$6:$EV$253,36,FALSE) -> 26% | Q24: =VLOOKUP($C24,'RECAP SECT'!$G$6:$EV$253,37,FALSE) -> 8 | R24: =VLOOKUP($C24,'RECAP SECT'!$G$6:$EV$253,38,FALSE) -> 67% | S24: =VLOOKUP($C24,'RECAP SECT'!$G$6:$EV$253,39,FALSE) -> 19% | T24: =VLOOKUP($C24,'RECAP SECT'!$G$6:$EV$253,40,FALSE) -> 4 | U24: =VLOOKUP($C24,'RECAP SECT'!$G$6:$EV$253,41,FALSE) -> 7% | V24: =VLOOKUP($C24,'RECAP SECT'!$G$6:$EV$253,42,FALSE) -> 20% | W24: =VLOOKUP($C24,'RECAP SECT'!$G$6:$EV$253,43,FALSE) -> 6
A25: 160 | B25: MOSELLE | C25: 44 | D25: MOSELLE NORD | E25: =VLOOKUP($C25,'RECAP SECT'!$G$6:$EV$253,3,FALSE) -> 81.6 | F25: =VLOOKUP($C25,'RECAP SECT'!$G$6:$EV$253,26,FALSE) -> -12.70 | G25: =VLOOKUP($C25,'RECAP SECT'!$G$6:$EV$253,27,FALSE) -> -101% | H25: =VLOOKUP($C25,'RECAP SECT'!$G$6:$EV$253,28,FALSE) -> 6 | I25: =VLOOKUP($C25,'RECAP SECT'!$G$6:$EV$253,29,FALSE) -> 5.22 | J25: =VLOOKUP($C25,'RECAP SECT'!$G$6:$EV$253,30,FALSE) -> 44% | K25: =VLOOKUP($C25,'RECAP SECT'!$G$6:$EV$253,31,FALSE) -> 9 | L25: =VLOOKUP($C25,'RECAP SECT'!$G$6:$EV$253,32,FALSE) -> 11.77 | M25: =VLOOKUP($C25,'RECAP SECT'!$G$6:$EV$253,33,FALSE) -> 0% | N25: =VLOOKUP($C25,'RECAP SECT'!$G$6:$EV$253,34,FALSE) -> 1 | O25: =VLOOKUP($C25,'RECAP SECT'!$G$6:$EV$253,35,FALSE) -> 3.81 | P25: =VLOOKUP($C25,'RECAP SECT'!$G$6:$EV$253,36,FALSE) -> 23% | Q25: =VLOOKUP($C25,'RECAP SECT'!$G$6:$EV$253,37,FALSE) -> 5 | R25: =VLOOKUP($C25,'RECAP SECT'!$G$6:$EV$253,38,FALSE) -> 31% | S25: =VLOOKUP($C25,'RECAP SECT'!$G$6:$EV$253,39,FALSE) -> 62% | T25: =VLOOKUP($C25,'RECAP SECT'!$G$6:$EV$253,40,FALSE) -> 11 | U25: =VLOOKUP($C25,'RECAP SECT'!$G$6:$EV$253,41,FALSE) -> 6% | V25: =VLOOKUP($C25,'RECAP SECT'!$G$6:$EV$253,42,FALSE) -> 18% | W25: =VLOOKUP($C25,'RECAP SECT'!$G$6:$EV$253,43,FALSE) -> 5
A26: 80 | B26: VOSGES | C26: 57 | D26: EPINAL | E26: =VLOOKUP($C26,'RECAP SECT'!$G$6:$EV$253,3,FALSE) -> 69.3 | F26: =VLOOKUP($C26,'RECAP SECT'!$G$6:$EV$253,26,FALSE) -> -9.62 | G26: =VLOOKUP($C26,'RECAP SECT'!$G$6:$EV$253,27,FALSE) -> -53% | H26: =VLOOKUP($C26,'RECAP SECT'!$G$6:$EV$253,28,FALSE) -> 14 | I26: =VLOOKUP($C26,'RECAP SECT'!$G$6:$EV$253,29,FALSE) -> 5.27 | J26: =VLOOKUP($C26,'RECAP SECT'!$G$6:$EV$253,30,FALSE) -> 43% | K26: =VLOOKUP($C26,'RECAP SECT'!$G$6:$EV$253,31,FALSE) -> 8 | L26: =VLOOKUP($C26,'RECAP SECT'!$G$6:$EV$253,32,FALSE) -> 5.53 | M26: =VLOOKUP($C26,'RECAP SECT'!$G$6:$EV$253,33,FALSE) -> 53% | N26: =VLOOKUP($C26,'RECAP SECT'!$G$6:$EV$253,34,FALSE) -> 13 | O26: =VLOOKUP($C26,'RECAP SECT'!$G$6:$EV$253,35,FALSE) -> 2.64 | P26: =VLOOKUP($C26,'RECAP SECT'!$G$6:$EV$253,36,FALSE) -> 47% | Q26: =VLOOKUP($C26,'RECAP SECT'!$G$6:$EV$253,37,FALSE) -> 12 | R26: =VLOOKUP($C26,'RECAP SECT'!$G$6:$EV$253,38,FALSE) -> 48% | S26: =VLOOKUP($C26,'RECAP SECT'!$G$6:$EV$253,39,FALSE) -> 42% | T26: =VLOOKUP($C26,'RECAP SECT'!$G$6:$EV$253,40,FALSE) -> 8 | U26: =VLOOKUP($C26,'RECAP SECT'!$G$6:$EV$253,41,FALSE) -> 26% | V26: =VLOOKUP($C26,'RECAP SECT'!$G$6:$EV$253,42,FALSE) -> 39% | W26: =VLOOKUP($C26,'RECAP SECT'!$G$6:$EV$253,43,FALSE) -> 13
A27: 80 | B27: VOSGES | C27: 55 | D27: SAINT DIE | E27: =VLOOKUP($C27,'RECAP SECT'!$G$6:$EV$253,3,FALSE) -> 59.0 | F27: =VLOOKUP($C27,'RECAP SECT'!$G$6:$EV$253,26,FALSE) -> -9.83 | G27: =VLOOKUP($C27,'RECAP SECT'!$G$6:$EV$253,27,FALSE) -> -56% | H27: =VLOOKUP($C27,'RECAP SECT'!$G$6:$EV$253,28,FALSE) -> 13 | I27: =VLOOKUP($C27,'RECAP SECT'!$G$6:$EV$253,29,FALSE) -> 5.95 | J27: =VLOOKUP($C27,'RECAP SECT'!$G$6:$EV$253,30,FALSE) -> 36% | K27: =VLOOKUP($C27,'RECAP SECT'!$G$6:$EV$253,31,FALSE) -> 4 | L27: =VLOOKUP($C27,'RECAP SECT'!$G$6:$EV$253,32,FALSE) -> 6.85 | M27: =VLOOKUP($C27,'RECAP SECT'!$G$6:$EV$253,33,FALSE) -> 42% | N27: =VLOOKUP($C27,'RECAP SECT'!$G$6:$EV$253,34,FALSE) -> 7 | O27: =VLOOKUP($C27,'RECAP SECT'!$G$6:$EV$253,35,FALSE) -> 4.19 | P27: =VLOOKUP($C27,'RECAP SECT'!$G$6:$EV$253,36,FALSE) -> 16% | Q27: =VLOOKUP($C27,'RECAP SECT'!$G$6:$EV$253,37,FALSE) -> 3 | R27: =VLOOKUP($C27,'RECAP SECT'!$G$6:$EV$253,38,FALSE) -> 78% | S27: =VLOOKUP($C27,'RECAP SECT'!$G$6:$EV$253,39,FALSE) -> 6% | T27: =VLOOKUP($C27,'RECAP SECT'!$G$6:$EV$253,40,FALSE) -> 2 | U27: =VLOOKUP($C27,'RECAP SECT'!$G$6:$EV$253,41,FALSE) -> 9% | V27: =VLOOKUP($C27,'RECAP SECT'!$G$6:$EV$253,42,FALSE) -> 21% | W27: =VLOOKUP($C27,'RECAP SECT'!$G$6:$EV$253,43,FALSE) -> 7
A28: Total CEGEE Directions Commerciales | E28: =SUM(E10:E27) -> 1387

Sheet SE_EPARGNE
A1: Accueil | F1: BAROMETRE BDD - DIRECTIONS COMMERCIALES
F2: EPARGNE
F3: =ACCUEIL!H7 -> 2019-05-31
F7: Excédent de collecte yc DAV | I7: CA assurance vie | L7: Activité UC (CA+Arbitrage) | O7: Excédent assurance vie | R7: Excédent Epargne Bilan (hors emprunt CTO) | U7: Total Epargne
G8: coef | H8: ='RECAP DIRCOM'!BF4 -> 2% | J8: coef | K8: ='RECAP DIRCOM'!BI4 -> 2% | M8: coef | N8: ='RECAP DIRCOM'!BL4 -> 2% | P8: coef | Q8: ='RECAP DIRCOM'!BO4 -> 2% | S8: coef | T8: ='RECAP DIRCOM'!BR4 -> 7% | V8: coef | W8: ='RECAP DIRCOM'!BU4 -> 15%
A9: eds | B9: Direction | C9: eds | D9: Territoire | E9: ETP perf | F9: Réal / ETP | G9: % Ecart au 1er | H9: Rang | I9: Réal / ETP | J9: % Ecart au 1er | K9: Rang | L9: Réal / ETP | M9: % Ecart au 1er | N9: Rang | O9: Réal / ETP | P9: % Ecart au 1er | Q9: Rang | R9: Réal / ETP | S9: % Ecart au 1er | T9: Rang | U9: Moyenne ecart au 1er | V9: % Ecart au 1er | W9: Rang CEGEE
A10: 50 | B10: AUBE HAUTE MARNE | C10: 21 | D10: CHAUMONT | E10: =VLOOKUP($C10,'RECAP SECT'!$G$6:$EV$253,3,FALSE) -> 47.4 | F10: =VLOOKUP($C10,'RECAP SECT'!$G$6:$EV$253,50,FALSE) -> 1.32 | G10: =VLOOKUP($C10,'RECAP SECT'!$G$6:$EV$253,51,FALSE) -> 73% | H10: =VLOOKUP($C10,'RECAP SECT'!$G$6:$EV$253,52,FALSE) -> 14 | I10: =VLOOKUP($C10,'RECAP SECT'!$G$6:$EV$253,53,FALSE) -> 354.84 | J10: =VLOOKUP($C10,'RECAP SECT'!$G$6:$EV$253,54,FALSE) -> 17% | K10: =VLOOKUP($C10,'RECAP SECT'!$G$6:$EV$253,55,FALSE) -> 8 | L10: =VLOOKUP($C10,'RECAP SECT'!$G$6:$EV$253,56,FALSE) -> 87 | M10: =VLOOKUP($C10,'RECAP SECT'!$G$6:$EV$253,57,FALSE) -> 35% | N10: =VLOOKUP($C10,'RECAP SECT'!$G$6:$EV$253,58,FALSE) -> 14 | O10: =VLOOKUP($C10,'RECAP SECT'!$G$6:$EV$253,59,FALSE) -> 58.11 | P10: =VLOOKUP($C10,'RECAP SECT'!$G$6:$EV$253,60,FALSE) -> 65% | Q10: =VLOOKUP($C10,'RECAP SECT'!$G$6:$EV$253,61,FALSE) -> 12 | R10: =VLOOKUP($C10,'RECAP SECT'!$G$6:$EV$253,62,FALSE) -> -9.56 | S10: =VLOOKUP($C10,'RECAP SECT'!$G$6:$EV$253,63,FALSE) -> 108% | T10: =VLOOKUP($C10,'RECAP SECT'!$G$6:$EV$253,64,FALSE) -> 15 | U10: =VLOOKUP($C10,'RECAP SECT'!$G$6:$EV$253,65,FALSE) -> 76% | V10: =VLOOKUP($C10,'RECAP SECT'!$G$6:$EV$253,66,FALSE) -> 59% | W10: =VLOOKUP($C10,'RECAP SECT'!$G$6:$EV$253,67,FALSE) -> 16
A11: 50 | B11: AUBE HAUTE MARNE | C11: 14 | D11: TROYES | E11: =VLOOKUP($C11,'RECAP SECT'!$G$6:$EV$253,3,FALSE) -> 80.5 | F11: =VLOOKUP($C11,'RECAP SECT'!$G$6:$EV$253,50,FALSE) -> 7.74 | G11: =VLOOKUP($C11,'RECAP SECT'!$G$6:$EV$253,51,FALSE) -> 68% | H11: =VLOOKUP($C11,'RECAP SECT'!$G$6:$EV$253,52,FALSE) -> 12 | I11: =VLOOKUP($C11,'RECAP SECT'!$G$6:$EV$253,53,FALSE) -> 367.73 | J11: =VLOOKUP($C11,'RECAP SECT'!$G$6:$EV$253,54,FALSE) -> 14% | K11: =VLOOKUP($C11,'RECAP SECT'!$G$6:$EV$253,55,FALSE) -> 6 | L11: =VLOOKUP($C11,'RECAP SECT'!$G$6:$EV$253,56,FALSE) -> 133 | M11: =VLOOKUP($C11,'RECAP SECT'!$G$6:$EV$253,57,FALSE) -> 0% | N11: =VLOOKUP($C11,'RECAP SECT'!$G$6:$EV$253,58,FALSE) -> 1 | O11: =VLOOKUP($C11,'RECAP SECT'!$G$6:$EV$253,59,FALSE) -> 87.81 | P11: =VLOOKUP($C11,'RECAP SECT'!$G$6:$EV$253,60,FALSE) -> 48% | Q11: =VLOOKUP($C11,'RECAP SECT'!$G$6:$EV$253,61,FALSE) -> 9 | R11: =VLOOKUP($C11,'RECAP SECT'!$G$6:$EV$253,62,FALSE) -> -35.94 | S11: =VLOOKUP($C11,'RECAP SECT'!$G$6:$EV$253,63,FALSE) -> 131% | T11: =VLOOKUP($C11,'RECAP SECT'!$G$6:$EV$253,64,FALSE) -> 17 | U11: =VLOOKUP($C11,'RECAP SECT'!$G$6:$EV$253,65,FALSE) -> 78% | V11: =VLOOKUP($C11,'RECAP SECT'!$G$6:$EV$253,66,FALSE) -> 61% | W11: =VLOOKUP($C11,'RECAP SECT'!$G$6:$EV$253,67,FALSE) -> 17
A12: 262 | B12: BAS-RHIN | C12: 5060 | D12: HAGUENAU | E12: =VLOOKUP($C12,'RECAP SECT'!$G$6:$EV$253,3,FALSE) -> 89.8 | F12: =VLOOKUP($C12,'RECAP SECT'!$G$6:$EV$253,50,FALSE) -> 16.82 | G12: =VLOOKUP($C12,'RECAP SECT'!$G$6:$EV$253,51,FALSE) -> 61% | H12: =VLOOKUP($C12,'RECAP SECT'!$G$6:$EV$253,52,FALSE) -> 11 | I12: =VLOOKUP($C12,'RECAP SECT'!$G$6:$EV$253,53,FALSE) -> 254.79 | J12: =VLOOKUP($C12,'RECAP SECT'!$G$6:$EV$253,54,FALSE) -> 40% | K12: =VLOOKUP($C12,'RECAP SECT'!$G$6:$EV$253,55,FALSE) -> 17 | L12: =VLOOKUP($C12,'RECAP SECT'!$G$6:$EV$253,56,FALSE) -> 81 | M12: =VLOOKUP($C12,'RECAP SECT'!$G$6:$EV$253,57,FALSE) -> 39% | N12: =VLOOKUP($C12,'RECAP SECT'!$G$6:$EV$253,58,FALSE) -> 15 | O12: =VLOOKUP($C12,'RECAP SECT'!$G$6:$EV$253,59,FALSE) -> 35.01 | P12: =VLOOKUP($C12,'RECAP SECT'!$G$6:$EV$253,60,FALSE) -> 79% | Q12: =VLOOKUP($C12,'RECAP SECT'!$G$6:$EV$253,61,FALSE) -> 16 | R12: =VLOOKUP($C12,'RECAP SECT'!$G$6:$EV$253,62,FALSE) -> 62.81 | S12: =VLOOKUP($C12,'RECAP SECT'!$G$6:$EV$253,63,FALSE) -> 46% | T12: =VLOOKUP($C12,'RECAP SECT'!$G$6:$EV$253,64,FALSE) -> 6 | U12: =VLOOKUP($C12,'RECAP SECT'!$G$6:$EV$253,65,FALSE) -> 51% | V12: =VLOOKUP($C12,'RECAP SECT'!$G$6:$EV$253,66,FALSE) -> 33% | W12: =VLOOKUP($C12,'RECAP SECT'!$G$6:$EV$253,67,FALSE) -> 7
A13: 262 | B13: BAS-RHIN | C13: 5101 | D13: SELESTAT | E13: =VLOOKUP($C13,'RECAP SECT'!$G$6:$EV$253,3,FALSE) -> 76.3 | F13: =VLOOKUP($C13,'RECAP SECT'!$G$6:$EV$253,50,FALSE) -> 29.98 | G13: =VLOOKUP($C13,'RECAP SECT'!$G$6:$EV$253,51,FALSE) -> 52% | H13: =VLOOKUP($C13,'RECAP SECT'!$G$6:$EV$253,52,FALSE) -> 7 | I13: =VLOOKUP($C13,'RECAP SECT'!$G$6:$EV$253,53,FALSE) -> 272.61 | J13: =VLOOKUP($C13,'RECAP SECT'!$G$6:$EV$253,54,FALSE) -> 36% | K13: =VLOOKUP($C13,'RECAP SECT'!$G$6:$EV$253,55,FALSE) -> 15 | L13: =VLOOKUP($C13,'RECAP SECT'!$G$6:$EV$253,56,FALSE) -> 99 | M13: =VLOOKUP($C13,'RECAP SECT'!$G$6:$EV$253,57,FALSE) -> 26% | N13: =VLOOKUP($C13,'RECAP SECT'!$G$6:$EV$253,58,FALSE) -> 6 | O13: =VLOOKUP($C13,'RECAP SECT'!$G$6:$EV$253,59,FALSE) -> 37.64 | P13: =VLOOKUP($C13,'RECAP SECT'!$G$6:$EV$253,60,FALSE) -> 78% | Q13: =VLOOKUP($C13,'RECAP SECT'!$G$6:$EV$253,61,FALSE) -> 15 | R13: =VLOOKUP($C13,'RECAP SECT'!$G$6:$EV$253,62,FALSE) -> 50.19 | S13: =VLOOKUP($C13,'RECAP SECT'!$G$6:$EV$253,63,FALSE) -> 57% | T13: =VLOOKUP($C13,'RECAP SECT'!$G$6:$EV$253,64,FALSE) -> 8 | U13: =VLOOKUP($C13,'RECAP SECT'!$G$6:$EV$253,65,FALSE) -> 52% | V13: =VLOOKUP($C13,'RECAP SECT'!$G$6:$EV$253,66,FALSE) -> 35% | W13: =VLOOKUP($C13,'RECAP SECT'!$G$6:$EV$253,67,FALSE) -> 9
A14: 262 | B14: BAS-RHIN | C14: 5006 | D14: STRASBOURG | E14: =VLOOKUP($C14,'RECAP SECT'!$G$6:$EV$253,3,FALSE) -> 92.7 | F14: =VLOOKUP($C14,'RECAP SECT'!$G$6:$EV$253,50,FALSE) -> -34.40 | G14: =VLOOKUP($C14,'RECAP SECT'!$G$6:$EV$253,51,FALSE) -> 99% | H14: =VLOOKUP($C14,'RECAP SECT'!$G$6:$EV$253,52,FALSE) -> 16 | I14: =VLOOKUP($C14,'RECAP SECT'!$G$6:$EV$253,53,FALSE) -> 281.69 | J14: =VLOOKUP($C14,'RECAP SECT'!$G$6:$EV$253,54,FALSE) -> 34% | K14: =VLOOKUP($C14,'RECAP SECT'!$G$6:$EV$253,55,FALSE) -> 13 | L14: =VLOOKUP($C14,'RECAP SECT'!$G$6:$EV$253,56,FALSE) -> 109 | M14: =VLOOKUP($C14,'RECAP SECT'!$G$6:$EV$253,57,FALSE) -> 18% | N14: =VLOOKUP($C14,'RECAP SECT'!$G$6:$EV$253,58,FALSE) -> 4 | O14: =VLOOKUP($C14,'RECAP SECT'!$G$6:$EV$253,59,FALSE) -> 48.81 | P14: =VLOOKUP($C14,'RECAP SECT'!$G$6:$EV$253,60,FALSE) -> 71% | Q14: =VLOOKUP($C14,'RECAP SECT'!$G$6:$EV$253,61,FALSE) -> 13 | R14: =VLOOKUP($C14,'RECAP SECT'!$G$6:$EV$253,62,FALSE) -> 30.80 | S14: =VLOOKUP($C14,'RECAP SECT'!$G$6:$EV$253,63,FALSE) -> 73% | T14: =VLOOKUP($C14,'RECAP SECT'!$G$6:$EV$253,64,FALSE) -> 10 | U14: =VLOOKUP($C14,'RECAP SECT'!$G$6:$EV$253,65,FALSE) -> 64% | V14: =VLOOKUP($C14,'RECAP SECT'!$G$6:$EV$253,66,FALSE) -> 47% | W14: =VLOOKUP($C14,'RECAP SECT'!$G$6:$EV$253,67,FALSE) -> 14
A15: 264 | B15: HAUT-RHIN | C15: 5130 | D15: COLMAR | E15: =VLOOKUP($C15,'RECAP SECT'!$G$6:$EV$253,3,FALSE) -> 78.8 | F15: =VLOOKUP($C15,'RECAP SECT'!$G$6:$EV$253,50,FALSE) -> 54.83 | G15: =VLOOKUP($C15,'RECAP SECT'!$G$6:$EV$253,51,FALSE) -> 33% | H15: =VLOOKUP($C15,'RECAP SECT'!$G$6:$EV$253,52,FALSE) -> 4 | I15: =VLOOKUP($C15,'RECAP SECT'!$G$6:$EV$253,53,FALSE) -> 261.91 | J15: =VLOOKUP($C15,'RECAP SECT'!$G$6:$EV$253,54,FALSE) -> 38% | K15: =VLOOKUP($C15,'RECAP SECT'!$G$6:$EV$253,55,FALSE) -> 16 | L15: =VLOOKUP($C15,'RECAP SECT'!$G$6:$EV$253,56,FALSE) -> 88 | M15: =VLOOKUP($C15,'RECAP SECT'!$G$6:$EV$253,57,FALSE) -> 34% | N15: =VLOOKUP($C15,'RECAP SECT'!$G$6:$EV$253,58,FALSE) -> 13 | O15: =VLOOKUP($C15,'RECAP SECT'!$G$6:$EV$253,59,FALSE) -> 17.88 | P15: =VLOOKUP($C15,'RECAP SECT'!$G$6:$EV$253,60,FALSE) -> 89% | Q15: =VLOOKUP($C15,'RECAP SECT'!$G$6:$EV$253,61,FALSE) -> 18 | R15: =VLOOKUP($C15,'RECAP SECT'!$G$6:$EV$253,62,FALSE) -> 94.04 | S15: =VLOOKUP($C15,'RECAP SECT'!$G$6:$EV$253,63,FALSE) -> 19% | T15: =VLOOKUP($C15,'RECAP SECT'!$G$6:$EV$253,64,FALSE) -> 2 | U15: =VLOOKUP($C15,'RECAP SECT'!$G$6:$EV$253,65,FALSE) -> 35% | V15: =VLOOKUP($C15,'RECAP SECT'!$G$6:$EV$253,66,FALSE) -> 17% | W15: =VLOOKUP($C15,'RECAP SECT'!$G$6:$EV$253,67,FALSE) -> 3
A16: 264 | B16: HAUT-RHIN | C16: 5169 | D16: MULHOUSE | E16: =VLOOKUP($C16,'RECAP SECT'!$G$6:$EV$253,3,FALSE) -> 78.2 | F16: =VLOOKUP($C16,'RECAP SECT'!$G$6:$EV$253,50,FALSE) -> 47.10 | G16: =VLOOKUP($C16,'RECAP SECT'!$G$6:$EV$253,51,FALSE) -> 39% | H16: =VLOOKUP($C16,'RECAP SECT'!$G$6:$EV$253,52,FALSE) -> 5 | I16: =VLOOKUP($C16,'RECAP SECT'!$G$6:$EV$253,53,FALSE) -> 243.48 | J16: =VLOOKUP($C16,'RECAP SECT'!$G$6:$EV$253,54,FALSE) -> 43% | K16: =VLOOKUP($C16,'RECAP SECT'!$G$6:$EV$253,55,FALSE) -> 18 | L16: =VLOOKUP($C16,'RECAP SECT'!$G$6:$EV$253,56,FALSE) -> 74 | M16: =VLOOKUP($C16,'RECAP SECT'!$G$6:$EV$253,57,FALSE) -> 44% | N16: =VLOOKUP($C16,'RECAP SECT'!$G$6:$EV$253,58,FALSE) -> 17 | O16: =VLOOKUP($C16,'RECAP SECT'!$G$6:$EV$253,59,FALSE) -> 74.27 | P16: =VLOOKUP($C16,'RECAP SECT'!$G$6:$EV$253,60,FALSE) -> 56% | Q16: =VLOOKUP($C16,'RECAP SECT'!$G$6:$EV$253,61,FALSE) -> 11 | R16: =VLOOKUP($C16,'RECAP SECT'!$G$6:$EV$253,62,FALSE) -> 85.98 | S16: =VLOOKUP($C16,'RECAP SECT'!$G$6:$EV$253,63,FALSE) -> 26% | T16: =VLOOKUP($C16,'RECAP SECT'!$G$6:$EV$253,64,FALSE) -> 4 | U16: =VLOOKUP($C16,'RECAP SECT'!$G$6:$EV$253,65,FALSE) -> 36% | V16: =VLOOKUP($C16,'RECAP SECT'!$G$6:$EV$253,66,FALSE) -> 19% | W16: =VLOOKUP($C16,'RECAP SECT'!$G$6:$EV$253,67,FALSE) -> 5
A17: 30 | B17: MARNE-ARDENNES | C17: 6 | D17: CHALONS EN CHAMPAGNE | E17: =VLOOKUP($C17,'RECAP SECT'!$G$6:$EV$253,3,FALSE) -> 49.1 | F17: =VLOOKUP($C17,'RECAP SECT'!$G$6:$EV$253,50,FALSE) -> -104.21 | G17: =VLOOKUP($C17,'RECAP SECT'!$G$6:$EV$253,51,FALSE) -> 150% | H17: =VLOOKUP($C17,'RECAP SECT'!$G$6:$EV$253,52,FALSE) -> 18 | I17: =VLOOKUP($C17,'RECAP SECT'!$G$6:$EV$253,53,FALSE) -> 351.41 | J17: =VLOOKUP($C17,'RECAP SECT'!$G$6:$EV$253,54,FALSE) -> 17% | K17: =VLOOKUP($C17,'RECAP SECT'!$G$6:$EV$253,55,FALSE) -> 9 | L17: =VLOOKUP($C17,'RECAP SECT'!$G$6:$EV$253,56,FALSE) -> 109 | M17: =VLOOKUP($C17,'RECAP SECT'!$G$6:$EV$253,57,FALSE) -> 18% | N17: =VLOOKUP($C17,'RECAP SECT'!$G$6:$EV$253,58,FALSE) -> 3 | O17: =VLOOKUP($C17,'RECAP SECT'!$G$6:$EV$253,59,FALSE) -> 42.30 | P17: =VLOOKUP($C17,'RECAP SECT'!$G$6:$EV$253,60,FALSE) -> 75% | Q17: =VLOOKUP($C17,'RECAP SECT'!$G$6:$EV$253,61,FALSE) -> 14 | R17: =VLOOKUP($C17,'RECAP SECT'!$G$6:$EV$253,62,FALSE) -> 115.54 | S17: =VLOOKUP($C17,'RECAP SECT'!$G$6:$EV$253,63,FALSE) -> 0% | T17: =VLOOKUP($C17,'RECAP SECT'!$G$6:$EV$253,64,FALSE) -> 1 | U17: =VLOOKUP($C17,'RECAP SECT'!$G$6:$EV$253,65,FALSE) -> 35% | V17: =VLOOKUP($C17,'RECAP SECT'!$G$6:$EV$253,66,FALSE) -> 17% | W17: =VLOOKUP($C17,'RECAP SECT'!$G$6:$EV$253,67,FALSE) -> 4
A18: 30 | B18: MARNE-ARDENNES | C18: 2 | D18: CHARLEVILLE MEZIERES | E18: =VLOOKUP($C18,'RECAP SECT'!$G$6:$EV$253,3,FALSE) -> 64.0 | F18: =VLOOKUP($C18,'RECAP SECT'!$G$6:$EV$253,50,FALSE) -> -76.91 | G18: =VLOOKUP($C18,'RECAP SECT'!$G$6:$EV$253,51,FALSE) -> 130% | H18: =VLOOKUP($C18,'RECAP SECT'!$G$6:$EV$253,52,FALSE) -> 17 | I18: =VLOOKUP($C18,'RECAP SECT'!$G$6:$EV$253,53,FALSE) -> 277.47 | J18: =VLOOKUP($C18,'RECAP SECT'!$G$6:$EV$253,54,FALSE) -> 35% | K18: =VLOOKUP($C18,'RECAP SECT'!$G$6:$EV$253,55,FALSE) -> 14 | L18: =VLOOKUP($C18,'RECAP SECT'!$G$6:$EV$253,56,FALSE) -> 68 | M18: =VLOOKUP($C18,'RECAP SECT'!$G$6:$EV$253,57,FALSE) -> 49% | N18: =VLOOKUP($C18,'RECAP SECT'!$G$6:$EV$253,58,FALSE) -> 18 | O18: =VLOOKUP($C18,'RECAP SECT'!$G$6:$EV$253,59,FALSE) -> 29.39 | P18: =VLOOKUP($C18,'RECAP SECT'!$G$6:$EV$253,60,FALSE) -> 82% | Q18: =VLOOKUP($C18,'RECAP SECT'!$G$6:$EV$253,61,FALSE) -> 17 | R18: =VLOOKUP($C18,'RECAP SECT'!$G$6:$EV$253,62,FALSE) -> -22.80 | S18: =VLOOKUP($C18,'RECAP SECT'!$G$6:$EV$253,63,FALSE) -> 120% | T18: =VLOOKUP($C18,'RECAP SECT'!$G$6:$EV$253,64,FALSE) -> 16 | U18: =VLOOKUP($C18,'RECAP SECT'!$G$6:$EV$253,65,FALSE) -> 95% | V18: =VLOOKUP($C18,'RECAP SECT'!$G$6:$EV$253,66,FALSE) -> 78% | W18: =VLOOKUP($C18,'RECAP SECT'!$G$6:$EV$253,67,FALSE) -> 18
A19: 30 | B19: MARNE-ARDENNES | C19: 11 | D19: REIMS | E19: =VLOOKUP($C19,'RECAP SECT'!$G$6:$EV$253,3,FALSE) -> 91.1 | F19: =VLOOKUP($C19,'RECAP SECT'!$G$6:$EV$253,50,FALSE) -> 100.18 | G19: =VLOOKUP($C19,'RECAP SECT'!$G$6:$EV$253,51,FALSE) -> 0% | H19: =VLOOKUP($C19,'RECAP SECT'!$G$6:$EV$253,52,FALSE) -> 1 | I19: =VLOOKUP($C19,'RECAP SECT'!$G$6:$EV$253,53,FALSE) -> 425.29 | J19: =VLOOKUP($C19,'RECAP SECT'!$G$6:$EV$253,54,FALSE) -> 0% | K19: =VLOOKUP($C19,'RECAP SECT'!$G$6:$EV$253,55,FALSE) -> 1 | L19: =VLOOKUP($C19,'RECAP SECT'!$G$6:$EV$253,56,FALSE) -> 88 | M19: =VLOOKUP($C19,'RECAP SECT'!$G$6:$EV$253,57,FALSE) -> 33% | N19: =VLOOKUP($C19,'RECAP SECT'!$G$6:$EV$253,58,FALSE) -> 12 | O19: =VLOOKUP($C19,'RECAP SECT'!$G$6:$EV$253,59,FALSE) -> 167.90 | P19: =VLOOKUP($C19,'RECAP SECT'!$G$6:$EV$253,60,FALSE) -> 0% | Q19: =VLOOKUP($C19,'RECAP SECT'!$G$6:$EV$253,61,FALSE) -> 1 | R19: =VLOOKUP($C19,'RECAP SECT'!$G$6:$EV$253,62,FALSE) -> 63.31 | S19: =VLOOKUP($C19,'RECAP SECT'!$G$6:$EV$253,63,FALSE) -> 45% | T19: =VLOOKUP($C19,'RECAP SECT'!$G$6:$EV$253,64,FALSE) -> 5 | U19: =VLOOKUP($C19,'RECAP SECT'!$G$6:$EV$253,65,FALSE) -> 26% | V19: =VLOOKUP($C19,'RECAP SECT'!$G$6:$EV$253,66,FALSE) -> 8% | W19: =VLOOKUP($C19,'RECAP SECT'!$G$6:$EV$253,67,FALSE) -> 2
A20: 110 | B20: MEURTHE ET MOSELLE MEUSE | C20: 26 | D20: NANCY | E20: =VLOOKUP($C20,'RECAP SECT'!$G$6:$EV$253,3,FALSE) -> 80.2 | F20: =VLOOKUP($C20,'RECAP SECT'!$G$6:$EV$253,50,FALSE) -> 20.80 | G20: =VLOOKUP($C20,'RECAP SECT'!$G$6:$EV$253,51,FALSE) -> 58% | H20: =VLOOKUP($C20,'RECAP SECT'!$G$6:$EV$253,52,FALSE) -> 10 | I20: =VLOOKUP($C20,'RECAP SECT'!$G$6:$EV$253,53,FALSE) -> 399.98 | J20: =VLOOKUP($C20,'RECAP SECT'!$G$6:$EV$253,54,FALSE) -> 6% | K20: =VLOOKUP($C20,'RECAP SECT'!$G$6:$EV$253,55,FALSE) -> 4 | L20: =VLOOKUP($C20,'RECAP SECT'!$G$6:$EV$253,56,FALSE) -> 90 | M20: =VLOOKUP($C20,'RECAP SECT'!$G$6:$EV$253,57,FALSE) -> 32% | N20: =VLOOKUP($C20,'RECAP SECT'!$G$6:$EV$253,58,FALSE) -> 11 | O20: =VLOOKUP($C20,'RECAP SECT'!$G$6:$EV$253,59,FALSE) -> 138.77 | P20: =VLOOKUP($C20,'RECAP SECT'!$G$6:$EV$253,60,FALSE) -> 17% | Q20: =VLOOKUP($C20,'RECAP SECT'!$G$6:$EV$253,61,FALSE) -> 4 | R20: =VLOOKUP($C20,'RECAP SECT'!$G$6:$EV$253,62,FALSE) -> 4.81 | S20: =VLOOKUP($C20,'RECAP SECT'!$G$6:$EV$253,63,FALSE) -> 96% | T20: =VLOOKUP($C20,'RECAP SECT'!$G$6:$EV$253,64,FALSE) -> 14 | U20: =VLOOKUP($C20,'RECAP SECT'!$G$6:$EV$253,65,FALSE) -> 60% | V20: =VLOOKUP($C20,'RECAP SECT'!$G$6:$EV$253,66,FALSE) -> 43% | W20: =VLOOKUP($C20,'RECAP SECT'!$G$6:$EV$253,67,FALSE) -> 13
A21: 110 | B21: MEURTHE ET MOSELLE MEUSE | C21: 27 | D21: PONT A MOUSSON | E21: =VLOOKUP($C21,'RECAP SECT'!$G$6:$EV$253,3,FALSE) -> 89.4 | F21: =VLOOKUP($C21,'RECAP SECT'!$G$6:$EV$253,50,FALSE) -> 27.39 | G21: =VLOOKUP($C21,'RECAP SECT'!$G$6:$EV$253,51,FALSE) -> 53% | H21: =VLOOKUP($C21,'RECAP SECT'!$G$6:$EV$253,52,FALSE) -> 9 | I21: =VLOOKUP($C21,'RECAP SECT'!$G$6:$EV$253,53,FALSE) -> 332.74 | J21: =VLOOKUP($C21,'RECAP SECT'!$G$6:$EV$253,54,FALSE) -> 22% | K21: =VLOOKUP($C21,'RECAP SECT'!$G$6:$EV$253,55,FALSE) -> 11 | L21: =VLOOKUP($C21,'RECAP SECT'!$G$6:$EV$253,56,FALSE) -> 80 | M21: =VLOOKUP($C21,'RECAP SECT'!$G$6:$EV$253,57,FALSE) -> 39% | N21: =VLOOKUP($C21,'RECAP SECT'!$G$6:$EV$253,58,FALSE) -> 16 | O21: =VLOOKUP($C21,'RECAP SECT'!$G$6:$EV$253,59,FALSE) -> 119.01 | P21: =VLOOKUP($C21,'RECAP SECT'!$G$6:$EV$253,60,FALSE) -> 29% | Q21: =VLOOKUP($C21,'RECAP SECT'!$G$6:$EV$253,61,FALSE) -> 6 | R21: =VLOOKUP($C21,'RECAP SECT'!$G$6:$EV$253,62,FALSE) -> 29.38 | S21: =VLOOKUP($C21,'RECAP SECT'!$G$6:$EV$253,63,FALSE) -> 75% | T21: =VLOOKUP($C21,'RECAP SECT'!$G$6:$EV$253,64,FALSE) -> 11 | U21: =VLOOKUP($C21,'RECAP SECT'!$G$6:$EV$253,65,FALSE) -> 54% | V21: =VLOOKUP($C21,'RECAP SECT'!$G$6:$EV$253,66,FALSE) -> 37% | W21: =VLOOKUP($C21,'RECAP SECT'!$G$6:$EV$253,67,FALSE) -> 10
A22: 110 | B22: MEURTHE ET MOSELLE MEUSE | C22: 31 | D22: VERDUN | E22: =VLOOKUP($C22,'RECAP SECT'!$G$6:$EV$253,3,FALSE) -> 66.1 | F22: =VLOOKUP($C22,'RECAP SECT'!$G$6:$EV$253,50,FALSE) -> -9.03 | G22: =VLOOKUP($C22,'RECAP SECT'!$G$6:$EV$253,51,FALSE) -> 80% | H22: =VLOOKUP($C22,'RECAP SECT'!$G$6:$EV$253,52,FALSE) -> 15 | I22: =VLOOKUP($C22,'RECAP SECT'!$G$6:$EV$253,53,FALSE) -> 366.63 | J22: =VLOOKUP($C22,'RECAP SECT'!$G$6:$EV$253,54,FALSE) -> 14% | K22: =VLOOKUP($C22,'RECAP SECT'!$G$6:$EV$253,55,FALSE) -> 7 | L22: =VLOOKUP($C22,'RECAP SECT'!$G$6:$EV$253,56,FALSE) -> 91 | M22: =VLOOKUP($C22,'RECAP SECT'!$G$6:$EV$253,57,FALSE) -> 32% | N22: =VLOOKUP($C22,'RECAP SECT'!$G$6:$EV$253,58,FALSE) -> 8 | O22: =VLOOKUP($C22,'RECAP SECT'!$G$6:$EV$253,59,FALSE) -> 95.48 | P22: =VLOOKUP($C22,'RECAP SECT'!$G$6:$EV$253,60,FALSE) -> 43% | Q22: =VLOOKUP($C22,'RECAP SECT'!$G$6:$EV$253,61,FALSE) -> 8 | R22: =VLOOKUP($C22,'RECAP SECT'!$G$6:$EV$253,62,FALSE) -> 57.48 | S22: =VLOOKUP($C22,'RECAP SECT'!$G$6:$EV$253,63,FALSE) -> 50% | T22: =VLOOKUP($C22,'RECAP SECT'!$G$6:$EV$253,64,FALSE) -> 7 | U22: =VLOOKUP($C22,'RECAP SECT'!$G$6:$EV$253,65,FALSE) -> 46% | V22: =VLOOKUP($C22,'RECAP SECT'!$G$6:$EV$253,66,FALSE) -> 29% | W22: =VLOOKUP($C22,'RECAP SECT'!$G$6:$EV$253,67,FALSE) -> 6
A23: 160 | B23: MOSELLE | C23: 45 | D23: METZ | E23: =VLOOKUP($C23,'RECAP SECT'!$G$6:$EV$253,3,FALSE) -> 105.9 | F23: =VLOOKUP($C23,'RECAP SECT'!$G$6:$EV$253,50,FALSE) -> 97.34 | G23: =VLOOKUP($C23,'RECAP SECT'!$G$6:$EV$253,51,FALSE) -> 2% | H23: =VLOOKUP($C23,'RECAP SECT'!$G$6:$EV$253,52,FALSE) -> 2 | I23: =VLOOKUP($C23,'RECAP SECT'!$G$6:$EV$253,53,FALSE) -> 378.42 | J23: =VLOOKUP($C23,'RECAP SECT'!$G$6:$EV$253,54,FALSE) -> 11% | K23: =VLOOKUP($C23,'RECAP SECT'!$G$6:$EV$253,55,FALSE) -> 5 | L23: =VLOOKUP($C23,'RECAP SECT'!$G$6:$EV$253,56,FALSE) -> 108 | M23: =VLOOKUP($C23,'RECAP SECT'!$G$6:$EV$253,57,FALSE) -> 19% | N23: =VLOOKUP($C23,'RECAP SECT'!$G$6:$EV$253,58,FALSE) -> 5 | O23: =VLOOKUP($C23,'RECAP SECT'!$G$6:$EV$253,59,FALSE) -> 141.87 | P23: =VLOOKUP($C23,'RECAP SECT'!$G$6:$EV$253,60,FALSE) -> 16% | Q23: =VLOOKUP($C23,'RECAP SECT'!$G$6:$EV$253,61,FALSE) -> 3 | R23: =VLOOKUP($C23,'RECAP SECT'!$G$6:$EV$253,62,FALSE) -> 88.37 | S23: =VLOOKUP($C23,'RECAP SECT'!$G$6:$EV$253,63,FALSE) -> 24% | T23: =VLOOKUP($C23,'RECAP SECT'!$G$6:$EV$253,64,FALSE) -> 3 | U23: =VLOOKUP($C23,'RECAP SECT'!$G$6:$EV$253,65,FALSE) -> 17% | V23: =VLOOKUP($C23,'RECAP SECT'!$G$6:$EV$253,66,FALSE) -> 0% | W23: =VLOOKUP($C23,'RECAP SECT'!$G$6:$EV$253,67,FALSE) -> 1
A24: 160 | B24: MOSELLE | C24: 42 | D24: MOSELLE EST | E24: =VLOOKUP($C24,'RECAP SECT'!$G$6:$EV$253,3,FALSE) -> 87.4 | F24: =VLOOKUP($C24,'RECAP SECT'!$G$6:$EV$253,50,FALSE) -> 37.13 | G24: =VLOOKUP($C24,'RECAP SECT'!$G$6:$EV$253,51,FALSE) -> 46% | H24: =VLOOKUP($C24,'RECAP SECT'!$G$6:$EV$253,52,FALSE) -> 6 | I24: =VLOOKUP($C24,'RECAP SECT'!$G$6:$EV$253,53,FALSE) -> 338.68 | J24: =VLOOKUP($C24,'RECAP SECT'!$G$6:$EV$253,54,FALSE) -> 20% | K24: =VLOOKUP($C24,'RECAP SECT'!$G$6:$EV$253,55,FALSE) -> 10 | L24: =VLOOKUP($C24,'RECAP SECT'!$G$6:$EV$253,56,FALSE) -> 90 | M24: =VLOOKUP($C24,'RECAP SECT'!$G$6:$EV$253,57,FALSE) -> 32% | N24: =VLOOKUP($C24,'RECAP SECT'!$G$6:$EV$253,58,FALSE) -> 9 | O24: =VLOOKUP($C24,'RECAP SECT'!$G$6:$EV$253,59,FALSE) -> 108.71 | P24: =VLOOKUP($C24,'RECAP SECT'!$G$6:$EV$253,60,FALSE) -> 35% | Q24: =VLOOKUP($C24,'RECAP SECT'!$G$6:$EV$253,61,FALSE) -> 7 | R24: =VLOOKUP($C24,'RECAP SECT'!$G$6:$EV$253,62,FALSE) -> 25.57 | S24: =VLOOKUP($C24,'RECAP SECT'!$G$6:$EV$253,63,FALSE) -> 78% | T24: =VLOOKUP($C24,'RECAP SECT'!$G$6:$EV$253,64,FALSE) -> 12 | U24: =VLOOKUP($C24,'RECAP SECT'!$G$6:$EV$253,65,FALSE) -> 54% | V24: =VLOOKUP($C24,'RECAP SECT'!$G$6:$EV$253,66,FALSE) -> 37% | W24: =VLOOKUP($C24,'RECAP SECT'!$G$6:$EV$253,67,FALSE) -> 11
A25: 160 | B25: MOSELLE | C25: 44 | D25: MOSELLE NORD | E25: =VLOOKUP($C25,'RECAP SECT'!$G$6:$EV$253,3,FALSE) -> 81.6 | F25: =VLOOKUP($C25,'RECAP SECT'!$G$6:$EV$253,50,FALSE) -> 28.28 | G25: =VLOOKUP($C25,'RECAP SECT'!$G$6:$EV$253,51,FALSE) -> 53% | H25: =VLOOKUP($C25,'RECAP SECT'!$G$6:$EV$253,52,FALSE) -> 8 | I25: =VLOOKUP($C25,'RECAP SECT'!$G$6:$EV$253,53,FALSE) -> 415.69 | J25: =VLOOKUP($C25,'RECAP SECT'!$G$6:$EV$253,54,FALSE) -> 2% | K25: =VLOOKUP($C25,'RECAP SECT'!$G$6:$EV$253,55,FALSE) -> 2 | L25: =VLOOKUP($C25,'RECAP SECT'!$G$6:$EV$253,56,FALSE) -> 112 | M25: =VLOOKUP($C25,'RECAP SECT'!$G$6:$EV$253,57,FALSE) -> 16% | N25: =VLOOKUP($C25,'RECAP SECT'!$G$6:$EV$253,58,FALSE) -> 2 | O25: =VLOOKUP($C25,'RECAP SECT'!$G$6:$EV$253,59,FALSE) -> 157.64 | P25: =VLOOKUP($C25,'RECAP SECT'!$G$6:$EV$253,60,FALSE) -> 6% | Q25: =VLOOKUP($C25,'RECAP SECT'!$G$6:$EV$253,61,FALSE) -> 2 | R25: =VLOOKUP($C25,'RECAP SECT'!$G$6:$EV$253,62,FALSE) -> -37.92 | S25: =VLOOKUP($C25,'RECAP SECT'!$G$6:$EV$253,63,FALSE) -> 133% | T25: =VLOOKUP($C25,'RECAP SECT'!$G$6:$EV$253,64,FALSE) -> 18 | U25: =VLOOKUP($C25,'RECAP SECT'!$G$6:$EV$253,65,FALSE) -> 72% | V25: =VLOOKUP($C25,'RECAP SECT'!$G$6:$EV$253,66,FALSE) -> 55% | W25: =VLOOKUP($C25,'RECAP SECT'!$G$6:$EV$253,67,FALSE) -> 15
A26: 80 | B26: VOSGES | C26: 57 | D26: EPINAL | E26: =VLOOKUP($C26,'RECAP SECT'!$G$6:$EV$253,3,FALSE) -> 69.3 | F26: =VLOOKUP($C26,'RECAP SECT'!$G$6:$EV$253,50,FALSE) -> 7.45 | G26: =VLOOKUP($C26,'RECAP SECT'!$G$6:$EV$253,51,FALSE) -> 68% | H26: =VLOOKUP($C26,'RECAP SECT'!$G$6:$EV$253,52,FALSE) -> 13 | I26: =VLOOKUP($C26,'RECAP SECT'!$G$6:$EV$253,53,FALSE) -> 326.93 | J26: =VLOOKUP($C26,'RECAP SECT'!$G$6:$EV$253,54,FALSE) -> 23% | K26: =VLOOKUP($C26,'RECAP SECT'!$G$6:$EV$253,55,FALSE) -> 12 | L26: =VLOOKUP($C26,'RECAP SECT'!$G$6:$EV$253,56,FALSE) -> 90 | M26: =VLOOKUP($C26,'RECAP SECT'!$G$6:$EV$253,57,FALSE) -> 32% | N26: =VLOOKUP($C26,'RECAP SECT'!$G$6:$EV$253,58,FALSE) -> 10 | O26: =VLOOKUP($C26,'RECAP SECT'!$G$6:$EV$253,59,FALSE) -> 82.10 | P26: =VLOOKUP($C26,'RECAP SECT'!$G$6:$EV$253,60,FALSE) -> 51% | Q26: =VLOOKUP($C26,'RECAP SECT'!$G$6:$EV$253,61,FALSE) -> 10 | R26: =VLOOKUP($C26,'RECAP SECT'!$G$6:$EV$253,62,FALSE) -> 36.69 | S26: =VLOOKUP($C26,'RECAP SECT'!$G$6:$EV$253,63,FALSE) -> 68% | T26: =VLOOKUP($C26,'RECAP SECT'!$G$6:$EV$253,64,FALSE) -> 9 | U26: =VLOOKUP($C26,'RECAP SECT'!$G$6:$EV$253,65,FALSE) -> 55% | V26: =VLOOKUP($C26,'RECAP SECT'!$G$6:$EV$253,66,FALSE) -> 38% | W26: =VLOOKUP($C26,'RECAP SECT'!$G$6:$EV$253,67,FALSE) -> 12
A27: 80 | B27: VOSGES | C27: 55 | D27: SAINT DIE | E27: =VLOOKUP($C27,'RECAP SECT'!$G$6:$EV$253,3,FALSE) -> 59.0 | F27: =VLOOKUP($C27,'RECAP SECT'!$G$6:$EV$253,50,FALSE) -> 68.52 | G27: =VLOOKUP($C27,'RECAP SECT'!$G$6:$EV$253,51,FALSE) -> 23% | H27: =VLOOKUP($C27,'RECAP SECT'!$G$6:$EV$253,52,FALSE) -> 3 | I27: =VLOOKUP($C27,'RECAP SECT'!$G$6:$EV$253,53,FALSE) -> 400.58 | J27: =VLOOKUP($C27,'RECAP SECT'!$G$6:$EV$253,54,FALSE) -> 6% | K27: =VLOOKUP($C27,'RECAP SECT'!$G$6:$EV$253,55,FALSE) -> 3 | L27: =VLOOKUP($C27,'RECAP SECT'!$G$6:$EV$253,56,FALSE) -> 98 | M27: =VLOOKUP($C27,'RECAP SECT'!$G$6:$EV$253,57,FALSE) -> 26% | N27: =VLOOKUP($C27,'RECAP SECT'!$G$6:$EV$253,58,FALSE) -> 7 | O27: =VLOOKUP($C27,'RECAP SECT'!$G$6:$EV$253,59,FALSE) -> 131.14 | P27: =VLOOKUP($C27,'RECAP SECT'!$G$6:$EV$253,60,FALSE) -> 22% | Q27: =VLOOKUP($C27,'RECAP SECT'!$G$6:$EV$253,61,FALSE) -> 5 | R27: =VLOOKUP($C27,'RECAP SECT'!$G$6:$EV$253,62,FALSE) -> 15.82 | S27: =VLOOKUP($C27,'RECAP SECT'!$G$6:$EV$253,63,FALSE) -> 86% | T27: =VLOOKUP($C27,'RECAP SECT'!$G$6:$EV$253,64,FALSE) -> 13 | U27: =VLOOKUP($C27,'RECAP SECT'!$G$6:$EV$253,65,FALSE) -> 51% | V27: =VLOOKUP($C27,'RECAP SECT'!$G$6:$EV$253,66,FALSE) -> 33% | W27: =VLOOKUP($C27,'RECAP SECT'!$G$6:$EV$253,67,FALSE) -> 8
A28: Total CEGEE Directions Commerciales | E28: =SUM(E10:E27) -> 1387

Sheet SE_CREDIT
A1: Accueil | F1: BAROMETRE BDD - DIRECTIONS COMMERCIALES
F2: CREDITS
F3: =ACCUEIL!H7 -> 2019-05-31
F7: Engagements crédit conso (hors clients note octroi à 9) | I7: % CNP crédit conso | L7: Engagements crédi immo | O7: % CNP crédit immo | R7: Taux couverture SACCEF | U7: Engagement Crédit MLT + Crédit Bail | X7: Total Crédits
G8: coef | H8: ='RECAP DIRCOM'!CD4 -> 3% | J8: coef | K8: ='RECAP DIRCOM'!CG4 -> 2% | M8: coef | N8: ='RECAP DIRCOM'!CJ4 -> 3% | P8: coef | Q8: ='RECAP DIRCOM'!CM4 -> 2% | S8: coef | T8: ='RECAP DIRCOM'!CP4 -> 2% | V8: coef | W8: ='RECAP DIRCOM'!CS4 -> 3% | Y8: coef | Z8: ='RECAP DIRCOM'!CV4 -> 15%
A9: eds | B9: Direction | C9: eds | D9: Territoire | E9: ETP perf | F9: Réal / ETP | G9: % Ecart au 1er | H9: Rang | J9: % Ecart au 1er | K9: Rang | L9: Taux réal objectif | M9: % Ecart au 1er | N9: Rang | P9: % Ecart au 1er | Q9: Rang | S9: % Ecart au 1er | T9: Rang | U9: Taux réal objectif | V9: % Ecart au 1er | W9: Rang | X9: Moyenne ecart au 1er | Y9: % Ecart au 1er | Z9: Rang CEGEE
A10: 50 | B10: AUBE HAUTE MARNE | C10: 21 | D10: CHAUMONT | E10: =VLOOKUP($C10,'RECAP SECT'!$G$6:$EV$253,3,FALSE) -> 47.4 | F10: =VLOOKUP($C10,'RECAP SECT'!$G$6:$EV$253,74,FALSE) -> 253.16 | G10: =VLOOKUP($C10,'RECAP SECT'!$G$6:$EV$253,75,FALSE) -> 0% | H10: =VLOOKUP($C10,'RECAP SECT'!$G$6:$EV$253,76,FALSE) -> 1 | I10: =VLOOKUP($C10,'RECAP SECT'!$G$6:$EV$253,77,FALSE) -> 94% | J10: =VLOOKUP($C10,'RECAP SECT'!$G$6:$EV$253,78,FALSE) -> 4% | K10: =VLOOKUP($C10,'RECAP SECT'!$G$6:$EV$253,79,FALSE) -> 10 | L10: =VLOOKUP($C10,'RECAP SECT'!$G$6:$EV$253,80,FALSE) -> 27% | M10: =VLOOKUP($C10,'RECAP SECT'!$G$6:$EV$253,81,FALSE) -> 39% | N10: =VLOOKUP($C10,'RECAP SECT'!$G$6:$EV$253,82,FALSE) -> 18 | O10: =VLOOKUP($C10,'RECAP SECT'!$G$6:$EV$253,83,FALSE) -> 65% | P10: =VLOOKUP($C10,'RECAP SECT'!$G$6:$EV$253,84,FALSE) -> 25% | Q10: =VLOOKUP($C10,'RECAP SECT'!$G$6:$EV$253,85,FALSE) -> 15 | R10: =VLOOKUP($C10,'RECAP SECT'!$G$6:$EV$253,86,FALSE) -> 85% | S10: =VLOOKUP($C10,'RECAP SECT'!$G$6:$EV$253,87,FALSE) -> 7% | T10: =VLOOKUP($C10,'RECAP SECT'!$G$6:$EV$253,88,FALSE) -> 9 | U10: =VLOOKUP($C10,'RECAP SECT'!$G$6:$EV$253,89,FALSE) -> 39% | V10: =VLOOKUP($C10,'RECAP SECT'!$G$6:$EV$253,90,FALSE) -> 53% | W10: =VLOOKUP($C10,'RECAP SECT'!$G$6:$EV$253,91,FALSE) -> 12 | X10: =VLOOKUP($C10,'RECAP SECT'!$G$6:$EV$253,92,FALSE) -> 23% | Y10: =VLOOKUP($C10,'RECAP SECT'!$G$6:$EV$253,93,FALSE) -> 16% | Z10: =VLOOKUP($C10,'RECAP SECT'!$G$6:$EV$253,94,FALSE) -> 10
A11: 50 | B11: AUBE HAUTE MARNE | C11: 14 | D11: TROYES | E11: =VLOOKUP($C11,'RECAP SECT'!$G$6:$EV$253,3,FALSE) -> 80.5 | F11: =VLOOKUP($C11,'RECAP SECT'!$G$6:$EV$253,74,FALSE) -> 205.39 | G11: =VLOOKUP($C11,'RECAP SECT'!$G$6:$EV$253,75,FALSE) -> 19% | H11: =VLOOKUP($C11,'RECAP SECT'!$G$6:$EV$253,76,FALSE) -> 5 | I11: =VLOOKUP($C11,'RECAP SECT'!$G$6:$EV$253,77,FALSE) -> 92% | J11: =VLOOKUP($C11,'RECAP SECT'!$G$6:$EV$253,78,FALSE) -> 6% | K11: =VLOOKUP($C11,'RECAP SECT'!$G$6:$EV$253,79,FALSE) -> 13 | L11: =VLOOKUP($C11,'RECAP SECT'!$G$6:$EV$253,80,FALSE) -> 37% | M11: =VLOOKUP($C11,'RECAP SECT'!$G$6:$EV$253,81,FALSE) -> 16% | N11: =VLOOKUP($C11,'RECAP SECT'!$G$6:$EV$253,82,FALSE) -> 8 | O11: =VLOOKUP($C11,'RECAP SECT'!$G$6:$EV$253,83,FALSE) -> 73% | P11: =VLOOKUP($C11,'RECAP SECT'!$G$6:$EV$253,84,FALSE) -> 15% | Q11: =VLOOKUP($C11,'RECAP SECT'!$G$6:$EV$253,85,FALSE) -> 7 | R11: =VLOOKUP($C11,'RECAP SECT'!$G$6:$EV$253,86,FALSE) -> 80% | S11: =VLOOKUP($C11,'RECAP SECT'!$G$6:$EV$253,87,FALSE) -> 13% | T11: =VLOOKUP($C11,'RECAP SECT'!$G$6:$EV$253,88,FALSE) -> 14 | U11: =VLOOKUP($C11,'RECAP SECT'!$G$6:$EV$253,89,FALSE) -> 53% | V11: =VLOOKUP($C11,'RECAP SECT'!$G$6:$EV$253,90,FALSE) -> 34% | W11: =VLOOKUP($C11,'RECAP SECT'!$G$6:$EV$253,91,FALSE) -> 7 | X11: =VLOOKUP($C11,'RECAP SECT'!$G$6:$EV$253,92,FALSE) -> 18% | Y11: =VLOOKUP($C11,'RECAP SECT'!$G$6:$EV$253,93,FALSE) -> 11% | Z11: =VLOOKUP($C11,'RECAP SECT'!$G$6:$EV$253,94,FALSE) -> 5
A12: 262 | B12: BAS-RHIN | C12: 5060 | D12: HAGUENAU | E12: =VLOOKUP($C12,'RECAP SECT'!$G$6:$EV$253,3,FALSE) -> 89.8 | F12: =VLOOKUP($C12,'RECAP SECT'!$G$6:$EV$253,74,FALSE) -> 167.75 | G12: =VLOOKUP($C12,'RECAP SECT'!$G$6:$EV$253,75,FALSE) -> 34% | H12: =VLOOKUP($C12,'RECAP SECT'!$G$6:$EV$253,76,FALSE) -> 15 | I12: =VLOOKUP($C12,'RECAP SECT'!$G$6:$EV$253,77,FALSE) -> 97% | J12: =VLOOKUP($C12,'RECAP SECT'!$G$6:$EV$253,78,FALSE) -> 2% | K12: =VLOOKUP($C12,'RECAP SECT'!$G$6:$EV$253,79,FALSE) -> 2 | L12: =VLOOKUP($C12,'RECAP SECT'!$G$6:$EV$253,80,FALSE) -> 31% | M12: =VLOOKUP($C12,'RECAP SECT'!$G$6:$EV$253,81,FALSE) -> 29% | N12: =VLOOKUP($C12,'RECAP SECT'!$G$6:$EV$253,82,FALSE) -> 16 | O12: =VLOOKUP($C12,'RECAP SECT'!$G$6:$EV$253,83,FALSE) -> 63% | P12: =VLOOKUP($C12,'RECAP SECT'!$G$6:$EV$253,84,FALSE) -> 27% | Q12: =VLOOKUP($C12,'RECAP SECT'!$G$6:$EV$253,85,FALSE) -> 16 | R12: =VLOOKUP($C12,'RECAP SECT'!$G$6:$EV$253,86,FALSE) -> 85% | S12: =VLOOKUP($C12,'RECAP SECT'!$G$6:$EV$253,87,FALSE) -> 7% | T12: =VLOOKUP($C12,'RECAP SECT'!$G$6:$EV$253,88,FALSE) -> 8 | U12: =VLOOKUP($C12,'RECAP SECT'!$G$6:$EV$253,89,FALSE) -> 23% | V12: =VLOOKUP($C12,'RECAP SECT'!$G$6:$EV$253,90,FALSE) -> 71% | W12: =VLOOKUP($C12,'RECAP SECT'!$G$6:$EV$253,91,FALSE) -> 17 | X12: =VLOOKUP($C12,'RECAP SECT'!$G$6:$EV$253,92,FALSE) -> 32% | Y12: =VLOOKUP($C12,'RECAP SECT'!$G$6:$EV$253,93,FALSE) -> 25% | Z12: =VLOOKUP($C12,'RECAP SECT'!$G$6:$EV$253,94,FALSE) -> 18
A13: 262 | B13: BAS-RHIN | C13: 5101 | D13: SELESTAT | E13: =VLOOKUP($C13,'RECAP SECT'!$G$6:$EV$253,3,FALSE) -> 76.3 | F13: =VLOOKUP($C13,'RECAP SECT'!$G$6:$EV$253,74,FALSE) -> 182.23 | G13: =VLOOKUP($C13,'RECAP SECT'!$G$6:$EV$253,75,FALSE) -> 28% | H13: =VLOOKUP($C13,'RECAP SECT'!$G$6:$EV$253,76,FALSE) -> 13 | I13: =VLOOKUP($C13,'RECAP SECT'!$G$6:$EV$253,77,FALSE) -> 95% | J13: =VLOOKUP($C13,'RECAP SECT'!$G$6:$EV$253,78,FALSE) -> 3% | K13: =VLOOKUP($C13,'RECAP SECT'!$G$6:$EV$253,79,FALSE) -> 8 | L13: =VLOOKUP($C13,'RECAP SECT'!$G$6:$EV$253,80,FALSE) -> 30% | M13: =VLOOKUP($C13,'RECAP SECT'!$G$6:$EV$253,81,FALSE) -> 32% | N13: =VLOOKUP($C13,'RECAP SECT'!$G$6:$EV$253,82,FALSE) -> 17 | O13: =VLOOKUP($C13,'RECAP SECT'!$G$6:$EV$253,83,FALSE) -> 62% | P13: =VLOOKUP($C13,'RECAP SECT'!$G$6:$EV$253,84,FALSE) -> 28% | Q13: =VLOOKUP($C13,'RECAP SECT'!$G$6:$EV$253,85,FALSE) -> 17 | R13: =VLOOKUP($C13,'RECAP SECT'!$G$6:$EV$253,86,FALSE) -> 84% | S13: =VLOOKUP($C13,'RECAP SECT'!$G$6:$EV$253,87,FALSE) -> 8% | T13: =VLOOKUP($C13,'RECAP SECT'!$G$6:$EV$253,88,FALSE) -> 10 | U13: =VLOOKUP($C13,'RECAP SECT'!$G$6:$EV$253,89,FALSE) -> 55% | V13: =VLOOKUP($C13,'RECAP SECT'!$G$6:$EV$253,90,FALSE) -> 32% | W13: =VLOOKUP($C13,'RECAP SECT'!$G$6:$EV$253,91,FALSE) -> 4 | X13: =VLOOKUP($C13,'RECAP SECT'!$G$6:$EV$253,92,FALSE) -> 24% | Y13: =VLOOKUP($C13,'RECAP SECT'!$G$6:$EV$253,93,FALSE) -> 17% | Z13: =VLOOKUP($C13,'RECAP SECT'!$G$6:$EV$253,94,FALSE) -> 12
A14: 262 | B14: BAS-RHIN | C14: 5006 | D14: STRASBOURG | E14: =VLOOKUP($C14,'RECAP SECT'!$G$6:$EV$253,3,FALSE) -> 92.7 | F14: =VLOOKUP($C14,'RECAP SECT'!$G$6:$EV$253,74,FALSE) -> 157.14 | G14: =VLOOKUP($C14,'RECAP SECT'!$G$6:$EV$253,75,FALSE) -> 38% | H14: =VLOOKUP($C14,'RECAP SECT'!$G$6:$EV$253,76,FALSE) -> 17 | I14: =VLOOKUP($C14,'RECAP SECT'!$G$6:$EV$253,77,FALSE) -> 87% | J14: =VLOOKUP($C14,'RECAP SECT'!$G$6:$EV$253,78,FALSE) -> 12% | K14: =VLOOKUP($C14,'RECAP SECT'!$G$6:$EV$253,79,FALSE) -> 17 | L14: =VLOOKUP($C14,'RECAP SECT'!$G$6:$EV$253,80,FALSE) -> 37% | M14: =VLOOKUP($C14,'RECAP SECT'!$G$6:$EV$253,81,FALSE) -> 16% | N14: =VLOOKUP($C14,'RECAP SECT'!$G$6:$EV$253,82,FALSE) -> 11 | O14: =VLOOKUP($C14,'RECAP SECT'!$G$6:$EV$253,83,FALSE) -> 59% | P14: =VLOOKUP($C14,'RECAP SECT'!$G$6:$EV$253,84,FALSE) -> 32% | Q14: =VLOOKUP($C14,'RECAP SECT'!$G$6:$EV$253,85,FALSE) -> 18 | R14: =VLOOKUP($C14,'RECAP SECT'!$G$6:$EV$253,86,FALSE) -> 78% | S14: =VLOOKUP($C14,'RECAP SECT'!$G$6:$EV$253,87,FALSE) -> 15% | T14: =VLOOKUP($C14,'RECAP SECT'!$G$6:$EV$253,88,FALSE) -> 16 | U14: =VLOOKUP($C14,'RECAP SECT'!$G$6:$EV$253,89,FALSE) -> 41% | V14: =VLOOKUP($C14,'RECAP SECT'!$G$6:$EV$253,90,FALSE) -> 49% | W14: =VLOOKUP($C14,'RECAP SECT'!$G$6:$EV$253,91,FALSE) -> 11 | X14: =VLOOKUP($C14,'RECAP SECT'!$G$6:$EV$253,92,FALSE) -> 29% | Y14: =VLOOKUP($C14,'RECAP SECT'!$G$6:$EV$253,93,FALSE) -> 22% | Z14: =VLOOKUP($C14,'RECAP SECT'!$G$6:$EV$253,94,FALSE) -> 16
A15: 264 | B15: HAUT-RHIN | C15: 5130 | D15: COLMAR | E15: =VLOOKUP($C15,'RECAP SECT'!$G$6:$EV$253,3,FALSE) -> 78.8 | F15: =VLOOKUP($C15,'RECAP SECT'!$G$6:$EV$253,74,FALSE) -> 151.06 | G15: =VLOOKUP($C15,'RECAP SECT'!$G$6:$EV$253,75,FALSE) -> 40% | H15: =VLOOKUP($C15,'RECAP SECT'!$G$6:$EV$253,76,FALSE) -> 18 | I15: =VLOOKUP($C15,'RECAP SECT'!$G$6:$EV$253,77,FALSE) -> 87% | J15: =VLOOKUP($C15,'RECAP SECT'!$G$6:$EV$253,78,FALSE) -> 12% | K15: =VLOOKUP($C15,'RECAP SECT'!$G$6:$EV$253,79,FALSE) -> 18 | L15: =VLOOKUP($C15,'RECAP SECT'!$G$6:$EV$253,80,FALSE) -> 35% | M15: =VLOOKUP($C15,'RECAP SECT'!$G$6:$EV$253,81,FALSE) -> 20% | N15: =VLOOKUP($C15,'RECAP SECT'!$G$6:$EV$253,82,FALSE) -> 14 | O15: =VLOOKUP($C15,'RECAP SECT'!$G$6:$EV$253,83,FALSE) -> 69% | P15: =VLOOKUP($C15,'RECAP SECT'!$G$6:$EV$253,84,FALSE) -> 19% | Q15: =VLOOKUP($C15,'RECAP SECT'!$G$6:$EV$253,85,FALSE) -> 12 | R15: =VLOOKUP($C15,'RECAP SECT'!$G$6:$EV$253,86,FALSE) -> 79% | S15: =VLOOKUP($C15,'RECAP SECT'!$G$6:$EV$253,87,FALSE) -> 13% | T15: =VLOOKUP($C15,'RECAP SECT'!$G$6:$EV$253,88,FALSE) -> 15 | U15: =VLOOKUP($C15,'RECAP SECT'!$G$6:$EV$253,89,FALSE) -> 29% | V15: =VLOOKUP($C15,'RECAP SECT'!$G$6:$EV$253,90,FALSE) -> 64% | W15: =VLOOKUP($C15,'RECAP SECT'!$G$6:$EV$253,91,FALSE) -> 13 | X15: =VLOOKUP($C15,'RECAP SECT'!$G$6:$EV$253,92,FALSE) -> 31% | Y15: =VLOOKUP($C15,'RECAP SECT'!$G$6:$EV$253,93,FALSE) -> 24% | Z15: =VLOOKUP($C15,'RECAP SECT'!$G$6:$EV$253,94,FALSE) -> 17
A16: 264 | B16: HAUT-RHIN | C16: 5169 | D16: MULHOUSE | E16: =VLOOKUP($C16,'RECAP SECT'!$G$6:$EV$253,3,FALSE) -> 78.2 | F16: =VLOOKUP($C16,'RECAP SECT'!$G$6:$EV$253,74,FALSE) -> 163.71 | G16: =VLOOKUP($C16,'RECAP SECT'!$G$6:$EV$253,75,FALSE) -> 35% | H16: =VLOOKUP($C16,'RECAP SECT'!$G$6:$EV$253,76,FALSE) -> 16 | I16: =VLOOKUP($C16,'RECAP SECT'!$G$6:$EV$253,77,FALSE) -> 95% | J16: =VLOOKUP($C16,'RECAP SECT'!$G$6:$EV$253,78,FALSE) -> 3% | K16: =VLOOKUP($C16,'RECAP SECT'!$G$6:$EV$253,79,FALSE) -> 7 | L16: =VLOOKUP($C16,'RECAP SECT'!$G$6:$EV$253,80,FALSE) -> 38% | M16: =VLOOKUP($C16,'RECAP SECT'!$G$6:$EV$253,81,FALSE) -> 14% | N16: =VLOOKUP($C16,'RECAP SECT'!$G$6:$EV$253,82,FALSE) -> 5 | O16: =VLOOKUP($C16,'RECAP SECT'!$G$6:$EV$253,83,FALSE) -> 84% | P16: =VLOOKUP($C16,'RECAP SECT'!$G$6:$EV$253,84,FALSE) -> 2% | Q16: =VLOOKUP($C16,'RECAP SECT'!$G$6:$EV$253,85,FALSE) -> 2 | R16: =VLOOKUP($C16,'RECAP SECT'!$G$6:$EV$253,86,FALSE) -> 67% | S16: =VLOOKUP($C16,'RECAP SECT'!$G$6:$EV$253,87,FALSE) -> 27% | T16: =VLOOKUP($C16,'RECAP SECT'!$G$6:$EV$253,88,FALSE) -> 18 | U16: =VLOOKUP($C16,'RECAP SECT'!$G$6:$EV$253,89,FALSE) -> 61% | V16: =VLOOKUP($C16,'RECAP SECT'!$G$6:$EV$253,90,FALSE) -> 25% | W16: =VLOOKUP($C16,'RECAP SECT'!$G$6:$EV$253,91,FALSE) -> 3 | X16: =VLOOKUP($C16,'RECAP SECT'!$G$6:$EV$253,92,FALSE) -> 19% | Y16: =VLOOKUP($C16,'RECAP SECT'!$G$6:$EV$253,93,FALSE) -> 12% | Z16: =VLOOKUP($C16,'RECAP SECT'!$G$6:$EV$253,94,FALSE) -> 6
A17: 30 | B17: MARNE-ARDENNES | C17: 6 | D17: CHALONS EN CHAMPAGNE | E17: =VLOOKUP($C17,'RECAP SECT'!$G$6:$EV$253,3,FALSE) -> 49.1 | F17: =VLOOKUP($C17,'RECAP SECT'!$G$6:$EV$253,74,FALSE) -> 186.88 | G17: =VLOOKUP($C17,'RECAP SECT'!$G$6:$EV$253,75,FALSE) -> 26% | H17: =VLOOKUP($C17,'RECAP SECT'!$G$6:$EV$253,76,FALSE) -> 11 | I17: =VLOOKUP($C17,'RECAP SECT'!$G$6:$EV$253,77,FALSE) -> 95% | J17: =VLOOKUP($C17,'RECAP SECT'!$G$6:$EV$253,78,FALSE) -> 3% | K17: =VLOOKUP($C17,'RECAP SECT'!$G$6:$EV$253,79,FALSE) -> 6 | L17: =VLOOKUP($C17,'RECAP SECT'!$G$6:$EV$253,80,FALSE) -> 38% | M17: =VLOOKUP($C17,'RECAP SECT'!$G$6:$EV$253,81,FALSE) -> 14% | N17: =VLOOKUP($C17,'RECAP SECT'!$G$6:$EV$253,82,FALSE) -> 4 | O17: =VLOOKUP($C17,'RECAP SECT'!$G$6:$EV$253,83,FALSE) -> 71% | P17: =VLOOKUP($C17,'RECAP SECT'!$G$6:$EV$253,84,FALSE) -> 18% | Q17: =VLOOKUP($C17,'RECAP SECT'!$G$6:$EV$253,85,FALSE) -> 11 | R17: =VLOOKUP($C17,'RECAP SECT'!$G$6:$EV$253,86,FALSE) -> 87% | S17: =VLOOKUP($C17,'RECAP SECT'!$G$6:$EV$253,87,FALSE) -> 5% | T17: =VLOOKUP($C17,'RECAP SECT'!$G$6:$EV$253,88,FALSE) -> 6 | U17: =VLOOKUP($C17,'RECAP SECT'!$G$6:$EV$253,89,FALSE) -> 54% | V17: =VLOOKUP($C17,'RECAP SECT'!$G$6:$EV$253,90,FALSE) -> 34% | W17: =VLOOKUP($C17,'RECAP SECT'!$G$6:$EV$253,91,FALSE) -> 6 | X17: =VLOOKUP($C17,'RECAP SECT'!$G$6:$EV$253,92,FALSE) -> 18% | Y17: =VLOOKUP($C17,'RECAP SECT'!$G$6:$EV$253,93,FALSE) -> 11% | Z17: =VLOOKUP($C17,'RECAP SECT'!$G$6:$EV$253,94,FALSE) -> 4
A18: 30 | B18: MARNE-ARDENNES | C18: 2 | D18: CHARLEVILLE MEZIERES | E18: =VLOOKUP($C18,'RECAP SECT'!$G$6:$EV$253,3,FALSE) -> 64.0 | F18: =VLOOKUP($C18,'RECAP SECT'!$G$6:$EV$253,74,FALSE) -> 194.77 | G18: =VLOOKUP($C18,'RECAP SECT'!$G$6:$EV$253,75,FALSE) -> 23% | H18: =VLOOKUP($C18,'RECAP SECT'!$G$6:$EV$253,76,FALSE) -> 8 | I18: =VLOOKUP($C18,'RECAP SECT'!$G$6:$EV$253,77,FALSE) -> 96% | J18: =VLOOKUP($C18,'RECAP SECT'!$G$6:$EV$253,78,FALSE) -> 2% | K18: =VLOOKUP($C18,'RECAP SECT'!$G$6:$EV$253,79,FALSE) -> 5 | L18: =VLOOKUP($C18,'RECAP SECT'!$G$6:$EV$253,80,FALSE) -> 44% | M18: =VLOOKUP($C18,'RECAP SECT'!$G$6:$EV$253,81,FALSE) -> 0% | N18: =VLOOKUP($C18,'RECAP SECT'!$G$6:$EV$253,82,FALSE) -> 1 | O18: =VLOOKUP($C18,'RECAP SECT'!$G$6:$EV$253,83,FALSE) -> 86% | P18: =VLOOKUP($C18,'RECAP SECT'!$G$6:$EV$253,84,FALSE) -> 0% | Q18: =VLOOKUP($C18,'RECAP SECT'!$G$6:$EV$253,85,FALSE) -> 1 | R18: =VLOOKUP($C18,'RECAP SECT'!$G$6:$EV$253,86,FALSE) -> 83% | S18: =VLOOKUP($C18,'RECAP SECT'!$G$6:$EV$253,87,FALSE) -> 9% | T18: =VLOOKUP($C18,'RECAP SECT'!$G$6:$EV$253,88,FALSE) -> 11 | U18: =VLOOKUP($C18,'RECAP SECT'!$G$6:$EV$253,89,FALSE) -> 78% | V18: =VLOOKUP($C18,'RECAP SECT'!$G$6:$EV$253,90,FALSE) -> 4% | W18: =VLOOKUP($C18,'RECAP SECT'!$G$6:$EV$253,91,FALSE) -> 2 | X18: =VLOOKUP($C18,'RECAP SECT'!$G$6:$EV$253,92,FALSE) -> 7% | Y18: =VLOOKUP($C18,'RECAP SECT'!$G$6:$EV$253,93,FALSE) -> 0% | Z18: =VLOOKUP($C18,'RECAP SECT'!$G$6:$EV$253,94,FALSE) -> 1
A19: 30 | B19: MARNE-ARDENNES | C19: 11 | D19: REIMS | E19: =VLOOKUP($C19,'RECAP SECT'!$G$6:$EV$253,3,FALSE) -> 91.1 | F19: =VLOOKUP($C19,'RECAP SECT'!$G$6:$EV$253,74,FALSE) -> 221.29 | G19: =VLOOKUP($C19,'RECAP SECT'!$G$6:$EV$253,75,FALSE) -> 13% | H19: =VLOOKUP($C19,'RECAP SECT'!$G$6:$EV$253,76,FALSE) -> 2 | I19: =VLOOKUP($C19,'RECAP SECT'!$G$6:$EV$253,77,FALSE) -> 93% | J19: =VLOOKUP($C19,'RECAP SECT'!$G$6:$EV$253,78,FALSE) -> 5% | K19: =VLOOKUP($C19,'RECAP SECT'!$G$6:$EV$253,79,FALSE) -> 12 | L19: =VLOOKUP($C19,'RECAP SECT'!$G$6:$EV$253,80,FALSE) -> 41% | M19: =VLOOKUP($C19,'RECAP SECT'!$G$6:$EV$253,81,FALSE) -> 7% | N19: =VLOOKUP($C19,'RECAP SECT'!$G$6:$EV$253,82,FALSE) -> 2 | O19: =VLOOKUP($C19,'RECAP SECT'!$G$6:$EV$253,83,FALSE) -> 73% | P19: =VLOOKUP($C19,'RECAP SECT'!$G$6:$EV$253,84,FALSE) -> 16% | Q19: =VLOOKUP($C19,'RECAP SECT'!$G$6:$EV$253,85,FALSE) -> 9 | R19: =VLOOKUP($C19,'RECAP SECT'!$G$6:$EV$253,86,FALSE) -> 80% | S19: =VLOOKUP($C19,'RECAP SECT'!$G$6:$EV$253,87,FALSE) -> 12% | T19: =VLOOKUP($C19,'RECAP SECT'!$G$6:$EV$253,88,FALSE) -> 13 | U19: =VLOOKUP($C19,'RECAP SECT'!$G$6:$EV$253,89,FALSE) -> 54% | V19: =VLOOKUP($C19,'RECAP SECT'!$G$6:$EV$253,90,FALSE) -> 34% | W19: =VLOOKUP($C19,'RECAP SECT'!$G$6:$EV$253,91,FALSE) -> 5 | X19: =VLOOKUP($C19,'RECAP SECT'!$G$6:$EV$253,92,FALSE) -> 15% | Y19: =VLOOKUP($C19,'RECAP SECT'!$G$6:$EV$253,93,FALSE) -> 8% | Z19: =VLOOKUP($C19,'RECAP SECT'!$G$6:$EV$253,94,FALSE) -> 3
A20: 110 | B20: MEURTHE ET MOSELLE MEUSE | C20: 26 | D20: NANCY | E20: =VLOOKUP($C20,'RECAP SECT'!$G$6:$EV$253,3,FALSE) -> 80.2 | F20: =VLOOKUP($C20,'RECAP SECT'!$G$6:$EV$253,74,FALSE) -> 195.40 | G20: =VLOOKUP($C20,'RECAP SECT'!$G$6:$EV$253,75,FALSE) -> 23% | H20: =VLOOKUP($C20,'RECAP SECT'!$G$6:$EV$253,76,FALSE) -> 7 | I20: =VLOOKUP($C20,'RECAP SECT'!$G$6:$EV$253,77,FALSE) -> 88% | J20: =VLOOKUP($C20,'RECAP SECT'!$G$6:$EV$253,78,FALSE) -> 11% | K20: =VLOOKUP($C20,'RECAP SECT'!$G$6:$EV$253,79,FALSE) -> 16 | L20: =VLOOKUP($C20,'RECAP SECT'!$G$6:$EV$253,80,FALSE) -> 37% | M20: =VLOOKUP($C20,'RECAP SECT'!$G$6:$EV$253,81,FALSE) -> 17% | N20: =VLOOKUP($C20,'RECAP SECT'!$G$6:$EV$253,82,FALSE) -> 12 | O20: =VLOOKUP($C20,'RECAP SECT'!$G$6:$EV$253,83,FALSE) -> 72% | P20: =VLOOKUP($C20,'RECAP SECT'!$G$6:$EV$253,84,FALSE) -> 16% | Q20: =VLOOKUP($C20,'RECAP SECT'!$G$6:$EV$253,85,FALSE) -> 10 | R20: =VLOOKUP($C20,'RECAP SECT'!$G$6:$EV$253,86,FALSE) -> 90% | S20: =VLOOKUP($C20,'RECAP SECT'!$G$6:$EV$253,87,FALSE) -> 1% | T20: =VLOOKUP($C20,'RECAP SECT'!$G$6:$EV$253,88,FALSE) -> 3 | U20: =VLOOKUP($C20,'RECAP SECT'!$G$6:$EV$253,89,FALSE) -> 27% | V20: =VLOOKUP($C20,'RECAP SECT'!$G$6:$EV$253,90,FALSE) -> 67% | W20: =VLOOKUP($C20,'RECAP SECT'!$G$6:$EV$253,91,FALSE) -> 15 | X20: =VLOOKUP($C20,'RECAP SECT'!$G$6:$EV$253,92,FALSE) -> 25% | Y20: =VLOOKUP($C20,'RECAP SECT'!$G$6:$EV$253,93,FALSE) -> 18% | Z20: =VLOOKUP($C20,'RECAP SECT'!$G$6:$EV$253,94,FALSE) -> 13
A21: 110 | B21: MEURTHE ET MOSELLE MEUSE | C21: 27 | D21: PONT A MOUSSON | E21: =VLOOKUP($C21,'RECAP SECT'!$G$6:$EV$253,3,FALSE) -> 89.4 | F21: =VLOOKUP($C21,'RECAP SECT'!$G$6:$EV$253,74,FALSE) -> 193.34 | G21: =VLOOKUP($C21,'RECAP SECT'!$G$6:$EV$253,75,FALSE) -> 24% | H21: =VLOOKUP($C21,'RECAP SECT'!$G$6:$EV$253,76,FALSE) -> 10 | I21: =VLOOKUP($C21,'RECAP SECT'!$G$6:$EV$253,77,FALSE) -> 88% | J21: =VLOOKUP($C21,'RECAP SECT'!$G$6:$EV$253,78,FALSE) -> 10% | K21: =VLOOKUP($C21,'RECAP SECT'!$G$6:$EV$253,79,FALSE) -> 15 | L21: =VLOOKUP($C21,'RECAP SECT'!$G$6:$EV$253,80,FALSE) -> 37% | M21: =VLOOKUP($C21,'RECAP SECT'!$G$6:$EV$253,81,FALSE) -> 16% | N21: =VLOOKUP($C21,'RECAP SECT'!$G$6:$EV$253,82,FALSE) -> 10 | O21: =VLOOKUP($C21,'RECAP SECT'!$G$6:$EV$253,83,FALSE) -> 76% | P21: =VLOOKUP($C21,'RECAP SECT'!$G$6:$EV$253,84,FALSE) -> 12% | Q21: =VLOOKUP($C21,'RECAP SECT'!$G$6:$EV$253,85,FALSE) -> 4 | R21: =VLOOKUP($C21,'RECAP SECT'!$G$6:$EV$253,86,FALSE) -> 92% | S21: =VLOOKUP($C21,'RECAP SECT'!$G$6:$EV$253,87,FALSE) -> 0% | T21: =VLOOKUP($C21,'RECAP SECT'!$G$6:$EV$253,88,FALSE) -> 1 | U21: =VLOOKUP($C21,'RECAP SECT'!$G$6:$EV$253,89,FALSE) -> 46% | V21: =VLOOKUP($C21,'RECAP SECT'!$G$6:$EV$253,90,FALSE) -> 43% | W21: =VLOOKUP($C21,'RECAP SECT'!$G$6:$EV$253,91,FALSE) -> 9 | X21: =VLOOKUP($C21,'RECAP SECT'!$G$6:$EV$253,92,FALSE) -> 19% | Y21: =VLOOKUP($C21,'RECAP SECT'!$G$6:$EV$253,93,FALSE) -> 13% | Z21: =VLOOKUP($C21,'RECAP SECT'!$G$6:$EV$253,94,FALSE) -> 7
A22: 110 | B22: MEURTHE ET MOSELLE MEUSE | C22: 31 | D22: VERDUN | E22: =VLOOKUP($C22,'RECAP SECT'!$G$6:$EV$253,3,FALSE) -> 66.1 | F22: =VLOOKUP($C22,'RECAP SECT'!$G$6:$EV$253,74,FALSE) -> 211.00 | G22: =VLOOKUP($C22,'RECAP SECT'!$G$6:$EV$253,75,FALSE) -> 17% | H22: =VLOOKUP($C22,'RECAP SECT'!$G$6:$EV$253,76,FALSE) -> 3 | I22: =VLOOKUP($C22,'RECAP SECT'!$G$6:$EV$253,77,FALSE) -> 90% | J22: =VLOOKUP($C22,'RECAP SECT'!$G$6:$EV$253,78,FALSE) -> 8% | K22: =VLOOKUP($C22,'RECAP SECT'!$G$6:$EV$253,79,FALSE) -> 14 | L22: =VLOOKUP($C22,'RECAP SECT'!$G$6:$EV$253,80,FALSE) -> 39% | M22: =VLOOKUP($C22,'RECAP SECT'!$G$6:$EV$253,81,FALSE) -> 11% | N22: =VLOOKUP($C22,'RECAP SECT'!$G$6:$EV$253,82,FALSE) -> 3 | O22: =VLOOKUP($C22,'RECAP SECT'!$G$6:$EV$253,83,FALSE) -> 75% | P22: =VLOOKUP($C22,'RECAP SECT'!$G$6:$EV$253,84,FALSE) -> 13% | Q22: =VLOOKUP($C22,'RECAP SECT'!$G$6:$EV$253,85,FALSE) -> 5 | R22: =VLOOKUP($C22,'RECAP SECT'!$G$6:$EV$253,86,FALSE) -> 89% | S22: =VLOOKUP($C22,'RECAP SECT'!$G$6:$EV$253,87,FALSE) -> 3% | T22: =VLOOKUP($C22,'RECAP SECT'!$G$6:$EV$253,88,FALSE) -> 4 | U22: =VLOOKUP($C22,'RECAP SECT'!$G$6:$EV$253,89,FALSE) -> 28% | V22: =VLOOKUP($C22,'RECAP SECT'!$G$6:$EV$253,90,FALSE) -> 65% | W22: =VLOOKUP($C22,'RECAP SECT'!$G$6:$EV$253,91,FALSE) -> 14 | X22: =VLOOKUP($C22,'RECAP SECT'!$G$6:$EV$253,92,FALSE) -> 22% | Y22: =VLOOKUP($C22,'RECAP SECT'!$G$6:$EV$253,93,FALSE) -> 15% | Z22: =VLOOKUP($C22,'RECAP SECT'!$G$6:$EV$253,94,FALSE) -> 9
A23: 160 | B23: MOSELLE | C23: 45 | D23: METZ | E23: =VLOOKUP($C23,'RECAP SECT'!$G$6:$EV$253,3,FALSE) -> 105.9 | F23: =VLOOKUP($C23,'RECAP SECT'!$G$6:$EV$253,74,FALSE) -> 194.74 | G23: =VLOOKUP($C23,'RECAP SECT'!$G$6:$EV$253,75,FALSE) -> 23% | H23: =VLOOKUP($C23,'RECAP SECT'!$G$6:$EV$253,76,FALSE) -> 9 | I23: =VLOOKUP($C23,'RECAP SECT'!$G$6:$EV$253,77,FALSE) -> 95% | J23: =VLOOKUP($C23,'RECAP SECT'!$G$6:$EV$253,78,FALSE) -> 4% | K23: =VLOOKUP($C23,'RECAP SECT'!$G$6:$EV$253,79,FALSE) -> 9 | L23: =VLOOKUP($C23,'RECAP SECT'!$G$6:$EV$253,80,FALSE) -> 37% | M23: =VLOOKUP($C23,'RECAP SECT'!$G$6:$EV$253,81,FALSE) -> 16% | N23: =VLOOKUP($C23,'RECAP SECT'!$G$6:$EV$253,82,FALSE) -> 9 | O23: =VLOOKUP($C23,'RECAP SECT'!$G$6:$EV$253,83,FALSE) -> 65% | P23: =VLOOKUP($C23,'RECAP SECT'!$G$6:$EV$253,84,FALSE) -> 24% | Q23: =VLOOKUP($C23,'RECAP SECT'!$G$6:$EV$253,85,FALSE) -> 14 | R23: =VLOOKUP($C23,'RECAP SECT'!$G$6:$EV$253,86,FALSE) -> 86% | S23: =VLOOKUP($C23,'RECAP SECT'!$G$6:$EV$253,87,FALSE) -> 6% | T23: =VLOOKUP($C23,'RECAP SECT'!$G$6:$EV$253,88,FALSE) -> 7 | U23: =VLOOKUP($C23,'RECAP SECT'!$G$6:$EV$253,89,FALSE) -> 25% | V23: =VLOOKUP($C23,'RECAP SECT'!$G$6:$EV$253,90,FALSE) -> 70% | W23: =VLOOKUP($C23,'RECAP SECT'!$G$6:$EV$253,91,FALSE) -> 16 | X23: =VLOOKUP($C23,'RECAP SECT'!$G$6:$EV$253,92,FALSE) -> 26% | Y23: =VLOOKUP($C23,'RECAP SECT'!$G$6:$EV$253,93,FALSE) -> 19% | Z23: =VLOOKUP($C23,'RECAP SECT'!$G$6:$EV$253,94,FALSE) -> 14
A24: 160 | B24: MOSELLE | C24: 42 | D24: MOSELLE EST | E24: =VLOOKUP($C24,'RECAP SECT'!$G$6:$EV$253,3,FALSE) -> 87.4 | F24: =VLOOKUP($C24,'RECAP SECT'!$G$6:$EV$253,74,FALSE) -> 182.35 | G24: =VLOOKUP($C24,'RECAP SECT'!$G$6:$EV$253,75,FALSE) -> 28% | H24: =VLOOKUP($C24,'RECAP SECT'!$G$6:$EV$253,76,FALSE) -> 12 | I24: =VLOOKUP($C24,'RECAP SECT'!$G$6:$EV$253,77,FALSE) -> 96% | J24: =VLOOKUP($C24,'RECAP SECT'!$G$6:$EV$253,78,FALSE) -> 2% | K24: =VLOOKUP($C24,'RECAP SECT'!$G$6:$EV$253,79,FALSE) -> 4 | L24: =VLOOKUP($C24,'RECAP SECT'!$G$6:$EV$253,80,FALSE) -> 36% | M24: =VLOOKUP($C24,'RECAP SECT'!$G$6:$EV$253,81,FALSE) -> 18% | N24: =VLOOKUP($C24,'RECAP SECT'!$G$6:$EV$253,82,FALSE) -> 13 | O24: =VLOOKUP($C24,'RECAP SECT'!$G$6:$EV$253,83,FALSE) -> 76% | P24: =VLOOKUP($C24,'RECAP SECT'!$G$6:$EV$253,84,FALSE) -> 11% | Q24: =VLOOKUP($C24,'RECAP SECT'!$G$6:$EV$253,85,FALSE) -> 3 | R24: =VLOOKUP($C24,'RECAP SECT'!$G$6:$EV$253,86,FALSE) -> 72% | S24: =VLOOKUP($C24,'RECAP SECT'!$G$6:$EV$253,87,FALSE) -> 22% | T24: =VLOOKUP($C24,'RECAP SECT'!$G$6:$EV$253,88,FALSE) -> 17 | U24: =VLOOKUP($C24,'RECAP SECT'!$G$6:$EV$253,89,FALSE) -> 43% | V24: =VLOOKUP($C24,'RECAP SECT'!$G$6:$EV$253,90,FALSE) -> 47% | W24: =VLOOKUP($C24,'RECAP SECT'!$G$6:$EV$253,91,FALSE) -> 10 | X24: =VLOOKUP($C24,'RECAP SECT'!$G$6:$EV$253,92,FALSE) -> 23% | Y24: =VLOOKUP($C24,'RECAP SECT'!$G$6:$EV$253,93,FALSE) -> 16% | Z24: =VLOOKUP($C24,'RECAP SECT'!$G$6:$EV$253,94,FALSE) -> 11
A25: 160 | B25: MOSELLE | C25: 44 | D25: MOSELLE NORD | E25: =VLOOKUP($C25,'RECAP SECT'!$G$6:$EV$253,3,FALSE) -> 81.6 | F25: =VLOOKUP($C25,'RECAP SECT'!$G$6:$EV$253,74,FALSE) -> 208.09 | G25: =VLOOKUP($C25,'RECAP SECT'!$G$6:$EV$253,75,FALSE) -> 18% | H25: =VLOOKUP($C25,'RECAP SECT'!$G$6:$EV$253,76,FALSE) -> 4 | I25: =VLOOKUP($C25,'RECAP SECT'!$G$6:$EV$253,77,FALSE) -> 97% | J25: =VLOOKUP($C25,'RECAP SECT'!$G$6:$EV$253,78,FALSE) -> 2% | K25: =VLOOKUP($C25,'RECAP SECT'!$G$6:$EV$253,79,FALSE) -> 3 | L25: =VLOOKUP($C25,'RECAP SECT'!$G$6:$EV$253,80,FALSE) -> 32% | M25: =VLOOKUP($C25,'RECAP SECT'!$G$6:$EV$253,81,FALSE) -> 27% | N25: =VLOOKUP($C25,'RECAP SECT'!$G$6:$EV$253,82,FALSE) -> 15 | O25: =VLOOKUP($C25,'RECAP SECT'!$G$6:$EV$253,83,FALSE) -> 66% | P25: =VLOOKUP($C25,'RECAP SECT'!$G$6:$EV$253,84,FALSE) -> 23% | Q25: =VLOOKUP($C25,'RECAP SECT'!$G$6:$EV$253,85,FALSE) -> 13 | R25: =VLOOKUP($C25,'RECAP SECT'!$G$6:$EV$253,86,FALSE) -> 91% | S25: =VLOOKUP($C25,'RECAP SECT'!$G$6:$EV$253,87,FALSE) -> 1% | T25: =VLOOKUP($C25,'RECAP SECT'!$G$6:$EV$253,88,FALSE) -> 2 | U25: =VLOOKUP($C25,'RECAP SECT'!$G$6:$EV$253,89,FALSE) -> 16% | V25: =VLOOKUP($C25,'RECAP SECT'!$G$6:$EV$253,90,FALSE) -> 80% | W25: =VLOOKUP($C25,'RECAP SECT'!$G$6:$EV$253,91,FALSE) -> 18 | X25: =VLOOKUP($C25,'RECAP SECT'!$G$6:$EV$253,92,FALSE) -> 28% | Y25: =VLOOKUP($C25,'RECAP SECT'!$G$6:$EV$253,93,FALSE) -> 22% | Z25: =VLOOKUP($C25,'RECAP SECT'!$G$6:$EV$253,94,FALSE) -> 15
A26: 80 | B26: VOSGES | C26: 57 | D26: EPINAL | E26: =VLOOKUP($C26,'RECAP SECT'!$G$6:$EV$253,3,FALSE) -> 69.3 | F26: =VLOOKUP($C26,'RECAP SECT'!$G$6:$EV$253,74,FALSE) -> 173.49 | G26: =VLOOKUP($C26,'RECAP SECT'!$G$6:$EV$253,75,FALSE) -> 31% | H26: =VLOOKUP($C26,'RECAP SECT'!$G$6:$EV$253,76,FALSE) -> 14 | I26: =VLOOKUP($C26,'RECAP SECT'!$G$6:$EV$253,77,FALSE) -> 94% | J26: =VLOOKUP($C26,'RECAP SECT'!$G$6:$EV$253,78,FALSE) -> 4% | K26: =VLOOKUP($C26,'RECAP SECT'!$G$6:$EV$253,79,FALSE) -> 11 | L26: =VLOOKUP($C26,'RECAP SECT'!$G$6:$EV$253,80,FALSE) -> 37% | M26: =VLOOKUP($C26,'RECAP SECT'!$G$6:$EV$253,81,FALSE) -> 15% | N26: =VLOOKUP($C26,'RECAP SECT'!$G$6:$EV$253,82,FALSE) -> 7 | O26: =VLOOKUP($C26,'RECAP SECT'!$G$6:$EV$253,83,FALSE) -> 73% | P26: =VLOOKUP($C26,'RECAP SECT'!$G$6:$EV$253,84,FALSE) -> 15% | Q26: =VLOOKUP($C26,'RECAP SECT'!$G$6:$EV$253,85,FALSE) -> 8 | R26: =VLOOKUP($C26,'RECAP SECT'!$G$6:$EV$253,86,FALSE) -> 89% | S26: =VLOOKUP($C26,'RECAP SECT'!$G$6:$EV$253,87,FALSE) -> 3% | T26: =VLOOKUP($C26,'RECAP SECT'!$G$6:$EV$253,88,FALSE) -> 5 | U26: =VLOOKUP($C26,'RECAP SECT'!$G$6:$EV$253,89,FALSE) -> 49% | V26: =VLOOKUP($C26,'RECAP SECT'!$G$6:$EV$253,90,FALSE) -> 39% | W26: =VLOOKUP($C26,'RECAP SECT'!$G$6:$EV$253,91,FALSE) -> 8 | X26: =VLOOKUP($C26,'RECAP SECT'!$G$6:$EV$253,92,FALSE) -> 20% | Y26: =VLOOKUP($C26,'RECAP SECT'!$G$6:$EV$253,93,FALSE) -> 13% | Z26: =VLOOKUP($C26,'RECAP SECT'!$G$6:$EV$253,94,FALSE) -> 8
A27: 80 | B27: VOSGES | C27: 55 | D27: SAINT DIE | E27: =VLOOKUP($C27,'RECAP SECT'!$G$6:$EV$253,3,FALSE) -> 59.0 | F27: =VLOOKUP($C27,'RECAP SECT'!$G$6:$EV$253,74,FALSE) -> 201.20 | G27: =VLOOKUP($C27,'RECAP SECT'!$G$6:$EV$253,75,FALSE) -> 21% | H27: =VLOOKUP($C27,'RECAP SECT'!$G$6:$EV$253,76,FALSE) -> 6 | I27: =VLOOKUP($C27,'RECAP SECT'!$G$6:$EV$253,77,FALSE) -> 98% | J27: =VLOOKUP($C27,'RECAP SECT'!$G$6:$EV$253,78,FALSE) -> 0% | K27: =VLOOKUP($C27,'RECAP SECT'!$G$6:$EV$253,79,FALSE) -> 1 | L27: =VLOOKUP($C27,'RECAP SECT'!$G$6:$EV$253,80,FALSE) -> 38% | M27: =VLOOKUP($C27,'RECAP SECT'!$G$6:$EV$253,81,FALSE) -> 14% | N27: =VLOOKUP($C27,'RECAP SECT'!$G$6:$EV$253,82,FALSE) -> 6 | O27: =VLOOKUP($C27,'RECAP SECT'!$G$6:$EV$253,83,FALSE) -> 75% | P27: =VLOOKUP($C27,'RECAP SECT'!$G$6:$EV$253,84,FALSE) -> 13% | Q27: =VLOOKUP($C27,'RECAP SECT'!$G$6:$EV$253,85,FALSE) -> 6 | R27: =VLOOKUP($C27,'RECAP SECT'!$G$6:$EV$253,86,FALSE) -> 83% | S27: =VLOOKUP($C27,'RECAP SECT'!$G$6:$EV$253,87,FALSE) -> 10% | T27: =VLOOKUP($C27,'RECAP SECT'!$G$6:$EV$253,88,FALSE) -> 12 | U27: =VLOOKUP($C27,'RECAP SECT'!$G$6:$EV$253,89,FALSE) -> 81% | V27: =VLOOKUP($C27,'RECAP SECT'!$G$6:$EV$253,90,FALSE) -> 0% | W27: =VLOOKUP($C27,'RECAP SECT'!$G$6:$EV$253,91,FALSE) -> 1 | X27: =VLOOKUP($C27,'RECAP SECT'!$G$6:$EV$253,92,FALSE) -> 10% | Y27: =VLOOKUP($C27,'RECAP SECT'!$G$6:$EV$253,93,FALSE) -> 3% | Z27: =VLOOKUP($C27,'RECAP SECT'!$G$6:$EV$253,94,FALSE) -> 2
A28: Total CEGEE Directions Commerciales | E28: =SUM(E10:E27) -> 1387

Sheet SE_IARD
A1: Accueil | F1: BAROMETRE BDD - DIRECTIONS COMMERCIALES
F2: IARD PREVOYANCE
F3: =ACCUEIL!H7 -> 2019-05-31
F7: Ventes nettes IARD (AUTO+MRH+Pro) | I7: Ventes nettes Prévoyance | L7: Chiffre d'affaires IARD | O7: Total IARD Prévoyance
G8: coef | H8: ='RECAP DIRCOM'!DE4 -> 7% | J8: coef | K8: ='RECAP DIRCOM'!DH4 -> 7% | M8: coef | N8: ='RECAP DIRCOM'!DK4 -> 6% | P8: coef | Q8: ='RECAP DIRCOM'!DN4 -> 20%
A9: eds | B9: Direction | C9: eds | D9: Territoire | E9: ETP perf | F9: Nb / ETP | G9: % Ecart au 1er | H9: Rang | I9: Nb / ETP | J9: % Ecart au 1er | K9: Rang | L9: Nb / ETP | M9: % Ecart au 1er | N9: Rang | O9: Moyenne ecart au 1er | P9: % Ecart au 1er | Q9: Rang CEGEE
A10: 50 | B10: AUBE HAUTE MARNE | C10: 21 | D10: CHAUMONT | E10: =VLOOKUP($C10,'RECAP SECT'!$G$6:$EV$253,3,FALSE) -> 47.4 | F10: =VLOOKUP($C10,'RECAP SECT'!$G$6:$EV$253,101,FALSE) -> 4.60 | G10: =VLOOKUP($C10,'RECAP SECT'!$G$6:$EV$253,102,FALSE) -> 17% | H10: =VLOOKUP($C10,'RECAP SECT'!$G$6:$EV$253,103,FALSE) -> 6 | I10: =VLOOKUP($C10,'RECAP SECT'!$G$6:$EV$253,104,FALSE) -> 8.06 | J10: =VLOOKUP($C10,'RECAP SECT'!$G$6:$EV$253,105,FALSE) -> 10% | K10: =VLOOKUP($C10,'RECAP SECT'!$G$6:$EV$253,106,FALSE) -> 3 | L10: =VLOOKUP($C10,'RECAP SECT'!$G$6:$EV$253,107,FALSE) -> 5.83 | M10: =VLOOKUP($C10,'RECAP SECT'!$G$6:$EV$253,108,FALSE) -> 14% | N10: =VLOOKUP($C10,'RECAP SECT'!$G$6:$EV$253,109,FALSE) -> 10 | O10: =VLOOKUP($C10,'RECAP SECT'!$G$6:$EV$253,110,FALSE) -> 14% | P10: =VLOOKUP($C10,'RECAP SECT'!$G$6:$EV$253,111,FALSE) -> 14% | Q10: =VLOOKUP($C10,'RECAP SECT'!$G$6:$EV$253,112,FALSE) -> 3
A11: 50 | B11: AUBE HAUTE MARNE | C11: 14 | D11: TROYES | E11: =VLOOKUP($C11,'RECAP SECT'!$G$6:$EV$253,3,FALSE) -> 80.5 | F11: =VLOOKUP($C11,'RECAP SECT'!$G$6:$EV$253,101,FALSE) -> 3.28 | G11: =VLOOKUP($C11,'RECAP SECT'!$G$6:$EV$253,102,FALSE) -> 41% | H11: =VLOOKUP($C11,'RECAP SECT'!$G$6:$EV$253,103,FALSE) -> 14 | I11: =VLOOKUP($C11,'RECAP SECT'!$G$6:$EV$253,104,FALSE) -> 4.71 | J11: =VLOOKUP($C11,'RECAP SECT'!$G$6:$EV$253,105,FALSE) -> 47% | K11: =VLOOKUP($C11,'RECAP SECT'!$G$6:$EV$253,106,FALSE) -> 12 | L11: =VLOOKUP($C11,'RECAP SECT'!$G$6:$EV$253,107,FALSE) -> 4.41 | M11: =VLOOKUP($C11,'RECAP SECT'!$G$6:$EV$253,108,FALSE) -> 35% | N11: =VLOOKUP($C11,'RECAP SECT'!$G$6:$EV$253,109,FALSE) -> 18 | O11: =VLOOKUP($C11,'RECAP SECT'!$G$6:$EV$253,110,FALSE) -> 41% | P11: =VLOOKUP($C11,'RECAP SECT'!$G$6:$EV$253,111,FALSE) -> 41% | Q11: =VLOOKUP($C11,'RECAP SECT'!$G$6:$EV$253,112,FALSE) -> 17
A12: 262 | B12: BAS-RHIN | C12: 5060 | D12: HAGUENAU | E12: =VLOOKUP($C12,'RECAP SECT'!$G$6:$EV$253,3,FALSE) -> 89.8 | F12: =VLOOKUP($C12,'RECAP SECT'!$G$6:$EV$253,101,FALSE) -> 4.30 | G12: =VLOOKUP($C12,'RECAP SECT'!$G$6:$EV$253,102,FALSE) -> 23% | H12: =VLOOKUP($C12,'RECAP SECT'!$G$6:$EV$253,103,FALSE) -> 9 | I12: =VLOOKUP($C12,'RECAP SECT'!$G$6:$EV$253,104,FALSE) -> 5.61 | J12: =VLOOKUP($C12,'RECAP SECT'!$G$6:$EV$253,105,FALSE) -> 37% | K12: =VLOOKUP($C12,'RECAP SECT'!$G$6:$EV$253,106,FALSE) -> 8 | L12: =VLOOKUP($C12,'RECAP SECT'!$G$6:$EV$253,107,FALSE) -> 6.59 | M12: =VLOOKUP($C12,'RECAP SECT'!$G$6:$EV$253,108,FALSE) -> 3% | N12: =VLOOKUP($C12,'RECAP SECT'!$G$6:$EV$253,109,FALSE) -> 2 | O12: =VLOOKUP($C12,'RECAP SECT'!$G$6:$EV$253,110,FALSE) -> 22% | P12: =VLOOKUP($C12,'RECAP SECT'!$G$6:$EV$253,111,FALSE) -> 22% | Q12: =VLOOKUP($C12,'RECAP SECT'!$G$6:$EV$253,112,FALSE) -> 6
A13: 262 | B13: BAS-RHIN | C13: 5101 | D13: SELESTAT | E13: =VLOOKUP($C13,'RECAP SECT'!$G$6:$EV$253,3,FALSE) -> 76.3 | F13: =VLOOKUP($C13,'RECAP SECT'!$G$6:$EV$253,101,FALSE) -> 3.37 | G13: =VLOOKUP($C13,'RECAP SECT'!$G$6:$EV$253,102,FALSE) -> 39% | H13: =VLOOKUP($C13,'RECAP SECT'!$G$6:$EV$253,103,FALSE) -> 12 | I13: =VLOOKUP($C13,'RECAP SECT'!$G$6:$EV$253,104,FALSE) -> 4.91 | J13: =VLOOKUP($C13,'RECAP SECT'!$G$6:$EV$253,105,FALSE) -> 45% | K13: =VLOOKUP($C13,'RECAP SECT'!$G$6:$EV$253,106,FALSE) -> 11 | L13: =VLOOKUP($C13,'RECAP SECT'!$G$6:$EV$253,107,FALSE) -> 5.66 | M13: =VLOOKUP($C13,'RECAP SECT'!$G$6:$EV$253,108,FALSE) -> 17% | N13: =VLOOKUP($C13,'RECAP SECT'!$G$6:$EV$253,109,FALSE) -> 13 | O13: =VLOOKUP($C13,'RECAP SECT'!$G$6:$EV$253,110,FALSE) -> 34% | P13: =VLOOKUP($C13,'RECAP SECT'!$G$6:$EV$253,111,FALSE) -> 34% | Q13: =VLOOKUP($C13,'RECAP SECT'!$G$6:$EV$253,112,FALSE) -> 13
A14: 262 | B14: BAS-RHIN | C14: 5006 | D14: STRASBOURG | E14: =VLOOKUP($C14,'RECAP SECT'!$G$6:$EV$253,3,FALSE) -> 92.7 | F14: =VLOOKUP($C14,'RECAP SECT'!$G$6:$EV$253,101,FALSE) -> 1.91 | G14: =VLOOKUP($C14,'RECAP SECT'!$G$6:$EV$253,102,FALSE) -> 66% | H14: =VLOOKUP($C14,'RECAP SECT'!$G$6:$EV$253,103,FALSE) -> 18 | I14: =VLOOKUP($C14,'RECAP SECT'!$G$6:$EV$253,104,FALSE) -> 3.41 | J14: =VLOOKUP($C14,'RECAP SECT'!$G$6:$EV$253,105,FALSE) -> 62% | K14: =VLOOKUP($C14,'RECAP SECT'!$G$6:$EV$253,106,FALSE) -> 17 | L14: =VLOOKUP($C14,'RECAP SECT'!$G$6:$EV$253,107,FALSE) -> 4.62 | M14: =VLOOKUP($C14,'RECAP SECT'!$G$6:$EV$253,108,FALSE) -> 32% | N14: =VLOOKUP($C14,'RECAP SECT'!$G$6:$EV$253,109,FALSE) -> 17 | O14: =VLOOKUP($C14,'RECAP SECT'!$G$6:$EV$253,110,FALSE) -> 54% | P14: =VLOOKUP($C14,'RECAP SECT'!$G$6:$EV$253,111,FALSE) -> 54% | Q14: =VLOOKUP($C14,'RECAP SECT'!$G$6:$EV$253,112,FALSE) -> 18
A15: 264 | B15: HAUT-RHIN | C15: 5130 | D15: COLMAR | E15: =VLOOKUP($C15,'RECAP SECT'!$G$6:$EV$253,3,FALSE) -> 78.8 | F15: =VLOOKUP($C15,'RECAP SECT'!$G$6:$EV$253,101,FALSE) -> 2.77 | G15: =VLOOKUP($C15,'RECAP SECT'!$G$6:$EV$253,102,FALSE) -> 50% | H15: =VLOOKUP($C15,'RECAP SECT'!$G$6:$EV$253,103,FALSE) -> 17 | I15: =VLOOKUP($C15,'RECAP SECT'!$G$6:$EV$253,104,FALSE) -> 5.38 | J15: =VLOOKUP($C15,'RECAP SECT'!$G$6:$EV$253,105,FALSE) -> 40% | K15: =VLOOKUP($C15,'RECAP SECT'!$G$6:$EV$253,106,FALSE) -> 10 | L15: =VLOOKUP($C15,'RECAP SECT'!$G$6:$EV$253,107,FALSE) -> 5.49 | M15: =VLOOKUP($C15,'RECAP SECT'!$G$6:$EV$253,108,FALSE) -> 19% | N15: =VLOOKUP($C15,'RECAP SECT'!$G$6:$EV$253,109,FALSE) -> 14 | O15: =VLOOKUP($C15,'RECAP SECT'!$G$6:$EV$253,110,FALSE) -> 37% | P15: =VLOOKUP($C15,'RECAP SECT'!$G$6:$EV$253,111,FALSE) -> 37% | Q15: =VLOOKUP($C15,'RECAP SECT'!$G$6:$EV$253,112,FALSE) -> 14
A16: 264 | B16: HAUT-RHIN | C16: 5169 | D16: MULHOUSE | E16: =VLOOKUP($C16,'RECAP SECT'!$G$6:$EV$253,3,FALSE) -> 78.2 | F16: =VLOOKUP($C16,'RECAP SECT'!$G$6:$EV$253,101,FALSE) -> 3.35 | G16: =VLOOKUP($C16,'RECAP SECT'!$G$6:$EV$253,102,FALSE) -> 40% | H16: =VLOOKUP($C16,'RECAP SECT'!$G$6:$EV$253,103,FALSE) -> 13 | I16: =VLOOKUP($C16,'RECAP SECT'!$G$6:$EV$253,104,FALSE) -> 2.79 | J16: =VLOOKUP($C16,'RECAP SECT'!$G$6:$EV$253,105,FALSE) -> 69% | K16: =VLOOKUP($C16,'RECAP SECT'!$G$6:$EV$253,106,FALSE) -> 18 | L16: =VLOOKUP($C16,'RECAP SECT'!$G$6:$EV$253,107,FALSE) -> 6.23 | M16: =VLOOKUP($C16,'RECAP SECT'!$G$6:$EV$253,108,FALSE) -> 8% | N16: =VLOOKUP($C16,'RECAP SECT'!$G$6:$EV$253,109,FALSE) -> 7 | O16: =VLOOKUP($C16,'RECAP SECT'!$G$6:$EV$253,110,FALSE) -> 40% | P16: =VLOOKUP($C16,'RECAP SECT'!$G$6:$EV$253,111,FALSE) -> 40% | Q16: =VLOOKUP($C16,'RECAP SECT'!$G$6:$EV$253,112,FALSE) -> 16
A17: 30 | B17: MARNE-ARDENNES | C17: 6 | D17: CHALONS EN CHAMPAGNE | E17: =VLOOKUP($C17,'RECAP SECT'!$G$6:$EV$253,3,FALSE) -> 49.1 | F17: =VLOOKUP($C17,'RECAP SECT'!$G$6:$EV$253,101,FALSE) -> 3.42 | G17: =VLOOKUP($C17,'RECAP SECT'!$G$6:$EV$253,102,FALSE) -> 38% | H17: =VLOOKUP($C17,'RECAP SECT'!$G$6:$EV$253,103,FALSE) -> 11 | I17: =VLOOKUP($C17,'RECAP SECT'!$G$6:$EV$253,104,FALSE) -> 7.83 | J17: =VLOOKUP($C17,'RECAP SECT'!$G$6:$EV$253,105,FALSE) -> 12% | K17: =VLOOKUP($C17,'RECAP SECT'!$G$6:$EV$253,106,FALSE) -> 4 | L17: =VLOOKUP($C17,'RECAP SECT'!$G$6:$EV$253,107,FALSE) -> 5.78 | M17: =VLOOKUP($C17,'RECAP SECT'!$G$6:$EV$253,108,FALSE) -> 15% | N17: =VLOOKUP($C17,'RECAP SECT'!$G$6:$EV$253,109,FALSE) -> 11 | O17: =VLOOKUP($C17,'RECAP SECT'!$G$6:$EV$253,110,FALSE) -> 22% | P17: =VLOOKUP($C17,'RECAP SECT'!$G$6:$EV$253,111,FALSE) -> 22% | Q17: =VLOOKUP($C17,'RECAP SECT'!$G$6:$EV$253,112,FALSE) -> 8
A18: 30 | B18: MARNE-ARDENNES | C18: 2 | D18: CHARLEVILLE MEZIERES | E18: =VLOOKUP($C18,'RECAP SECT'!$G$6:$EV$253,3,FALSE) -> 64.0 | F18: =VLOOKUP($C18,'RECAP SECT'!$G$6:$EV$253,101,FALSE) -> 5.56 | G18: =VLOOKUP($C18,'RECAP SECT'!$G$6:$EV$253,102,FALSE) -> 0% | H18: =VLOOKUP($C18,'RECAP SECT'!$G$6:$EV$253,103,FALSE) -> 1 | I18: =VLOOKUP($C18,'RECAP SECT'!$G$6:$EV$253,104,FALSE) -> 8.91 | J18: =VLOOKUP($C18,'RECAP SECT'!$G$6:$EV$253,105,FALSE) -> 0% | K18: =VLOOKUP($C18,'RECAP SECT'!$G$6:$EV$253,106,FALSE) -> 2 | L18: =VLOOKUP($C18,'RECAP SECT'!$G$6:$EV$253,107,FALSE) -> 6.78 | M18: =VLOOKUP($C18,'RECAP SECT'!$G$6:$EV$253,108,FALSE) -> 0% | N18: =VLOOKUP($C18,'RECAP SECT'!$G$6:$EV$253,109,FALSE) -> 1 | O18: =VLOOKUP($C18,'RECAP SECT'!$G$6:$EV$253,110,FALSE) -> 0% | P18: =VLOOKUP($C18,'RECAP SECT'!$G$6:$EV$253,111,FALSE) -> 0% | Q18: =VLOOKUP($C18,'RECAP SECT'!$G$6:$EV$253,112,FALSE) -> 1
A19: 30 | B19: MARNE-ARDENNES | C19: 11 | D19: REIMS | E19: =VLOOKUP($C19,'RECAP SECT'!$G$6:$EV$253,3,FALSE) -> 91.1 | F19: =VLOOKUP($C19,'RECAP SECT'!$G$6:$EV$253,101,FALSE) -> 4.57 | G19: =VLOOKUP($C19,'RECAP SECT'!$G$6:$EV$253,102,FALSE) -> 18% | H19: =VLOOKUP($C19,'RECAP SECT'!$G$6:$EV$253,103,FALSE) -> 8 | I19: =VLOOKUP($C19,'RECAP SECT'!$G$6:$EV$253,104,FALSE) -> 8.91 | J19: =VLOOKUP($C19,'RECAP SECT'!$G$6:$EV$253,105,FALSE) -> 0% | K19: =VLOOKUP($C19,'RECAP SECT'!$G$6:$EV$253,106,FALSE) -> 1 | L19: =VLOOKUP($C19,'RECAP SECT'!$G$6:$EV$253,107,FALSE) -> 5.33 | M19: =VLOOKUP($C19,'RECAP SECT'!$G$6:$EV$253,108,FALSE) -> 21% | N19: =VLOOKUP($C19,'RECAP SECT'!$G$6:$EV$253,109,FALSE) -> 15 | O19: =VLOOKUP($C19,'RECAP SECT'!$G$6:$EV$253,110,FALSE) -> 13% | P19: =VLOOKUP($C19,'RECAP SECT'!$G$6:$EV$253,111,FALSE) -> 13% | Q19: =VLOOKUP($C19,'RECAP SECT'!$G$6:$EV$253,112,FALSE) -> 2
A20: 110 | B20: MEURTHE ET MOSELLE MEUSE | C20: 26 | D20: NANCY | E20: =VLOOKUP($C20,'RECAP SECT'!$G$6:$EV$253,3,FALSE) -> 80.2 | F20: =VLOOKUP($C20,'RECAP SECT'!$G$6:$EV$253,101,FALSE) -> 5.21 | G20: =VLOOKUP($C20,'RECAP SECT'!$G$6:$EV$253,102,FALSE) -> 6% | H20: =VLOOKUP($C20,'RECAP SECT'!$G$6:$EV$253,103,FALSE) -> 2 | I20: =VLOOKUP($C20,'RECAP SECT'!$G$6:$EV$253,104,FALSE) -> 4.43 | J20: =VLOOKUP($C20,'RECAP SECT'!$G$6:$EV$253,105,FALSE) -> 50% | K20: =VLOOKUP($C20,'RECAP SECT'!$G$6:$EV$253,106,FALSE) -> 14 | L20: =VLOOKUP($C20,'RECAP SECT'!$G$6:$EV$253,107,FALSE) -> 6.26 | M20: =VLOOKUP($C20,'RECAP SECT'!$G$6:$EV$253,108,FALSE) -> 8% | N20: =VLOOKUP($C20,'RECAP SECT'!$G$6:$EV$253,109,FALSE) -> 5 | O20: =VLOOKUP($C20,'RECAP SECT'!$G$6:$EV$253,110,FALSE) -> 22% | P20: =VLOOKUP($C20,'RECAP SECT'!$G$6:$EV$253,111,FALSE) -> 22% | Q20: =VLOOKUP($C20,'RECAP SECT'!$G$6:$EV$253,112,FALSE) -> 7
A21: 110 | B21: MEURTHE ET MOSELLE MEUSE | C21: 27 | D21: PONT A MOUSSON | E21: =VLOOKUP($C21,'RECAP SECT'!$G$6:$EV$253,3,FALSE) -> 89.4 | F21: =VLOOKUP($C21,'RECAP SECT'!$G$6:$EV$253,101,FALSE) -> 4.58 | G21: =VLOOKUP($C21,'RECAP SECT'!$G$6:$EV$253,102,FALSE) -> 18% | H21: =VLOOKUP($C21,'RECAP SECT'!$G$6:$EV$253,103,FALSE) -> 7 | I21: =VLOOKUP($C21,'RECAP SECT'!$G$6:$EV$253,104,FALSE) -> 4.54 | J21: =VLOOKUP($C21,'RECAP SECT'!$G$6:$EV$253,105,FALSE) -> 49% | K21: =VLOOKUP($C21,'RECAP SECT'!$G$6:$EV$253,106,FALSE) -> 13 | L21: =VLOOKUP($C21,'RECAP SECT'!$G$6:$EV$253,107,FALSE) -> 6.25 | M21: =VLOOKUP($C21,'RECAP SECT'!$G$6:$EV$253,108,FALSE) -> 8% | N21: =VLOOKUP($C21,'RECAP SECT'!$G$6:$EV$253,109,FALSE) -> 6 | O21: =VLOOKUP($C21,'RECAP SECT'!$G$6:$EV$253,110,FALSE) -> 26% | P21: =VLOOKUP($C21,'RECAP SECT'!$G$6:$EV$253,111,FALSE) -> 26% | Q21: =VLOOKUP($C21,'RECAP SECT'!$G$6:$EV$253,112,FALSE) -> 10
A22: 110 | B22: MEURTHE ET MOSELLE MEUSE | C22: 31 | D22: VERDUN | E22: =VLOOKUP($C22,'RECAP SECT'!$G$6:$EV$253,3,FALSE) -> 66.1 | F22: =VLOOKUP($C22,'RECAP SECT'!$G$6:$EV$253,101,FALSE) -> 3.18 | G22: =VLOOKUP($C22,'RECAP SECT'!$G$6:$EV$253,102,FALSE) -> 43% | H22: =VLOOKUP($C22,'RECAP SECT'!$G$6:$EV$253,103,FALSE) -> 15 | I22: =VLOOKUP($C22,'RECAP SECT'!$G$6:$EV$253,104,FALSE) -> 3.68 | J22: =VLOOKUP($C22,'RECAP SECT'!$G$6:$EV$253,105,FALSE) -> 59% | K22: =VLOOKUP($C22,'RECAP SECT'!$G$6:$EV$253,106,FALSE) -> 15 | L22: =VLOOKUP($C22,'RECAP SECT'!$G$6:$EV$253,107,FALSE) -> 5.70 | M22: =VLOOKUP($C22,'RECAP SECT'!$G$6:$EV$253,108,FALSE) -> 16% | N22: =VLOOKUP($C22,'RECAP SECT'!$G$6:$EV$253,109,FALSE) -> 12 | O22: =VLOOKUP($C22,'RECAP SECT'!$G$6:$EV$253,110,FALSE) -> 40% | P22: =VLOOKUP($C22,'RECAP SECT'!$G$6:$EV$253,111,FALSE) -> 40% | Q22: =VLOOKUP($C22,'RECAP SECT'!$G$6:$EV$253,112,FALSE) -> 15
A23: 160 | B23: MOSELLE | C23: 45 | D23: METZ | E23: =VLOOKUP($C23,'RECAP SECT'!$G$6:$EV$253,3,FALSE) -> 105.9 | F23: =VLOOKUP($C23,'RECAP SECT'!$G$6:$EV$253,101,FALSE) -> 3.85 | G23: =VLOOKUP($C23,'RECAP SECT'!$G$6:$EV$253,102,FALSE) -> 31% | H23: =VLOOKUP($C23,'RECAP SECT'!$G$6:$EV$253,103,FALSE) -> 10 | I23: =VLOOKUP($C23,'RECAP SECT'!$G$6:$EV$253,104,FALSE) -> 7.69 | J23: =VLOOKUP($C23,'RECAP SECT'!$G$6:$EV$253,105,FALSE) -> 14% | K23: =VLOOKUP($C23,'RECAP SECT'!$G$6:$EV$253,106,FALSE) -> 5 | L23: =VLOOKUP($C23,'RECAP SECT'!$G$6:$EV$253,107,FALSE) -> 5.01 | M23: =VLOOKUP($C23,'RECAP SECT'!$G$6:$EV$253,108,FALSE) -> 26% | N23: =VLOOKUP($C23,'RECAP SECT'!$G$6:$EV$253,109,FALSE) -> 16 | O23: =VLOOKUP($C23,'RECAP SECT'!$G$6:$EV$253,110,FALSE) -> 23% | P23: =VLOOKUP($C23,'RECAP SECT'!$G$6:$EV$253,111,FALSE) -> 23% | Q23: =VLOOKUP($C23,'RECAP SECT'!$G$6:$EV$253,112,FALSE) -> 9
A24: 160 | B24: MOSELLE | C24: 42 | D24: MOSELLE EST | E24: =VLOOKUP($C24,'RECAP SECT'!$G$6:$EV$253,3,FALSE) -> 87.4 | F24: =VLOOKUP($C24,'RECAP SECT'!$G$6:$EV$253,101,FALSE) -> 3.16 | G24: =VLOOKUP($C24,'RECAP SECT'!$G$6:$EV$253,102,FALSE) -> 43% | H24: =VLOOKUP($C24,'RECAP SECT'!$G$6:$EV$253,103,FALSE) -> 16 | I24: =VLOOKUP($C24,'RECAP SECT'!$G$6:$EV$253,104,FALSE) -> 7.05 | J24: =VLOOKUP($C24,'RECAP SECT'!$G$6:$EV$253,105,FALSE) -> 21% | K24: =VLOOKUP($C24,'RECAP SECT'!$G$6:$EV$253,106,FALSE) -> 7 | L24: =VLOOKUP($C24,'RECAP SECT'!$G$6:$EV$253,107,FALSE) -> 5.97 | M24: =VLOOKUP($C24,'RECAP SECT'!$G$6:$EV$253,108,FALSE) -> 12% | N24: =VLOOKUP($C24,'RECAP SECT'!$G$6:$EV$253,109,FALSE) -> 9 | O24: =VLOOKUP($C24,'RECAP SECT'!$G$6:$EV$253,110,FALSE) -> 26% | P24: =VLOOKUP($C24,'RECAP SECT'!$G$6:$EV$253,111,FALSE) -> 26% | Q24: =VLOOKUP($C24,'RECAP SECT'!$G$6:$EV$253,112,FALSE) -> 11
A25: 160 | B25: MOSELLE | C25: 44 | D25: MOSELLE NORD | E25: =VLOOKUP($C25,'RECAP SECT'!$G$6:$EV$253,3,FALSE) -> 81.6 | F25: =VLOOKUP($C25,'RECAP SECT'!$G$6:$EV$253,101,FALSE) -> 4.71 | G25: =VLOOKUP($C25,'RECAP SECT'!$G$6:$EV$253,102,FALSE) -> 15% | H25: =VLOOKUP($C25,'RECAP SECT'!$G$6:$EV$253,103,FALSE) -> 5 | I25: =VLOOKUP($C25,'RECAP SECT'!$G$6:$EV$253,104,FALSE) -> 7.25 | J25: =VLOOKUP($C25,'RECAP SECT'!$G$6:$EV$253,105,FALSE) -> 19% | K25: =VLOOKUP($C25,'RECAP SECT'!$G$6:$EV$253,106,FALSE) -> 6 | L25: =VLOOKUP($C25,'RECAP SECT'!$G$6:$EV$253,107,FALSE) -> 6.22 | M25: =VLOOKUP($C25,'RECAP SECT'!$G$6:$EV$253,108,FALSE) -> 8% | N25: =VLOOKUP($C25,'RECAP SECT'!$G$6:$EV$253,109,FALSE) -> 8 | O25: =VLOOKUP($C25,'RECAP SECT'!$G$6:$EV$253,110,FALSE) -> 14% | P25: =VLOOKUP($C25,'RECAP SECT'!$G$6:$EV$253,111,FALSE) -> 14% | Q25: =VLOOKUP($C25,'RECAP SECT'!$G$6:$EV$253,112,FALSE) -> 4
A26: 80 | B26: VOSGES | C26: 57 | D26: EPINAL | E26: =VLOOKUP($C26,'RECAP SECT'!$G$6:$EV$253,3,FALSE) -> 69.3 | F26: =VLOOKUP($C26,'RECAP SECT'!$G$6:$EV$253,101,FALSE) -> 4.78 | G26: =VLOOKUP($C26,'RECAP SECT'!$G$6:$EV$253,102,FALSE) -> 14% | H26: =VLOOKUP($C26,'RECAP SECT'!$G$6:$EV$253,103,FALSE) -> 3 | I26: =VLOOKUP($C26,'RECAP SECT'!$G$6:$EV$253,104,FALSE) -> 3.59 | J26: =VLOOKUP($C26,'RECAP SECT'!$G$6:$EV$253,105,FALSE) -> 60% | K26: =VLOOKUP($C26,'RECAP SECT'!$G$6:$EV$253,106,FALSE) -> 16 | L26: =VLOOKUP($C26,'RECAP SECT'!$G$6:$EV$253,107,FALSE) -> 6.38 | M26: =VLOOKUP($C26,'RECAP SECT'!$G$6:$EV$253,108,FALSE) -> 6% | N26: =VLOOKUP($C26,'RECAP SECT'!$G$6:$EV$253,109,FALSE) -> 4 | O26: =VLOOKUP($C26,'RECAP SECT'!$G$6:$EV$253,110,FALSE) -> 28% | P26: =VLOOKUP($C26,'RECAP SECT'!$G$6:$EV$253,111,FALSE) -> 28% | Q26: =VLOOKUP($C26,'RECAP SECT'!$G$6:$EV$253,112,FALSE) -> 12
A27: 80 | B27: VOSGES | C27: 55 | D27: SAINT DIE | E27: =VLOOKUP($C27,'RECAP SECT'!$G$6:$EV$253,3,FALSE) -> 59.0 | F27: =VLOOKUP($C27,'RECAP SECT'!$G$6:$EV$253,101,FALSE) -> 4.76 | G27: =VLOOKUP($C27,'RECAP SECT'!$G$6:$EV$253,102,FALSE) -> 14% | H27: =VLOOKUP($C27,'RECAP SECT'!$G$6:$EV$253,103,FALSE) -> 4 | I27: =VLOOKUP($C27,'RECAP SECT'!$G$6:$EV$253,104,FALSE) -> 5.42 | J27: =VLOOKUP($C27,'RECAP SECT'!$G$6:$EV$253,105,FALSE) -> 39% | K27: =VLOOKUP($C27,'RECAP SECT'!$G$6:$EV$253,106,FALSE) -> 9 | L27: =VLOOKUP($C27,'RECAP SECT'!$G$6:$EV$253,107,FALSE) -> 6.48 | M27: =VLOOKUP($C27,'RECAP SECT'!$G$6:$EV$253,108,FALSE) -> 4% | N27: =VLOOKUP($C27,'RECAP SECT'!$G$6:$EV$253,109,FALSE) -> 3 | O27: =VLOOKUP($C27,'RECAP SECT'!$G$6:$EV$253,110,FALSE) -> 20% | P27: =VLOOKUP($C27,'RECAP SECT'!$G$6:$EV$253,111,FALSE) -> 20% | Q27: =VLOOKUP($C27,'RECAP SECT'!$G$6:$EV$253,112,FALSE) -> 5
A28: Total CEGEE Directions Commerciales | E28: =SUM(E10:E27) -> 1387

Sheet SE_CONQUETE
A1: Accueil | F1: BAROMETRE BDD - DIRECTIONS COMMERCIALES
F2: CONQUETE
F3: =ACCUEIL!H7 -> 2019-05-31
F7: Evolution nette clients Bancarisés Principaux | I7: Evolution nette relations PREMIUM | L7: Evolution nette clients Bancarisés Principaux équipés | O7: Evolution nette clients Pro actif équipés | R7: Total Conquête
G8: coef | H8: ='RECAP DIRCOM'!M4 -> 4% | J8: coef | K8: ='RECAP DIRCOM'!P4 -> 4% | M8: coef | N8: ='RECAP DIRCOM'!S4 -> 3% | P8: coef | Q8: ='RECAP DIRCOM'!V4 -> 4% | S8: coef | T8: ='RECAP DIRCOM'!Y4 -> 15%
A9: eds | B9: Direction | C9: eds | D9: Territoire | E9: ETP perf | F9: Nb / ETP | G9: % Ecart au 1er | H9: Rang | I9: Nb / ETP | J9: % Ecart au 1er | K9: Rang | L9: Nb / ETP | M9: % Ecart au 1er | N9: Rang | O9: Taux réal objectif | P9: % Ecart au 1er | Q9: Rang | R9: Moyenne ecart au 1er | S9: % Ecart au 1er | T9: Rang CEGEE
A10: 50 | B10: AUBE HAUTE MARNE | C10: 21 | D10: CHAUMONT | E10: =VLOOKUP($C10,'RECAP SECT'!$G$6:$EV$253,3,FALSE) -> 47.4 | F10: =VLOOKUP($C10,'RECAP SECT'!$G$6:$EV$253,5,FALSE) -> 0.19 | G10: =VLOOKUP($C10,'RECAP SECT'!$G$6:$EV$253,6,FALSE) -> 8% | H10: =VLOOKUP($C10,'RECAP SECT'!$G$6:$EV$253,7,FALSE) -> 2 | I10: =VLOOKUP($C10,'RECAP SECT'!$G$6:$EV$253,8,FALSE) -> 1.52 | J10: =VLOOKUP($C10,'RECAP SECT'!$G$6:$EV$253,9,FALSE) -> 26% | K10: =VLOOKUP($C10,'RECAP SECT'!$G$6:$EV$253,10,FALSE) -> 5 | L10: =VLOOKUP($C10,'RECAP SECT'!$G$6:$EV$253,11,FALSE) -> 2.45 | M10: =VLOOKUP($C10,'RECAP SECT'!$G$6:$EV$253,12,FALSE) -> 18% | N10: =VLOOKUP($C10,'RECAP SECT'!$G$6:$EV$253,13,FALSE) -> 2 | O10: =VLOOKUP($C10,'RECAP SECT'!$G$6:$EV$253,14,FALSE) -> 13% | P10: =VLOOKUP($C10,'RECAP SECT'!$G$6:$EV$253,15,FALSE) -> 69% | Q10: =VLOOKUP($C10,'RECAP SECT'!$G$6:$EV$253,16,FALSE) -> 9 | R10: =VLOOKUP($C10,'RECAP SECT'!$G$6:$EV$253,17,FALSE) -> 31% | S10: =VLOOKUP($C10,'RECAP SECT'!$G$6:$EV$253,18,FALSE) -> 13% | T10: =VLOOKUP($C10,'RECAP SECT'!$G$6:$EV$253,19,FALSE) -> 2
A11: 50 | B11: AUBE HAUTE MARNE | C11: 14 | D11: TROYES | E11: =VLOOKUP($C11,'RECAP SECT'!$G$6:$EV$253,3,FALSE) -> 80.5 | F11: =VLOOKUP($C11,'RECAP SECT'!$G$6:$EV$253,5,FALSE) -> -2.39 | G11: =VLOOKUP($C11,'RECAP SECT'!$G$6:$EV$253,6,FALSE) -> 73% | H11: =VLOOKUP($C11,'RECAP SECT'!$G$6:$EV$253,7,FALSE) -> 6 | I11: =VLOOKUP($C11,'RECAP SECT'!$G$6:$EV$253,8,FALSE) -> 0.98 | J11: =VLOOKUP($C11,'RECAP SECT'!$G$6:$EV$253,9,FALSE) -> 52% | K11: =VLOOKUP($C11,'RECAP SECT'!$G$6:$EV$253,10,FALSE) -> 17 | L11: =VLOOKUP($C11,'RECAP SECT'!$G$6:$EV$253,11,FALSE) -> 1.32 | M11: =VLOOKUP($C11,'RECAP SECT'!$G$6:$EV$253,12,FALSE) -> 41% | N11: =VLOOKUP($C11,'RECAP SECT'!$G$6:$EV$253,13,FALSE) -> 4 | O11: =VLOOKUP($C11,'RECAP SECT'!$G$6:$EV$253,14,FALSE) -> 35% | P11: =VLOOKUP($C11,'RECAP SECT'!$G$6:$EV$253,15,FALSE) -> 51% | Q11: =VLOOKUP($C11,'RECAP SECT'!$G$6:$EV$253,16,FALSE) -> 8 | R11: =VLOOKUP($C11,'RECAP SECT'!$G$6:$EV$253,17,FALSE) -> 55% | S11: =VLOOKUP($C11,'RECAP SECT'!$G$6:$EV$253,18,FALSE) -> 37% | T11: =VLOOKUP($C11,'RECAP SECT'!$G$6:$EV$253,19,FALSE) -> 6
A12: 262 | B12: BAS-RHIN | C12: 5060 | D12: HAGUENAU | E12: =VLOOKUP($C12,'RECAP SECT'!$G$6:$EV$253,3,FALSE) -> 89.8 | F12: =VLOOKUP($C12,'RECAP SECT'!$G$6:$EV$253,5,FALSE) -> -2.58 | G12: =VLOOKUP($C12,'RECAP SECT'!$G$6:$EV$253,6,FALSE) -> 78% | H12: =VLOOKUP($C12,'RECAP SECT'!$G$6:$EV$253,7,FALSE) -> 7 | I12: =VLOOKUP($C12,'RECAP SECT'!$G$6:$EV$253,8,FALSE) -> 1.34 | J12: =VLOOKUP($C12,'RECAP SECT'!$G$6:$EV$253,9,FALSE) -> 35% | K12: =VLOOKUP($C12,'RECAP SECT'!$G$6:$EV$253,10,FALSE) -> 11 | L12: =VLOOKUP($C12,'RECAP SECT'!$G$6:$EV$253,11,FALSE) -> -3.12 | M12: =VLOOKUP($C12,'RECAP SECT'!$G$6:$EV$253,12,FALSE) -> 130% | N12: =VLOOKUP($C12,'RECAP SECT'!$G$6:$EV$253,13,FALSE) -> 14 | O12: =VLOOKUP($C12,'RECAP SECT'!$G$6:$EV$253,14,FALSE) -> -6% | P12: =VLOOKUP($C12,'RECAP SECT'!$G$6:$EV$253,15,FALSE) -> 83% | Q12: =VLOOKUP($C12,'RECAP SECT'!$G$6:$EV$253,16,FALSE) -> 13 | R12: =VLOOKUP($C12,'RECAP SECT'!$G$6:$EV$253,17,FALSE) -> 78% | S12: =VLOOKUP($C12,'RECAP SECT'!$G$6:$EV$253,18,FALSE) -> 60% | T12: =VLOOKUP($C12,'RECAP SECT'!$G$6:$EV$253,19,FALSE) -> 15
A13: 262 | B13: BAS-RHIN | C13: 5101 | D13: SELESTAT | E13: =VLOOKUP($C13,'RECAP SECT'!$G$6:$EV$253,3,FALSE) -> 76.3 | F13: =VLOOKUP($C13,'RECAP SECT'!$G$6:$EV$253,5,FALSE) -> -4.95 | G13: =VLOOKUP($C13,'RECAP SECT'!$G$6:$EV$253,6,FALSE) -> 138% | H13: =VLOOKUP($C13,'RECAP SECT'!$G$6:$EV$253,7,FALSE) -> 17 | I13: =VLOOKUP($C13,'RECAP SECT'!$G$6:$EV$253,8,FALSE) -> 1.79 | J13: =VLOOKUP($C13,'RECAP SECT'!$G$6:$EV$253,9,FALSE) -> 13% | K13: =VLOOKUP($C13,'RECAP SECT'!$G$6:$EV$253,10,FALSE) -> 3 | L13: =VLOOKUP($C13,'RECAP SECT'!$G$6:$EV$253,11,FALSE) -> -3.30 | M13: =VLOOKUP($C13,'RECAP SECT'!$G$6:$EV$253,12,FALSE) -> 133% | N13: =VLOOKUP($C13,'RECAP SECT'!$G$6:$EV$253,13,FALSE) -> 15 | O13: =VLOOKUP($C13,'RECAP SECT'!$G$6:$EV$253,14,FALSE) -> -46% | P13: =VLOOKUP($C13,'RECAP SECT'!$G$6:$EV$253,15,FALSE) -> 114% | Q13: =VLOOKUP($C13,'RECAP SECT'!$G$6:$EV$253,16,FALSE) -> 17 | R13: =VLOOKUP($C13,'RECAP SECT'!$G$6:$EV$253,17,FALSE) -> 97% | S13: =VLOOKUP($C13,'RECAP SECT'!$G$6:$EV$253,18,FALSE) -> 79% | T13: =VLOOKUP($C13,'RECAP SECT'!$G$6:$EV$253,19,FALSE) -> 18
A14: 262 | B14: BAS-RHIN | C14: 5006 | D14: STRASBOURG | E14: =VLOOKUP($C14,'RECAP SECT'!$G$6:$EV$253,3,FALSE) -> 92.7 | F14: =VLOOKUP($C14,'RECAP SECT'!$G$6:$EV$253,5,FALSE) -> -4.30 | G14: =VLOOKUP($C14,'RECAP SECT'!$G$6:$EV$253,6,FALSE) -> 121% | H14: =VLOOKUP($C14,'RECAP SECT'!$G$6:$EV$253,7,FALSE) -> 12 | I14: =VLOOKUP($C14,'RECAP SECT'!$G$6:$EV$253,8,FALSE) -> 1.43 | J14: =VLOOKUP($C14,'RECAP SECT'!$G$6:$EV$253,9,FALSE) -> 30% | K14: =VLOOKUP($C14,'RECAP SECT'!$G$6:$EV$253,10,FALSE) -> 8 | L14: =VLOOKUP($C14,'RECAP SECT'!$G$6:$EV$253,11,FALSE) -> -3.74 | M14: =VLOOKUP($C14,'RECAP SECT'!$G$6:$EV$253,12,FALSE) -> 142% | N14: =VLOOKUP($C14,'RECAP SECT'!$G$6:$EV$253,13,FALSE) -> 16 | O14: =VLOOKUP($C14,'RECAP SECT'!$G$6:$EV$253,14,FALSE) -> 56% | P14: =VLOOKUP($C14,'RECAP SECT'!$G$6:$EV$253,15,FALSE) -> 35% | Q14: =VLOOKUP($C14,'RECAP SECT'!$G$6:$EV$253,16,FALSE) -> 6 | R14: =VLOOKUP($C14,'RECAP SECT'!$G$6:$EV$253,17,FALSE) -> 78% | S14: =VLOOKUP($C14,'RECAP SECT'!$G$6:$EV$253,18,FALSE) -> 60% | T14: =VLOOKUP($C14,'RECAP SECT'!$G$6:$EV$253,19,FALSE) -> 14
A15: 264 | B15: HAUT-RHIN | C15: 5130 | D15: COLMAR | E15: =VLOOKUP($C15,'RECAP SECT'!$G$6:$EV$253,3,FALSE) -> 78.8 | F15: =VLOOKUP($C15,'RECAP SECT'!$G$6:$EV$253,5,FALSE) -> -4.67 | G15: =VLOOKUP($C15,'RECAP SECT'!$G$6:$EV$253,6,FALSE) -> 131% | H15: =VLOOKUP($C15,'RECAP SECT'!$G$6:$EV$253,7,FALSE) -> 16 | I15: =VLOOKUP($C15,'RECAP SECT'!$G$6:$EV$253,8,FALSE) -> 1.46 | J15: =VLOOKUP($C15,'RECAP SECT'!$G$6:$EV$253,9,FALSE) -> 29% | K15: =VLOOKUP($C15,'RECAP SECT'!$G$6:$EV$253,10,FALSE) -> 7 | L15: =VLOOKUP($C15,'RECAP SECT'!$G$6:$EV$253,11,FALSE) -> -2.36 | M15: =VLOOKUP($C15,'RECAP SECT'!$G$6:$EV$253,12,FALSE) -> 114% | N15: =VLOOKUP($C15,'RECAP SECT'!$G$6:$EV$253,13,FALSE) -> 13 | O15: =VLOOKUP($C15,'RECAP SECT'!$G$6:$EV$253,14,FALSE) -> -9% | P15: =VLOOKUP($C15,'RECAP SECT'!$G$6:$EV$253,15,FALSE) -> 86% | Q15: =VLOOKUP($C15,'RECAP SECT'!$G$6:$EV$253,16,FALSE) -> 14 | R15: =VLOOKUP($C15,'RECAP SECT'!$G$6:$EV$253,17,FALSE) -> 88% | S15: =VLOOKUP($C15,'RECAP SECT'!$G$6:$EV$253,18,FALSE) -> 70% | T15: =VLOOKUP($C15,'RECAP SECT'!$G$6:$EV$253,19,FALSE) -> 16
A16: 264 | B16: HAUT-RHIN | C16: 5169 | D16: MULHOUSE | E16: =VLOOKUP($C16,'RECAP SECT'!$G$6:$EV$253,3,FALSE) -> 78.2 | F16: =VLOOKUP($C16,'RECAP SECT'!$G$6:$EV$253,5,FALSE) -> -5.43 | G16: =VLOOKUP($C16,'RECAP SECT'!$G$6:$EV$253,6,FALSE) -> 150% | H16: =VLOOKUP($C16,'RECAP SECT'!$G$6:$EV$253,7,FALSE) -> 18 | I16: =VLOOKUP($C16,'RECAP SECT'!$G$6:$EV$253,8,FALSE) -> 2.06 | J16: =VLOOKUP($C16,'RECAP SECT'!$G$6:$EV$253,9,FALSE) -> 0% | K16: =VLOOKUP($C16,'RECAP SECT'!$G$6:$EV$253,10,FALSE) -> 1 | L16: =VLOOKUP($C16,'RECAP SECT'!$G$6:$EV$253,11,FALSE) -> -3.87 | M16: =VLOOKUP($C16,'RECAP SECT'!$G$6:$EV$253,12,FALSE) -> 145% | N16: =VLOOKUP($C16,'RECAP SECT'!$G$6:$EV$253,13,FALSE) -> 17 | O16: =VLOOKUP($C16,'RECAP SECT'!$G$6:$EV$253,14,FALSE) -> -14% | P16: =VLOOKUP($C16,'RECAP SECT'!$G$6:$EV$253,15,FALSE) -> 90% | Q16: =VLOOKUP($C16,'RECAP SECT'!$G$6:$EV$253,16,FALSE) -> 15 | R16: =VLOOKUP($C16,'RECAP SECT'!$G$6:$EV$253,17,FALSE) -> 93% | S16: =VLOOKUP($C16,'RECAP SECT'!$G$6:$EV$253,18,FALSE) -> 75% | T16: =VLOOKUP($C16,'RECAP SECT'!$G$6:$EV$253,19,FALSE) -> 17
A17: 30 | B17: MARNE-ARDENNES | C17: 6 | D17: CHALONS EN CHAMPAGNE | E17: =VLOOKUP($C17,'RECAP SECT'!$G$6:$EV$253,3,FALSE) -> 49.1 | F17: =VLOOKUP($C17,'RECAP SECT'!$G$6:$EV$253,5,FALSE) -> -0.77 | G17: =VLOOKUP($C17,'RECAP SECT'!$G$6:$EV$253,6,FALSE) -> 33% | H17: =VLOOKUP($C17,'RECAP SECT'!$G$6:$EV$253,7,FALSE) -> 3 | I17: =VLOOKUP($C17,'RECAP SECT'!$G$6:$EV$253,8,FALSE) -> 1.32 | J17: =VLOOKUP($C17,'RECAP SECT'!$G$6:$EV$253,9,FALSE) -> 36% | K17: =VLOOKUP($C17,'RECAP SECT'!$G$6:$EV$253,10,FALSE) -> 12 | L17: =VLOOKUP($C17,'RECAP SECT'!$G$6:$EV$253,11,FALSE) -> -1.02 | M17: =VLOOKUP($C17,'RECAP SECT'!$G$6:$EV$253,12,FALSE) -> 88% | N17: =VLOOKUP($C17,'RECAP SECT'!$G$6:$EV$253,13,FALSE) -> 11 | O17: =VLOOKUP($C17,'RECAP SECT'!$G$6:$EV$253,14,FALSE) -> -91% | P17: =VLOOKUP($C17,'RECAP SECT'!$G$6:$EV$253,15,FALSE) -> 150% | Q17: =VLOOKUP($C17,'RECAP SECT'!$G$6:$EV$253,16,FALSE) -> 18 | R17: =VLOOKUP($C17,'RECAP SECT'!$G$6:$EV$253,17,FALSE) -> 76% | S17: =VLOOKUP($C17,'RECAP SECT'!$G$6:$EV$253,18,FALSE) -> 57% | T17: =VLOOKUP($C17,'RECAP SECT'!$G$6:$EV$253,19,FALSE) -> 12
A18: 30 | B18: MARNE-ARDENNES | C18: 2 | D18: CHARLEVILLE MEZIERES | E18: =VLOOKUP($C18,'RECAP SECT'!$G$6:$EV$253,3,FALSE) -> 64.0 | F18: =VLOOKUP($C18,'RECAP SECT'!$G$6:$EV$253,5,FALSE) -> 0.52 | G18: =VLOOKUP($C18,'RECAP SECT'!$G$6:$EV$253,6,FALSE) -> 0% | H18: =VLOOKUP($C18,'RECAP SECT'!$G$6:$EV$253,7,FALSE) -> 1 | I18: =VLOOKUP($C18,'RECAP SECT'!$G$6:$EV$253,8,FALSE) -> 1.36 | J18: =VLOOKUP($C18,'RECAP SECT'!$G$6:$EV$253,9,FALSE) -> 34% | K18: =VLOOKUP($C18,'RECAP SECT'!$G$6:$EV$253,10,FALSE) -> 10 | L18: =VLOOKUP($C18,'RECAP SECT'!$G$6:$EV$253,11,FALSE) -> 3.36 | M18: =VLOOKUP($C18,'RECAP SECT'!$G$6:$EV$253,12,FALSE) -> 0% | N18: =VLOOKUP($C18,'RECAP SECT'!$G$6:$EV$253,13,FALSE) -> 1 | O18: =VLOOKUP($C18,'RECAP SECT'!$G$6:$EV$253,14,FALSE) -> 56% | P18: =VLOOKUP($C18,'RECAP SECT'!$G$6:$EV$253,15,FALSE) -> 35% | Q18: =VLOOKUP($C18,'RECAP SECT'!$G$6:$EV$253,16,FALSE) -> 5 | R18: =VLOOKUP($C18,'RECAP SECT'!$G$6:$EV$253,17,FALSE) -> 18% | S18: =VLOOKUP($C18,'RECAP SECT'!$G$6:$EV$253,18,FALSE) -> 0% | T18: =VLOOKUP($C18,'RECAP SECT'!$G$6:$EV$253,19,FALSE) -> 1
A19: 30 | B19: MARNE-ARDENNES | C19: 11 | D19: REIMS | E19: =VLOOKUP($C19,'RECAP SECT'!$G$6:$EV$253,3,FALSE) -> 91.1 | F19: =VLOOKUP($C19,'RECAP SECT'!$G$6:$EV$253,5,FALSE) -> -1.23 | G19: =VLOOKUP($C19,'RECAP SECT'!$G$6:$EV$253,6,FALSE) -> 44% | H19: =VLOOKUP($C19,'RECAP SECT'!$G$6:$EV$253,7,FALSE) -> 4 | I19: =VLOOKUP($C19,'RECAP SECT'!$G$6:$EV$253,8,FALSE) -> 1.92 | J19: =VLOOKUP($C19,'RECAP SECT'!$G$6:$EV$253,9,FALSE) -> 7% | K19: =VLOOKUP($C19,'RECAP SECT'!$G$6:$EV$253,10,FALSE) -> 2 | L19: =VLOOKUP($C19,'RECAP SECT'!$G$6:$EV$253,11,FALSE) -> 0.92 | M19: =VLOOKUP($C19,'RECAP SECT'!$G$6:$EV$253,12,FALSE) -> 49% | N19: =VLOOKUP($C19,'RECAP SECT'!$G$6:$EV$253,13,FALSE) -> 5 | O19: =VLOOKUP($C19,'RECAP SECT'!$G$6:$EV$253,14,FALSE) -> -35% | P19: =VLOOKUP($C19,'RECAP SECT'!$G$6:$EV$253,15,FALSE) -> 106% | Q19: =VLOOKUP($C19,'RECAP SECT'!$G$6:$EV$253,16,FALSE) -> 16 | R19: =VLOOKUP($C19,'RECAP SECT'!$G$6:$EV$253,17,FALSE) -> 52% | S19: =VLOOKUP($C19,'RECAP SECT'!$G$6:$EV$253,18,FALSE) -> 33% | T19: =VLOOKUP($C19,'RECAP SECT'!$G$6:$EV$253,19,FALSE) -> 5
A20: 110 | B20: MEURTHE ET MOSELLE MEUSE | C20: 26 | D20: NANCY | E20: =VLOOKUP($C20,'RECAP SECT'!$G$6:$EV$253,3,FALSE) -> 80.2 | F20: =VLOOKUP($C20,'RECAP SECT'!$G$6:$EV$253,5,FALSE) -> -2.70 | G20: =VLOOKUP($C20,'RECAP SECT'!$G$6:$EV$253,6,FALSE) -> 81% | H20: =VLOOKUP($C20,'RECAP SECT'!$G$6:$EV$253,7,FALSE) -> 9 | I20: =VLOOKUP($C20,'RECAP SECT'!$G$6:$EV$253,8,FALSE) -> 1.18 | J20: =VLOOKUP($C20,'RECAP SECT'!$G$6:$EV$253,9,FALSE) -> 42% | K20: =VLOOKUP($C20,'RECAP SECT'!$G$6:$EV$253,10,FALSE) -> 14 | L20: =VLOOKUP($C20,'RECAP SECT'!$G$6:$EV$253,11,FALSE) -> -0.86 | M20: =VLOOKUP($C20,'RECAP SECT'!$G$6:$EV$253,12,FALSE) -> 84% | N20: =VLOOKUP($C20,'RECAP SECT'!$G$6:$EV$253,13,FALSE) -> 10 | O20: =VLOOKUP($C20,'RECAP SECT'!$G$6:$EV$253,14,FALSE) -> 9% | P20: =VLOOKUP($C20,'RECAP SECT'!$G$6:$EV$253,15,FALSE) -> 72% | Q20: =VLOOKUP($C20,'RECAP SECT'!$G$6:$EV$253,16,FALSE) -> 10 | R20: =VLOOKUP($C20,'RECAP SECT'!$G$6:$EV$253,17,FALSE) -> 69% | S20: =VLOOKUP($C20,'RECAP SECT'!$G$6:$EV$253,18,FALSE) -> 51% | T20: =VLOOKUP($C20,'RECAP SECT'!$G$6:$EV$253,19,FALSE) -> 8
A21: 110 | B21: MEURTHE ET MOSELLE MEUSE | C21: 27 | D21: PONT A MOUSSON | E21: =VLOOKUP($C21,'RECAP SECT'!$G$6:$EV$253,3,FALSE) -> 89.4 | F21: =VLOOKUP($C21,'RECAP SECT'!$G$6:$EV$253,5,FALSE) -> -2.60 | G21: =VLOOKUP($C21,'RECAP SECT'!$G$6:$EV$253,6,FALSE) -> 78% | H21: =VLOOKUP($C21,'RECAP SECT'!$G$6:$EV$253,7,FALSE) -> 8 | I21: =VLOOKUP($C21,'RECAP SECT'!$G$6:$EV$253,8,FALSE) -> 1.10 | J21: =VLOOKUP($C21,'RECAP SECT'!$G$6:$EV$253,9,FALSE) -> 47% | K21: =VLOOKUP($C21,'RECAP SECT'!$G$6:$EV$253,10,FALSE) -> 15 | L21: =VLOOKUP($C21,'RECAP SECT'!$G$6:$EV$253,11,FALSE) -> 0.63 | M21: =VLOOKUP($C21,'RECAP SECT'!$G$6:$EV$253,12,FALSE) -> 55% | N21: =VLOOKUP($C21,'RECAP SECT'!$G$6:$EV$253,13,FALSE) -> 6 | O21: =VLOOKUP($C21,'RECAP SECT'!$G$6:$EV$253,14,FALSE) -> 75% | P21: =VLOOKUP($C21,'RECAP SECT'!$G$6:$EV$253,15,FALSE) -> 20% | Q21: =VLOOKUP($C21,'RECAP SECT'!$G$6:$EV$253,16,FALSE) -> 3 | R21: =VLOOKUP($C21,'RECAP SECT'!$G$6:$EV$253,17,FALSE) -> 50% | S21: =VLOOKUP($C21,'RECAP SECT'!$G$6:$EV$253,18,FALSE) -> 31% | T21: =VLOOKUP($C21,'RECAP SECT'!$G$6:$EV$253,19,FALSE) -> 3
A22: 110 | B22: MEURTHE ET MOSELLE MEUSE | C22: 31 | D22: VERDUN | E22: =VLOOKUP($C22,'RECAP SECT'!$G$6:$EV$253,3,FALSE) -> 66.1 | F22: =VLOOKUP($C22,'RECAP SECT'!$G$6:$EV$253,5,FALSE) -> -1.51 | G22: =VLOOKUP($C22,'RECAP SECT'!$G$6:$EV$253,6,FALSE) -> 51% | H22: =VLOOKUP($C22,'RECAP SECT'!$G$6:$EV$253,7,FALSE) -> 5 | I22: =VLOOKUP($C22,'RECAP SECT'!$G$6:$EV$253,8,FALSE) -> 1.01 | J22: =VLOOKUP($C22,'RECAP SECT'!$G$6:$EV$253,9,FALSE) -> 51% | K22: =VLOOKUP($C22,'RECAP SECT'!$G$6:$EV$253,10,FALSE) -> 16 | L22: =VLOOKUP($C22,'RECAP SECT'!$G$6:$EV$253,11,FALSE) -> -2.18 | M22: =VLOOKUP($C22,'RECAP SECT'!$G$6:$EV$253,12,FALSE) -> 111% | N22: =VLOOKUP($C22,'RECAP SECT'!$G$6:$EV$253,13,FALSE) -> 12 | O22: =VLOOKUP($C22,'RECAP SECT'!$G$6:$EV$253,14,FALSE) -> 0% | P22: =VLOOKUP($C22,'RECAP SECT'!$G$6:$EV$253,15,FALSE) -> 79% | Q22: =VLOOKUP($C22,'RECAP SECT'!$G$6:$EV$253,16,FALSE) -> 12 | R22: =VLOOKUP($C22,'RECAP SECT'!$G$6:$EV$253,17,FALSE) -> 70% | S22: =VLOOKUP($C22,'RECAP SECT'!$G$6:$EV$253,18,FALSE) -> 52% | T22: =VLOOKUP($C22,'RECAP SECT'!$G$6:$EV$253,19,FALSE) -> 10
A23: 160 | B23: MOSELLE | C23: 45 | D23: METZ | E23: =VLOOKUP($C23,'RECAP SECT'!$G$6:$EV$253,3,FALSE) -> 105.9 | F23: =VLOOKUP($C23,'RECAP SECT'!$G$6:$EV$253,5,FALSE) -> -4.58 | G23: =VLOOKUP($C23,'RECAP SECT'!$G$6:$EV$253,6,FALSE) -> 128% | H23: =VLOOKUP($C23,'RECAP SECT'!$G$6:$EV$253,7,FALSE) -> 14 | I23: =VLOOKUP($C23,'RECAP SECT'!$G$6:$EV$253,8,FALSE) -> 1.29 | J23: =VLOOKUP($C23,'RECAP SECT'!$G$6:$EV$253,9,FALSE) -> 37% | K23: =VLOOKUP($C23,'RECAP SECT'!$G$6:$EV$253,10,FALSE) -> 13 | L23: =VLOOKUP($C23,'RECAP SECT'!$G$6:$EV$253,11,FALSE) -> 1.33 | M23: =VLOOKUP($C23,'RECAP SECT'!$G$6:$EV$253,12,FALSE) -> 41% | N23: =VLOOKUP($C23,'RECAP SECT'!$G$6:$EV$253,13,FALSE) -> 3 | O23: =VLOOKUP($C23,'RECAP SECT'!$G$6:$EV$253,14,FALSE) -> 81% | P23: =VLOOKUP($C23,'RECAP SECT'!$G$6:$EV$253,15,FALSE) -> 15% | Q23: =VLOOKUP($C23,'RECAP SECT'!$G$6:$EV$253,16,FALSE) -> 2 | R23: =VLOOKUP($C23,'RECAP SECT'!$G$6:$EV$253,17,FALSE) -> 56% | S23: =VLOOKUP($C23,'RECAP SECT'!$G$6:$EV$253,18,FALSE) -> 38% | T23: =VLOOKUP($C23,'RECAP SECT'!$G$6:$EV$253,19,FALSE) -> 7
A24: 160 | B24: MOSELLE | C24: 42 | D24: MOSELLE EST | E24: =VLOOKUP($C24,'RECAP SECT'!$G$6:$EV$253,3,FALSE) -> 87.4 | F24: =VLOOKUP($C24,'RECAP SECT'!$G$6:$EV$253,5,FALSE) -> -2.86 | G24: =VLOOKUP($C24,'RECAP SECT'!$G$6:$EV$253,6,FALSE) -> 85% | H24: =VLOOKUP($C24,'RECAP SECT'!$G$6:$EV$253,7,FALSE) -> 10 | I24: =VLOOKUP($C24,'RECAP SECT'!$G$6:$EV$253,8,FALSE) -> 1.42 | J24: =VLOOKUP($C24,'RECAP SECT'!$G$6:$EV$253,9,FALSE) -> 31% | K24: =VLOOKUP($C24,'RECAP SECT'!$G$6:$EV$253,10,FALSE) -> 9 | L24: =VLOOKUP($C24,'RECAP SECT'!$G$6:$EV$253,11,FALSE) -> -0.09 | M24: =VLOOKUP($C24,'RECAP SECT'!$G$6:$EV$253,12,FALSE) -> 69% | N24: =VLOOKUP($C24,'RECAP SECT'!$G$6:$EV$253,13,FALSE) -> 8 | O24: =VLOOKUP($C24,'RECAP SECT'!$G$6:$EV$253,14,FALSE) -> 71% | P24: =VLOOKUP($C24,'RECAP SECT'!$G$6:$EV$253,15,FALSE) -> 23% | Q24: =VLOOKUP($C24,'RECAP SECT'!$G$6:$EV$253,16,FALSE) -> 4 | R24: =VLOOKUP($C24,'RECAP SECT'!$G$6:$EV$253,17,FALSE) -> 51% | S24: =VLOOKUP($C24,'RECAP SECT'!$G$6:$EV$253,18,FALSE) -> 33% | T24: =VLOOKUP($C24,'RECAP SECT'!$G$6:$EV$253,19,FALSE) -> 4
A25: 160 | B25: MOSELLE | C25: 44 | D25: MOSELLE NORD | E25: =VLOOKUP($C25,'RECAP SECT'!$G$6:$EV$253,3,FALSE) -> 81.6 | F25: =VLOOKUP($C25,'RECAP SECT'!$G$6:$EV$253,5,FALSE) -> -4.59 | G25: =VLOOKUP($C25,'RECAP SECT'!$G$6:$EV$253,6,FALSE) -> 129% | H25: =VLOOKUP($C25,'RECAP SECT'!$G$6:$EV$253,7,FALSE) -> 15 | I25: =VLOOKUP($C25,'RECAP SECT'!$G$6:$EV$253,8,FALSE) -> 0.58 | J25: =VLOOKUP($C25,'RECAP SECT'!$G$6:$EV$253,9,FALSE) -> 72% | K25: =VLOOKUP($C25,'RECAP SECT'!$G$6:$EV$253,10,FALSE) -> 18 | L25: =VLOOKUP($C25,'RECAP SECT'!$G$6:$EV$253,11,FALSE) -> -0.75 | M25: =VLOOKUP($C25,'RECAP SECT'!$G$6:$EV$253,12,FALSE) -> 82% | N25: =VLOOKUP($C25,'RECAP SECT'!$G$6:$EV$253,13,FALSE) -> 9 | O25: =VLOOKUP($C25,'RECAP SECT'!$G$6:$EV$253,14,FALSE) -> 100% | P25: =VLOOKUP($C25,'RECAP SECT'!$G$6:$EV$253,15,FALSE) -> 0% | Q25: =VLOOKUP($C25,'RECAP SECT'!$G$6:$EV$253,16,FALSE) -> 1 | R25: =VLOOKUP($C25,'RECAP SECT'!$G$6:$EV$253,17,FALSE) -> 70% | S25: =VLOOKUP($C25,'RECAP SECT'!$G$6:$EV$253,18,FALSE) -> 52% | T25: =VLOOKUP($C25,'RECAP SECT'!$G$6:$EV$253,19,FALSE) -> 9
A26: 80 | B26: VOSGES | C26: 57 | D26: EPINAL | E26: =VLOOKUP($C26,'RECAP SECT'!$G$6:$EV$253,3,FALSE) -> 69.3 | F26: =VLOOKUP($C26,'RECAP SECT'!$G$6:$EV$253,5,FALSE) -> -4.52 | G26: =VLOOKUP($C26,'RECAP SECT'!$G$6:$EV$253,6,FALSE) -> 127% | H26: =VLOOKUP($C26,'RECAP SECT'!$G$6:$EV$253,7,FALSE) -> 13 | I26: =VLOOKUP($C26,'RECAP SECT'!$G$6:$EV$253,8,FALSE) -> 1.50 | J26: =VLOOKUP($C26,'RECAP SECT'!$G$6:$EV$253,9,FALSE) -> 27% | K26: =VLOOKUP($C26,'RECAP SECT'!$G$6:$EV$253,10,FALSE) -> 6 | L26: =VLOOKUP($C26,'RECAP SECT'!$G$6:$EV$253,11,FALSE) -> 0.25 | M26: =VLOOKUP($C26,'RECAP SECT'!$G$6:$EV$253,12,FALSE) -> 62% | N26: =VLOOKUP($C26,'RECAP SECT'!$G$6:$EV$253,13,FALSE) -> 7 | O26: =VLOOKUP($C26,'RECAP SECT'!$G$6:$EV$253,14,FALSE) -> 5% | P26: =VLOOKUP($C26,'RECAP SECT'!$G$6:$EV$253,15,FALSE) -> 75% | Q26: =VLOOKUP($C26,'RECAP SECT'!$G$6:$EV$253,16,FALSE) -> 11 | R26: =VLOOKUP($C26,'RECAP SECT'!$G$6:$EV$253,17,FALSE) -> 74% | S26: =VLOOKUP($C26,'RECAP SECT'!$G$6:$EV$253,18,FALSE) -> 55% | T26: =VLOOKUP($C26,'RECAP SECT'!$G$6:$EV$253,19,FALSE) -> 11
A27: 80 | B27: VOSGES | C27: 55 | D27: SAINT DIE | E27: =VLOOKUP($C27,'RECAP SECT'!$G$6:$EV$253,3,FALSE) -> 59.0 | F27: =VLOOKUP($C27,'RECAP SECT'!$G$6:$EV$253,5,FALSE) -> -4.17 | G27: =VLOOKUP($C27,'RECAP SECT'!$G$6:$EV$253,6,FALSE) -> 118% | H27: =VLOOKUP($C27,'RECAP SECT'!$G$6:$EV$253,7,FALSE) -> 11 | I27: =VLOOKUP($C27,'RECAP SECT'!$G$6:$EV$253,8,FALSE) -> 1.63 | J27: =VLOOKUP($C27,'RECAP SECT'!$G$6:$EV$253,9,FALSE) -> 21% | K27: =VLOOKUP($C27,'RECAP SECT'!$G$6:$EV$253,10,FALSE) -> 4 | L27: =VLOOKUP($C27,'RECAP SECT'!$G$6:$EV$253,11,FALSE) -> -4.14 | M27: =VLOOKUP($C27,'RECAP SECT'!$G$6:$EV$253,12,FALSE) -> 150% | N27: =VLOOKUP($C27,'RECAP SECT'!$G$6:$EV$253,13,FALSE) -> 18 | O27: =VLOOKUP($C27,'RECAP SECT'!$G$6:$EV$253,14,FALSE) -> 50% | P27: =VLOOKUP($C27,'RECAP SECT'!$G$6:$EV$253,15,FALSE) -> 39% | Q27: =VLOOKUP($C27,'RECAP SECT'!$G$6:$EV$253,16,FALSE) -> 7 | R27: =VLOOKUP($C27,'RECAP SECT'!$G$6:$EV$253,17,FALSE) -> 78% | S27: =VLOOKUP($C27,'RECAP SECT'!$G$6:$EV$253,18,FALSE) -> 59% | T27: =VLOOKUP($C27,'RECAP SECT'!$G$6:$EV$253,19,FALSE) -> 13
A28: Total CEGEE Directions Commerciales | E28: =SUM(E10:E27) -> 1387

Sheet SE_RISQUES
A1: Accueil | F1: BAROMETRE BDD - DIRECTIONS COMMERCIALES
F2: RISQUES
F3: =ACCUEIL!H7 -> 2019-05-31
F6: Complétude conformité et fiabilisation | L6: Traitement et qualité du traitement des alertes Vigiclient | O6: Total Risques
F7: Nouvelles EER sur flux BDD | I7: EER sur flux cumulés et stock
G8: coef | H8: ='RECAP DIRCOM'!DW4 -> 3% | J8: coef | K8: ='RECAP DIRCOM'!DZ4 -> 3% | M8: coef | N8: ='RECAP DIRCOM'!EC4 -> 4% | P8: coef | Q8: ='RECAP DIRCOM'!EF4 -> 10%
A9: eds | B9: Direction | C9: eds | D9: Territoire | E9: ETP perf | G9: % Ecart au 1er | H9: Rang | J9: % Ecart au 1er | K9: Rang | M9: % Ecart au 1er | N9: Rang | O9: Moyenne ecart au 1er | P9: % Ecart au 1er | Q9: Rang CEGEE
A10: 50 | B10: AUBE HAUTE MARNE | C10: 21 | D10: CHAUMONT | E10: =VLOOKUP($C10,'RECAP SECT'!$G$6:$EV$253,3,FALSE) -> 47.4 | F10: =VLOOKUP($C10,'RECAP SECT'!$G$6:$EV$253,119,FALSE) -> 97% | G10: =VLOOKUP($C10,'RECAP SECT'!$G$6:$EV$253,120,FALSE) -> 1% | H10: =VLOOKUP($C10,'RECAP SECT'!$G$6:$EV$253,121,FALSE) -> 9 | I10: =VLOOKUP($C10,'RECAP SECT'!$G$6:$EV$253,122,FALSE) -> 77% | J10: =VLOOKUP($C10,'RECAP SECT'!$G$6:$EV$253,123,FALSE) -> 1% | K10: =VLOOKUP($C10,'RECAP SECT'!$G$6:$EV$253,124,FALSE) -> 4 | L10: =VLOOKUP($C10,'RECAP SECT'!$G$6:$EV$253,125,FALSE) -> 100% | M10: =VLOOKUP($C10,'RECAP SECT'!$G$6:$EV$253,126,FALSE) -> 0% | N10: =VLOOKUP($C10,'RECAP SECT'!$G$6:$EV$253,127,FALSE) -> 1 | O10: =VLOOKUP($C10,'RECAP SECT'!$G$6:$EV$253,128,FALSE) -> 1% | P10: =VLOOKUP($C10,'RECAP SECT'!$G$6:$EV$253,129,FALSE) -> 0% | Q10: =VLOOKUP($C10,'RECAP SECT'!$G$6:$EV$253,130,FALSE) -> 1
A11: 50 | B11: AUBE HAUTE MARNE | C11: 14 | D11: TROYES | E11: =VLOOKUP($C11,'RECAP SECT'!$G$6:$EV$253,3,FALSE) -> 80.5 | F11: =VLOOKUP($C11,'RECAP SECT'!$G$6:$EV$253,119,FALSE) -> 96% | G11: =VLOOKUP($C11,'RECAP SECT'!$G$6:$EV$253,120,FALSE) -> 2% | H11: =VLOOKUP($C11,'RECAP SECT'!$G$6:$EV$253,121,FALSE) -> 10 | I11: =VLOOKUP($C11,'RECAP SECT'!$G$6:$EV$253,122,FALSE) -> 74% | J11: =VLOOKUP($C11,'RECAP SECT'!$G$6:$EV$253,123,FALSE) -> 5% | K11: =VLOOKUP($C11,'RECAP SECT'!$G$6:$EV$253,124,FALSE) -> 10 | L11: =VLOOKUP($C11,'RECAP SECT'!$G$6:$EV$253,125,FALSE) -> 100% | M11: =VLOOKUP($C11,'RECAP SECT'!$G$6:$EV$253,126,FALSE) -> 0% | N11: =VLOOKUP($C11,'RECAP SECT'!$G$6:$EV$253,127,FALSE) -> 1 | O11: =VLOOKUP($C11,'RECAP SECT'!$G$6:$EV$253,128,FALSE) -> 2% | P11: =VLOOKUP($C11,'RECAP SECT'!$G$6:$EV$253,129,FALSE) -> 1% | Q11: =VLOOKUP($C11,'RECAP SECT'!$G$6:$EV$253,130,FALSE) -> 6
A12: 262 | B12: BAS-RHIN | C12: 5060 | D12: HAGUENAU | E12: =VLOOKUP($C12,'RECAP SECT'!$G$6:$EV$253,3,FALSE) -> 89.8 | F12: =VLOOKUP($C12,'RECAP SECT'!$G$6:$EV$253,119,FALSE) -> 98% | G12: =VLOOKUP($C12,'RECAP SECT'!$G$6:$EV$253,120,FALSE) -> 0% | H12: =VLOOKUP($C12,'RECAP SECT'!$G$6:$EV$253,121,FALSE) -> 1 | I12: =VLOOKUP($C12,'RECAP SECT'!$G$6:$EV$253,122,FALSE) -> 71% | J12: =VLOOKUP($C12,'RECAP SECT'!$G$6:$EV$253,123,FALSE) -> 8% | K12: =VLOOKUP($C12,'RECAP SECT'!$G$6:$EV$253,124,FALSE) -> 15 | L12: =VLOOKUP($C12,'RECAP SECT'!$G$6:$EV$253,125,FALSE) -> 84% | M12: =VLOOKUP($C12,'RECAP SECT'!$G$6:$EV$253,126,FALSE) -> 16% | N12: =VLOOKUP($C12,'RECAP SECT'!$G$6:$EV$253,127,FALSE) -> 15 | O12: =VLOOKUP($C12,'RECAP SECT'!$G$6:$EV$253,128,FALSE) -> 9% | P12: =VLOOKUP($C12,'RECAP SECT'!$G$6:$EV$253,129,FALSE) -> 8% | Q12: =VLOOKUP($C12,'RECAP SECT'!$G$6:$EV$253,130,FALSE) -> 15
A13: 262 | B13: BAS-RHIN | C13: 5101 | D13: SELESTAT | E13: =VLOOKUP($C13,'RECAP SECT'!$G$6:$EV$253,3,FALSE) -> 76.3 | F13: =VLOOKUP($C13,'RECAP SECT'!$G$6:$EV$253,119,FALSE) -> 96% | G13: =VLOOKUP($C13,'RECAP SECT'!$G$6:$EV$253,120,FALSE) -> 2% | H13: =VLOOKUP($C13,'RECAP SECT'!$G$6:$EV$253,121,FALSE) -> 11 | I13: =VLOOKUP($C13,'RECAP SECT'!$G$6:$EV$253,122,FALSE) -> 71% | J13: =VLOOKUP($C13,'RECAP SECT'!$G$6:$EV$253,123,FALSE) -> 9% | K13: =VLOOKUP($C13,'RECAP SECT'!$G$6:$EV$253,124,FALSE) -> 16 | L13: =VLOOKUP($C13,'RECAP SECT'!$G$6:$EV$253,125,FALSE) -> 87% | M13: =VLOOKUP($C13,'RECAP SECT'!$G$6:$EV$253,126,FALSE) -> 13% | N13: =VLOOKUP($C13,'RECAP SECT'!$G$6:$EV$253,127,FALSE) -> 14 | O13: =VLOOKUP($C13,'RECAP SECT'!$G$6:$EV$253,128,FALSE) -> 8% | P13: =VLOOKUP($C13,'RECAP SECT'!$G$6:$EV$253,129,FALSE) -> 8% | Q13: =VLOOKUP($C13,'RECAP SECT'!$G$6:$EV$253,130,FALSE) -> 14
A14: 262 | B14: BAS-RHIN | C14: 5006 | D14: STRASBOURG | E14: =VLOOKUP($C14,'RECAP SECT'!$G$6:$EV$253,3,FALSE) -> 92.7 | F14: =VLOOKUP($C14,'RECAP SECT'!$G$6:$EV$253,119,FALSE) -> 93% | G14: =VLOOKUP($C14,'RECAP SECT'!$G$6:$EV$253,120,FALSE) -> 5% | H14: =VLOOKUP($C14,'RECAP SECT'!$G$6:$EV$253,121,FALSE) -> 18 | I14: =VLOOKUP($C14,'RECAP SECT'!$G$6:$EV$253,122,FALSE) -> 70% | J14: =VLOOKUP($C14,'RECAP SECT'!$G$6:$EV$253,123,FALSE) -> 10% | K14: =VLOOKUP($C14,'RECAP SECT'!$G$6:$EV$253,124,FALSE) -> 18 | L14: =VLOOKUP($C14,'RECAP SECT'!$G$6:$EV$253,125,FALSE) -> 83% | M14: =VLOOKUP($C14,'RECAP SECT'!$G$6:$EV$253,126,FALSE) -> 17% | N14: =VLOOKUP($C14,'RECAP SECT'!$G$6:$EV$253,127,FALSE) -> 16 | O14: =VLOOKUP($C14,'RECAP SECT'!$G$6:$EV$253,128,FALSE) -> 11% | P14: =VLOOKUP($C14,'RECAP SECT'!$G$6:$EV$253,129,FALSE) -> 11% | Q14: =VLOOKUP($C14,'RECAP SECT'!$G$6:$EV$253,130,FALSE) -> 17
A15: 264 | B15: HAUT-RHIN | C15: 5130 | D15: COLMAR | E15: =VLOOKUP($C15,'RECAP SECT'!$G$6:$EV$253,3,FALSE) -> 78.8 | F15: =VLOOKUP($C15,'RECAP SECT'!$G$6:$EV$253,119,FALSE) -> 97% | G15: =VLOOKUP($C15,'RECAP SECT'!$G$6:$EV$253,120,FALSE) -> 1% | H15: =VLOOKUP($C15,'RECAP SECT'!$G$6:$EV$253,121,FALSE) -> 8 | I15: =VLOOKUP($C15,'RECAP SECT'!$G$6:$EV$253,122,FALSE) -> 72% | J15: =VLOOKUP($C15,'RECAP SECT'!$G$6:$EV$253,123,FALSE) -> 8% | K15: =VLOOKUP($C15,'RECAP SECT'!$G$6:$EV$253,124,FALSE) -> 13 | L15: =VLOOKUP($C15,'RECAP SECT'!$G$6:$EV$253,125,FALSE) -> 99% | M15: =VLOOKUP($C15,'RECAP SECT'!$G$6:$EV$253,126,FALSE) -> 1% | N15: =VLOOKUP($C15,'RECAP SECT'!$G$6:$EV$253,127,FALSE) -> 5 | O15: =VLOOKUP($C15,'RECAP SECT'!$G$6:$EV$253,128,FALSE) -> 3% | P15: =VLOOKUP($C15,'RECAP SECT'!$G$6:$EV$253,129,FALSE) -> 2% | Q15: =VLOOKUP($C15,'RECAP SECT'!$G$6:$EV$253,130,FALSE) -> 7
A16: 264 | B16: HAUT-RHIN | C16: 5169 | D16: MULHOUSE | E16: =VLOOKUP($C16,'RECAP SECT'!$G$6:$EV$253,3,FALSE) -> 78.2 | F16: =VLOOKUP($C16,'RECAP SECT'!$G$6:$EV$253,119,FALSE) -> 97% | G16: =VLOOKUP($C16,'RECAP SECT'!$G$6:$EV$253,120,FALSE) -> 1% | H16: =VLOOKUP($C16,'RECAP SECT'!$G$6:$EV$253,121,FALSE) -> 6 | I16: =VLOOKUP($C16,'RECAP SECT'!$G$6:$EV$253,122,FALSE) -> 73% | J16: =VLOOKUP($C16,'RECAP SECT'!$G$6:$EV$253,123,FALSE) -> 7% | K16: =VLOOKUP($C16,'RECAP SECT'!$G$6:$EV$253,124,FALSE) -> 12 | L16: =VLOOKUP($C16,'RECAP SECT'!$G$6:$EV$253,125,FALSE) -> 97% | M16: =VLOOKUP($C16,'RECAP SECT'!$G$6:$EV$253,126,FALSE) -> 3% | N16: =VLOOKUP($C16,'RECAP SECT'!$G$6:$EV$253,127,FALSE) -> 9 | O16: =VLOOKUP($C16,'RECAP SECT'!$G$6:$EV$253,128,FALSE) -> 3% | P16: =VLOOKUP($C16,'RECAP SECT'!$G$6:$EV$253,129,FALSE) -> 3% | Q16: =VLOOKUP($C16,'RECAP SECT'!$G$6:$EV$253,130,FALSE) -> 10
A17: 30 | B17: MARNE-ARDENNES | C17: 6 | D17: CHALONS EN CHAMPAGNE | E17: =VLOOKUP($C17,'RECAP SECT'!$G$6:$EV$253,3,FALSE) -> 49.1 | F17: =VLOOKUP($C17,'RECAP SECT'!$G$6:$EV$253,119,FALSE) -> 98% | G17: =VLOOKUP($C17,'RECAP SECT'!$G$6:$EV$253,120,FALSE) -> 0% | H17: =VLOOKUP($C17,'RECAP SECT'!$G$6:$EV$253,121,FALSE) -> 3 | I17: =VLOOKUP($C17,'RECAP SECT'!$G$6:$EV$253,122,FALSE) -> 72% | J17: =VLOOKUP($C17,'RECAP SECT'!$G$6:$EV$253,123,FALSE) -> 8% | K17: =VLOOKUP($C17,'RECAP SECT'!$G$6:$EV$253,124,FALSE) -> 14 | L17: =VLOOKUP($C17,'RECAP SECT'!$G$6:$EV$253,125,FALSE) -> 98% | M17: =VLOOKUP($C17,'RECAP SECT'!$G$6:$EV$253,126,FALSE) -> 2% | N17: =VLOOKUP($C17,'RECAP SECT'!$G$6:$EV$253,127,FALSE) -> 6 | O17: =VLOOKUP($C17,'RECAP SECT'!$G$6:$EV$253,128,FALSE) -> 3% | P17: =VLOOKUP($C17,'RECAP SECT'!$G$6:$EV$253,129,FALSE) -> 2% | Q17: =VLOOKUP($C17,'RECAP SECT'!$G$6:$EV$253,130,FALSE) -> 9
A18: 30 | B18: MARNE-ARDENNES | C18: 2 | D18: CHARLEVILLE MEZIERES | E18: =VLOOKUP($C18,'RECAP SECT'!$G$6:$EV$253,3,FALSE) -> 64.0 | F18: =VLOOKUP($C18,'RECAP SECT'!$G$6:$EV$253,119,FALSE) -> 97% | G18: =VLOOKUP($C18,'RECAP SECT'!$G$6:$EV$253,120,FALSE) -> 1% | H18: =VLOOKUP($C18,'RECAP SECT'!$G$6:$EV$253,121,FALSE) -> 5 | I18: =VLOOKUP($C18,'RECAP SECT'!$G$6:$EV$253,122,FALSE) -> 75% | J18: =VLOOKUP($C18,'RECAP SECT'!$G$6:$EV$253,123,FALSE) -> 4% | K18: =VLOOKUP($C18,'RECAP SECT'!$G$6:$EV$253,124,FALSE) -> 8 | L18: =VLOOKUP($C18,'RECAP SECT'!$G$6:$EV$253,125,FALSE) -> 99% | M18: =VLOOKUP($C18,'RECAP SECT'!$G$6:$EV$253,126,FALSE) -> 1% | N18: =VLOOKUP($C18,'RECAP SECT'!$G$6:$EV$253,127,FALSE) -> 4 | O18: =VLOOKUP($C18,'RECAP SECT'!$G$6:$EV$253,128,FALSE) -> 2% | P18: =VLOOKUP($C18,'RECAP SECT'!$G$6:$EV$253,129,FALSE) -> 1% | Q18: =VLOOKUP($C18,'RECAP SECT'!$G$6:$EV$253,130,FALSE) -> 5
A19: 30 | B19: MARNE-ARDENNES | C19: 11 | D19: REIMS | E19: =VLOOKUP($C19,'RECAP SECT'!$G$6:$EV$253,3,FALSE) -> 91.1 | F19: =VLOOKUP($C19,'RECAP SECT'!$G$6:$EV$253,119,FALSE) -> 96% | G19: =VLOOKUP($C19,'RECAP SECT'!$G$6:$EV$253,120,FALSE) -> 2% | H19: =VLOOKUP($C19,'RECAP SECT'!$G$6:$EV$253,121,FALSE) -> 12 | I19: =VLOOKUP($C19,'RECAP SECT'!$G$6:$EV$253,122,FALSE) -> 70% | J19: =VLOOKUP($C19,'RECAP SECT'!$G$6:$EV$253,123,FALSE) -> 10% | K19: =VLOOKUP($C19,'RECAP SECT'!$G$6:$EV$253,124,FALSE) -> 17 | L19: =VLOOKUP($C19,'RECAP SECT'!$G$6:$EV$253,125,FALSE) -> 98% | M19: =VLOOKUP($C19,'RECAP SECT'!$G$6:$EV$253,126,FALSE) -> 2% | N19: =VLOOKUP($C19,'RECAP SECT'!$G$6:$EV$253,127,FALSE) -> 8 | O19: =VLOOKUP($C19,'RECAP SECT'!$G$6:$EV$253,128,FALSE) -> 5% | P19: =VLOOKUP($C19,'RECAP SECT'!$G$6:$EV$253,129,FALSE) -> 4% | Q19: =VLOOKUP($C19,'RECAP SECT'!$G$6:$EV$253,130,FALSE) -> 11
A20: 110 | B20: MEURTHE ET MOSELLE MEUSE | C20: 26 | D20: NANCY | E20: =VLOOKUP($C20,'RECAP SECT'!$G$6:$EV$253,3,FALSE) -> 80.2 | F20: =VLOOKUP($C20,'RECAP SECT'!$G$6:$EV$253,119,FALSE) -> 94% | G20: =VLOOKUP($C20,'RECAP SECT'!$G$6:$EV$253,120,FALSE) -> 4% | H20: =VLOOKUP($C20,'RECAP SECT'!$G$6:$EV$253,121,FALSE) -> 17 | I20: =VLOOKUP($C20,'RECAP SECT'!$G$6:$EV$253,122,FALSE) -> 73% | J20: =VLOOKUP($C20,'RECAP SECT'!$G$6:$EV$253,123,FALSE) -> 6% | K20: =VLOOKUP($C20,'RECAP SECT'!$G$6:$EV$253,124,FALSE) -> 11 | L20: =VLOOKUP($C20,'RECAP SECT'!$G$6:$EV$253,125,FALSE) -> 76% | M20: =VLOOKUP($C20,'RECAP SECT'!$G$6:$EV$253,126,FALSE) -> 24% | N20: =VLOOKUP($C20,'RECAP SECT'!$G$6:$EV$253,127,FALSE) -> 18 | O20: =VLOOKUP($C20,'RECAP SECT'!$G$6:$EV$253,128,FALSE) -> 13% | P20: =VLOOKUP($C20,'RECAP SECT'!$G$6:$EV$253,129,FALSE) -> 12% | Q20: =VLOOKUP($C20,'RECAP SECT'!$G$6:$EV$253,130,FALSE) -> 18
A21: 110 | B21: MEURTHE ET MOSELLE MEUSE | C21: 27 | D21: PONT A MOUSSON | E21: =VLOOKUP($C21,'RECAP SECT'!$G$6:$EV$253,3,FALSE) -> 89.4 | F21: =VLOOKUP($C21,'RECAP SECT'!$G$6:$EV$253,119,FALSE) -> 94% | G21: =VLOOKUP($C21,'RECAP SECT'!$G$6:$EV$253,120,FALSE) -> 4% | H21: =VLOOKUP($C21,'RECAP SECT'!$G$6:$EV$253,121,FALSE) -> 16 | I21: =VLOOKUP($C21,'RECAP SECT'!$G$6:$EV$253,122,FALSE) -> 74% | J21: =VLOOKUP($C21,'RECAP SECT'!$G$6:$EV$253,123,FALSE) -> 5% | K21: =VLOOKUP($C21,'RECAP SECT'!$G$6:$EV$253,124,FALSE) -> 9 | L21: =VLOOKUP($C21,'RECAP SECT'!$G$6:$EV$253,125,FALSE) -> 82% | M21: =VLOOKUP($C21,'RECAP SECT'!$G$6:$EV$253,126,FALSE) -> 18% | N21: =VLOOKUP($C21,'RECAP SECT'!$G$6:$EV$253,127,FALSE) -> 17 | O21: =VLOOKUP($C21,'RECAP SECT'!$G$6:$EV$253,128,FALSE) -> 10% | P21: =VLOOKUP($C21,'RECAP SECT'!$G$6:$EV$253,129,FALSE) -> 9% | Q21: =VLOOKUP($C21,'RECAP SECT'!$G$6:$EV$253,130,FALSE) -> 16
A22: 110 | B22: MEURTHE ET MOSELLE MEUSE | C22: 31 | D22: VERDUN | E22: =VLOOKUP($C22,'RECAP SECT'!$G$6:$EV$253,3,FALSE) -> 66.1 | F22: =VLOOKUP($C22,'RECAP SECT'!$G$6:$EV$253,119,FALSE) -> 96% | G22: =VLOOKUP($C22,'RECAP SECT'!$G$6:$EV$253,120,FALSE) -> 2% | H22: =VLOOKUP($C22,'RECAP SECT'!$G$6:$EV$253,121,FALSE) -> 14 | I22: =VLOOKUP($C22,'RECAP SECT'!$G$6:$EV$253,122,FALSE) -> 76% | J22: =VLOOKUP($C22,'RECAP SECT'!$G$6:$EV$253,123,FALSE) -> 3% | K22: =VLOOKUP($C22,'RECAP SECT'!$G$6:$EV$253,124,FALSE) -> 7 | L22: =VLOOKUP($C22,'RECAP SECT'!$G$6:$EV$253,125,FALSE) -> 88% | M22: =VLOOKUP($C22,'RECAP SECT'!$G$6:$EV$253,126,FALSE) -> 12% | N22: =VLOOKUP($C22,'RECAP SECT'!$G$6:$EV$253,127,FALSE) -> 12 | O22: =VLOOKUP($C22,'RECAP SECT'!$G$6:$EV$253,128,FALSE) -> 6% | P22: =VLOOKUP($C22,'RECAP SECT'!$G$6:$EV$253,129,FALSE) -> 6% | Q22: =VLOOKUP($C22,'RECAP SECT'!$G$6:$EV$253,130,FALSE) -> 13
A23: 160 | B23: MOSELLE | C23: 45 | D23: METZ | E23: =VLOOKUP($C23,'RECAP SECT'!$G$6:$EV$253,3,FALSE) -> 105.9 | F23: =VLOOKUP($C23,'RECAP SECT'!$G$6:$EV$253,119,FALSE) -> 96% | G23: =VLOOKUP($C23,'RECAP SECT'!$G$6:$EV$253,120,FALSE) -> 2% | H23: =VLOOKUP($C23,'RECAP SECT'!$G$6:$EV$253,121,FALSE) -> 15 | I23: =VLOOKUP($C23,'RECAP SECT'!$G$6:$EV$253,122,FALSE) -> 76% | J23: =VLOOKUP($C23,'RECAP SECT'!$G$6:$EV$253,123,FALSE) -> 3% | K23: =VLOOKUP($C23,'RECAP SECT'!$G$6:$EV$253,124,FALSE) -> 6 | L23: =VLOOKUP($C23,'RECAP SECT'!$G$6:$EV$253,125,FALSE) -> 96% | M23: =VLOOKUP($C23,'RECAP SECT'!$G$6:$EV$253,126,FALSE) -> 4% | N23: =VLOOKUP($C23,'RECAP SECT'!$G$6:$EV$253,127,FALSE) -> 11 | O23: =VLOOKUP($C23,'RECAP SECT'!$G$6:$EV$253,128,FALSE) -> 3% | P23: =VLOOKUP($C23,'RECAP SECT'!$G$6:$EV$253,129,FALSE) -> 2% | Q23: =VLOOKUP($C23,'RECAP SECT'!$G$6:$EV$253,130,FALSE) -> 8
A24: 160 | B24: MOSELLE | C24: 42 | D24: MOSELLE EST | E24: =VLOOKUP($C24,'RECAP SECT'!$G$6:$EV$253,3,FALSE) -> 87.4 | F24: =VLOOKUP($C24,'RECAP SECT'!$G$6:$EV$253,119,FALSE) -> 96% | G24: =VLOOKUP($C24,'RECAP SECT'!$G$6:$EV$253,120,FALSE) -> 2% | H24: =VLOOKUP($C24,'RECAP SECT'!$G$6:$EV$253,121,FALSE) -> 13 | I24: =VLOOKUP($C24,'RECAP SECT'!$G$6:$EV$253,122,FALSE) -> 77% | J24: =VLOOKUP($C24,'RECAP SECT'!$G$6:$EV$253,123,FALSE) -> 1% | K24: =VLOOKUP($C24,'RECAP SECT'!$G$6:$EV$253,124,FALSE) -> 3 | L24: =VLOOKUP($C24,'RECAP SECT'!$G$6:$EV$253,125,FALSE) -> 100% | M24: =VLOOKUP($C24,'RECAP SECT'!$G$6:$EV$253,126,FALSE) -> 0% | N24: =VLOOKUP($C24,'RECAP SECT'!$G$6:$EV$253,127,FALSE) -> 1 | O24: =VLOOKUP($C24,'RECAP SECT'!$G$6:$EV$253,128,FALSE) -> 1% | P24: =VLOOKUP($C24,'RECAP SECT'!$G$6:$EV$253,129,FALSE) -> 0% | Q24: =VLOOKUP($C24,'RECAP SECT'!$G$6:$EV$253,130,FALSE) -> 2
A25: 160 | B25: MOSELLE | C25: 44 | D25: MOSELLE NORD | E25: =VLOOKUP($C25,'RECAP SECT'!$G$6:$EV$253,3,FALSE) -> 81.6 | F25: =VLOOKUP($C25,'RECAP SECT'!$G$6:$EV$253,119,FALSE) -> 97% | G25: =VLOOKUP($C25,'RECAP SECT'!$G$6:$EV$253,120,FALSE) -> 1% | H25: =VLOOKUP($C25,'RECAP SECT'!$G$6:$EV$253,121,FALSE) -> 7 | I25: =VLOOKUP($C25,'RECAP SECT'!$G$6:$EV$253,122,FALSE) -> 78% | J25: =VLOOKUP($C25,'RECAP SECT'!$G$6:$EV$253,123,FALSE) -> 0% | K25: =VLOOKUP($C25,'RECAP SECT'!$G$6:$EV$253,124,FALSE) -> 2 | L25: =VLOOKUP($C25,'RECAP SECT'!$G$6:$EV$253,125,FALSE) -> 98% | M25: =VLOOKUP($C25,'RECAP SECT'!$G$6:$EV$253,126,FALSE) -> 2% | N25: =VLOOKUP($C25,'RECAP SECT'!$G$6:$EV$253,127,FALSE) -> 7 | O25: =VLOOKUP($C25,'RECAP SECT'!$G$6:$EV$253,128,FALSE) -> 1% | P25: =VLOOKUP($C25,'RECAP SECT'!$G$6:$EV$253,129,FALSE) -> 0% | Q25: =VLOOKUP($C25,'RECAP SECT'!$G$6:$EV$253,130,FALSE) -> 3
A26: 80 | B26: VOSGES | C26: 57 | D26: EPINAL | E26: =VLOOKUP($C26,'RECAP SECT'!$G$6:$EV$253,3,FALSE) -> 69.3 | F26: =VLOOKUP($C26,'RECAP SECT'!$G$6:$EV$253,119,FALSE) -> 98% | G26: =VLOOKUP($C26,'RECAP SECT'!$G$6:$EV$253,120,FALSE) -> 0% | H26: =VLOOKUP($C26,'RECAP SECT'!$G$6:$EV$253,121,FALSE) -> 4 | I26: =VLOOKUP($C26,'RECAP SECT'!$G$6:$EV$253,122,FALSE) -> 76% | J26: =VLOOKUP($C26,'RECAP SECT'!$G$6:$EV$253,123,FALSE) -> 2% | K26: =VLOOKUP($C26,'RECAP SECT'!$G$6:$EV$253,124,FALSE) -> 5 | L26: =VLOOKUP($C26,'RECAP SECT'!$G$6:$EV$253,125,FALSE) -> 87% | M26: =VLOOKUP($C26,'RECAP SECT'!$G$6:$EV$253,126,FALSE) -> 13% | N26: =VLOOKUP($C26,'RECAP SECT'!$G$6:$EV$253,127,FALSE) -> 13 | O26: =VLOOKUP($C26,'RECAP SECT'!$G$6:$EV$253,128,FALSE) -> 6% | P26: =VLOOKUP($C26,'RECAP SECT'!$G$6:$EV$253,129,FALSE) -> 5% | Q26: =VLOOKUP($C26,'RECAP SECT'!$G$6:$EV$253,130,FALSE) -> 12
A27: 80 | B27: VOSGES | C27: 55 | D27: SAINT DIE | E27: =VLOOKUP($C27,'RECAP SECT'!$G$6:$EV$253,3,FALSE) -> 59.0 | F27: =VLOOKUP($C27,'RECAP SECT'!$G$6:$EV$253,119,FALSE) -> 98% | G27: =VLOOKUP($C27,'RECAP SECT'!$G$6:$EV$253,120,FALSE) -> 0% | H27: =VLOOKUP($C27,'RECAP SECT'!$G$6:$EV$253,121,FALSE) -> 2 | I27: =VLOOKUP($C27,'RECAP SECT'!$G$6:$EV$253,122,FALSE) -> 78% | J27: =VLOOKUP($C27,'RECAP SECT'!$G$6:$EV$253,123,FALSE) -> 0% | K27: =VLOOKUP($C27,'RECAP SECT'!$G$6:$EV$253,124,FALSE) -> 1 | L27: =VLOOKUP($C27,'RECAP SECT'!$G$6:$EV$253,125,FALSE) -> 97% | M27: =VLOOKUP($C27,'RECAP SECT'!$G$6:$EV$253,126,FALSE) -> 3% | N27: =VLOOKUP($C27,'RECAP SECT'!$G$6:$EV$253,127,FALSE) -> 10 | O27: =VLOOKUP($C27,'RECAP SECT'!$G$6:$EV$253,128,FALSE) -> 1% | P27: =VLOOKUP($C27,'RECAP SECT'!$G$6:$EV$253,129,FALSE) -> 0% | Q27: =VLOOKUP($C27,'RECAP SECT'!$G$6:$EV$253,130,FALSE) -> 4
A28: Total CEGEE Directions Commerciales | E28: =SUM(E10:E27) -> 1387

Sheet SE_SATISFACTION
A1: Accueil | F1: BAROMETRE BDD - DIRECTIONS COMMERCIALES
F2: SATISFACTION CLIENTS
F3: =ACCUEIL!H7 -> 2019-05-31
F7: N P S | I7: Enquête Qualité Haute Définition | L7: Total Satisfaction Clients
G8: coef | H8: ='RECAP DIRCOM'!EO4 -> 5% | J8: coef | K8: ='RECAP DIRCOM'!ER4 -> 5% | M8: coef | N8: ='RECAP DIRCOM'!EU4 -> 10%
A9: eds | B9: Direction | C9: eds | D9: Territoire | E9: ETP perf | G9: % Ecart au 1er | H9: Rang | J9: % Ecart au 1er | K9: Rang | L9: Moyenne ecart au 1er | M9: % Ecart au 1er | N9: Rang CEGEE
A10: 50 | B10: AUBE HAUTE MARNE | C10: 21 | D10: CHAUMONT | E10: =VLOOKUP($C10,'RECAP SECT'!$G$6:$EV$253,3,FALSE) -> 47.4 | F10: =VLOOKUP($C10,'RECAP SECT'!$G$6:$EV$253,137,FALSE) -> -2 | G10: =VLOOKUP($C10,'RECAP SECT'!$G$6:$EV$253,138,FALSE) -> 6% | H10: =VLOOKUP($C10,'RECAP SECT'!$G$6:$EV$253,139,FALSE) -> 2 | I10: =VLOOKUP($C10,'RECAP SECT'!$G$6:$EV$253,140,FALSE) -> 77% | J10: =VLOOKUP($C10,'RECAP SECT'!$G$6:$EV$253,141,FALSE) -> 3% | K10: =VLOOKUP($C10,'RECAP SECT'!$G$6:$EV$253,142,FALSE) -> 4 | L10: =VLOOKUP($C10,'RECAP SECT'!$G$6:$EV$253,143,FALSE) -> 4% | M10: =VLOOKUP($C10,'RECAP SECT'!$G$6:$EV$253,144,FALSE) -> 4% | N10: =VLOOKUP($C10,'RECAP SECT'!$G$6:$EV$253,145,FALSE) -> 2
A11: 50 | B11: AUBE HAUTE MARNE | C11: 14 | D11: TROYES | E11: =VLOOKUP($C11,'RECAP SECT'!$G$6:$EV$253,3,FALSE) -> 80.5 | F11: =VLOOKUP($C11,'RECAP SECT'!$G$6:$EV$253,137,FALSE) -> -13 | G11: =VLOOKUP($C11,'RECAP SECT'!$G$6:$EV$253,138,FALSE) -> 67% | H11: =VLOOKUP($C11,'RECAP SECT'!$G$6:$EV$253,139,FALSE) -> 11 | I11: =VLOOKUP($C11,'RECAP SECT'!$G$6:$EV$253,140,FALSE) -> 74% | J11: =VLOOKUP($C11,'RECAP SECT'!$G$6:$EV$253,141,FALSE) -> 7% | K11: =VLOOKUP($C11,'RECAP SECT'!$G$6:$EV$253,142,FALSE) -> 14 | L11: =VLOOKUP($C11,'RECAP SECT'!$G$6:$EV$253,143,FALSE) -> 37% | M11: =VLOOKUP($C11,'RECAP SECT'!$G$6:$EV$253,144,FALSE) -> 37% | N11: =VLOOKUP($C11,'RECAP SECT'!$G$6:$EV$253,145,FALSE) -> 11
A12: 262 | B12: BAS-RHIN | C12: 5060 | D12: HAGUENAU | E12: =VLOOKUP($C12,'RECAP SECT'!$G$6:$EV$253,3,FALSE) -> 89.8 | F12: =VLOOKUP($C12,'RECAP SECT'!$G$6:$EV$253,137,FALSE) -> -12 | G12: =VLOOKUP($C12,'RECAP SECT'!$G$6:$EV$253,138,FALSE) -> 61% | H12: =VLOOKUP($C12,'RECAP SECT'!$G$6:$EV$253,139,FALSE) -> 8 | I12: =VLOOKUP($C12,'RECAP SECT'!$G$6:$EV$253,140,FALSE) -> 75% | J12: =VLOOKUP($C12,'RECAP SECT'!$G$6:$EV$253,141,FALSE) -> 5% | K12: =VLOOKUP($C12,'RECAP SECT'!$G$6:$EV$253,142,FALSE) -> 9 | L12: =VLOOKUP($C12,'RECAP SECT'!$G$6:$EV$253,143,FALSE) -> 33% | M12: =VLOOKUP($C12,'RECAP SECT'!$G$6:$EV$253,144,FALSE) -> 33% | N12: =VLOOKUP($C12,'RECAP SECT'!$G$6:$EV$253,145,FALSE) -> 9
A13: 262 | B13: BAS-RHIN | C13: 5101 | D13: SELESTAT | E13: =VLOOKUP($C13,'RECAP SECT'!$G$6:$EV$253,3,FALSE) -> 76.3 | F13: =VLOOKUP($C13,'RECAP SECT'!$G$6:$EV$253,137,FALSE) -> -28 | G13: =VLOOKUP($C13,'RECAP SECT'!$G$6:$EV$253,138,FALSE) -> 150% | H13: =VLOOKUP($C13,'RECAP SECT'!$G$6:$EV$253,139,FALSE) -> 17 | I13: =VLOOKUP($C13,'RECAP SECT'!$G$6:$EV$253,140,FALSE) -> 72% | J13: =VLOOKUP($C13,'RECAP SECT'!$G$6:$EV$253,141,FALSE) -> 9% | K13: =VLOOKUP($C13,'RECAP SECT'!$G$6:$EV$253,142,FALSE) -> 17 | L13: =VLOOKUP($C13,'RECAP SECT'!$G$6:$EV$253,143,FALSE) -> 79% | M13: =VLOOKUP($C13,'RECAP SECT'!$G$6:$EV$253,144,FALSE) -> 79% | N13: =VLOOKUP($C13,'RECAP SECT'!$G$6:$EV$253,145,FALSE) -> 17
A14: 262 | B14: BAS-RHIN | C14: 5006 | D14: STRASBOURG | E14: =VLOOKUP($C14,'RECAP SECT'!$G$6:$EV$253,3,FALSE) -> 92.7 | F14: =VLOOKUP($C14,'RECAP SECT'!$G$6:$EV$253,137,FALSE) -> -28 | G14: =VLOOKUP($C14,'RECAP SECT'!$G$6:$EV$253,138,FALSE) -> 150% | H14: =VLOOKUP($C14,'RECAP SECT'!$G$6:$EV$253,139,FALSE) -> 17 | I14: =VLOOKUP($C14,'RECAP SECT'!$G$6:$EV$253,140,FALSE) -> 67% | J14: =VLOOKUP($C14,'RECAP SECT'!$G$6:$EV$253,141,FALSE) -> 16% | K14: =VLOOKUP($C14,'RECAP SECT'!$G$6:$EV$253,142,FALSE) -> 18 | L14: =VLOOKUP($C14,'RECAP SECT'!$G$6:$EV$253,143,FALSE) -> 83% | M14: =VLOOKUP($C14,'RECAP SECT'!$G$6:$EV$253,144,FALSE) -> 83% | N14: =VLOOKUP($C14,'RECAP SECT'!$G$6:$EV$253,145,FALSE) -> 18
A15: 264 | B15: HAUT-RHIN | C15: 5130 | D15: COLMAR | E15: =VLOOKUP($C15,'RECAP SECT'!$G$6:$EV$253,3,FALSE) -> 78.8 | F15: =VLOOKUP($C15,'RECAP SECT'!$G$6:$EV$253,137,FALSE) -> -21 | G15: =VLOOKUP($C15,'RECAP SECT'!$G$6:$EV$253,138,FALSE) -> 111% | H15: =VLOOKUP($C15,'RECAP SECT'!$G$6:$EV$253,139,FALSE) -> 15 | I15: =VLOOKUP($C15,'RECAP SECT'!$G$6:$EV$253,140,FALSE) -> 74% | J15: =VLOOKUP($C15,'RECAP SECT'!$G$6:$EV$253,141,FALSE) -> 7% | K15: =VLOOKUP($C15,'RECAP SECT'!$G$6:$EV$253,142,FALSE) -> 12 | L15: =VLOOKUP($C15,'RECAP SECT'!$G$6:$EV$253,143,FALSE) -> 59% | M15: =VLOOKUP($C15,'RECAP SECT'!$G$6:$EV$253,144,FALSE) -> 59% | N15: =VLOOKUP($C15,'RECAP SECT'!$G$6:$EV$253,145,FALSE) -> 15
A16: 264 | B16: HAUT-RHIN | C16: 5169 | D16: MULHOUSE | E16: =VLOOKUP($C16,'RECAP SECT'!$G$6:$EV$253,3,FALSE) -> 78.2 | F16: =VLOOKUP($C16,'RECAP SECT'!$G$6:$EV$253,137,FALSE) -> -22 | G16: =VLOOKUP($C16,'RECAP SECT'!$G$6:$EV$253,138,FALSE) -> 117% | H16: =VLOOKUP($C16,'RECAP SECT'!$G$6:$EV$253,139,FALSE) -> 16 | I16: =VLOOKUP($C16,'RECAP SECT'!$G$6:$EV$253,140,FALSE) -> 74% | J16: =VLOOKUP($C16,'RECAP SECT'!$G$6:$EV$253,141,FALSE) -> 7% | K16: =VLOOKUP($C16,'RECAP SECT'!$G$6:$EV$253,142,FALSE) -> 11 | L16: =VLOOKUP($C16,'RECAP SECT'!$G$6:$EV$253,143,FALSE) -> 62% | M16: =VLOOKUP($C16,'RECAP SECT'!$G$6:$EV$253,144,FALSE) -> 62% | N16: =VLOOKUP($C16,'RECAP SECT'!$G$6:$EV$253,145,FALSE) -> 16
A17: 30 | B17: MARNE-ARDENNES | C17: 6 | D17: CHALONS EN CHAMPAGNE | E17: =VLOOKUP($C17,'RECAP SECT'!$G$6:$EV$253,3,FALSE) -> 49.1 | F17: =VLOOKUP($C17,'RECAP SECT'!$G$6:$EV$253,137,FALSE) -> -9 | G17: =VLOOKUP($C17,'RECAP SECT'!$G$6:$EV$253,138,FALSE) -> 44% | H17: =VLOOKUP($C17,'RECAP SECT'!$G$6:$EV$253,139,FALSE) -> 5 | I17: =VLOOKUP($C17,'RECAP SECT'!$G$6:$EV$253,140,FALSE) -> 75% | J17: =VLOOKUP($C17,'RECAP SECT'!$G$6:$EV$253,141,FALSE) -> 6% | K17: =VLOOKUP($C17,'RECAP SECT'!$G$6:$EV$253,142,FALSE) -> 10 | L17: =VLOOKUP($C17,'RECAP SECT'!$G$6:$EV$253,143,FALSE) -> 25% | M17: =VLOOKUP($C17,'RECAP SECT'!$G$6:$EV$253,144,FALSE) -> 25% | N17: =VLOOKUP($C17,'RECAP SECT'!$G$6:$EV$253,145,FALSE) -> 6
A18: 30 | B18: MARNE-ARDENNES | C18: 2 | D18: CHARLEVILLE MEZIERES | E18: =VLOOKUP($C18,'RECAP SECT'!$G$6:$EV$253,3,FALSE) -> 64.0 | F18: =VLOOKUP($C18,'RECAP SECT'!$G$6:$EV$253,137,FALSE) -> -9 | G18: =VLOOKUP($C18,'RECAP SECT'!$G$6:$EV$253,138,FALSE) -> 44% | H18: =VLOOKUP($C18,'RECAP SECT'!$G$6:$EV$253,139,FALSE) -> 5 | I18: =VLOOKUP($C18,'RECAP SECT'!$G$6:$EV$253,140,FALSE) -> 77% | J18: =VLOOKUP($C18,'RECAP SECT'!$G$6:$EV$253,141,FALSE) -> 3% | K18: =VLOOKUP($C18,'RECAP SECT'!$G$6:$EV$253,142,FALSE) -> 7 | L18: =VLOOKUP($C18,'RECAP SECT'!$G$6:$EV$253,143,FALSE) -> 24% | M18: =VLOOKUP($C18,'RECAP SECT'!$G$6:$EV$253,144,FALSE) -> 24% | N18: =VLOOKUP($C18,'RECAP SECT'!$G$6:$EV$253,145,FALSE) -> 5
A19: 30 | B19: MARNE-ARDENNES | C19: 11 | D19: REIMS | E19: =VLOOKUP($C19,'RECAP SECT'!$G$6:$EV$253,3,FALSE) -> 91.1 | F19: =VLOOKUP($C19,'RECAP SECT'!$G$6:$EV$253,137,FALSE) -> -1 | G19: =VLOOKUP($C19,'RECAP SECT'!$G$6:$EV$253,138,FALSE) -> 0% | H19: =VLOOKUP($C19,'RECAP SECT'!$G$6:$EV$253,139,FALSE) -> 1 | I19: =VLOOKUP($C19,'RECAP SECT'!$G$6:$EV$253,140,FALSE) -> 79% | J19: =VLOOKUP($C19,'RECAP SECT'!$G$6:$EV$253,141,FALSE) -> 0% | K19: =VLOOKUP($C19,'RECAP SECT'!$G$6:$EV$253,142,FALSE) -> 1 | L19: =VLOOKUP($C19,'RECAP SECT'!$G$6:$EV$253,143,FALSE) -> 0% | M19: =VLOOKUP($C19,'RECAP SECT'!$G$6:$EV$253,144,FALSE) -> 0% | N19: =VLOOKUP($C19,'RECAP SECT'!$G$6:$EV$253,145,FALSE) -> 1
A20: 110 | B20: MEURTHE ET MOSELLE MEUSE | C20: 26 | D20: NANCY | E20: =VLOOKUP($C20,'RECAP SECT'!$G$6:$EV$253,3,FALSE) -> 80.2 | F20: =VLOOKUP($C20,'RECAP SECT'!$G$6:$EV$253,137,FALSE) -> -18 | G20: =VLOOKUP($C20,'RECAP SECT'!$G$6:$EV$253,138,FALSE) -> 94% | H20: =VLOOKUP($C20,'RECAP SECT'!$G$6:$EV$253,139,FALSE) -> 13 | I20: =VLOOKUP($C20,'RECAP SECT'!$G$6:$EV$253,140,FALSE) -> 77% | J20: =VLOOKUP($C20,'RECAP SECT'!$G$6:$EV$253,141,FALSE) -> 3% | K20: =VLOOKUP($C20,'RECAP SECT'!$G$6:$EV$253,142,FALSE) -> 5 | L20: =VLOOKUP($C20,'RECAP SECT'!$G$6:$EV$253,143,FALSE) -> 49% | M20: =VLOOKUP($C20,'RECAP SECT'!$G$6:$EV$253,144,FALSE) -> 49% | N20: =VLOOKUP($C20,'RECAP SECT'!$G$6:$EV$253,145,FALSE) -> 13
A21: 110 | B21: MEURTHE ET MOSELLE MEUSE | C21: 27 | D21: PONT A MOUSSON | E21: =VLOOKUP($C21,'RECAP SECT'!$G$6:$EV$253,3,FALSE) -> 89.4 | F21: =VLOOKUP($C21,'RECAP SECT'!$G$6:$EV$253,137,FALSE) -> -12 | G21: =VLOOKUP($C21,'RECAP SECT'!$G$6:$EV$253,138,FALSE) -> 61% | H21: =VLOOKUP($C21,'RECAP SECT'!$G$6:$EV$253,139,FALSE) -> 8 | I21: =VLOOKUP($C21,'RECAP SECT'!$G$6:$EV$253,140,FALSE) -> 73% | J21: =VLOOKUP($C21,'RECAP SECT'!$G$6:$EV$253,141,FALSE) -> 8% | K21: =VLOOKUP($C21,'RECAP SECT'!$G$6:$EV$253,142,FALSE) -> 16 | L21: =VLOOKUP($C21,'RECAP SECT'!$G$6:$EV$253,143,FALSE) -> 35% | M21: =VLOOKUP($C21,'RECAP SECT'!$G$6:$EV$253,144,FALSE) -> 35% | N21: =VLOOKUP($C21,'RECAP SECT'!$G$6:$EV$253,145,FALSE) -> 10
A22: 110 | B22: MEURTHE ET MOSELLE MEUSE | C22: 31 | D22: VERDUN | E22: =VLOOKUP($C22,'RECAP SECT'!$G$6:$EV$253,3,FALSE) -> 66.1 | F22: =VLOOKUP($C22,'RECAP SECT'!$G$6:$EV$253,137,FALSE) -> -9 | G22: =VLOOKUP($C22,'RECAP SECT'!$G$6:$EV$253,138,FALSE) -> 44% | H22: =VLOOKUP($C22,'RECAP SECT'!$G$6:$EV$253,139,FALSE) -> 5 | I22: =VLOOKUP($C22,'RECAP SECT'!$G$6:$EV$253,140,FALSE) -> 74% | J22: =VLOOKUP($C22,'RECAP SECT'!$G$6:$EV$253,141,FALSE) -> 7% | K22: =VLOOKUP($C22,'RECAP SECT'!$G$6:$EV$253,142,FALSE) -> 13 | L22: =VLOOKUP($C22,'RECAP SECT'!$G$6:$EV$253,143,FALSE) -> 26% | M22: =VLOOKUP($C22,'RECAP SECT'!$G$6:$EV$253,144,FALSE) -> 26% | N22: =VLOOKUP($C22,'RECAP SECT'!$G$6:$EV$253,145,FALSE) -> 7
A23: 160 | B23: MOSELLE | C23: 45 | D23: METZ | E23: =VLOOKUP($C23,'RECAP SECT'!$G$6:$EV$253,3,FALSE) -> 105.9 | F23: =VLOOKUP($C23,'RECAP SECT'!$G$6:$EV$253,137,FALSE) -> -12 | G23: =VLOOKUP($C23,'RECAP SECT'!$G$6:$EV$253,138,FALSE) -> 61% | H23: =VLOOKUP($C23,'RECAP SECT'!$G$6:$EV$253,139,FALSE) -> 8 | I23: =VLOOKUP($C23,'RECAP SECT'!$G$6:$EV$253,140,FALSE) -> 77% | J23: =VLOOKUP($C23,'RECAP SECT'!$G$6:$EV$253,141,FALSE) -> 3% | K23: =VLOOKUP($C23,'RECAP SECT'!$G$6:$EV$253,142,FALSE) -> 6 | L23: =VLOOKUP($C23,'RECAP SECT'!$G$6:$EV$253,143,FALSE) -> 32% | M23: =VLOOKUP($C23,'RECAP SECT'!$G$6:$EV$253,144,FALSE) -> 32% | N23: =VLOOKUP($C23,'RECAP SECT'!$G$6:$EV$253,145,FALSE) -> 8
A24: 160 | B24: MOSELLE | C24: 42 | D24: MOSELLE EST | E24: =VLOOKUP($C24,'RECAP SECT'!$G$6:$EV$253,3,FALSE) -> 87.4 | F24: =VLOOKUP($C24,'RECAP SECT'!$G$6:$EV$253,137,FALSE) -> -7 | G24: =VLOOKUP($C24,'RECAP SECT'!$G$6:$EV$253,138,FALSE) -> 33% | H24: =VLOOKUP($C24,'RECAP SECT'!$G$6:$EV$253,139,FALSE) -> 3 | I24: =VLOOKUP($C24,'RECAP SECT'!$G$6:$EV$253,140,FALSE) -> 78% | J24: =VLOOKUP($C24,'RECAP SECT'!$G$6:$EV$253,141,FALSE) -> 1% | K24: =VLOOKUP($C24,'RECAP SECT'!$G$6:$EV$253,142,FALSE) -> 2 | L24: =VLOOKUP($C24,'RECAP SECT'!$G$6:$EV$253,143,FALSE) -> 17% | M24: =VLOOKUP($C24,'RECAP SECT'!$G$6:$EV$253,144,FALSE) -> 17% | N24: =VLOOKUP($C24,'RECAP SECT'!$G$6:$EV$253,145,FALSE) -> 3
A25: 160 | B25: MOSELLE | C25: 44 | D25: MOSELLE NORD | E25: =VLOOKUP($C25,'RECAP SECT'!$G$6:$EV$253,3,FALSE) -> 81.6 | F25: =VLOOKUP($C25,'RECAP SECT'!$G$6:$EV$253,137,FALSE) -> -20 | G25: =VLOOKUP($C25,'RECAP SECT'!$G$6:$EV$253,138,FALSE) -> 106% | H25: =VLOOKUP($C25,'RECAP SECT'!$G$6:$EV$253,139,FALSE) -> 14 | I25: =VLOOKUP($C25,'RECAP SECT'!$G$6:$EV$253,140,FALSE) -> 73% | J25: =VLOOKUP($C25,'RECAP SECT'!$G$6:$EV$253,141,FALSE) -> 8% | K25: =VLOOKUP($C25,'RECAP SECT'!$G$6:$EV$253,142,FALSE) -> 15 | L25: =VLOOKUP($C25,'RECAP SECT'!$G$6:$EV$253,143,FALSE) -> 57% | M25: =VLOOKUP($C25,'RECAP SECT'!$G$6:$EV$253,144,FALSE) -> 57% | N25: =VLOOKUP($C25,'RECAP SECT'!$G$6:$EV$253,145,FALSE) -> 14
A26: 80 | B26: VOSGES | C26: 57 | D26: EPINAL | E26: =VLOOKUP($C26,'RECAP SECT'!$G$6:$EV$253,3,FALSE) -> 69.3 | F26: =VLOOKUP($C26,'RECAP SECT'!$G$6:$EV$253,137,FALSE) -> -17 | G26: =VLOOKUP($C26,'RECAP SECT'!$G$6:$EV$253,138,FALSE) -> 89% | H26: =VLOOKUP($C26,'RECAP SECT'!$G$6:$EV$253,139,FALSE) -> 12 | I26: =VLOOKUP($C26,'RECAP SECT'!$G$6:$EV$253,140,FALSE) -> 76% | J26: =VLOOKUP($C26,'RECAP SECT'!$G$6:$EV$253,141,FALSE) -> 4% | K26: =VLOOKUP($C26,'RECAP SECT'!$G$6:$EV$253,142,FALSE) -> 8 | L26: =VLOOKUP($C26,'RECAP SECT'!$G$6:$EV$253,143,FALSE) -> 46% | M26: =VLOOKUP($C26,'RECAP SECT'!$G$6:$EV$253,144,FALSE) -> 46% | N26: =VLOOKUP($C26,'RECAP SECT'!$G$6:$EV$253,145,FALSE) -> 12
A27: 80 | B27: VOSGES | C27: 55 | D27: SAINT DIE | E27: =VLOOKUP($C27,'RECAP SECT'!$G$6:$EV$253,3,FALSE) -> 59.0 | F27: =VLOOKUP($C27,'RECAP SECT'!$G$6:$EV$253,137,FALSE) -> -8 | G27: =VLOOKUP($C27,'RECAP SECT'!$G$6:$EV$253,138,FALSE) -> 39% | H27: =VLOOKUP($C27,'RECAP SECT'!$G$6:$EV$253,139,FALSE) -> 4 | I27: =VLOOKUP($C27,'RECAP SECT'!$G$6:$EV$253,140,FALSE) -> 78% | J27: =VLOOKUP($C27,'RECAP SECT'!$G$6:$EV$253,141,FALSE) -> 2% | K27: =VLOOKUP($C27,'RECAP SECT'!$G$6:$EV$253,142,FALSE) -> 3 | L27: =VLOOKUP($C27,'RECAP SECT'!$G$6:$EV$253,143,FALSE) -> 20% | M27: =VLOOKUP($C27,'RECAP SECT'!$G$6:$EV$253,144,FALSE) -> 20% | N27: =VLOOKUP($C27,'RECAP SECT'!$G$6:$EV$253,145,FALSE) -> 4
A28: Total CEGEE Directions Commerciales | E28: =SUM(E10:E27) -> 1387

Sheet AG_CLASS
A1: Accueil | H1: BAROMETRE BDD - DIRECTIONS COMMERCIALES
H2: CLASSEMENTS
H3: =ACCUEIL!H7 -> 2019-05-31
H8: CLASSEMENT GENERAL | I8: CRITERE CONQUETE | J8: Evolution nette Clients Bancarisés Principaux (BP +JBP) par ETP | K8: Evolution nette relations Premium par ETP | L8: Evolution nette Clients Bancarisés Principaux équipés par ETP | M8: Evolution nette Clients Pro actif équipés par rapport à l’objectif fixé | N8: CRITERE EQUIPEMENT BANCARISATION | O8: Ventes nettes forfaits (+ 2 options) par ETP | P8: Ventes nettes IZICARTES par ETP | Q8: Ventes nettes cartes HDG par ETP | R8: Vente nette CB débit différé par ETP | S8: Ventes nettes banca Pro Forfaits Pro, Carte pro par rapport à l’objectif | T8: CRITERE EPARGNE | U8: Excédents de collecte (y.c DAV) par ETP | V8: CA assurance vie par ETP | W8: Activité UC (CA+arbitrage) par ETP | X8: Excédents Assurance-vie par ETP | Y8: Excédents Epargne Bilan (Hors Emprunts CTO) par ETP | Z8: CRITERE CREDITS | AA8: Engagement Conso par ETP (hors clients 9) | AB8: % CNP sur Conso en valeur absolue | AC8: Engagements Immo par rapport à l’objectif | AD8: % CNP sur crédits immo en valeur absolue | AE8: Taux de couverture SACCEF | AF8: Engagements CMLT + CB par rapport à l’objectif | AG8: CRITERE IARD PREVOYANCE | AH8: Ventes nettes IARD (Auto+MRH+ Pro) par ETP | AI8: Ventes nettes Prévoyance (GAV, secur.f,prevoy loc,santé,assist.vie, obséques, Pro) par ETP | AJ8: Chiffre d’affaires IARD (Yc Pro) par ETP | AK8: CRITERE RISQUES | AL8: Complétude, conformité et fiabilisation des nouvelles EER sur flux BDD | AM8: Complétude, conformité et fiabilisation des EER sur flux cumulé et stock | AN8: Traitement et qualité du traitement des alertes Vigiclient | AO8: CRITERE Satisfaction Clients | AP8: Objectifs NPS* | AQ8: Enquête Qualité Haute Définition
A9: eds | B9: Direction | C9: eds | D9: Territoire | E9: eds | F9: Agence | G9: ETP perf | H9: Rang | I9: Rang | J9: Rang | K9: Rang | L9: Rang | M9: Rang | N9: Rang | O9: Rang | P9: Rang | Q9: Rang | R9: Rang | S9: Rang | T9: Rang | U9: Rang | V9: Rang | W9: Rang | X9: Rang | Y9: Rang | Z9: Rang | AA9: Rang | AB9: Rang | AC9: Rang | AD9: Rang | AE9: Rang | AF9: Rang | AG9: Rang | AH9: Rang | AI9: Rang | AJ9: Rang | AK9: Rang | AL9: Rang | AM9: Rang | AN9: Rang | AO9: Rang | AP9: Rang | AQ9: Rang
A10: 30 | B10: MARNE-ARDENNES | C10: 2 | D10: CHARLEVILLE MEZIERES | E10: 508833 | F10: VILLERS SEMEUSE CORA | G10: 3.0 | H10: 1 | I10: 1 | J10: 16 | K10: 4 | L10: 8 | M10: 4 | N10: 1 | O10: 223 | P10: 4 | Q10: 7 | R10: 7 | S10: 47 | T10: 133 | U10: 42 | V10: 187 | W10: 154 | X10: 127 | Y10: 176 | Z10: 118 | AA10: 116 | AB10: 180 | AC10: 256 | AD10: 71 | AE10: 156 | AF10: 68 | AG10: 6 | AH10: 9 | AI10: 7 | AJ10: 13 | AK10: 155 | AL10: 133 | AM10: 237 | AN10: 1 | AO10: 60 | AP10: 20 | AQ10: 259
A11: 30 | B11: MARNE-ARDENNES | C11: 2 | D11: CHARLEVILLE MEZIERES | E11: 508819 | F11: MOUZON | G11: 2.0 | H11: 2 | I11: 4 | J11: 1 | K11: 231 | L11: 1 | M11: 127 | N11: 86 | O11: 139 | P11: 261 | Q11: 98 | R11: 247 | S11: 6 | T11: 121 | U11: 75 | V11: 93 | W11: 182 | X11: 174 | Y11: 153 | Z11: 1 | AA11: 2 | AB11: 127 | AC11: 10 | AD11: 77 | AE11: 230 | AF11: 26 | AG11: 5 | AH11: 5 | AI11: 41 | AJ11: 3 | AK11: 44 | AL11: 245 | AM11: 14 | AN11: 1 | AO11: 48 | AP11: 60 | AQ11: 11
A12: 50 | B12: AUBE HAUTE MARNE | C12: 21 | D12: CHAUMONT | E12: 510590 | F12: CHAUMONT REPUBLIQUE | G12: 4.0 | H12: 3 | I12: 9 | J12: 3 | K12: 141 | L12: 14 | M12: 46 | N12: 38 | O12: 112 | P12: 209 | Q12: 143 | R12: 146 | S12: 3 | T12: 111 | U12: 71 | V12: 193 | W12: 172 | X12: 208 | Y12: 99 | Z12: 2 | AA12: 3 | AB12: 181 | AC12: 9 | AD12: 104 | AE12: 201 | AF12: 18 | AG12: 18 | AH12: 166 | AI12: 1 | AJ12: 278 | AK12: 13 | AL12: 1 | AM12: 28 | AN12: 1 | AO12: 15 | AP12: 16 | AQ12: 88
A13: 160 | B13: MOSELLE | C13: 42 | D13: MOSELLE EST | E13: 557458 | F13: MORHANGE | G13: 2.8 | H13: 4 | I13: 23 | J13: 132 | K13: 148 | L13: 2 | M13: 46 | N13: 13 | O13: 19 | P13: 132 | Q13: 5 | R13: 62 | S13: 131 | T13: 135 | U13: 94 | V13: 96 | W13: 45 | X13: 35 | Y13: 236 | Z13: 62 | AA13: 44 | AB13: 35 | AC13: 37 | AD13: 262 | AE13: 94 | AF13: 212 | AG13: 4 | AH13: 7 | AI13: 10 | AJ13: 7 | AK13: 187 | AL13: 298 | AM13: 55 | AN13: 1 | AO13: 107 | AP13: 60 | AQ13: 201
A14: 160 | B14: MOSELLE | C14: 44 | D14: MOSELLE NORD | E14: 557347 | F14: GUENANGE | G14: 2.6 | H14: 5 | I14: 21 | J14: 44 | K14: 131 | L14: 12 | M14: 46 | N14: 145 | O14: 297 | P14: 106 | Q14: 23 | R14: 83 | S14: 200 | T14: 59 | U14: 36 | V14: 6 | W14: 98 | X14: 5 | Y14: 239 | Z14: 17 | AA14: 7 | AB14: 92 | AC14: 13 | AD14: 168 | AE14: 165 | AF14: 252 | AG14: 13 | AH14: 107 | AI14: 6 | AJ14: 33 | AK14: 12 | AL14: 159 | AM14: 11 | AN14: 1 | AO14: 32 | AP14: 38 | AQ14: 33
A15: 30 | B15: MARNE-ARDENNES | C15: 6 | D15: CHALONS EN CHAMPAGNE | E15: 551103 | F15: FAGNIERES LECLERC | G15: 2.7 | H15: 6 | I15: 122 | J15: 170 | K15: 12 | L15: 103 | M15: 286 | N15: 10 | O15: 221 | P15: 1 | Q15: 58 | R15: 71 | S15: 200 | T15: 97 | U15: 9 | V15: 126 | W15: 108 | X15: 115 | Y15: 192 | Z15: 159 | AA15: 176 | AB15: 114 | AC15: 118 | AD15: 91 | AE15: 208 | AF15: 252 | AG15: 9 | AH15: 25 | AI15: 9 | AJ15: 10 | AK15: 20 | AL15: 127 | AM15: 25 | AN15: 1 | AO15: 54 | AP15: 43 | AQ15: 112
A16: 160 | B16: MOSELLE | C16: 42 | D16: MOSELLE EST | E16: 457626 | F16: STIRING WENDEL | G16: 2.0 | H16: 7 | I16: 10 | J16: 31 | K16: 14 | L16: 13 | M16: 127 | N16: 9 | O16: 187 | P16: 94 | Q16: 3 | R16: 8 | S16: 200 | T16: 38 | U16: 26 | V16: 176 | W16: 101 | X16: 202 | Y16: 33 | Z16: 19 | AA16: 70 | AB16: 12 | AC16: 24 | AD16: 11 | AE16: 1 | AF16: 252 | AG16: 124 | AH16: 148 | AI16: 106 | AJ16: 128 | AK16: 98 | AL16: 226 | AM16: 74 | AN16: 1 | AO16: 43 | AP16: 60 | AQ16: 4
A17: 30 | B17: MARNE-ARDENNES | C17: 2 | D17: CHARLEVILLE MEZIERES | E17: 508817 | F17: CHARLEVILLE MOHON | G17: 3.6 | H17: 8 | I17: 19 | J17: 5 | K17: 255 | L17: 7 | M17: 46 | N17: 43 | O17: 197 | P17: 10 | Q17: 33 | R17: 99 | S17: 155 | T17: 253 | U17: 216 | V17: 265 | W17: 296 | X17: 147 | Y17: 215 | Z17: 6 | AA17: 169 | AB17: 126 | AC17: 2 | AD17: 69 | AE17: 137 | AF17: 48 | AG17: 22 | AH17: 61 | AI17: 26 | AJ17: 78 | AK17: 71 | AL17: 130 | AM17: 94 | AN17: 1 | AO17: 12 | AP17: 20 | AQ17: 18
A18: 30 | B18: MARNE-ARDENNES | C18: 6 | D18: CHALONS EN CHAMPAGNE | E18: 551354 | F18: VERTUS | G18: 2.9 | H18: 9 | I18: 90 | J18: 25 | K18: 71 | L18: 125 | M18: 278 | N18: 88 | O18: 8 | P18: 140 | Q18: 183 | R18: 145 | S18: 152 | T18: 2 | U18: 195 | V18: 88 | W18: 124 | X18: 47 | Y18: 1 | Z18: 34 | AA18: 34 | AB18: 139 | AC18: 167 | AD18: 11 | AE18: 188 | AF18: 50 | AG18: 79 | AH18: 211 | AI18: 24 | AJ18: 184 | AK18: 145 | AL18: 205 | AM18: 170 | AN18: 1 | AO18: 30 | AP18: 49 | AQ18: 1
A19: 80 | B19: VOSGES | C19: 55 | D19: SAINT DIE | E19: 488616 | F19: SENONES | G19: 1.2 | H19: 10 | I19: 8 | J19: 49 | K19: 62 | L19: 62 | M19: 10 | N19: 15 | O19: 283 | P19: 2 | Q19: 54 | R19: 97 | S19: 20 | T19: 104 | U19: 80 | V19: 165 | W19: 117 | X19: 163 | Y19: 106 | Z19: 23 | AA19: 1 | AB19: 11 | AC19: 212 | AD19: 108 | AE19: 276 | AF19: 123 | AG19: 46 | AH19: 80 | AI19: 124 | AJ19: 11 | AK19: 92 | AL19: 1 | AM19: 184 | AN19: 1 | AO19: 79 | AP19: 60 | AQ19: 104
A20: 30 | B20: MARNE-ARDENNES | C20: 11 | D20: REIMS | E20: 451336 | F20: TINQUEUX | G20: 5.8 | H20: 11 | I20: 6 | J20: 141 | K20: 2 | L20: 101 | M20: 23 | N20: 138 | O20: 230 | P20: 8 | Q20: 273 | R20: 187 | S20: 90 | T20: 1 | U20: 1 | V20: 46 | W20: 142 | X20: 49 | Y20: 3 | Z20: 125 | AA20: 65 | AB20: 283 | AC20: 112 | AD20: 226 | AE20: 220 | AF20: 54 | AG20: 126 | AH20: 136 | AI20: 139 | AJ20: 91 | AK20: 211 | AL20: 294 | AM20: 174 | AN20: 1 | AO20: 78 | AP20: 110 | AQ20: 46
A21: 110 | B21: MEURTHE ET MOSELLE MEUSE | C21: 27 | D21: PONT A MOUSSON | E21: 454696 | F21: VILLERS GENERAL LECLERC | G21: 6.5 | H21: 12 | I21: 18 | J21: 155 | K21: 166 | L21: 40 | M21: 4 | N21: 62 | O21: 222 | P21: 9 | Q21: 18 | R21: 203 | S21: 154 | T21: 28 | U21: 122 | V21: 14 | W21: 12 | X21: 59 | Y21: 72 | Z21: 7 | AA21: 13 | AB21: 212 | AC21: 60 | AD21: 98 | AE21: 73 | AF21: 11 | AG21: 77 | AH21: 142 | AI21: 27 | AJ21: 244 | AK21: 171 | AL21: 141 | AM21: 249 | AN21: 1 | AO21: 100 | AP21: 131 | AQ21: 23
A22: 80 | B22: VOSGES | C22: 57 | D22: EPINAL | E22: 488261 | F22: DOCELLES | G22: 1.8 | H22: 13 | I22: 107 | J22: 8 | K22: 255 | L22: 255 | M22: 46 | N22: 25 | O22: 30 | P22: 18 | Q22: 35 | R22: 92 | S22: 200 | T22: 18 | U22: 2 | V22: 106 | W22: 84 | X22: 36 | Y22: 52 | Z22: 10 | AA22: 28 | AB22: 213 | AC22: 1 | AD22: 230 | AE22: 101 | AF22: 108 | AG22: 90 | AH22: 173 | AI22: 86 | AJ22: 37 | AK22: 6 | AL22: 1 | AM22: 12 | AN22: 1 | AO22: 84 | AP22: 60 | AQ22: 117
A23: 160 | B23: MOSELLE | C23: 45 | D23: METZ | E23: 457443 | F23: METZ REPUBLIQUE | G23: 6.3 | H23: 14 | I23: 2 | J23: 7 | K23: 150 | L23: 3 | M23: 19 | N23: 79 | O23: 165 | P23: 123 | Q23: 50 | R23: 107 | S23: 55 | T23: 27 | U23: 6 | V23: 212 | W23: 232 | X23: 116 | Y23: 32 | Z23: 160 | AA23: 300 | AB23: 146 | AC23: 40 | AD23: 252 | AE23: 193 | AF23: 73 | AG23: 177 | AH23: 174 | AI23: 49 | AJ23: 306 | AK23: 118 | AL23: 168 | AM23: 155 | AN23: 1 | AO23: 19 | AP23: 17 | AQ23: 56
A24: 80 | B24: VOSGES | C24: 55 | D24: SAINT DIE | E24: 588386 | F24: LE THILLOT | G24: 3.6 | H24: 15 | I24: 14 | J24: 65 | K24: 5 | L24: 181 | M24: 46 | N24: 36 | O24: 28 | P24: 131 | Q24: 118 | R24: 57 | S24: 45 | T24: 141 | U24: 57 | V24: 228 | W24: 260 | X24: 141 | Y24: 146 | Z24: 28 | AA24: 140 | AB24: 3 | AC24: 59 | AD24: 90 | AE24: 102 | AF24: 70 | AG24: 101 | AH24: 48 | AI24: 229 | AJ24: 114 | AK24: 89 | AL24: 1 | AM24: 181 | AN24: 1 | AO24: 14 | AP24: 7 | AQ24: 177
A25: 110 | B25: MEURTHE ET MOSELLE MEUSE | C25: 26 | D25: NANCY | E25: 554601 | F25: SAINT MAX | G25: 3.3 | H25: 16 | I25: 130 | J25: 195 | K25: 74 | L25: 129 | M25: 127 | N25: 46 | O25: 254 | P25: 83 | Q25: 122 | R25: 40 | S25: 8 | T25: 34 | U25: 53 | V25: 16 | W25: 17 | X25: 40 | Y25: 143 | Z25: 44 | AA25: 14 | AB25: 266 | AC25: 113 | AD25: 117 | AE25: 95 | AF25: 125 | AG25: 10 | AH25: 6 | AI25: 96 | AJ25: 9 | AK25: 186 | AL25: 254 | AM25: 198 | AN25: 1 | AO25: 173 | AP25: 204 | AQ25: 53
A26: 160 | B26: MOSELLE | C26: 45 | D26: METZ | E26: 557444 | F26: METZ SAINT JULIEN | G26: 5.9 | H26: 17 | I26: 32 | J26: 128 | K26: 171 | L26: 187 | M26: 4 | N26: 163 | O26: 288 | P26: 103 | Q26: 87 | R26: 78 | S26: 123 | T26: 7 | U26: 11 | V26: 12 | W26: 4 | X26: 10 | Y26: 40 | Z26: 173 | AA26: 97 | AB26: 247 | AC26: 192 | AD26: 258 | AE26: 81 | AF26: 112 | AG26: 48 | AH26: 102 | AI26: 29 | AJ26: 148 | AK26: 78 | AL26: 122 | AM26: 120 | AN26: 1 | AO26: 55 | AP26: 60 | AQ26: 31
A27: 110 | B27: MEURTHE ET MOSELLE MEUSE | C27: 27 | D27: PONT A MOUSSON | E27: 454466 | F27: NANCY PLATEAU DE HAYE | G27: 3.0 | H27: 18 | I27: 27 | J27: 17 | K27: 215 | L27: 15 | M27: 46 | N27: 231 | O27: 285 | P27: 17 | Q27: 13 | R27: 118 | S27: 307 | T27: 257 | U27: 220 | V27: 306 | W27: 282 | X27: 262 | Y27: 159 | Z27: 140 | AA27: 69 | AB27: 254 | AC27: 268 | AD27: 11 | AE27: 1 | AF27: 252 | AG27: 2 | AH27: 4 | AI27: 12 | AJ27: 4 | AK27: 243 | AL27: 151 | AM27: 209 | AN27: 238 | AO27: 188 | AP27: 204 | AQ27: 93
A28: 160 | B28: MOSELLE | C28: 42 | D28: MOSELLE EST | E28: 457163 | F28: BEHREN LES FORBACH | G28: 2.6 | H28: 19 | I28: 59 | J28: 219 | K28: 58 | L28: 134 | M28: 23 | N28: 5 | O28: 205 | P28: 102 | Q28: 14 | R28: 6 | S28: 8 | T28: 189 | U28: 164 | V28: 252 | W28: 286 | X28: 155 | Y28: 148 | Z28: 38 | AA28: 146 | AB28: 116 | AC28: 6 | AD28: 222 | AE28: 232 | AF28: 95 | AG28: 110 | AH28: 172 | AI28: 74 | AJ28: 107 | AK28: 18 | AL28: 199 | AM28: 9 | AN28: 1 | AO28: 5 | AP28: 6 | AQ28: 22
A29: 30 | B29: MARNE-ARDENNES | C29: 6 | D29: CHALONS EN CHAMPAGNE | E29: 551110 | F29: CHALONS ROOSEVELT | G29: 5.9 | H29: 20 | I29: 67 | J29: 85 | K29: 85 | L29: 43 | M29: 213 | N29: 45 | O29: 151 | P29: 16 | Q29: 65 | R29: 82 | S29: 121 | T29: 23 | U29: 163 | V29: 84 | W29: 16 | X29: 81 | Y29: 31 | Z29: 126 | AA29: 105 | AB29: 149 | AC29: 63 | AD29: 272 | AE29: 1 | AF29: 173 | AG29: 21 | AH29: 55 | AI29: 28 | AJ29: 80 | AK29: 42 | AL29: 1 | AM29: 72 | AN29: 1 | AO29: 104 | AP29: 111 | AQ29: 114
A30: 110 | B30: MEURTHE ET MOSELLE MEUSE | C30: 27 | D30: PONT A MOUSSON | E30: 554496 | F30: NANCY TROIS MAISONS | G30: 3.3 | H30: 21 | I30: 152 | J30: 246 | K30: 222 | L30: 46 | M30: 46 | N30: 109 | O30: 272 | P30: 87 | Q30: 73 | R30: 58 | S30: 62 | T30: 25 | U30: 47 | V30: 94 | W30: 97 | X30: 113 | Y30: 34 | Z30: 123 | AA30: 23 | AB30: 231 | AC30: 90 | AD30: 134 | AE30: 268 | AF30: 219 | AG30: 14 | AH30: 13 | AI30: 52 | AJ30: 17 | AK30: 165 | AL30: 170 | AM30: 230 | AN30: 1 | AO30: 45 | AP30: 47 | AQ30: 50
A31: 30 | B31: MARNE-ARDENNES | C31: 11 | D31: REIMS | E31: 551306 | F31: REIMS SAINT MARCEAUX | G31: 4.4 | H31: 22 | I31: 138 | J31: 197 | K31: 42 | L31: 204 | M31: 127 | N31: 6 | O31: 130 | P31: 3 | Q31: 99 | R31: 21 | S31: 142 | T31: 19 | U31: 113 | V31: 18 | W31: 134 | X31: 26 | Y31: 24 | Z31: 81 | AA31: 72 | AB31: 194 | AC31: 18 | AD31: 280 | AE31: 235 | AF31: 76 | AG31: 59 | AH31: 114 | AI31: 30 | AJ31: 168 | AK31: 209 | AL31: 143 | AM31: 292 | AN31: 1 | AO31: 93 | AP31: 49 | AQ31: 209
A32: 80 | B32: VOSGES | C32: 55 | D32: SAINT DIE | E32: 488326 | F32: GERARDMER | G32: 6.3 | H32: 23 | I32: 106 | J32: 209 | K32: 95 | L32: 119 | M32: 46 | N32: 58 | O32: 89 | P32: 95 | Q32: 168 | R32: 35 | S32: 62 | T32: 17 | U32: 12 | V32: 47 | W32: 54 | X32: 101 | Y32: 25 | Z32: 13 | AA32: 66 | AB32: 191 | AC32: 67 | AD32: 244 | AE32: 189 | AF32: 5 | AG32: 140 | AH32: 113 | AI32: 168 | AJ32: 159 | AK32: 33 | AL32: 1 | AM32: 59 | AN32: 1 | AO32: 37 | AP32: 33 | AQ32: 80
A33: 80 | B33: VOSGES | C33: 57 | D33: EPINAL | E33: 488288 | F33: EPINAL LEOPOLD BOURG | G33: 2.9 | H33: 24 | I33: 41 | J33: 103 | K33: 36 | L33: 238 | M33: 23 | N33: 17 | O33: 13 | P33: 33 | Q33: 192 | R33: 56 | S33: 19 | T33: 41 | U33: 29 | V33: 186 | W33: 130 | X33: 53 | Y33: 49 | Z33: 15 | AA33: 9 | AB33: 248 | AC33: 54 | AD33: 204 | AE33: 227 | AF33: 10 | AG33: 272 | AH33: 287 | AI33: 234 | AJ33: 161 | AK33: 226 | AL33: 183 | AM33: 2 | AN33: 248 | AO33: 2 | AP33: 2 | AQ33: 24
A34: 30 | B34: MARNE-ARDENNES | C34: 2 | D34: CHARLEVILLE MEZIERES | E34: 508820 | F34: VOUZIERS | G34: 3.3 | H34: 25 | I34: 211 | J34: 245 | K34: 140 | L34: 188 | M34: 127 | N34: 74 | O34: 258 | P34: 7 | Q34: 101 | R34: 17 | S34: 298 | T34: 199 | U34: 97 | V34: 5 | W34: 28 | X34: 4 | Y34: 305 | Z34: 78 | AA34: 233 | AB34: 206 | AC34: 137 | AD34: 122 | AE34: 1 | AF34: 47 | AG34: 1 | AH34: 2 | AI34: 8 | AJ34: 6 | AK34: 202 | AL34: 163 | AM34: 281 | AN34: 1 | AO34: 280 | AP34: 282 | AQ34: 235
A35: 262 | B35: BAS-RHIN | C35: 5006 | D35: STRASBOURG | E35: 4038 | F35: OBERHAUSBERGEN | G35: 3.4 | H35: 26 | I35: 148 | J35: 192 | K35: 200 | L35: 53 | M35: 119 | N35: 67 | O35: 54 | P35: 266 | Q35: 77 | R35: 22 | S35: 171 | T35: 44 | U35: 102 | V35: 168 | W35: 29 | X35: 123 | Y35: 43 | Z35: 66 | AA35: 43 | AB35: 110 | AC35: 53 | AD35: 190 | AE35: 164 | AF35: 217 | AG35: 11 | AH35: 3 | AI35: 181 | AJ35: 24 | AK35: 255 | AL35: 254 | AM35: 73 | AN35: 248 | AO35: 146 | AP35: 166 | AQ35: 95
A36: 30 | B36: MARNE-ARDENNES | C36: 6 | D36: CHALONS EN CHAMPAGNE | E36: 451101 | F36: CHALONS VIVIERS | G36: 10.8 | H36: 27 | I36: 102 | J36: 82 | K36: 188 | L36: 104 | M36: 119 | N36: 47 | O36: 200 | P36: 53 | Q36: 112 | R36: 38 | S36: 32 | T36: 10 | U36: 31 | V36: 60 | W36: 15 | X36: 191 | Y36: 13 | Z36: 60 | AA36: 132 | AB36: 112 | AC36: 69 | AD36: 140 | AE36: 224 | AF36: 46 | AG36: 73 | AH36: 130 | AI36: 51 | AJ36: 106 | AK36: 191 | AL36: 169 | AM36: 261 | AN36: 1 | AO36: 113 | AP36: 116 | AQ36: 132
A37: 110 | B37: MEURTHE ET MOSELLE MEUSE | C37: 26 | D37: NANCY | E37: 454481 | F37: NANCY PLACE DOMBASLE | G37: 11.9 | H37: 28 | I37: 28 | J37: 36 | K37: 51 | L37: 29 | M37: 209 | N37: 51 | O37: 70 | P37: 181 | Q37: 74 | R37: 30 | S37: 93 | T37: 56 | U37: 79 | V37: 24 | W37: 100 | X37: 24 | Y37: 134 | Z37: 101 | AA37: 209 | AB37: 265 | AC37: 23 | AD37: 216 | AE37: 204 | AF37: 86 | AG37: 36 | AH37: 33 | AI37: 38 | AJ37: 193 | AK37: 288 | AL37: 274 | AM37: 208 | AN37: 285 | AO37: 67 | AP37: 102 | AQ37: 57
A38: 50 | B38: AUBE HAUTE MARNE | C38: 14 | D38: TROYES | E38: 410524 | F38: SAINT JULIEN LES VILLAS | G38: 6.1 | H38: 29 | I38: 3 | J38: 2 | K38: 90 | L38: 24 | M38: 23 | N38: 69 | O38: 131 | P38: 105 | Q38: 49 | R38: 110 | S38: 52 | T38: 100 | U38: 21 | V38: 211 | W38: 109 | X38: 240 | Y38: 105 | Z38: 42 | AA38: 30 | AB38: 237 | AC38: 14 | AD38: 241 | AE38: 200 | AF38: 158 | AG38: 250 | AH38: 235 | AI38: 202 | AJ38: 246 | AK38: 14 | AL38: 1 | AM38: 30 | AN38: 1 | AO38: 28 | AP38: 29 | AQ38: 40
A39: 30 | B39: MARNE-ARDENNES | C39: 2 | D39: CHARLEVILLE MEZIERES | E39: 508802 | F39: CHARLEVILLE NEVERS | G39: 3.7 | H39: 30 | I39: 20 | J39: 62 | K39: 246 | L39: 19 | M39: 10 | N39: 27 | O39: 63 | P39: 160 | Q39: 63 | R39: 13 | S39: 100 | T39: 202 | U39: 88 | V39: 292 | W39: 277 | X39: 243 | Y39: 150 | Z39: 18 | AA39: 143 | AB39: 1 | AC39: 31 | AD39: 78 | AE39: 92 | AF39: 71 | AG39: 27 | AH39: 91 | AI39: 13 | AJ39: 192 | AK39: 43 | AL39: 1 | AM39: 76 | AN39: 1 | AO39: 229 | AP39: 276 | AQ39: 29
A40: 160 | B40: MOSELLE | C40: 44 | D40: MOSELLE NORD | E40: 457449 | F40: METZERVISSE | G40: 2.6 | H40: 31 | I40: 129 | J40: 106 | K40: 57 | L40: 167 | M40: 231 | N40: 18 | O40: 38 | P40: 101 | Q40: 20 | R40: 12 | S40: 272 | T40: 60 | U40: 16 | V40: 8 | W40: 22 | X40: 7 | Y40: 268 | Z40: 287 | AA40: 255 | AB40: 106 | AC40: 293 | AD40: 242 | AE40: 1 | AF40: 252 | AG40: 49 | AH40: 50 | AI40: 66 | AJ40: 85 | AK40: 2 | AL40: 1 | AM40: 5 | AN40: 1 | AO40: 23 | AP40: 7 | AQ40: 218
A41: 160 | B41: MOSELLE | C41: 44 | D41: MOSELLE NORD | E41: 557303 | F41: FAMECK | G41: 3.7 | H41: 32 | I41: 109 | J41: 226 | K41: 54 | L41: 202 | M41: 46 | N41: 238 | O41: 290 | P41: 25 | Q41: 102 | R41: 266 | S41: 200 | T41: 118 | U41: 101 | V41: 169 | W41: 252 | X41: 62 | Y41: 140 | Z41: 24 | AA41: 50 | AB41: 227 | AC41: 15 | AD41: 88 | AE41: 172 | AF41: 188 | AG41: 15 | AH41: 26 | AI41: 36 | AJ41: 19 | AK41: 244 | AL41: 124 | AM41: 115 | AN41: 243 | AO41: 20 | AP41: 20 | AQ41: 51
A42: 160 | B42: MOSELLE | C42: 44 | D42: MOSELLE NORD | E42: 557628 | F42: TERVILLE | G42: 2.5 | H42: 33 | I42: 45 | J42: 198 | K42: 32 | L42: 11 | M42: 127 | N42: 2 | O42: 246 | P42: 62 | Q42: 4 | R42: 19 | S42: 3 | T42: 175 | U42: 126 | V42: 19 | W42: 34 | X42: 21 | Y42: 288 | Z42: 91 | AA42: 37 | AB42: 216 | AC42: 36 | AD42: 281 | AE42: 1 | AF42: 252 | AG42: 123 | AH42: 79 | AI42: 243 | AJ42: 68 | AK42: 26 | AL42: 1 | AM42: 43 | AN42: 1 | AO42: 89 | AP42: 60 | AQ42: 144
A43: 50 | B43: AUBE HAUTE MARNE | C43: 21 | D43: CHAUMONT | E43: 410539 | F43: CHATEAUVILLAIN | G43: 2.0 | H43: 34 | I43: 37 | J43: 81 | K43: 65 | L43: 90 | M43: 46 | N43: 153 | O43: 29 | P43: 260 | Q43: 274 | R43: 90 | S43: 200 | T43: 187 | U43: 187 | V43: 284 | W43: 239 | X43: 267 | Y43: 92 | Z43: 52 | AA43: 49 | AB43: 46 | AC43: 259 | AD43: 11 | AE43: 1 | AF43: 74 | AG43: 33 | AH43: 145 | AI43: 15 | AJ43: 63 | AK43: 27 | AL43: 258 | AM43: 4 | AN43: 1 | AO43: 46 | AP43: 60 | AQ43: 7
A44: 30 | B44: MARNE-ARDENNES | C44: 11 | D44: REIMS | E44: 451361 | F44: PIERRY LECLERC | G44: 2.6 | H44: 35 | I44: 252 | J44: 22 | K44: 304 | L44: 151 | M44: 231 | N44: 16 | O44: 216 | P44: 5 | Q44: 41 | R44: 34 | S44: 200 | T44: 303 | U44: 300 | V44: 90 | W44: 255 | X44: 283 | Y44: 298 | Z44: 8 | AA44: 33 | AB44: 137 | AC44: 4 | AD44: 136 | AE44: 1 | AF44: 174 | AG44: 8 | AH44: 8 | AI44: 14 | AJ44: 34 | AK44: 56 | AL44: 1 | AM44: 101 | AN44: 1 | AO44: 126 | AP44: 60 | AQ44: 251
A45: 30 | B45: MARNE-ARDENNES | C45: 11 | D45: REIMS | E45: 551307 | F45: REIMS SAINTE ANNE | G45: 3.5 | H45: 36 | I45: 22 | J45: 20 | K45: 100 | L45: 246 | M45: 10 | N45: 19 | O45: 226 | P45: 13 | Q45: 97 | R45: 5 | S45: 155 | T45: 268 | U45: 226 | V45: 68 | W45: 135 | X45: 22 | Y45: 295 | Z45: 132 | AA45: 18 | AB45: 252 | AC45: 175 | AD45: 285 | AE45: 159 | AF45: 52 | AG45: 25 | AH45: 34 | AI45: 56 | AJ45: 48 | AK45: 232 | AL45: 170 | AM45: 306 | AN45: 1 | AO45: 112 | AP45: 104 | AQ45: 182
A46: 160 | B46: MOSELLE | C46: 45 | D46: METZ | E46: 557434 | F46: MARLY | G46: 4.9 | H46: 37 | I46: 57 | J46: 232 | K46: 221 | L46: 39 | M46: 10 | N46: 71 | O46: 144 | P46: 49 | Q46: 119 | R46: 131 | S46: 20 | T46: 61 | U46: 62 | V46: 82 | W46: 83 | X46: 27 | Y46: 96 | Z46: 168 | AA46: 197 | AB46: 105 | AC46: 89 | AD46: 191 | AE46: 139 | AF46: 242 | AG46: 23 | AH46: 14 | AI46: 126 | AJ46: 27 | AK46: 69 | AL46: 151 | AM46: 78 | AN46: 1 | AO46: 165 | AP46: 204 | AQ46: 32
A47: 30 | B47: MARNE-ARDENNES | C47: 11 | D47: REIMS | E47: 551340 | F47: BETHENY | G47: 3.7 | H47: 38 | I47: 43 | J47: 46 | K47: 34 | L47: 83 | M47: 213 | N47: 41 | O47: 181 | P47: 23 | Q47: 227 | R47: 14 | S47: 58 | T47: 143 | U47: 144 | V47: 4 | W47: 19 | X47: 8 | Y47: 293 | Z47: 195 | AA47: 192 | AB47: 101 | AC47: 217 | AD47: 246 | AE47: 82 | AF47: 99 | AG47: 38 | AH47: 20 | AI47: 79 | AJ47: 96 | AK47: 96 | AL47: 1 | AM47: 193 | AN47: 1 | AO47: 91 | AP47: 104 | AQ47: 107
A48: 262 | B48: BAS-RHIN | C48: 5060 | D48: HAGUENAU | E48: 4092 | F48: HOCHFELDEN | G48: 2.5 | H48: 39 | I48: 12 | J48: 24 | K48: 13 | L48: 31 | M48: 127 | N48: 68 | O48: 9 | P48: 207 | Q48: 173 | R48: 93 | S48: 86 | T48: 238 | U48: 183 | V48: 269 | W48: 261 | X48: 217 | Y48: 201 | Z48: 61 | AA48: 39 | AB48: 12 | AC48: 223 | AD48: 129 | AE48: 1 | AF48: 80 | AG48: 94 | AH48: 295 | AI48: 17 | AJ48: 58 | AK48: 175 | AL48: 1 | AM48: 277 | AN48: 1 | AO48: 52 | AP48: 49 | AQ48: 66
A49: 160 | B49: MOSELLE | C49: 42 | D49: MOSELLE EST | E49: 557210 | F49: CHATEAU SALINS | G49: 3.5 | H49: 40 | I49: 55 | J49: 174 | K49: 101 | L49: 281 | M49: 4 | N49: 4 | O49: 82 | P49: 65 | Q49: 9 | R49: 215 | S49: 2 | T49: 80 | U49: 143 | V49: 139 | W49: 145 | X49: 41 | Y49: 68 | Z49: 272 | AA49: 103 | AB49: 236 | AC49: 148 | AD49: 303 | AE49: 109 | AF49: 243 | AG49: 71 | AH49: 192 | AI49: 31 | AJ49: 105 | AK49: 38 | AL49: 1 | AM49: 64 | AN49: 1 | AO49: 132 | AP49: 127 | AQ49: 127
A50: 160 | B50: MOSELLE | C50: 44 | D50: MOSELLE NORD | E50: 457192 | F50: CATTENOM | G50: 3.4 | H50: 41 | I50: 126 | J50: 164 | K50: 172 | L50: 141 | M50: 46 | N50: 84 | O50: 140 | P50: 73 | Q50: 21 | R50: 111 | S50: 287 | T50: 78 | U50: 50 | V50: 51 | W50: 107 | X50: 19 | Y50: 162 | Z50: 68 | AA50: 68 | AB50: 132 | AC50: 207 | AD50: 11 | AE50: 1 | AF50: 169 | AG50: 41 | AH50: 154 | AI50: 35 | AJ50: 31 | AK50: 5 | AL50: 1 | AM50: 10 | AN50: 1 | AO50: 92 | AP50: 123 | AQ50: 30
A51: 80 | B51: VOSGES | C51: 55 | D51: SAINT DIE | E51: 488346 | F51: GRANGES AUMONTZEY | G51: 1.6 | H51: 42 | I51: 97 | J51: 11 | K51: 255 | L51: 102 | M51: 127 | N51: 56 | O51: 49 | P51: 71 | Q51: 71 | R51: 189 | S51: 20 | T51: 234 | U51: 265 | V51: 83 | W51: 164 | X51: 121 | Y51: 247 | Z51: 50 | AA51: 108 | AB51: 12 | AC51: 190 | AD51: 11 | AE51: 1 | AF51: 82 | AG51: 26 | AH51: 22 | AI51: 163 | AJ51: 12 | AK51: 22 | AL51: 1 | AM51: 40 | AN51: 1 | AO51: 76 | AP51: 60 | AQ51: 99
A52: 50 | B52: AUBE HAUTE MARNE | C52: 21 | D52: CHAUMONT | E52: 410582 | F52: NOGENT EN BASSIGNY | G52: 1.9 | H52: 43 | I52: 115 | J52: 29 | K52: 292 | L52: 26 | M52: 127 | N52: 14 | O52: 12 | P52: 212 | Q52: 85 | R52: 23 | S52: 20 | T52: 267 | U52: 293 | V52: 210 | W52: 71 | X52: 305 | Y52: 142 | Z52: 144 | AA52: 11 | AB52: 128 | AC52: 214 | AD52: 210 | AE52: 238 | AF52: 128 | AG52: 16 | AH52: 19 | AI52: 85 | AJ52: 15 | AK52: 57 | AL52: 1 | AM52: 104 | AN52: 1 | AO52: 95 | AP52: 60 | AQ52: 158
A53: 80 | B53: VOSGES | C53: 55 | D53: SAINT DIE | E53: 588186 | F53: BRUYERES | G53: 3.5 | H53: 44 | I53: 114 | J53: 95 | K53: 44 | L53: 290 | M53: 46 | N53: 44 | O53: 126 | P53: 127 | Q53: 52 | R53: 88 | S53: 20 | T53: 194 | U53: 119 | V53: 41 | W53: 114 | X53: 104 | Y53: 270 | Z53: 37 | AA53: 35 | AB53: 62 | AC53: 50 | AD53: 206 | AE53: 121 | AF53: 107 | AG53: 63 | AH53: 66 | AI53: 111 | AJ53: 35 | AK53: 40 | AL53: 1 | AM53: 66 | AN53: 1 | AO53: 41 | AP53: 27 | AQ53: 174
A54: 50 | B54: AUBE HAUTE MARNE | C54: 14 | D54: TROYES | E54: 410551 | F54: BRIENNE LE CHÂTEAU | G54: 2.9 | H54: 45 | I54: 121 | J54: 90 | K54: 214 | L54: 71 | M54: 127 | N54: 82 | O54: 26 | P54: 141 | Q54: 154 | R54: 70 | S54: 200 | T54: 232 | U54: 148 | V54: 204 | W54: 200 | X54: 98 | Y54: 245 | Z54: 59 | AA54: 46 | AB54: 67 | AC54: 104 | AD54: 11 | AE54: 184 | AF54: 252 | AG54: 19 | AH54: 23 | AI54: 40 | AJ54: 53 | AK54: 122 | AL54: 1 | AM54: 232 | AN54: 1 | AO54: 70 | AP54: 60 | AQ54: 90
A55: 30 | B55: MARNE-ARDENNES | C55: 11 | D55: REIMS | E55: 451370 | F55: EPERNAY VERRON | G55: 10.3 | H55: 46 | I55: 92 | J55: 98 | K55: 43 | L55: 122 | M55: 229 | N55: 96 | O55: 166 | P55: 24 | Q55: 130 | R55: 185 | S55: 54 | T55: 63 | U55: 140 | V55: 31 | W55: 103 | X55: 153 | Y55: 62 | Z55: 29 | AA55: 24 | AB55: 108 | AC55: 66 | AD55: 166 | AE55: 195 | AF55: 43 | AG55: 138 | AH55: 207 | AI55: 73 | AJ55: 179 | AK55: 207 | AL55: 238 | AM55: 260 | AN55: 1 | AO55: 16 | AP55: 20 | AQ55: 37
A56: 262 | B56: BAS-RHIN | C56: 5060 | D56: HAGUENAU | E56: 4064 | F56: HAGUENAU MUSAU | G56: 2.1 | H56: 47 | I56: 188 | J56: 101 | K56: 20 | L56: 223 | M56: 299 | N56: 92 | O56: 71 | P56: 263 | Q56: 30 | R56: 165 | S56: 47 | T56: 24 | U56: 52 | V56: 288 | W56: 178 | X56: 285 | Y56: 9 | Z56: 226 | AA56: 235 | AB56: 142 | AC56: 146 | AD56: 260 | AE56: 131 | AF56: 117 | AG56: 52 | AH56: 59 | AI56: 94 | AJ56: 36 | AK56: 15 | AL56: 1 | AM56: 31 | AN56: 1 | AO56: 27 | AP56: 17 | AQ56: 129
A57: 110 | B57: MEURTHE ET MOSELLE MEUSE | C57: 26 | D57: NANCY | E57: 454171 | F57: BLAMONT | G57: 2.7 | H57: 48 | I57: 36 | J57: 150 | K57: 106 | L57: 52 | M57: 23 | N57: 49 | O57: 45 | P57: 43 | Q57: 226 | R57: 103 | S57: 20 | T57: 142 | U57: 70 | V57: 281 | W57: 303 | X57: 209 | Y57: 74 | Z57: 116 | AA57: 285 | AB57: 12 | AC57: 168 | AD57: 11 | AE57: 1 | AF57: 147 | AG57: 83 | AH57: 92 | AI57: 101 | AJ57: 71 | AK57: 115 | AL57: 275 | AM57: 48 | AN57: 1 | AO57: 85 | AP57: 60 | AQ57: 126
A58: 80 | B58: VOSGES | C58: 57 | D58: EPINAL | E58: 488281 | F58: ELOYES | G58: 3.0 | H58: 49 | I58: 71 | J58: 96 | K58: 122 | L58: 234 | M58: 23 | N58: 197 | O58: 214 | P58: 188 | Q58: 104 | R58: 182 | S58: 155 | T58: 150 | U58: 211 | V58: 250 | W58: 269 | X58: 192 | Y58: 67 | Z58: 36 | AA58: 102 | AB58: 154 | AC58: 116 | AD58: 11 | AE58: 128 | AF58: 57 | AG58: 57 | AH58: 11 | AI58: 214 | AJ58: 83 | AK58: 54 | AL58: 205 | AM58: 29 | AN58: 1 | AO58: 51 | AP58: 43 | AQ58: 100
A59: 264 | B59: HAUT-RHIN | C59: 5130 | D59: COLMAR | E59: 4141 | F59: HORBOURG WIHR | G59: 3.8 | H59: 50 | I59: 163 | J59: 287 | K59: 77 | L59: 216 | M59: 39 | N59: 34 | O59: 3 | P59: 41 | Q59: 151 | R59: 108 | S59: 165 | T59: 109 | U59: 213 | V59: 201 | W59: 85 | X59: 125 | Y59: 83 | Z59: 98 | AA59: 125 | AB59: 172 | AC59: 43 | AD59: 103 | AE59: 231 | AF59: 220 | AG59: 32 | AH59: 42 | AI59: 45 | AJ59: 121 | AK59: 168 | AL59: 189 | AM59: 218 | AN59: 1 | AO59: 125 | AP59: 118 | AQ59: 147
A60: 30 | B60: MARNE-ARDENNES | C60: 11 | D60: REIMS | E60: 451301 | F60: REIMS HOTEL DE VILLE | G60: 9.1 | H60: 51 | I60: 117 | J60: 119 | K60: 53 | L60: 160 | M60: 229 | N60: 154 | O60: 120 | P60: 68 | Q60: 296 | R60: 258 | S60: 14 | T60: 13 | U60: 20 | V60: 154 | W60: 80 | X60: 190 | Y60: 12 | Z60: 64 | AA60: 174 | AB60: 84 | AC60: 105 | AD60: 57 | AE60: 277 | AF60: 24 | AG60: 154 | AH60: 89 | AI60: 134 | AJ60: 266 | AK60: 234 | AL60: 250 | AM60: 304 | AN60: 1 | AO60: 17 | AP60: 11 | AQ60: 128
A61: 30 | B61: MARNE-ARDENNES | C61: 2 | D61: CHARLEVILLE MEZIERES | E61: 508860 | F61: ROCROI | G61: 3.1 | H61: 52 | I61: 5 | J61: 13 | K61: 28 | L61: 5 | M61: 127 | N61: 32 | O61: 203 | P61: 91 | Q61: 34 | R61: 15 | S61: 100 | T61: 251 | U61: 175 | V61: 213 | W61: 242 | X61: 253 | Y61: 221 | Z61: 108 | AA61: 86 | AB61: 208 | AC61: 183 | AD61: 85 | AE61: 120 | AF61: 146 | AG61: 104 | AH61: 167 | AI61: 58 | AJ61: 155 | AK61: 124 | AL61: 179 | AM61: 143 | AN61: 1 | AO61: 180 | AP61: 184 | AQ61: 148
A62: 160 | B62: MOSELLE | C62: 45 | D62: METZ | E62: 557445 | F62: METZ SAINT LIVIER | G62: 3.9 | H62: 53 | I62: 201 | J62: 188 | K62: 96 | L62: 174 | M62: 231 | N62: 119 | O62: 93 | P62: 151 | Q62: 76 | R62: 234 | S62: 38 | T62: 55 | U62: 27 | V62: 86 | W62: 37 | X62: 38 | Y62: 130 | Z62: 47 | AA62: 182 | AB62: 255 | AC62: 97 | AD62: 64 | AE62: 149 | AF62: 27 | AG62: 108 | AH62: 98 | AI62: 102 | AJ62: 164 | AK62: 53 | AL62: 1 | AM62: 93 | AN62: 1 | AO62: 11 | AP62: 3 | AQ62: 206
A63: 30 | B63: MARNE-ARDENNES | C63: 11 | D63: REIMS | E63: 551314 | F63: FISMES | G63: 2.7 | H63: 54 | I63: 15 | J63: 19 | K63: 11 | L63: 9 | M63: 231 | N63: 126 | O63: 211 | P63: 28 | Q63: 70 | R63: 155 | S63: 200 | T63: 228 | U63: 240 | V63: 149 | W63: 271 | X63: 66 | Y63: 224 | Z63: 51 | AA63: 83 | AB63: 190 | AC63: 143 | AD63: 11 | AE63: 1 | AF63: 119 | AG63: 204 | AH63: 219 | AI63: 238 | AJ63: 65 | AK63: 134 | AL63: 138 | AM63: 204 | AN63: 1 | AO63: 18 | AP63: 17 | AQ63: 55
A64: 30 | B64: MARNE-ARDENNES | C64: 11 | D64: REIMS | E64: 551310 | F64: REIMS CHATILLONS | G64: 5.6 | H64: 55 | I64: 218 | J64: 109 | K64: 281 | L64: 45 | M64: 231 | N64: 33 | O64: 201 | P64: 32 | Q64: 79 | R64: 29 | S64: 47 | T64: 200 | U64: 156 | V64: 87 | W64: 270 | X64: 37 | Y64: 249 | Z64: 26 | AA64: 191 | AB64: 38 | AC64: 17 | AD64: 124 | AE64: 147 | AF64: 66 | AG64: 61 | AH64: 39 | AI64: 59 | AJ64: 217 | AK64: 215 | AL64: 127 | AM64: 299 | AN64: 1 | AO64: 33 | AP64: 33 | AQ64: 44
A65: 160 | B65: MOSELLE | C65: 42 | D65: MOSELLE EST | E65: 557503 | F65: NEUNKIRCH | G65: 2.9 | H65: 56 | I65: 195 | J65: 240 | K65: 185 | L65: 212 | M65: 46 | N65: 7 | O65: 42 | P65: 224 | Q65: 6 | R65: 51 | S65: 13 | T65: 15 | U65: 7 | V65: 43 | W65: 170 | X65: 18 | Y65: 35 | Z65: 233 | AA65: 41 | AB65: 103 | AC65: 173 | AD65: 50 | AE65: 305 | AF65: 252 | AG65: 121 | AH65: 170 | AI65: 61 | AJ65: 190 | AK65: 3 | AL65: 1 | AM65: 7 | AN65: 1 | AO65: 145 | AP65: 173 | AQ65: 70
A66: 50 | B66: AUBE HAUTE MARNE | C66: 21 | D66: CHAUMONT | E66: 410560 | F66: BOURBONNE LES BAINS | G66: 2.0 | H66: 57 | I66: 47 | J66: 9 | K66: 136 | L66: 96 | M66: 127 | N66: 107 | O66: 17 | P66: 177 | Q66: 93 | R66: 157 | S66: 200 | T66: 247 | U66: 146 | V66: 276 | W66: 244 | X66: 259 | Y66: 204 | Z66: 167 | AA66: 15 | AB66: 45 | AC66: 145 | AD66: 282 | AE66: 179 | AF66: 160 | AG66: 51 | AH66: 126 | AI66: 71 | AJ66: 16 | AK66: 48 | AL66: 1 | AM66: 84 | AN66: 1 | AO66: 59 | AP66: 60 | AQ66: 41
A67: 30 | B67: MARNE-ARDENNES | C67: 11 | D67: REIMS | E67: 551341 | F67: REIMS JEAN JAURES | G67: 4.8 | H67: 58 | I67: 40 | J67: 80 | K67: 67 | L67: 57 | M67: 108 | N67: 214 | O67: 279 | P67: 219 | Q67: 159 | R67: 54 | S67: 257 | T67: 52 | U67: 4 | V67: 23 | W67: 251 | X67: 6 | Y67: 233 | Z67: 48 | AA67: 36 | AB67: 226 | AC67: 91 | AD67: 101 | AE67: 214 | AF67: 67 | AG67: 24 | AH67: 216 | AI67: 2 | AJ67: 252 | AK67: 121 | AL67: 124 | AM67: 200 | AN67: 1 | AO67: 260 | AP67: 213 | AQ67: 300
A68: 30 | B68: MARNE-ARDENNES | C68: 11 | D68: REIMS | E68: 451318 | F68: VERZY | G68: 2.0 | H68: 59 | I68: 72 | J68: 43 | K68: 142 | L68: 25 | M68: 231 | N68: 164 | O68: 85 | P68: 34 | Q68: 243 | R68: 224 | S68: 185 | T68: 230 | U68: 302 | V68: 72 | W68: 82 | X68: 136 | Y68: 197 | Z68: 9 | AA68: 79 | AB68: 242 | AC68: 3 | AD68: 102 | AE68: 218 | AF68: 53 | AG68: 89 | AH68: 60 | AI68: 105 | AJ68: 177 | AK68: 147 | AL68: 1 | AM68: 254 | AN68: 1 | AO68: 62 | AP68: 60 | AQ68: 42
A69: 264 | B69: HAUT-RHIN | C69: 5169 | D69: MULHOUSE | E69: 4179 | F69: SIERENTZ | G69: 2.8 | H69: 60 | I69: 119 | J69: 282 | K69: 1 | L69: 288 | M69: 127 | N69: 108 | O69: 142 | P69: 81 | Q69: 113 | R69: 144 | S69: 62 | T69: 58 | U69: 68 | V69: 67 | W69: 123 | X69: 16 | Y69: 98 | Z69: 222 | AA69: 199 | AB69: 12 | AC69: 68 | AD69: 165 | AE69: 289 | AF69: 211 | AG69: 58 | AH69: 30 | AI69: 192 | AJ69: 38 | AK69: 30 | AL69: 189 | AM69: 18 | AN69: 1 | AO69: 106 | AP69: 60 | AQ69: 200
A70: 262 | B70: BAS-RHIN | C70: 5006 | D70: STRASBOURG | E70: 4037 | F70: MUNDOLSHEIM | G70: 4.8 | H70: 61 | I70: 26 | J70: 169 | K70: 92 | L70: 73 | M70: 10 | N70: 59 | O70: 14 | P70: 77 | Q70: 86 | R70: 134 | S70: 131 | T70: 22 | U70: 19 | V70: 153 | W70: 122 | X70: 130 | Y70: 26 | Z70: 172 | AA70: 200 | AB70: 82 | AC70: 119 | AD70: 275 | AE70: 1 | AF70: 104 | AG70: 205 | AH70: 127 | AI70: 248 | AJ70: 198 | AK70: 112 | AL70: 197 | AM70: 127 | AN70: 1 | AO70: 148 | AP70: 173 | AQ70: 76
A71: 50 | B71: AUBE HAUTE MARNE | C71: 14 | D71: TROYES | E71: 410550 | F71: BAR SUR AUBE | G71: 4.6 | H71: 62 | I71: 183 | J71: 87 | K71: 137 | L71: 207 | M71: 231 | N71: 28 | O71: 219 | P71: 121 | Q71: 8 | R71: 36 | S71: 130 | T71: 128 | U71: 224 | V71: 251 | W71: 287 | X71: 229 | Y71: 48 | Z71: 86 | AA71: 60 | AB71: 130 | AC71: 233 | AD71: 11 | AE71: 234 | AF71: 63 | AG71: 44 | AH71: 41 | AI71: 55 | AJ71: 156 | AK71: 85 | AL71: 1 | AM71: 176 | AN71: 1 | AO71: 141 | AP71: 150 | AQ71: 121
A72: 160 | B72: MOSELLE | C72: 42 | D72: MOSELLE EST | E72: 457583 | F72: SAINT AVOLD | G72: 7.2 | H72: 63 | I72: 108 | J72: 77 | K72: 49 | L72: 66 | M72: 286 | N72: 105 | O72: 186 | P72: 57 | Q72: 72 | R72: 121 | S72: 143 | T72: 37 | U72: 40 | V72: 98 | W72: 132 | X72: 133 | Y72: 45 | Z72: 40 | AA72: 136 | AB72: 59 | AC72: 55 | AD72: 84 | AE72: 252 | AF72: 41 | AG72: 107 | AH72: 179 | AI72: 92 | AJ72: 52 | AK72: 73 | AL72: 145 | AM72: 92 | AN72: 1 | AO72: 150 | AP72: 127 | AQ72: 210
A73: 110 | B73: MEURTHE ET MOSELLE MEUSE | C73: 26 | D73: NANCY | E73: 554116 | F73: BACCARAT | G73: 3.3 | H73: 64 | I73: 113 | J73: 152 | K73: 73 | L73: 166 | M73: 127 | N73: 130 | O73: 141 | P73: 155 | Q73: 78 | R73: 147 | S73: 100 | T73: 101 | U73: 109 | V73: 110 | W73: 163 | X73: 110 | Y73: 112 | Z73: 143 | AA73: 104 | AB73: 235 | AC73: 152 | AD73: 156 | AE73: 108 | AF73: 199 | AG73: 60 | AH73: 62 | AI73: 141 | AJ73: 25 | AK73: 156 | AL73: 226 | AM73: 169 | AN73: 1 | AO73: 68 | AP73: 60 | AQ73: 83
A74: 110 | B74: MEURTHE ET MOSELLE MEUSE | C74: 31 | D74: VERDUN | E74: 455676 | F74: VAUCOULEURS | G74: 1.8 | H74: 65 | I74: 66 | J74: 15 | K74: 255 | L74: 6 | M74: 231 | N74: 294 | O74: 215 | P74: 242 | Q74: 261 | R74: 171 | S74: 306 | T74: 132 | U74: 179 | V74: 285 | W74: 272 | X74: 275 | Y74: 44 | Z74: 41 | AA74: 20 | AB74: 267 | AC74: 115 | AD74: 11 | AE74: 110 | AF74: 167 | AG74: 35 | AH74: 18 | AI74: 293 | AJ74: 5 | AK74: 102 | AL74: 263 | AM74: 46 | AN74: 1 | AO74: 63 | AP74: 60 | AQ74: 49
A75: 30 | B75: MARNE-ARDENNES | C75: 2 | D75: CHARLEVILLE MEZIERES | E75: 508815 | F75: CARIGNAN | G75: 3.4 | H75: 66 | I75: 118 | J75: 83 | K75: 297 | L75: 148 | M75: 21 | N75: 186 | O75: 235 | P75: 40 | Q75: 189 | R75: 210 | S75: 89 | T75: 163 | U75: 259 | V75: 277 | W75: 278 | X75: 241 | Y75: 58 | Z75: 158 | AA75: 161 | AB75: 138 | AC75: 191 | AD75: 112 | AE75: 177 | AF75: 116 | AG75: 17 | AH75: 12 | AI75: 287 | AJ75: 2 | AK75: 106 | AL75: 254 | AM75: 60 | AN75: 1 | AO75: 115 | AP75: 60 | AQ75: 227
A76: 160 | B76: MOSELLE | C76: 45 | D76: METZ | E76: 557178 | F76: BOULAY | G76: 3.3 | H76: 67 | I76: 69 | J76: 175 | K76: 55 | L76: 116 | M76: 46 | N76: 225 | O76: 287 | P76: 58 | Q76: 131 | R76: 130 | S76: 278 | T76: 11 | U76: 49 | V76: 181 | W76: 96 | X76: 77 | Y76: 7 | Z76: 95 | AA76: 61 | AB76: 12 | AC76: 252 | AD76: 58 | AE76: 1 | AF76: 202 | AG76: 80 | AH76: 280 | AI76: 16 | AJ76: 62 | AK76: 24 | AL76: 1 | AM76: 41 | AN76: 1 | AO76: 227 | AP76: 189 | AQ76: 285
A77: 262 | B77: BAS-RHIN | C77: 5101 | D77: SELESTAT | E77: 4116 | F77: MOLSHEIM | G77: 7.0 | H77: 68 | I77: 42 | J77: 104 | K77: 60 | L77: 121 | M77: 39 | N77: 194 | O77: 204 | P77: 108 | Q77: 175 | R77: 168 | S77: 180 | T77: 83 | U77: 30 | V77: 152 | W77: 73 | X77: 146 | Y77: 101 | Z77: 16 | AA77: 17 | AB77: 152 | AC77: 123 | AD77: 228 | AE77: 196 | AF77: 6 | AG77: 116 | AH77: 37 | AI77: 252 | AJ77: 160 | AK77: 137 | AL77: 129 | AM77: 215 | AN77: 1 | AO77: 170 | AP77: 195 | AQ77: 85
A78: 160 | B78: MOSELLE | C78: 45 | D78: METZ | E78: 457446 | F78: METZ SAINT LOUIS | G78: 9.5 | H78: 69 | I78: 77 | J78: 55 | K78: 236 | L78: 81 | M78: 46 | N78: 169 | O78: 184 | P78: 166 | Q78: 180 | R78: 127 | S78: 122 | T78: 6 | U78: 14 | V78: 108 | W78: 59 | X78: 107 | Y78: 6 | Z78: 111 | AA78: 123 | AB78: 178 | AC78: 39 | AD78: 253 | AE78: 140 | AF78: 178 | AG78: 168 | AH78: 135 | AI78: 95 | AJ78: 281 | AK78: 273 | AL78: 244 | AM78: 303 | AN78: 242 | AO78: 99 | AP78: 111 | AQ78: 98
A79: 264 | B79: HAUT-RHIN | C79: 5130 | D79: COLMAR | E79: 4132 | F79: COLMAR MARAICHERS | G79: 2.6 | H79: 70 | I79: 82 | J79: 137 | K79: 29 | L79: 276 | M79: 46 | N79: 128 | O79: 25 | P79: 138 | Q79: 105 | R79: 213 | S79: 169 | T79: 40 | U79: 130 | V79: 59 | W79: 104 | X79: 51 | Y79: 47 | Z79: 57 | AA79: 53 | AB79: 98 | AC79: 8 | AD79: 167 | AE79: 287 | AF79: 227 | AG79: 198 | AH79: 128 | AI79: 211 | AJ79: 233 | AK79: 8 | AL79: 1 | AM79: 22 | AN79: 1 | AO79: 74 | AP79: 111 | AQ79: 27
A80: 160 | B80: MOSELLE | C80: 42 | D80: MOSELLE EST | E80: 457614 | F80: SARREBOURG | G80: 9.0 | H80: 71 | I80: 103 | J80: 93 | K80: 63 | L80: 138 | M80: 226 | N80: 98 | O80: 238 | P80: 120 | Q80: 82 | R80: 39 | S80: 152 | T80: 107 | U80: 104 | V80: 91 | W80: 118 | X80: 197 | Y80: 123 | Z80: 39 | AA80: 32 | AB80: 200 | AC80: 76 | AD80: 171 | AE80: 253 | AF80: 23 | AG80: 132 | AH80: 125 | AI80: 164 | AJ80: 112 | AK80: 169 | AL80: 273 | AM80: 125 | AN80: 1 | AO80: 50 | AP80: 49 | AQ80: 54
